Workbook

Sheet Input - Customer Data
A3: LDC Info | E3: Customer Growth Chart
A4: Utility Name | B4: Utiliyt Name | F4: ='Input - Customer Data'!A13 -> Residential | H4: ='Input - Customer Data'!A14 -> General Service < 50 kW | J4: ='Input - Customer Data'!A15 -> General Service > 50 to 2999 kW | L4: ='Input - Customer Data'!A16 -> General Service > 3000 to 4999 kW | N4: ='Input - Customer Data'!A17 -> USL | P4: ='Input - Customer Data'!A18 -> Sentinel | R4: ='Input - Customer Data'!A19 -> Street Lighting | T4: ='Input - Customer Data'!A20 -> other | V4: ='Input - Customer Data'!A21 -> other
A5: Assigned EB Number | B5: EB-0000-0000 | E5: Date | F5: Customers or Connections | G5: Growth Rate | H5: Customers or Connections | I5: Growth Rate | J5: Customers or Connections | K5: Growth Rate | L5: Customers or Connections | M5: Growth Rate | N5: Customers or Connections | O5: Growth Rate | P5: Customers or Connections | Q5: Growth Rate | R5: Customers or Connections | S5: Growth Rate | T5: Customers or Connections | U5: Growth Rate | V5: Customers or Connections | W5: Growth Rate
A6: Bridge Year | B6: 2017 | E6: ='Input - Customer Data'!B7-10 -> 2008 | F6: =AVERAGE($H$32,$H$43) -> 5537 | H6: =AVERAGE($J$32,$J$43) -> 678.5 | J6: =AVERAGE($M$32,$M$43) -> 57 | L6: =AVERAGE($P$32,$P$43) -> 1 | N6: =AVERAGE($R$32,$R$43) -> 2 | P6: =AVERAGE($U$32,$U$43) -> 31 | R6: =AVERAGE($X$32,$X$43) -> 1658 | T6: =AVERAGE('Input - Customer Data'!AB32,'Input - Customer Data'!AB43) ->  | V6: =AVERAGE('Input - Customer Data'!AD32,'Input - Customer Data'!AD43) -> 
A7: Test Year | B7: 2018 | E7: ='Input - Customer Data'!B7-9 -> 2009 | F7: =AVERAGE($H$44,$H$55) -> 5584 | G7: =F7/F6 -> 1.008488351 | H7: =AVERAGE($J$44,$J$55) -> 693.5 | I7: =H7/H6 -> 1.02210759 | J7: =AVERAGE($M$44,$M$55) -> 60.5 | K7: =J7/J6 -> 1.061403509 | L7: =AVERAGE($P$44,$P$55) -> 1 | M7: =L7/L6 -> 1 | N7: =AVERAGE($R$44,$R$55) -> 2 | O7: =N7/N6 -> 1 | P7: =AVERAGE($U$44,$U$55) -> 31 | Q7: =P7/P6 -> 1 | R7: =AVERAGE($X$44,$X$55) -> 1658 | S7: =R7/R6 -> 1 | T7: =AVERAGE('Input - Customer Data'!AB44,'Input - Customer Data'!AB55) ->  | U7: =T7/T6 ->  | V7: =AVERAGE('Input - Customer Data'!AD44,'Input - Customer Data'!AD55) ->  | W7: =V7/V6 -> 
A8: Last Rebasing Year | B8: 2014 | E8: ='Input - Customer Data'!B7-8 -> 2010 | F8: =AVERAGE($H$56,$H$67) -> 5647 | G8: =F8/F7 -> 1.011282235 | H8: =AVERAGE($J$56,$J$67) -> 703.5 | I8: =H8/H7 -> 1.014419611 | J8: =AVERAGE($M$56,$M$67) -> 62 | K8: 1.024793388 | L8: =AVERAGE($P$56,$P$67) -> 1 | M8: 1 | N8: =AVERAGE($R$56,$R$67) -> 4 | O8: 2 | P8: =AVERAGE($U$56,$U$67) -> 31 | Q8: 1 | R8: =AVERAGE($X$56,$X$67) -> 1680 | S8: =R8/R7 -> 1.013268999 | T8: =AVERAGE('Input - Customer Data'!AB56,'Input - Customer Data'!AB67) ->  | V8: =AVERAGE('Input - Customer Data'!AD56,'Input - Customer Data'!AD67) -> 
E9: ='Input - Customer Data'!B7-7 -> 2011 | F9: =AVERAGE($H$68,$H$79) -> 5709 | G9: 1.010979281 | H9: =AVERAGE($J$68,$J$79) -> 708.5 | I9: 1.007107321 | J9: =AVERAGE($M$68,$M$79) -> 60.5 | K9: 0.9758064516 | L9: =AVERAGE($P$68,$P$79) -> 1 | M9: 1 | N9: =AVERAGE($R$68,$R$79) -> 6 | O9: 1.5 | P9: =AVERAGE($U$68,$U$79) -> 31 | Q9: 1 | R9: =AVERAGE($X$68,$X$79) -> 1687 | S9: 1.004166667 | T9: =AVERAGE('Input - Customer Data'!AB68,'Input - Customer Data'!AB79) ->  | V9: =AVERAGE('Input - Customer Data'!AD68,'Input - Customer Data'!AD79) -> 
E10: ='Input - Customer Data'!B7-6 -> 2012 | F10: =AVERAGE($H$80,$H$91) -> 5805 | G10: =F10/F9 -> 1.016815554 | H10: =AVERAGE($J$80,$J$91) -> 707.5 | I10: 0.9985885674 | J10: =AVERAGE($M$80,$M$91) -> 59.5 | K10: 0.9834710744 | L10: =AVERAGE($P$80,$P$91) -> 1 | M10: 1 | N10: =AVERAGE($R$80,$R$91) -> 9.5 | O10: 1.583333333 | P10: =AVERAGE($U$80,$U$91) -> 29 | Q10: =P10/P9 -> 0.935483871 | R10: =AVERAGE($X$80,$X$91) -> 1688 | S10: 1.000592768 | T10: =AVERAGE('Input - Customer Data'!AB80,'Input - Customer Data'!AB91) ->  | V10: =AVERAGE('Input - Customer Data'!AD80,'Input - Customer Data'!AD91) -> 
A11: Customer Class | E11: ='Input - Customer Data'!B7-5 -> 2013 | F11: =AVERAGE($H$92,$H$103) -> 5911.5 | G11: 1.018346253 | H11: =AVERAGE($J$92,$J$103) -> 711 | I11: 1.004946996 | J11: =AVERAGE($M$92,$M$103) -> 57 | K11: 0.9579831933 | L11: =AVERAGE($P$92,$P$103) -> 1 | M11: 1 | N11: =AVERAGE($R$92,$R$103) -> 13 | O11: 1.368421053 | P11: =AVERAGE($U$92,$U$103) -> 31 | Q11: 1.068965517 | R11: =AVERAGE($X$92,$X$103) -> 1696 | S11: 1.004739336 | T11: =AVERAGE('Input - Customer Data'!AB92,'Input - Customer Data'!AB97) ->  | V11: =AVERAGE('Input - Customer Data'!AD92,'Input - Customer Data'!AD97) -> 
A12: Customer Class Name | E12: ='Input - Customer Data'!B7-4 -> 2014 | F12: =AVERAGE($H$104,$H$115) -> 5946.5 | G12: 1.005920663 | H12: =AVERAGE($J$104,$J$115) -> 715 | I12: 1.005625879 | J12: =AVERAGE($M$104,$M$115) -> 56.5 | K12: 0.9912280702 | L12: =AVERAGE($P$104,$P$115) -> 1 | M12: 1 | N12: =AVERAGE($R$104,$R$115) -> 13 | O12: 1 | P12: =AVERAGE($U$104,$U$115) -> 31 | Q12: 1 | R12: =AVERAGE($X$104,$X$115) -> 1705 | S12: 1.005306604 | T12: =AVERAGE('Input - Customer Data'!AB104,'Input - Customer Data'!AB115) ->  | V12: =AVERAGE('Input - Customer Data'!AD104,'Input - Customer Data'!AD115) -> 
A13: Residential | E13: ='Input - Customer Data'!B7-3 -> 2015 | F13: =AVERAGE($H$116,$H$127) -> 5961 | G13: 1.002438409 | H13: =AVERAGE($J$116,$J$127) -> 730 | I13: 1.020979021 | J13: =AVERAGE($M$116,$M$127) -> 52 | K13: 0.9203539823 | L13: =AVERAGE($P$116,$P$127) -> 1 | M13: 1 | N13: =AVERAGE($R$116,$R$127) -> 13 | O13: 1 | P13: =AVERAGE($U$116,$U$127) -> 31 | Q13: 1 | R13: =AVERAGE($X$116,$X$127) -> 1706.5 | S13: 1.000879765 | T13: =AVERAGE('Input - Customer Data'!AB116,'Input - Customer Data'!AB127) ->  | V13: =AVERAGE('Input - Customer Data'!AD116,'Input - Customer Data'!AD127) -> 
A14: General Service < 50 kW | E14: ='Input - Customer Data'!B7-2 -> 2016 | F14: =AVERAGE($H$128,$H$139) -> 5988.5 | G14: =F14/F13 -> 1.00461332 | H14: =AVERAGE($J$128,$J$139) -> 741.5 | I14: 1.015753425 | J14: =AVERAGE($M$128,$M$139) -> 47.5 | K14: =J14/J13 -> 0.9134615385 | L14: =AVERAGE($P$128,$P$139) -> 1 | M14: 1 | N14: =AVERAGE($R$128,$R$139) -> 13 | O14: 1 | P14: =AVERAGE($U$128,$U$139) -> 29 | Q14: =P14/P13 -> 0.935483871 | R14: =AVERAGE($X$128,$X$139) -> 1704.5 | S14: 0.9988280105 | T14: =AVERAGE('Input - Customer Data'!AB128,'Input - Customer Data'!AB139) ->  | V14: =AVERAGE('Input - Customer Data'!AD128,'Input - Customer Data'!AD139) -> 
A15: General Service > 50 to 2999 kW
A16: General Service > 3000 to 4999 kW
A17: USL | E17: Geomean | G17: =GEOMEAN(G7:G15) -> 1.009846678 | I17: =GEOMEAN(I7:I15) -> 1.011160656 | K17: =GEOMEAN(K7:K15) -> 0.9774675402 | M17: =GEOMEAN(M7:M15) -> 1 | O17: =GEOMEAN(O7:O15) -> 1.263613245 | Q17: =GEOMEAN(Q7:Q15) -> 0.9916982298 | S17: =GEOMEAN(S7:S15) -> 1.003463453 | U17: =GEOMEAN(U7:U15) ->  | W17: =GEOMEAN(W7:W15) -> 
A18: Sentinel
A19: Street Lighting | E19: ='Input - Customer Data'!B6 -> 2017 | F19: =F14*G17 -> 6047.466833 | H19: =H14*I17 -> 749.7756263 | J19: =J14*K17 -> 46.42970816 | L19: =L14*M17 -> 1 | N19: =N14*O17 -> 16.42697219 | P19: =P14*Q17 -> 28.75924866 | R19: =R14*S17 -> 1710.403456 | T19: =T14*U17 ->  | V19: =V14*W17 -> 
A20: other | E20: ='Input - Customer Data'!B7 -> 2018 | F20: =F19*G17 -> 6107.014294 | H20: =H19*I17 -> 758.1436141 | J20: =J19*K17 -> 45.38353263 | L20: =L19*M17 -> 1 | N20: =N19*O17 -> 20.75733964 | P20: =P19*Q17 -> 28.52049599 | R20: =R19*S17 -> 1716.327359 | T20: =T19*U17 ->  | V20: =V19*W17 -> 
A21: other
E22: In the section below, LDCs can adjust the computed customer count for the Bridge and Test Year for special cirumstance such as new subdivision or loss of customer or other utiliy specific reasons.
E23: Adjusted
E24: ='Input - Customer Data'!B6 -> 2017 | F24: =F19 -> 6047.466833 | G24: =F24/F14 -> 1.009846678 | H24: =H19 -> 749.7756263 | I24: =H24/H14 -> 1.011160656 | J24: =J19 -> 46.42970816 | K24: =J24/J14 -> 0.9774675402 | L24: =L19 -> 1 | M24: =L24/L14 -> 1 | N24: 13 | O24: =N24/N14 -> 1 | P24: =P19 -> 28.75924866 | Q24: =P24/P14 -> 0.9916982298 | R24: =R19 -> 1710.403456 | S24: =R24/R14 -> 1.003463453 | T24: =T19 ->  | U24: =T24/T14 ->  | V24: =V19 ->  | W24: =V24/V15 -> 
E25: ='Input - Customer Data'!B7 -> 2018 | F25: =F20 -> 6107.014294 | G25: =F25/F24 -> 1.009846678 | H25: =H20 -> 758.1436141 | I25: =H25/H24 -> 1.011160656 | J25: =J20 -> 45.38353263 | K25: =J25/J24 -> 0.9774675402 | L25: =L20 -> 1 | M25: =L25/L24 -> 1 | N25: 13 | O25: =N25/N24 -> 1 | P25: =P20 -> 28.52049599 | Q25: =P25/P24 -> 0.9916982298 | R25: =R20 -> 1716.327359 | S25: =R25/R24 -> 1.003463453 | T25: =T20 ->  | U25: =T25/T24 ->  | V25: =V20 ->  | W25: =V25/V24 -> 
A27: (F2 to toggle between value and formula)
A28: Consumption | E28: Wholesale | G28: Retail Consumption
E29: Wholesale Purchases | G29: ='Input - Customer Data'!A13 -> Residential | I29: ='Input - Customer Data'!A14 -> General Service < 50 kW | K29: ='Input - Customer Data'!A15 -> General Service > 50 to 2999 kW | N29: ='Input - Customer Data'!A16 -> General Service > 3000 to 4999 kW | Q29: Unmetered Scattered Load | S29: Sentinel | V29: ='Input - Customer Data'!A19 -> Street Lighting | AA29: ='Input - Customer Data'!A20 -> other | AC29: ='Input - Customer Data'!A21 -> other | AE29: ='Input - Customer Data'!A22 -> 0
G30: kWh | H30: Customer/ Connection | I30: kWh | J30: Customer/ Connection | K30: kWh | L30: kW | M30: Customer/ Connection | N30: kWh | O30: kW | P30: Customer/ Connection | Q30: kWh | R30: Number of Customer/ Connection | S30: kWh | T30: kW | U30: Customer/ Connection | V30: kWh | W30: kW | X30: Customer/ Connection | Y30: kWh | Z30: Customer/ Connection | AA30: kWh | AB30: Customer/ Connection | AC30: kWh | AD30: Customer/ Connection | AE30: kWh | AF30: Customer/ Connection
A31: Year | B31: Montth
A32: ='Input - Customer Data'!$B$7-10 -> 2008 | B32: January | C32: =H32+J32+M32+P32+R32+U32+X32 -> 7931 | E32: 15082878.82 | G32: 4418801.34 | H32: 5512 | I32: 1782904.35 | J32: 672 | K32: 7516255.32 | L32: 12935.88 | M32: 55 | N32: 2029219.2 | O32: 3696 | P32: 1 | Q32: 31901.17 | R32: 2 | S32: 3870.66 | T32: 10.75 | U32: 31 | V32: 121801.79 | W32: 262 | X32: 1658 | AG32: =H32+J32+M32+1+1 -> 6241
A33: ='Input - Customer Data'!$B$7-10 -> 2008 | B33: February | C33: =H33+J33+M33+P33+R33+U33+X33 -> 7942 | E33: 14030875.92 | G33: 4060650.67 | H33: 5522 | I33: 1698774.01 | J33: 673 | K33: 5022592.38 | L33: 13445.48 | M33: 55 | N33: 1910893.2 | O33: 3892.8 | P33: 1 | Q33: 34256.36 | R33: 2 | S33: 3620.94 | T33: 10.06 | U33: 31 | V33: 110014.52 | W33: 262 | X33: 1658 | AG33: 6252
A34: ='Input - Customer Data'!$B$7-10 -> 2008 | B34: March | C34: 7945 | E34: 14321155.43 | G34: 3984822.59 | H34: 5523 | I34: 1590703.78 | J34: 676 | K34: 5716428.34 | L34: 13292 | M34: 54 | N34: 2029254 | O34: 3859.2 | P34: 1 | Q34: 33715.47 | R34: 2 | S34: 3870.66 | T34: 10.75 | U34: 31 | V34: 121801.79 | W34: 262 | X34: 1658 | AG34: 6255
A35: ='Input - Customer Data'!$B$7-10 -> 2008 | B35: April | C35: 7946 | E35: 12696080.17 | G35: 3265381.5 | H35: 5524 | I35: 1416910.24 | J35: 672 | K35: 5351170.64 | L35: 13659.4 | M35: 58 | N35: 1847287.2 | O35: 3873.6 | P35: 1 | Q35: 30328.54 | R35: 2 | S35: 3745.8 | T35: 10.41 | U35: 31 | V35: 91286.08 | W35: 262 | X35: 1658 | AG35: 6256
A36: ='Input - Customer Data'!$B$7-10 -> 2008 | B36: May | C36: 7952 | E36: 12213415.61 | G36: 3136318.5 | H36: 5530 | I36: 1495645 | J36: 672 | K36: 5274780.21 | L36: 13863.42 | M36: 58 | N36: 1600044 | O36: 3528 | P36: 1 | Q36: 36387.89 | R36: 2 | S36: 3870.66 | T36: 10.75 | U36: 31 | V36: 93381.61 | W36: 262 | X36: 1658 | AG36: 6262
A37: ='Input - Customer Data'!$B$7-10 -> 2008 | B37: June | C37: 7954 | E37: 13029843.68 | G37: 3313927.88 | H37: 5530 | I37: 1471144.49 | J37: 674 | K37: 5489928.61 | L37: 14955.62 | M37: 58 | N37: 1829247.6 | O37: 3686.4 | P37: 1 | Q37: 33156.57 | R37: 2 | S37: 3745.8 | T37: 10.41 | U37: 31 | V37: 90369.3 | W37: 262 | X37: 1658 | AG37: 6264
A38: ='Input - Customer Data'!$B$7-10 -> 2008 | B38: July | C38: 7962 | E38: 13562922.75 | G38: 3645282.12 | H38: 5537 | I38: 1663441.54 | J38: 675 | K38: 5505551.43 | L38: 14242.02 | M38: 58 | N38: 1823030.4 | O38: 3715.2 | P38: 1 | Q38: 31901.17 | R38: 2 | S38: 3870.66 | T38: 10.75 | U38: 31 | V38: 71771.41 | W38: 262 | X38: 1658 | AG38: 6272
A39: ='Input - Customer Data'!$B$7-10 -> 2008 | B39: August | C39: 7971 | E39: 12738355.33 | G39: 3464222.41 | H39: 5545 | I39: 1675967.26 | J39: 676 | K39: 5569239.68 | L39: 14474.02 | M39: 58 | N39: 1434222 | O39: 3739.2 | P39: 1 | Q39: 36711.95 | R39: 2 | S39: 3870.66 | T39: 10.75 | U39: 31 | V39: 71051.07 | W39: 262 | X39: 1658 | AG39: 6281
A40: ='Input - Customer Data'!$B$7-10 -> 2008 | B40: September | C40: 7973 | E40: 13005195.66 | G40: 3176083.79 | H40: 5546 | I40: 1529479.42 | J40: 676 | K40: 5399515.92 | L40: 15702.12 | M40: 59 | N40: 1916119.2 | O40: 3849.6 | P40: 1 | Q40: 32139.21 | R40: 2 | S40: 3745.8 | T40: 10.41 | U40: 31 | V40: 68759.1 | W40: 262 | X40: 1658 | AG40: 6283
A41: ='Input - Customer Data'!$B$7-10 -> 2008 | B41: October | C41: 7987 | E41: 13176115.98 | G41: 3393414.05 | H41: 5556 | I41: 1590667.19 | J41: 680 | K41: 5552895.14 | L41: 13849.24 | M41: 59 | N41: 1908195.6 | O41: 3806.4 | P41: 1 | Q41: 32561.62 | R41: 2 | S41: 3870.66 | T41: 10.75 | U41: 31 | V41: 100470.57 | W41: 262 | X41: 1658 | AG41: 6297
A42: ='Input - Customer Data'!$B$7-10 -> 2008 | B42: November | C42: 7992 | E42: 13573281.85 | G42: 3815770.92 | H42: 5559 | I42: 1717799.77 | J42: 682 | K42: 5353309.32 | L42: 14121.43 | M42: 59 | N42: 1918023.6 | O42: 4452.8 | P42: 1 | Q42: 35715.79 | R42: 2 | S42: 3822.94 | T42: 10.62 | U42: 31 | V42: 98178.6 | W42: 262.4 | X42: 1658 | AG42: 6302
A43: ='Input - Customer Data'!$B$7-10 -> 2008 | B43: December | C43: 7998 | E43: 14286723.92 | G43: 4592449.76 | H43: 5562 | I43: 1965644.99 | J43: 685 | K43: 5147153.4 | L43: 14845.73 | M43: 59 | N43: 1553581.2 | O43: 4056 | P43: 1 | Q43: 32618.61 | R43: 2 | S43: 3915.57 | T43: 10.88 | U43: 31 | V43: 101451.22 | W43: 261.8 | X43: 1658 | AG43: 6308
A44: ='Input - Customer Data'!$B$7-9 -> 2009 | B44: January | C44: 8002 | E44: 15005142.69 | G44: 4659637.16 | H44: 5565 | I44: 2003216.56 | J44: 686 | K44: 5517120.49 | L44: 12961.64 | M44: 59 | N44: 1850636.4 | O44: 3710.4 | P44: 1 | Q44: 32304.45 | R44: 2 | S44: 3920.03 | T44: 10.89 | U44: 31 | V44: 121741.34 | W44: 261.8 | X44: 1658 | AG44: 6312
A45: ='Input - Customer Data'!$B$7-9 -> 2009 | B45: February | C45: 8008 | E45: 13197883.27 | G45: 3956936.76 | H45: 5575 | I45: 1767918.83 | J45: 682 | K45: 4983742.65 | L45: 13855.14 | M45: 59 | N45: 1801460.4 | O45: 3710.4 | P45: 1 | Q45: 33178.53 | R45: 2 | S45: 3624.36 | T45: 10.07 | U45: 31 | V45: 109959.92 | W45: 261.8 | X45: 1658 | AG45: 6318
A46: ='Input - Customer Data'!$B$7-9 -> 2009 | B46: March | C46: 8008 | E46: 13841636.36 | G46: 3902427.11 | H46: 5569 | I46: 1808272.82 | J46: 689 | K46: 5208108.63 | L46: 15338.24 | M46: 58 | N46: 1932314.4 | O46: 3888 | P46: 1 | Q46: 33367 | R46: 2 | S46: 4004.32 | T46: 11.12 | U46: 31 | V46: 121741.34 | W46: 261.8 | X46: 1658 | AG46: 6318
A47: ='Input - Customer Data'!$B$7-9 -> 2009 | B47: April | C47: 8010 | E47: 12430879.66 | G47: 3337530.47 | H47: 5572 | I47: 1606433.91 | J47: 688 | K47: 5059748.74 | L47: 12913.64 | M47: 58 | N47: 1797451.2 | O47: 3739.2 | P47: 1 | Q47: 30969.78 | R47: 2 | S47: 3879.76 | T47: 10.78 | U47: 31 | V47: 91240.63 | W47: 261.8 | X47: 1658 | AG47: 6320
A48: ='Input - Customer Data'!$B$7-9 -> 2009 | B48: May | C48: 8012 | E48: 11568813.37 | G48: 3100139.5 | H48: 5573 | I48: 1540599.02 | J48: 689 | K48: 5014653.33 | L48: 14042.95 | M48: 58 | N48: 1384711.2 | O48: 3619.2 | P48: 1 | Q48: 36259.23 | R48: 2 | S48: 4013.72 | T48: 11.15 | U48: 31 | V48: 93335.11 | W48: 261.8 | X48: 1658 | AG48: 6322
A49: ='Input - Customer Data'!$B$7-9 -> 2009 | B49: June | C49: 8019 | E49: 12161991.47 | G49: 3144420.6 | H49: 5576 | I49: 1563837.02 | J49: 691 | K49: 5096481.61 | L49: 14829.4 | M49: 60 | N49: 1574421.6 | O49: 3451.2 | P49: 1 | Q49: 32175.29 | R49: 2 | S49: 3874.87 | T49: 10.76 | U49: 31 | V49: 90324.3 | W49: 168.4 | X49: 1658 | AG49: 6329
A50: ='Input - Customer Data'!$B$7-9 -> 2009 | B50: July | C50: 8030 | E50: 11877269.39 | G50: 3308524.3 | H50: 5584 | I50: 1601643.81 | J50: 694 | K50: 5015960.82 | L50: 13654.6 | M50: 60 | N50: 1406197.2 | O50: 3264 | P50: 1 | Q50: 32502.78 | R50: 2 | S50: 4008.13 | T50: 11.13 | U50: 31 | V50: 71735.71 | W50: 261.8 | X50: 1658 | AG50: 6340
A51: ='Input - Customer Data'!$B$7-9 -> 2009 | B51: August | C51: 8033 | E51: 12331632.6 | G51: 3579621.75 | H51: 5587 | I51: 1657575.28 | J51: 693 | K51: 5285812.55 | L51: 14856.64 | M51: 61 | N51: 1087531.2 | O51: 3216 | P51: 1 | Q51: 36786.93 | R51: 2 | S51: 4013.08 | T51: 11.15 | U51: 31 | V51: 71015.73 | W51: -336.7 | X51: 1658 | AG51: 6343
A52: ='Input - Customer Data'!$B$7-9 -> 2009 | B52: September | C52: 8042 | E52: 12154249.63 | G52: 3211319.99 | H52: 5593 | I52: 1525910.13 | J52: 696 | K52: 5277097.64 | L52: 14550.22 | M52: 61 | N52: 1549344 | O52: 3072 | P52: 1 | Q52: 31494.64 | R52: 2 | S52: 3874.87 | T52: 10.76 | U52: 31 | V52: 68724.9 | W52: 1047.2 | X52: 1658 | AG52: 6352
A53: ='Input - Customer Data'!$B$7-9 -> 2009 | B53: October | C53: 8052 | E53: 12554878.11 | G53: 3499501.84 | H53: 5599 | I53: 1611159.77 | J53: 699 | K53: 5260474.74 | L53: 13667.66 | M53: 62 | N53: 1422025.2 | O53: 3600 | P53: 1 | Q53: 32685.84 | R53: 2 | S53: 3738.46 | T53: 10.38 | U53: 31 | V53: 100469.43 | W53: 261.8 | X53: 1658 | AG53: 6362
A54: ='Input - Customer Data'!$B$7-9 -> 2009 | B54: November | C54: 8056 | E54: 12741915.07 | G54: 3626244.78 | H54: 5602 | I54: 1635683.75 | J54: 700 | K54: 5388339.91 | L54: 13796.15 | M54: 62 | N54: 1549953.6 | O54: 3379.2 | P54: 1 | Q54: 36337.87 | R54: 2 | S54: 3553.48 | T54: 9.87 | U54: 31 | V54: 98178.6 | W54: 261.8 | X54: 1658 | AG54: 6366
A55: ='Input - Customer Data'!$B$7-9 -> 2009 | B55: December | C55: 8058 | E55: 14424067.26 | G55: 4449449.15 | H55: 5603 | I55: 1827360.93 | J55: 701 | K55: 5299573.92 | L55: 14557.85 | M55: 62 | N55: 1308934.8 | O55: 3763.2 | P55: 1 | Q55: 32380.82 | R55: 2 | S55: 3662.27 | T55: 10.17 | U55: 31 | V55: 101451.22 | W55: 261.8 | X55: 1658 | AG55: 6368
A56: ='Input - Customer Data'!$B$7-8 -> 2010 | B56: January | C56: 8073 | E56: 14435761.82 | G56: 4596118 | H56: 5602 | I56: 1953265.68 | J56: 702 | K56: 5555439.06 | L56: 12829.85 | M56: 62 | N56: 1630399.2 | O56: 3441.6 | P56: 1 | Q56: 31528.82 | R56: 2 | S56: 3667.41 | T56: 10.19 | U56: 31 | V56: 123415.34 | W56: 261.8 | X56: 1673 | AG56: 6368
A57: ='Input - Customer Data'!$B$7-8 -> 2010 | B57: February | C57: 8082 | E57: 12846380.85 | G57: 3846203.74 | H57: 5611 | I57: 1714289.67 | J57: 704 | K57: 5013773.95 | L57: 13942.15 | M57: 60 | N57: 1446738 | O57: 3668.7 | P57: 1 | Q57: 33291 | R57: 2 | S57: 3315.6 | T57: 9.21 | U57: 31 | V57: 111471.92 | W57: 265.4 | X57: 1673 | AG57: 6377
A58: ='Input - Customer Data'!$B$7-8 -> 2010 | B58: March | C58: 8089 | E58: 13466440.77 | G58: 3628771.3 | H58: 5615 | I58: 1697015.12 | J58: 707 | K58: 6205384.94 | L58: 15145.95 | M58: 60 | N58: 1658881.2 | O58: 3882.4 | P58: 1 | Q58: 32618.61 | R58: 2 | S58: 3662.61 | T58: 10.17 | U58: 31 | V58: 123415.34 | W58: 265.4 | X58: 1673 | AG58: 6384
A59: ='Input - Customer Data'!$B$7-8 -> 2010 | B59: April | C59: 8093 | E59: 11695829.13 | G59: 3154852.32 | H59: 5620 | I59: 1536674.94 | J59: 706 | K59: 5049381.81 | L59: 14187.45 | M59: 60 | N59: 1435897.2 | O59: 3784.5 | P59: 1 | Q59: 31585.46 | R59: 2 | S59: 3548.66 | T59: 9.86 | U59: 31 | V59: 92495.23 | W59: 265.4 | X59: 1673 | AG59: 6388
A60: ='Input - Customer Data'!$B$7-8 -> 2010 | B60: May | C60: 8098 | E60: 12039396.98 | G60: 3343667.34 | H60: 5626 | I60: 1613744.11 | J60: 705 | K60: 5353724.97 | L60: 13724.25 | M60: 60 | N60: 1124797.2 | O60: 3696.2 | P60: 1 | Q60: 36857.89 | R60: 2 | S60: 3670.84 | T60: 10.2 | U60: 31 | V60: 94618.51 | W60: 265.4 | X60: 1673 | AG60: 6393
A61: ='Input - Customer Data'!$B$7-8 -> 2010 | B61: June | C61: 8099 | E61: 12588185.24 | G61: 3527873.7 | H61: 5627 | I61: 1710930.11 | J61: 705 | K61: 5394851.75 | L61: 14876.85 | M61: 60 | N61: 1431684 | O61: 3494.4 | P61: 1 | Q61: 31429.65 | R61: 2 | S61: 3380.64 | T61: 9.39 | U61: 31 | V61: 72722.11 | W61: 265.4 | X61: 1673 | AG61: 6394
A62: ='Input - Customer Data'!$B$7-8 -> 2010 | B62: July | C62: 8104 | E62: 13590961.94 | G62: 4107658.89 | H62: 5631 | I62: 1785940.38 | J62: 706 | K62: 5369307.02 | L62: 14545.25 | M62: 60 | N62: 1431684 | O62: 3844.2 | P62: 1 | Q62: 32878.55 | R62: 2 | S62: 4520.1 | T62: 12.56 | U62: 31 | V62: 72722.11 | W62: 265.4 | X62: 1673 | AG62: 6399
A63: ='Input - Customer Data'!$B$7-8 -> 2010 | B63: August | C63: 8106 | E63: 13165945.18 | G63: 3873689.46 | H63: 5631 | I63: 1719151 | J63: 708 | K63: 5474714.72 | L63: 14579.35 | M63: 60 | N63: 1241245.2 | O63: 3743.7 | P63: 1 | Q63: 36778 | R63: 2 | S63: 3495.03 | T63: 9.71 | U63: 31 | V63: 71992.23 | W63: 265.4 | X63: 1673 | AG63: 6401
A64: ='Input - Customer Data'!$B$7-8 -> 2010 | B64: September | C64: 8106 | E64: 12387488.95 | G64: 3278202.85 | H64: 5632 | I64: 1514101.09 | J64: 707 | K64: 5300728.08 | L64: 14666.45 | M64: 60 | N64: 1648758 | O64: 3556.8 | P64: 1 | Q64: 31167.62 | R64: 2 | S64: 3374.36 | T64: 9.37 | U64: 31 | V64: 69669 | W64: 461.6 | X64: 1673 | AG64: =H64+J64+M64+1+1 -> 6401
A65: ='Input - Customer Data'!$B$7-8 -> 2010 | B65: October | C65: 8180 | E65: 12591988.77 | G65: 3342942.3 | H65: 5690 | I65: 1500516.02 | J65: 708 | K65: 5245082.21 | L65: 14550.45 | M65: 61 | N65: 1721421.6 | O65: 3718.7 | P65: 1 | Q65: 36788.21 | R65: 2 | S65: 3492.57 | T65: 9.7 | U65: 31 | V65: 102813.69 | W65: 265.4 | X65: 1687 | AG65: 6461
A66: ='Input - Customer Data'!$B$7-8 -> 2010 | B66: November | C66: 8184 | E66: 13323219.41 | G66: 3769609.06 | H66: 5691 | I66: 1713796.99 | J66: 706 | K66: 5280970.48 | L66: 13698.25 | M66: 62 | N66: 1672154.4 | O66: 3729.6 | P66: 1 | Q66: 78223.24 | R66: 6 | S66: 3396.57 | T66: 9.43 | U66: 31 | V66: 100469.4 | W66: 267.9 | X66: 1687 | AG66: 6461
A67: ='Input - Customer Data'!$B$7-8 -> 2010 | B67: December | C67: 8184 | E67: 13800475.36 | G67: 4623708.26 | H67: 5692 | I67: 1949943.37 | J67: 705 | K67: 5133324.76 | L67: 13456.85 | M67: 62 | N67: 1285646.4 | O67: 3816.9 | P67: 1 | Q67: 39854.38 | R67: 6 | S67: 3489.36 | T67: 9.69 | U67: 31 | V67: 103864.88 | W67: 267.9 | X67: 1687 | AG67: 6461
A68: ='Input - Customer Data'!$B$7-7 -> 2011 | B68: January | C68: 8186 | E68: 14553973.74 | G68: 3304789.19 | H68: 5693 | I68: 2002270.85 | J68: 707 | K68: 5500082.61 | L68: 12187.95 | M68: 61 | N68: 1691600.4 | O68: 3792 | P68: 1 | Q68: 41139.7 | R68: 6 | S68: 3490.86 | T68: 9.7 | U68: 31 | V68: 124637.98 | W68: 268 | X68: 1687 | AG68: 6463
A69: ='Input - Customer Data'!$B$7-7 -> 2011 | B69: February | C69: 8187 | E69: 12993844.84 | G69: 3976280.14 | H69: 5695 | I69: 1756663.9 | J69: 707 | K69: 4946525.89 | L69: 14276.26 | M69: 60 | N69: 1526053.2 | O69: 3906.2 | P69: 1 | Q69: 41138.97 | R69: 6 | S69: 3157.68 | T69: 8.77 | U69: 31 | V69: 112576.24 | W69: 268 | X69: 1687 | AG69: 6464
A70: ='Input - Customer Data'!$B$7-7 -> 2011 | B70: March | C70: 8196 | E70: 13683974.06 | G70: 3985206.75 | H70: 5703 | I70: 1882432.61 | J70: 708 | K70: 5361918.63 | L70: 12956.46 | M70: 60 | N70: 1690124.4 | O70: 3719.1 | P70: 1 | Q70: 41141.03 | R70: 6 | S70: 3490.86 | T70: 9.7 | U70: 31 | V70: 87428.99 | W70: 268 | X70: 1687 | AG70: 6473
A71: ='Input - Customer Data'!$B$7-7 -> 2011 | B71: April | C71: 8200 | E71: 11913552.88 | G71: 3446412.59 | H71: 5707 | I71: 1568916.01 | J71: 708 | K71: 4665343.54 | L71: 12904.56 | M71: 60 | N71: 1520925.6 | O71: 3691.6 | P71: 1 | Q71: 41139.68 | R71: 6 | S71: 3455.4 | T71: 9.6 | U71: 31 | V71: 93411.92 | W71: 268 | X71: 1687 | AG71: 6477
A72: ='Input - Customer Data'!$B$7-7 -> 2011 | B72: May | C72: 8201 | E72: 11611512.92 | G72: 3265390.87 | H72: 5708 | I72: 1539748.74 | J72: 709 | K72: 4906208.38 | L72: 12762.95 | M72: 59 | N72: 1265604 | O72: 3816.5 | P72: 1 | Q72: 41140.32 | R72: 6 | S72: 3490.86 | T72: 9.7 | U72: 31 | V72: 95556.26 | W72: 268 | X72: 1687 | AG72: 6478
A73: ='Input - Customer Data'!$B$7-7 -> 2011 | B73: June | C73: 8204 | E73: 12209704.78 | G73: 3305774.35 | H73: 5711 | I73: 1578637.05 | J73: 709 | K73: 5074043.26 | L73: 14454.45 | M73: 59 | N73: 1598295.6 | O73: 3608.6 | P73: 1 | Q73: 41139.68 | R73: 6 | S73: 3379.8 | T73: 9.39 | U73: 31 | V73: 92473.8 | W73: 268 | X73: 1687 | AG73: 6481
A74: ='Input - Customer Data'!$B$7-7 -> 2011 | B74: July | C74: 8203 | E74: 13541155.95 | G74: 4396831.2 | H74: 5710 | I74: 1949364.71 | J74: 709 | K74: 5134785.51 | L74: 14231.03 | M74: 59 | N74: 1401618 | O74: 3779.6 | P74: 1 | Q74: 41140.32 | R74: 6 | S74: 3490.86 | T74: 9.7 | U74: 31 | V74: 73442.66 | W74: 268 | X74: 1687 | AG74: 6480
A75: ='Input - Customer Data'!$B$7-7 -> 2011 | B75: August | C75: 8211 | E75: 12787062.35 | G75: 3783202.83 | H75: 5716 | I75: 1741457.62 | J75: 711 | K75: 5283195.8 | L75: 13286.34 | M75: 59 | N75: 1276164 | O75: 3565.9 | P75: 1 | Q75: 41140 | R75: 6 | S75: 3581.02 | T75: 9.95 | U75: 31 | V75: 72705.54 | W75: 268 | X75: 1687 | AG75: 6488
A76: ='Input - Customer Data'!$B$7-7 -> 2011 | B76: September | C76: 8215 | E76: 12157224.2 | G76: 3265013.1 | H76: 5718 | I76: 1555752.74 | J76: 713 | K76: 5127913.71 | L76: 13513.34 | M76: 59 | N76: 1540466.4 | O76: 3540.5 | P76: 1 | Q76: 41139.68 | R76: 6 | S76: 3379.8 | T76: 9.39 | U76: 31 | V76: 70360.2 | W76: 268 | X76: 1687 | AG76: 6492
A77: ='Input - Customer Data'!$B$7-7 -> 2011 | B77: October | C77: 8217 | E77: 12479238.46 | G77: 3483584.13 | H77: 5720 | I77: 1557032.37 | J77: 713 | K77: 5157725.91 | L77: 13958.14 | M77: 59 | N77: 1525582.8 | O77: 3568.3 | P77: 1 | Q77: 41140.32 | R77: 6 | S77: 3490.86 | T77: 9.7 | U77: 31 | V77: 102859.74 | W77: 268 | X77: 1687 | AG77: 6494
A78: ='Input - Customer Data'!$B$7-7 -> 2011 | B78: November | C78: 8217 | E78: 12750868.54 | G78: 3615837.32 | H78: 5722 | I78: 1617684.07 | J78: 710 | K78: 5190993.69 | L78: 13742.54 | M78: 60 | N78: 1720832.4 | O78: 3614 | P78: 1 | Q78: 41139.68 | R78: 6 | S78: 3379.8 | T78: 9.39 | U78: 31 | V78: 99202.8 | W78: 268 | X78: 1687 | AG78: 6494
A79: ='Input - Customer Data'!$B$7-7 -> 2011 | B79: December | C79: 8220 | E79: 13525392.88 | G79: 4423539.9 | H79: 5725 | I79: 1833115.85 | J79: 710 | K79: 5094019.52 | L79: 12715.04 | M79: 60 | N79: 1347376.8 | O79: 3794.2 | P79: 1 | Q79: 41466.32 | R79: 6 | S79: 3490.86 | T79: 9.7 | U79: 31 | V79: 102509.56 | W79: 267.5 | X79: 1687 | AG79: 6497
A80: ='Input - Customer Data'!$B$7-6 -> 2012 | B80: January | C80: 8218 | E80: 14585568.31 | G80: =2997341+1422012 -> 4419353 | H80: 5727 | I80: 1912724 | J80: 710 | K80: 5591096 | L80: 13152.5 | M80: 61 | N80: 1866014 | O80: 4008 | P80: 1 | Q80: 41466 | R80: 6 | S80: 3491 | T80: 9.7 | U80: 27 | V80: 30754 | W80: 214.9 | X80: 1686 | AG80: 6500
A81: ='Input - Customer Data'!$B$7-6 -> 2012 | B81: February | C81: 8277 | E81: 13424711.96 | G81: =2655303+1239756 -> 3895059 | H81: 5785 | I81: 1724114 | J81: 711 | K81: 5270789 | L81: 12849 | M81: 61 | N81: 1820326 | O81: 4153.8 | P81: 1 | Q81: 41466 | R81: 6 | S81: 3269 | T81: 9.08 | U81: 27 | V81: 115075 | W81: 264.5 | X81: 1686 | AG81: 6559
A82: ='Input - Customer Data'!$B$7-6 -> 2012 | B82: March | C82: 8303 | E82: 13395036.78 | G82: =2442295+1121384 -> 3563679 | H82: 5812 | I82: 1708502 | J82: 710 | K82: 5582065 | L82: 14099.9 | M82: 61 | N82: 1809110 | O82: 3902.4 | P82: 1 | Q82: 41466 | R82: 6 | S82: 3491 | T82: 9.7 | U82: 27 | V82: 123012 | W82: 264.5 | X82: 1686 | AG82: 6585
A83: ='Input - Customer Data'!$B$7-6 -> 2012 | B83: April | C83: 8315 | E83: 12290763.69 | G83: =2279298+1056711 -> 3336009 | H83: 5823 | I83: 1547266 | J83: 714 | K83: 5004111 | L83: 13148 | M83: 58 | N83: 1731923 | O83: 3821.6 | P83: 1 | Q83: 43227 | R83: 6 | S83: 3380 | T83: 9.39 | U83: 27 | V83: 92192 | W83: 264.5 | X83: 1686 | AG83: 6597
A84: ='Input - Customer Data'!$B$7-6 -> 2012 | B84: May | C84: 8312 | E84: 12220935.48 | G84: =2162151+1023630 -> 3185781 | H84: 5823 | I84: 1623842 | J84: 704 | K84: 5454714 | L84: 14105.2 | M84: 58 | N84: 1336238 | O84: 3725.2 | P84: 1 | Q84: 43227 | R84: 13 | S84: 3491 | T84: 9.7 | U84: 27 | V84: 94308 | W84: 264.5 | X84: 1686 | AG84: 6587
A85: ='Input - Customer Data'!$B$7-6 -> 2012 | B85: June | C85: 8318 | E85: 12944227.84 | G85: =2467820+1174143 -> 3641963 | H85: 5829 | I85: 1651880 | J85: 705 | K85: 5416226 | L85: 14353.8 | M85: 57 | N85: 1552922 | O85: 3511.2 | P85: 1 | Q85: 43227 | R85: 13 | S85: 3380 | T85: 9.39 | U85: 27 | V85: 91266 | W85: 264.5 | X85: 1686 | AG85: 6593
A86: ='Input - Customer Data'!$B$7-6 -> 2012 | B86: July | C86: 8327 | E86: 14085492.18 | G86: =2999878+1410566 -> 4410444 | H86: 5831 | I86: 1843020 | J86: 703 | K86: 5479020 | L86: 14145.7 | M86: 57 | N86: 1598484 | O86: 3519.5 | P86: 1 | Q86: 43227 | R86: 13 | S86: 3491 | T86: 9.7 | U86: 31 | V86: 72484 | W86: 264.5 | X86: 1691 | AG86: 6593
A87: ='Input - Customer Data'!$B$7-6 -> 2012 | B87: August | C87: 8328 | E87: 12866836.79 | G87: =2577415+1209835 -> 3787250 | H87: 5831 | I87: 1735295 | J87: 704 | K87: 5351732 | L87: 14096.7 | M87: 57 | N87: 1294134 | O87: 3475 | P87: 1 | Q87: 43227 | R87: 13 | S87: 3491 | T87: 9.7 | U87: 31 | V87: 71757 | W87: 264.5 | X87: 1691 | AG87: 6594
A88: ='Input - Customer Data'!$B$7-6 -> 2012 | B88: September | C88: 8332 | E88: 11419289.08 | G88: =2223367+1062225 -> 3285592 | H88: 5834 | I88: 1521959 | J88: 705 | K88: 4881535 | L88: 14057.5 | M88: 57 | N88: 1671482 | O88: 3686.5 | P88: 1 | Q88: 43227 | R88: 13 | S88: 3380 | T88: 9.39 | U88: 31 | V88: 69442 | W88: 264.5 | X88: 1691 | AG88: 6598
A89: ='Input - Customer Data'!$B$7-6 -> 2012 | B89: October | C89: 8331 | E89: 12504352.99 | G89: =2348000+1125010 -> 3473010 | H89: 5832 | I89: 1599314 | J89: 706 | K89: 5176983 | L89: 13607.5 | M89: 57 | N89: 1946608 | O89: 3763.2 | P89: 1 | Q89: 43227 | R89: 13 | S89: 3491 | T89: 9.7 | U89: 31 | V89: 101518 | W89: 264.5 | X89: 1691 | AG89: 6597
A90: ='Input - Customer Data'!$B$7-6 -> 2012 | B90: November | C90: 8333 | E90: 13335727.78 | G90: =2557338+1218899 -> 3776237 | H90: 5834 | I90: 1674468 | J90: 705 | K90: 5130586 | L90: 13167.3 | M90: 58 | N90: 1881726 | O90: 3885.3 | P90: 1 | Q90: 43227 | R90: 13 | S90: 3380 | T90: 9.39 | U90: 31 | V90: 99203 | W90: 264.5 | X90: 1691 | AG90: 6599
A91: ='Input - Customer Data'!$B$7-6 -> 2012 | B91: December | C91: 8381 | E91: 13423622.51 | G91: =1435328+3014081 -> 4449409 | H91: 5883 | I91: 1761746 | J91: 705 | K91: 4947753 | L91: 13300.7 | M91: 58 | N91: 1441357 | O91: 3818 | P91: 1 | Q91: 45167 | R91: 13 | S91: 3491 | T91: 9.7 | U91: 31 | V91: 102510 | W91: 264.5 | X91: 1690 | AG91: 6648
A92: ='Input - Customer Data'!$B$7-5 -> 2013 | B92: January | C92: 8385 | E92: 14721308.31 | G92: =1422564+3040248 -> 4462812 | H92: 5884 | I92: 1901528 | J92: 708 | K92: 5654548 | L92: 13817.4 | M92: 58 | N92: 1904154 | O92: 3657.6 | P92: 1 | Q92: 45115 | R92: 13 | S92: 3491 | T92: 9.7 | U92: 31 | V92: 123012 | W92: 264.5 | X92: 1690 | AG92: 6652
A93: ='Input - Customer Data'!$B$7-5 -> 2013 | B93: February | C93: 8392 | E93: 13334088.13 | G93: =1275649+2771784 -> 4047433 | H93: 5891 | I93: 1750872 | J93: 708 | K93: 5122661 | L93: 13557.9 | M93: 58 | N93: 1668988 | O93: 3825.6 | P93: 1 | Q93: 45115 | R93: 13 | S93: 3158 | T93: 8.77 | U93: 31 | V93: 111107 | W93: 264.5 | X93: 1690 | AG93: 6659
A94: ='Input - Customer Data'!$B$7-5 -> 2013 | B94: March | C94: 8401 | E94: 13602922.4 | G94: =1281260+2771372 -> 4052632 | H94: 5899 | I94: 1817845 | J94: 709 | K94: 5396916 | L94: 13533.2 | M94: 58 | N94: 1596826 | O94: 3561.6 | P94: 1 | Q94: 45115 | R94: 13 | S94: 3491 | T94: 9.7 | U94: 31 | V94: 123012 | W94: 264.5 | X94: 1690 | AG94: 6668
A95: ='Input - Customer Data'!$B$7-5 -> 2013 | B95: April | C95: 8406 | E95: 12506882.4 | G95: =1122996+2418784 -> 3541780 | H95: 5904 | I95: 1634353 | J95: 709 | K95: 5166799 | L95: 13791.1 | M95: 58 | N95: 1480166 | O95: 3331.2 | P95: 1 | Q95: 44935 | R95: 13 | S95: 3380 | T95: 9.39 | U95: 31 | V95: 92192 | W95: 264.5 | X95: 1690 | AG95: 6673
A96: ='Input - Customer Data'!$B$7-5 -> 2013 | B96: May | C96: 8406 | E96: 12028746.64 | G96: =1026713+2202296 -> 3229009 | H96: 5906 | I96: 1549094 | J96: 707 | K96: 5255584 | L96: 14752.2 | M96: 58 | N96: 1325677 | O96: 3431.9 | P96: 1 | Q96: 44935 | R96: 13 | S96: 3491 | T96: 9.7 | U96: 31 | V96: 94308 | W96: 264.5 | X96: 1690 | AG96: 6673
A97: ='Input - Customer Data'!$B$7-5 -> 2013 | B97: June | C97: =H97+J97+M97+P97+R97+U97+X97 -> 8406 | E97: 12310607.66 | G97: =1133098+2409287 -> 3542385 | H97: 5906 | I97: 1562556 | J97: 707 | K97: 5059236 | L97: 14715.7 | M97: 58 | N97: 1461647 | O97: 3206.4 | P97: 1 | Q97: 44935 | R97: 13 | S97: 3380 | T97: 9.39 | U97: 31 | V97: 91266 | W97: 264.5 | X97: 1690 | AG97: =H97+J97+M97+1+1 -> 6673
A98: ='Input - Customer Data'!$B$7-5 -> 2013 | B98: July | C98: 8407 | E98: 13491261.03 | G98: =1349473+2914254 -> 4263727 | H98: 5907 | I98: 1766065 | J98: 708 | K98: 5059586 | L98: 14607.6 | M98: 57 | N98: 1646185 | O98: 3532.8 | P98: 1 | Q98: 44935 | R98: 13 | S98: 3491 | T98: 9.7 | U98: 31 | V98: 72484 | W98: 264.5 | X98: 1690 | AG98: 6674
A99: ='Input - Customer Data'!$B$7-5 -> 2013 | B99: August | C99: 8411 | E99: 12274415.56 | G99: =1180768+2560134 -> 3740902 | H99: 5910 | I99: 1659838 | J99: 709 | K99: 4888312 | L99: 13813.6 | M99: 57 | N99: 1289952 | O99: 3803.4 | P99: 1 | Q99: 46663 | R99: 13 | S99: 3503 | T99: 9.73 | U99: 31 | V99: 71757 | W99: 264.5 | X99: 1690 | AG99: 6678
A100: ='Input - Customer Data'!$B$7-5 -> 2013 | B100: September | C100: 8412 | E100: 11911110.81 | G100: =1068524+2294416 -> 3362940 | H100: 5911 | I100: 1499681 | J100: 710 | K100: 4743822 | L100: 14337.6 | M100: 56 | N100: 1626941 | O100: 3747.6 | P100: 1 | Q100: 46663 | R100: 13 | S100: 3392 | T100: 9.42 | U100: 31 | V100: 69442 | W100: 264.5 | X100: 1690 | AG100: 6679
A101: ='Input - Customer Data'!$B$7-5 -> 2013 | B101: October | C101: 8410 | E101: 12332005.88 | G101: =1121104+2380389 -> 3501493 | H101: 5912 | I101: 1584167 | J101: 707 | K101: 4851543 | L101: 13468.1 | M101: 56 | N101: 1689839 | O101: 3566.4 | P101: 1 | Q101: 46663 | R101: 13 | S101: 3335 | T101: 9.26 | U101: 31 | V101: 101518 | W101: 264.5 | X101: 1690 | AG101: 6677
A102: ='Input - Customer Data'!$B$7-5 -> 2013 | B102: November | C102: 8443 | E102: 12760586.09 | G102: =1255791+2715221 -> 3971012 | H102: 5940 | I102: 1718403 | J102: 712 | K102: 4782728 | L102: 12486.3 | M102: 56 | N102: 1535861 | O102: 3523.2 | P102: 1 | Q102: 46663 | R102: 13 | S102: 3229 | T102: 8.97 | U102: 31 | V102: 99203 | W102: 264.5 | X102: 1690 | AG102: 6710
A103: ='Input - Customer Data'!$B$7-5 -> 2013 | B103: December | C103: 8456 | E103: 13566672.9 | G103: =1496380+3265304 -> 4761684 | H103: 5939 | I103: 1898000 | J103: 714 | K103: 4681772 | L103: 12492.6 | M103: 56 | N103: 1382750 | O103: 3627.7 | P103: 1 | Q103: 46663 | R103: 13 | S103: 3335 | T103: 9.26 | U103: 31 | V103: 102510 | W103: 264.5 | X103: 1702 | AG103: 6711
A104: ='Input - Customer Data'!$B$7-4 -> 2014 | B104: January | C104: 8455 | E104: 14721918.53 | G104: =3373033+1554971 -> 4928004 | H104: 5938 | I104: 2079002 | J104: 714 | K104: 5115352 | L104: 12624 | M104: 56 | N104: 1743521 | O104: 4000.6 | P104: 1 | Q104: 47217 | R104: 13 | S104: 3335 | T104: 9.26 | U104: 31 | V104: 121654 | W104: 264.4 | X104: 1702 | AG104: 6710
A105: ='Input - Customer Data'!$B$7-4 -> 2014 | B105: February | C105: 8457 | E105: 12985802.09 | G105: =2889284+1344418 -> 4233702 | H105: 5940 | I105: 1842925 | J105: 713 | K105: 4573986 | L105: 12392.7 | M105: 57 | N105: 1550201 | O105: 3499.2 | P105: 1 | Q105: 47860 | R105: 13 | S105: 3004 | T105: 8.34 | U105: 31 | V105: 109880 | W105: 261.7 | X105: 1702 | AG105: 6712
A106: ='Input - Customer Data'!$B$7-4 -> 2014 | B106: March | C106: 8463 | E106: 13614018.57 | G106: =2969960+1354214 -> 4324174 | H106: 5941 | I106: 1942018 | J106: 712 | K106: 4918109 | L106: 12326.8 | M106: 57 | N106: 1658465 | O106: 3619.2 | P106: 1 | Q106: 47729 | R106: 13 | S106: 3347 | T106: 9.3 | U106: 31 | V106: 121654 | W106: 261.7 | X106: 1708 | AG106: 6712
A107: ='Input - Customer Data'!$B$7-4 -> 2014 | B107: April | C107: 8468 | E107: 11649899.12 | G107: =2409565+1089898 -> 3499463 | H107: 5941 | I107: 1606804 | J107: 717 | K107: 4404504 | L107: 12347.4 | M107: 57 | N107: 1482428 | O107: 3271.7 | P107: 1 | Q107: 47286 | R107: 13 | S107: 3229 | T107: 8.97 | U107: 31 | V107: 91488 | W107: 262.6 | X107: 1708 | AG107: 6717
A108: ='Input - Customer Data'!$B$7-4 -> 2014 | B108: May | C108: 8468 | E108: 11257042.02 | G108: =2213490+1011972 -> 3225462 | H108: 5942 | I108: 1590397 | J108: 717 | K108: 4573431 | L108: 13298.7 | M108: 56 | N108: 1265899 | O108: 3523.2 | P108: 1 | Q108: 46663 | R108: 13 | S108: 3335 | T108: 9.26 | U108: 31 | V108: 93588 | W108: 262.6 | X108: 1708 | AG108: 6717
A109: ='Input - Customer Data'!$B$7-4 -> 2014 | B109: June | C109: 8469 | E109: 11926426.47 | G109: =2410032+1114206 -> 3524238 | H109: 5943 | I109: 1605700 | J109: 717 | K109: 4630312 | L109: 13689 | M109: 56 | N109: 1549817 | O109: 3484.8 | P109: 1 | Q109: 46663 | R109: 13 | S109: 3229 | T109: 8.97 | U109: 31 | V109: 90570 | W109: 262.6 | X109: 1708 | AG109: 6718
A110: ='Input - Customer Data'!$B$7-4 -> 2014 | B110: July | C110: 8470 | E110: 12057150.84 | G110: =2489639+1137235 -> 3626874 | H110: 5944 | I110: 1645059 | J110: 717 | K110: 4448565 | L110: 13280.8 | M110: 56 | N110: 1667756 | O110: 3484.8 | P110: 1 | Q110: 46663 | R110: 13 | S110: 3335 | T110: 9.26 | U110: 31 | V110: 71930 | W110: 262.6 | X110: 1708 | AG110: 6719
A111: ='Input - Customer Data'!$B$7-4 -> 2014 | B111: August | C111: 8476 | E111: 11607472.4 | G111: =2477362+1138810 -> 3616172 | H111: 5950 | I111: 1619420 | J111: 717 | K111: 4505004 | L111: 13523.2 | M111: 56 | N111: 1202902 | O111: 3345.6 | P111: 1 | Q111: 46663 | R111: 13 | S111: 3335 | T111: 9.26 | U111: 31 | V111: 71208 | W111: 262.6 | X111: 1708 | AG111: 6725
A112: ='Input - Customer Data'!$B$7-4 -> 2014 | B112: September | C112: 8481 | E112: 11603450.52 | G112: =2285699+1058583 -> 3344282 | H112: 5954 | I112: 1531331 | J112: 718 | K112: 4503785 | L112: 13847.6 | M112: 56 | N112: 1568161 | O112: 3451.2 | P112: 1 | Q112: 46663 | R112: 13 | S112: 3229 | T112: 8.97 | U112: 31 | V112: 68911 | W112: 262.6 | X112: 1708 | AG112: 6730
A113: ='Input - Customer Data'!$B$7-4 -> 2014 | B113: October | C113: 8484 | E113: 11860236.59 | G113: =2356498+1094231 -> 3450729 | H113: 5958 | I113: 1555306 | J113: 717 | K113: 4513032 | L113: 12583.4 | M113: 56 | N113: 1638184 | O113: 4181.6 | P113: 1 | Q113: 46663 | R113: 13 | S113: 3335 | T113: 9.26 | U113: 31 | V113: 100742 | W113: 262.6 | X113: 1708 | AG113: 6733
A114: ='Input - Customer Data'!$B$7-4 -> 2014 | B114: November | C114: 8486 | E114: 12586538.52 | G114: =2699408+1257419 -> 3956827 | H114: 5959 | I114: 1702573 | J114: 717 | K114: 4427011 | L114: 12184.5 | M114: 57 | N114: 1757380 | O114: 3681.6 | P114: 1 | Q114: 46663 | R114: 13 | S114: 3229 | T114: 8.97 | U114: 31 | V114: 98445 | W114: 262.6 | X114: 1708 | AG114: 6735
A115: ='Input - Customer Data'!$B$7-4 -> 2014 | B115: December | C115: 8481 | E115: 12891166.51 | G115: =1419187+3028500 -> 4447687 | H115: 5955 | I115: 1859334 | J115: 716 | K115: 4400601 | L115: 12161.6 | M115: 57 | N115: 1377109 | O115: 3720 | P115: 1 | Q115: 46663 | R115: 13 | S115: 3335 | T115: 9.26 | U115: 31 | V115: 101727 | W115: 262.6 | X115: 1708 | AG115: 6730
A116: ='Input - Customer Data'!$B$7-3 -> 2015 | B116: January | C116: 8483 | E116: 13987815.11 | G116: =1487564+3207806 -> 4695370 | H116: 5955 | I116: 2039474 | J116: 718 | K116: 4824204 | L116: 12532 | M116: 57 | N116: 1613610 | O116: 3720 | P116: 1 | Q116: 48677 | R116: 13 | S116: 3335 | T116: 9.26 | U116: 31 | V116: 122072 | W116: 262.6 | X116: 1708 | AG116: 6732
A117: ='Input - Customer Data'!$B$7-3 -> 2015 | B117: February | C117: 8483 | E117: 13128236.12 | G117: =1366765+3008847 -> 4375612 | H117: 5954 | I117: 1948384 | J117: 719 | K117: 4439341 | L117: 12315.1 | M117: 57 | N117: 1627874 | O117: 3835.2 | P117: 1 | Q117: 47286 | R117: 13 | S117: 3017 | T117: 8.38 | U117: 31 | V117: 110258 | W117: 262.6 | X117: 1708 | AG117: 6732
A118: ='Input - Customer Data'!$B$7-3 -> 2015 | B118: March | C118: 8482 | E118: 13204373.22 | G118: =1263939+2779363 -> 4043302 | H118: 5953 | I118: 1928839 | J118: 719 | K118: 4760817 | L118: 12283.8 | M118: 57 | N118: 1731065 | O118: 3556.8 | P118: 1 | Q118: 47286 | R118: 13 | S118: 3335 | T118: 9.26 | U118: 31 | V118: 122072 | W118: 262.6 | X118: 1708 | AG118: 6731
A119: ='Input - Customer Data'!$B$7-3 -> 2015 | B119: April | C119: 8487 | E119: 11410552.49 | G119: =1049130+2279710 -> 3328840 | H119: 5956 | I119: 1620657 | J119: 721 | K119: 4294452 | L119: 12120.5 | M119: 57 | N119: 1539800 | O119: 3464.8 | P119: 1 | Q119: 47286 | R119: 13 | S119: 3229 | T119: 8.97 | U119: 31 | V119: 91488 | W119: 262.6 | X119: 1708 | AG119: 6736
A120: ='Input - Customer Data'!$B$7-3 -> 2015 | B120: May | C120: 8489 | E120: 10958434.45 | G120: =1034941+2207307 -> 3242248 | H120: 5955 | I120: 1596876 | J120: 724 | K120: 4389894 | L120: 12892.7 | M120: 57 | N120: 1122655 | O120: 3312.2 | P120: 1 | Q120: 46663 | R120: 13 | S120: 3335 | T120: 9.26 | U120: 31 | V120: 93588 | W120: 262.6 | X120: 1708 | AG120: 6738
A121: ='Input - Customer Data'!$B$7-3 -> 2015 | B121: June | C121: 8490 | E121: 11142226.47 | G121: =1043330+2234240 -> 3277570 | H121: 5954 | I121: 1595148 | J121: 725 | K121: 4363896 | L121: 13017.4 | M121: 57 | N121: 1319248 | O121: 3248.2 | P121: 1 | Q121: 46663 | R121: 13 | S121: 3229 | T121: 8.97 | U121: 31 | V121: 90253 | W121: 262.6 | X121: 1709 | AG121: 6738
A122: ='Input - Customer Data'!$B$7-3 -> 2015 | B122: July | C122: 8491 | E122: 12019416.24 | G122: =1247142+2696925 -> 3944067 | H122: 5954 | I122: 1760981 | J122: 726 | K122: 4374186 | L122: 12772.6 | M122: 57 | N122: 1410110 | O122: 3225.3 | P122: 1 | Q122: 46663 | R122: 13 | S122: 3335 | T122: 9.26 | U122: 31 | V122: 66503 | W122: 257.6 | X122: 1709 | AG122: 6739
A123: ='Input - Customer Data'!$B$7-3 -> 2015 | B123: August | C123: 8494 | E123: 11373887.69 | G123: =1169650+2530205 -> 3699855 | H123: 5955 | I123: 1676344 | J123: 728 | K123: 4316400 | L123: 13007.7 | M123: 57 | N123: 1066055 | O123: 3139.9 | P123: 1 | Q123: 46663 | R123: 13 | S123: 3335 | T123: 9.26 | U123: 31 | V123: 60232 | W123: 211.4 | X123: 1709 | AG123: 6742
A124: ='Input - Customer Data'!$B$7-3 -> 2015 | B124: September | C124: 8501 | E124: 11797719.5 | G124: =1125411+2435407 -> 3560818 | H124: 5960 | I124: 1810279 | J124: 738 | K124: 4367528 | L124: 13099.8 | M124: 47 | N124: 1442460 | O124: 3211.2 | P124: 1 | Q124: 46663 | R124: 13 | S124: 3229 | T124: 8.97 | U124: 31 | V124: 50455 | W124: 192.6 | X124: 1711 | AG124: 6747
A125: ='Input - Customer Data'!$B$7-3 -> 2015 | B125: October | C125: 8505 | E125: 11426239.49 | G125: =1068229+2296401 -> 3364630 | H125: 5962 | I125: 1718777 | J125: 740 | K125: 4135945 | L125: 11681.7 | M125: 47 | N125: 1551995 | O125: 3388.8 | P125: 1 | Q125: 46663 | R125: 13 | S125: 3335 | T125: 9.26 | U125: 31 | V125: 64542 | W125: 186.2 | X125: 1711 | AG125: 6751
A126: ='Input - Customer Data'!$B$7-3 -> 2015 | B126: November | C126: 8508 | E126: 11667095.19 | G126: =1115981+2387907 -> 3503888 | H126: 5964 | I126: 1764392 | J126: 741 | K126: 4142776 | L126: 11792.5 | M126: 47 | N126: 1597193 | O126: 3576 | P126: 1 | Q126: 46663 | R126: 13 | S126: 3229 | T126: 8.97 | U126: 31 | V126: 54461 | W126: 162.5 | X126: 1711 | AG126: 6754
A127: ='Input - Customer Data'!$B$7-3 -> 2015 | B127: December | C127: 8506 | E127: 12145135.49 | G127: =1305508+815+2753620+2016 -> 4061959 | H127: 5967 | I127: 1927409 | J127: 742 | K127: 4038156 | L127: 11461.5 | M127: 47 | N127: 1273547 | O127: =3576+178.1 -> 3754.1 | P127: 1 | Q127: 46663 | R127: 13 | S127: 3335 | T127: 9.26 | U127: 31 | V127: 50205 | W127: 141.3 | X127: 1705 | AG127: 6758
A128: ='Input - Customer Data'!$B$7-2 -> 2016 | B128: January | C128: 8508 | E128: 13174537.98 | G128: =922+1376973+2701+2965700 -> 4346296 | H128: 5971 | I128: 2135941 | J128: 740 | K128: 4350536 | L128: 11439.8 | M128: 47 | N128: 1613512 | O128: 3777.6 | P128: 1 | Q128: 48234 | R128: 13 | S128: 3335 | T128: 9.26 | U128: 31 | V128: 60245 | W128: 129.6 | X128: 1705 | AG128: 6760
A129: ='Input - Customer Data'!$B$7-2 -> 2016 | B129: February | C129: 8511 | E129: 12284962.16 | G129: =1231085+2664115 -> 3895200 | H129: 5971 | I129: 1995932 | J129: 743 | K129: 4182975 | L129: 11415.1 | M129: 47 | N129: 1537088 | O129: 3776.7 | P129: 1 | Q129: 46843 | R129: 13 | S129: 3123 | T129: 8.68 | U129: 31 | V129: 56359 | W129: 129.6 | X129: 1705 | AG129: 6763
A130: ='Input - Customer Data'!$B$7-2 -> 2016 | B130: March | C130: 8511 | E130: 12300226.49 | G130: =1155272+2528371 -> 3683643 | H130: 5972 | I130: 1964940 | J130: 744 | K130: 4281759 | L130: 11479.7 | M130: 46 | N130: 1691395 | O130: 3861.6 | P130: 1 | Q130: 46843 | R130: 13 | S130: 3335 | T130: 9.26 | U130: 31 | V130: 60245 | W130: 129.6 | X130: 1704 | AG130: 6764
A131: ='Input - Customer Data'!$B$7-2 -> 2016 | B131: April | C131: 8514 | E131: 11457704.95 | G131: =1047470+2284913 -> 3332383 | H131: 5975 | I131: 1830481 | J131: 744 | K131: 4086550 | L131: 11972.7 | M131: 46 | N131: 1598728 | O131: 3580.7 | P131: 1 | Q131: 46663 | R131: 13 | S131: 3229 | T131: 8.97 | U131: 31 | V131: 45152 | W131: 129.6 | X131: 1704 | AG131: 6767
A132: ='Input - Customer Data'!$B$7-2 -> 2016 | B132: May | C132: 8518 | E132: 11116983.68 | G132: =1016790+2204331 -> 3221121 | H132: 5982 | I132: 1791236 | J132: 741 | K132: 4123468 | L132: 12457.2 | M132: 46 | N132: 1345285 | O132: 3628.8 | P132: 1 | Q132: 46663 | R132: 13 | S132: 3335 | T132: 9.26 | U132: 31 | V132: 46188 | W132: 129.6 | X132: 1704 | AG132: 6771
A133: ='Input - Customer Data'!$B$7-2 -> 2016 | B133: June | C133: 8525 | E133: 11688877.68 | G133: =2350123+1079356 -> 3429479 | H133: 5982 | I133: 1835930 | J133: 741 | K133: 4189759 | L133: 12476.4 | M133: 46 | N133: 1604176 | O133: 3484.8 | P133: 1 | Q133: 46663 | R133: 13 | S133: 3229 | T133: 8.97 | U133: 31 | V133: 44698 | W133: 129.6 | X133: 1711 | AG133: 6771
A134: ='Input - Customer Data'!$B$7-2 -> 2016 | B134: July | C134: 8529 | E134: 12484094.97 | G134: =2900944+1328784 -> 4229728 | H134: 5985 | I134: 2046269 | J134: 742 | K134: 4045907 | L134: 12370.2 | M134: 46 | N134: 1463812 | O134: 3591.2 | P134: 1 | Q134: 46663 | R134: 13 | S134: 3335 | T134: 9.26 | U134: 31 | V134: 35500 | W134: 129.6 | X134: 1711 | AG134: 6775
A135: ='Input - Customer Data'!$B$7-2 -> 2016 | B135: August | C135: 8534 | E135: 13068297.12 | G135: =3006315+1376092 -> 4382407 | H135: 5990 | I135: 2115916 | J135: 742 | K135: 4575036 | L135: 12638.9 | M135: 46 | N135: 1275841 | O135: 3542.4 | P135: 1 | Q135: 46663 | R135: 13 | S135: 3335 | T135: 9.26 | U135: 31 | V135: 35143 | W135: 129.6 | X135: 1711 | AG135: 6780
A136: ='Input - Customer Data'!$B$7-2 -> 2016 | B136: September | C136: 8530 | E136: 11716455.57 | G136: =2291009+1068940 -> 3359949 | H136: 5993 | I136: 1837922 | J136: 740 | K136: 4337834 | L136: 13139.3 | M136: 48 | N136: 1531980 | O136: 3633.6 | P136: 1 | Q136: 46663 | R136: 13 | S136: 3229 | T136: 8.97 | U136: 31 | V136: 34010 | W136: 129.6 | X136: 1704 | AG136: 6783
A137: ='Input - Customer Data'!$B$7-2 -> 2016 | B137: October | C137: 8535 | E137: 11516592.26 | G137: =2216429+1043308 -> 3259737 | H137: 6000 | I137: 1780598 | J137: 738 | K137: 4208381 | L137: 12579.4 | M137: 48 | N137: 1616351 | O137: 3580.8 | P137: 1 | Q137: 46663 | R137: 13 | S137: 3335 | T137: 9.26 | U137: 31 | V137: 49719 | W137: 129.6 | X137: 1704 | AG137: 6788
A138: ='Input - Customer Data'!$B$7-2 -> 2016 | B138: November | C138: 8543 | E138: 11833726.34 | G138: =2338491+1083362 -> 3421853 | H138: 6006 | I138: 1841306 | J138: 740 | K138: 4208840 | L138: 11851.3 | M138: 48 | N138: 1699254 | O138: 3600 | P138: 1 | Q138: 46663 | R138: 13 | S138: 3188 | T138: 8.86 | U138: 31 | V138: 48585 | W138: 129.6 | X138: 1704 | AG138: 6796
A139: ='Input - Customer Data'!$B$7-2 -> 2016 | B139: December | C139: 8542 | E139: 12494116.59 | G139: =2970412+1382153 -> 4352565 | H139: 6006 | I139: 2094354 | J139: 743 | K139: 3962945 | L139: 11304.2 | M139: 48 | N139: 1367527 | O139: 3532.8 | P139: 1 | Q139: 46843 | R139: 13 | S139: 3306 | T139: 9.18 | U139: 27 | V139: 50205 | W139: 129.6 | X139: 1704 | AG139: 6799
A140: ='Input - Customer Data'!$B$7-1 -> 2017 | B140: January | C140: 0 | AG140: 2
A141: ='Input - Customer Data'!$B$7-1 -> 2017 | B141: February | C141: 0 | AG141: 2
A142: ='Input - Customer Data'!$B$7-1 -> 2017 | B142: March | C142: 0 | AG142: 2
A143: ='Input - Customer Data'!$B$7-1 -> 2017 | B143: April | C143: 0 | AG143: 2
A144: ='Input - Customer Data'!$B$7-1 -> 2017 | B144: May | C144: 0 | AG144: 2
A145: ='Input - Customer Data'!$B$7-1 -> 2017 | B145: June | C145: 0 | AG145: 2
A146: ='Input - Customer Data'!$B$7-1 -> 2017 | B146: July | C146: 0 | AG146: 2
A147: ='Input - Customer Data'!$B$7-1 -> 2017 | B147: August | C147: 0 | AG147: 2
A148: ='Input - Customer Data'!$B$7-1 -> 2017 | B148: September | C148: 0 | AG148: 2
A149: ='Input - Customer Data'!$B$7-1 -> 2017 | B149: October | C149: 0 | AG149: 2
A150: ='Input - Customer Data'!$B$7-1 -> 2017 | B150: November | C150: 0 | AG150: 2
A151: ='Input - Customer Data'!$B$7-1 -> 2017 | B151: December | C151: 0 | AG151: =H151+J151+M151+1+1 -> 2
A154: Notes:
A155: 1) "Metered" or Class consumption is monthly usage measured at the retail meter, unadjusted for losses (i.e., the retail consumption amount)
A156: 2) Number of customers is defined as number of connections (i.e., meters). Add or delete rate classes as appropriate.
A158: Consumption should reflect usage in the month, not the month in which it was billed (e.g what was used in January not what was billed in January, etc.).

Sheet Input - Adjustments & Variables
A3: Adjustements to Wholesale Purchases | J3: Variables Used
B4: Unadjusted Wholesale Purchases kWh | C4: GSW | D4: Loblaw | E4: Adjustments | F4: Adjustments | G4: Adjustments | H4: Revised Wholesale Purchases | J4: HDD | K4: CDD | L4: Number of Days in Month | M4: Employment Stats | N4: Daylight hours | O4: Spring Flag | P4: other
A5: =CONCATENATE('Input - Customer Data'!A32,"-",'Input - Customer Data'!B32) -> 2008-January | B5: 15082878.82 | C5: 930289.5 | D5: 293887.75 | H5: =B5-SUM(C5:G5) -> 13858701.57 | J5: 676.8 | K5: 0 | L5: 31 | M5: 656.3 | N5: 9.09 | O5: 0
A6: =CONCATENATE('Input - Customer Data'!A33,"-",'Input - Customer Data'!B33) -> 2008-February | B6: 14030875.92 | C6: 893754.75 | D6: 267637.75 | H6: =B6-SUM(C6:G6) -> 12869483.42 | J6: 651.2 | K6: 0 | L6: 29 | M6: 651.2 | N6: 10.19 | O6: 0
A7: =CONCATENATE('Input - Customer Data'!A34,"-",'Input - Customer Data'!B34) -> 2008-March | B7: 14321155.43 | C7: 882981 | D7: 285618.25 | H7: 13152556.18 | J7: 686.1 | K7: 0 | L7: 31 | M7: 642.3 | N7: 11.51 | O7: 1
A8: =CONCATENATE('Input - Customer Data'!A35,"-",'Input - Customer Data'!B35) -> 2008-April | B8: 12696080.17 | C8: 847014 | D8: 287332 | H8: 11561734.17 | J8: 297.9 | K8: 0 | L8: 30 | M8: 642.3 | N8: 13.28 | O8: 1
A9: =CONCATENATE('Input - Customer Data'!A36,"-",'Input - Customer Data'!B36) -> 2008-May | B9: 12213415.61 | C9: 844731.75 | D9: 298958 | H9: 11069725.86 | J9: 243.1 | K9: 0.7 | L9: 31 | M9: 642.5 | N9: 14.52 | O9: 1
A10: =CONCATENATE('Input - Customer Data'!A37,"-",'Input - Customer Data'!B37) -> 2008-June | B10: 13029843.68 | C10: 870177 | D10: 320464.25 | H10: 11839202.43 | J10: 40.6 | K10: 53 | L10: 30 | M10: 648.2 | N10: 15.35 | O10: 0
A11: =CONCATENATE('Input - Customer Data'!A38,"-",'Input - Customer Data'!B38) -> 2008-July | B11: 13562922.75 | C11: 784852.2 | D11: 339794.5 | H11: 12438276.05 | J11: 7.6 | K11: 75.8 | L11: 31 | M11: 653.5 | N11: 15.15 | O11: 0
A12: =CONCATENATE('Input - Customer Data'!A39,"-",'Input - Customer Data'!B39) -> 2008-August | B12: 12738355.33 | C12: 918531 | D12: 327703.5 | H12: 11492120.83 | J12: 36.2 | K12: 29.5 | L12: 31 | M12: 656.2 | N12: 14.03 | O12: 0
A13: =CONCATENATE('Input - Customer Data'!A40,"-",'Input - Customer Data'!B40) -> 2008-September | B13: 13005195.66 | C13: 941655.75 | D13: 298906.5 | H13: 11764633.41 | J13: 93.2 | K13: 12 | L13: 30 | M13: 658.8 | N13: 12.29 | O13: 1
A14: =CONCATENATE('Input - Customer Data'!A41,"-",'Input - Customer Data'!B41) -> 2008-October | B14: 13176115.98 | C14: 938846.25 | D14: 290176.5 | H14: 11947093.23 | J14: 325.7 | K14: 0 | L14: 31 | M14: 661.5 | N14: 10.51 | O14: 1
A15: =CONCATENATE('Input - Customer Data'!A42,"-",'Input - Customer Data'!B42) -> 2008-November | B15: 13573281.85 | C15: 865366.5 | D15: 280022 | H15: 12427893.35 | J15: 499.7 | K15: 0 | L15: 30 | M15: 664.7 | N15: 9.28 | O15: 1
A16: =CONCATENATE('Input - Customer Data'!A43,"-",'Input - Customer Data'!B43) -> 2008-December | B16: 14286723.92 | C16: 768381.75 | D16: 295172.5 | H16: 13223169.67 | J16: 694 | K16: 0 | L16: 31 | M16: 662.1 | N16: 8.47 | O16: 0
A17: =CONCATENATE('Input - Customer Data'!A44,"-",'Input - Customer Data'!B44) -> 2009-January | B17: 15005142.69 | C17: 906445.5 | D17: 293427.5 | H17: 13805269.69 | J17: 891.8 | K17: 0 | L17: 31 | M17: 651.4 | N17: 9.09 | O17: 0
A18: =CONCATENATE('Input - Customer Data'!A45,"-",'Input - Customer Data'!B45) -> 2009-February | B18: 13197883.27 | C18: 831641.25 | D18: 263702.5 | H18: 12102539.52 | J18: 649.6 | K18: 0 | L18: 28 | M18: 639.4 | N18: 10.19 | O18: 0
A19: =CONCATENATE('Input - Customer Data'!A46,"-",'Input - Customer Data'!B46) -> 2009-March | B19: 13841636.36 | C19: 923682 | D19: 293705 | H19: 12624249.36 | J19: 562.6 | K19: 0 | L19: 31 | M19: 627.6 | N19: 11.51 | O19: 1
A20: =CONCATENATE('Input - Customer Data'!A47,"-",'Input - Customer Data'!B47) -> 2009-April | B20: 12430879.66 | C20: 898268.25 | D20: 285214.5 | H20: 11247396.91 | J20: 341.5 | K20: 3.2 | L20: 30 | M20: 623.9 | N20: 13.28 | O20: 1
A21: =CONCATENATE('Input - Customer Data'!A48,"-",'Input - Customer Data'!B48) -> 2009-May | B21: 11568813.37 | C21: 879408.75 | D21: 295965.5 | H21: 10393439.12 | J21: 192.8 | K21: 2.3 | L21: 31 | M21: 622.7 | N21: 14.52 | O21: 1
A22: =CONCATENATE('Input - Customer Data'!A49,"-",'Input - Customer Data'!B49) -> 2009-June | B22: 12161991.47 | C22: 917436 | D22: 305494.5 | H22: 10939060.97 | J22: 75.7 | K22: 26.2 | L22: 30 | M22: 632.1 | N22: 15.35 | O22: 0
A23: =CONCATENATE('Input - Customer Data'!A50,"-",'Input - Customer Data'!B50) -> 2009-July | B23: 11877269.39 | C23: 856247.25 | D23: 318493.5 | H23: 10702528.64 | J23: 37.6 | K23: 14.5 | L23: 31 | M23: 637.9 | N23: 15.15 | O23: 0
A24: =CONCATENATE('Input - Customer Data'!A51,"-",'Input - Customer Data'!B51) -> 2009-August | B24: 12331632.6 | C24: 910144.5 | D24: 325158 | H24: 11096330.1 | J24: 18.2 | K24: 57.3 | L24: 31 | M24: 643 | N24: 14.03 | O24: 0
A25: =CONCATENATE('Input - Customer Data'!A52,"-",'Input - Customer Data'!B52) -> 2009-September | B25: 12154249.63 | C25: 922287.75 | D25: 302555 | H25: 10929406.88 | J25: 88.8 | K25: 5.5 | L25: 30 | M25: 643.3 | N25: 12.29 | O25: 1
A26: =CONCATENATE('Input - Customer Data'!A53,"-",'Input - Customer Data'!B53) -> 2009-October | B26: 12554878.11 | C26: 961542.75 | D26: 288199 | H26: 11305136.36 | J26: 329.1 | K26: 0 | L26: 31 | M26: 644.9 | N26: 10.51 | O26: 1
A27: =CONCATENATE('Input - Customer Data'!A54,"-",'Input - Customer Data'!B54) -> 2009-November | B27: 12741915.07 | C27: 955250.25 | D27: 283650 | H27: 11503014.82 | J27: 396.5 | K27: 0 | L27: 30 | M27: 642.2 | N27: 9.28 | O27: 1
A28: =CONCATENATE('Input - Customer Data'!A55,"-",'Input - Customer Data'!B55) -> 2009-December | B28: 14424067.26 | C28: 883485.75 | D28: 294708 | H28: 13245873.51 | J28: 669.5 | K28: 0 | L28: 31 | M28: 639.1 | N28: 8.47 | O28: 0
A29: =CONCATENATE('Input - Customer Data'!A56,"-",'Input - Customer Data'!B56) -> 2010-January | B29: 14435761.82 | C29: 948342.75 | D29: 283334.75 | H29: 13204084.32 | J29: 721.1 | K29: 0 | L29: 31 | M29: 633.6 | N29: 9.09 | O29: 0
A30: =CONCATENATE('Input - Customer Data'!A57,"-",'Input - Customer Data'!B57) -> 2010-February | B30: 12846380.85 | C30: 854487.75 | D30: 250270.2 | H30: 11741622.9 | J30: 644.7 | K30: 0 | L30: 28 | M30: 630.5 | N30: 10.19 | O30: 0
A31: =CONCATENATE('Input - Customer Data'!A58,"-",'Input - Customer Data'!B58) -> 2010-March | B31: 13466440.77 | C31: 969330.75 | D31: 282977.4 | H31: 12214132.62 | J31: 470.9 | K31: 0 | L31: 31 | M31: 627.5 | N31: 11.51 | O31: 1
A32: =CONCATENATE('Input - Customer Data'!A59,"-",'Input - Customer Data'!B59) -> 2010-April | B32: 11695829.13 | C32: 889725 | D32: 277311.3 | H32: 10528792.83 | J32: 260.6 | K32: 0 | L32: 30 | M32: 631.6 | N32: 13.28 | O32: 1
A33: =CONCATENATE('Input - Customer Data'!A60,"-",'Input - Customer Data'!B60) -> 2010-May | B33: 12039396.98 | C33: 983087.25 | D33: 307353.9 | H33: 10748955.83 | J33: 144.7 | K33: 21 | L33: 31 | M33: 641.5 | N33: 14.52 | O33: 1
A34: =CONCATENATE('Input - Customer Data'!A61,"-",'Input - Customer Data'!B61) -> 2010-June | B34: 12588185.24 | C34: 993703.5 | D34: 305354.7 | H34: 11289127.04 | J34: 37.7 | K34: 32.6 | L34: 30 | M34: 657.2 | N34: 15.35 | O34: 0
A35: =CONCATENATE('Input - Customer Data'!A62,"-",'Input - Customer Data'!B62) -> 2010-July | B35: 13590961.94 | C35: 895740.75 | D35: 324751.8 | H35: 12370469.39 | J35: 6.7 | K35: 106.6 | L35: 31 | M35: 669.8 | N35: 15.15 | O35: 0
A36: =CONCATENATE('Input - Customer Data'!A63,"-",'Input - Customer Data'!B63) -> 2010-August | B36: 13165945.18 | C36: 1004868 | D36: 327550.5 | H36: 11833526.68 | J36: 14.2 | K36: 85.3 | L36: 31 | M36: 672 | N36: 14.03 | O36: 0
A37: =CONCATENATE('Input - Customer Data'!A64,"-",'Input - Customer Data'!B64) -> 2010-September | B37: 12387488.95 | C37: 947171.25 | D37: 297967.5 | H37: 11142350.2 | J37: 122.7 | K37: 23 | L37: 30 | M37: 665.1 | N37: 12.29 | O37: 1
A38: =CONCATENATE('Input - Customer Data'!A65,"-",'Input - Customer Data'!B65) -> 2010-October | B38: 12591988.77 | C38: 928317 | D38: 297583.5 | H38: 11366088.27 | J38: 284.6 | K38: 0 | L38: 31 | M38: 657.2 | N38: 10.51 | O38: 1
A39: =CONCATENATE('Input - Customer Data'!A66,"-",'Input - Customer Data'!B66) -> 2010-November | B39: 13323219.41 | C39: 973789.5 | D39: 283889.7 | H39: 12065540.21 | J39: 424.1 | K39: 0 | L39: 30 | M39: 655.2 | N39: 9.28 | O39: 1
A40: =CONCATENATE('Input - Customer Data'!A67,"-",'Input - Customer Data'!B67) -> 2010-December | B40: 13800475.36 | C40: 877779.75 | D40: 286858.2 | H40: 12635837.41 | J40: 719.4 | K40: 0 | L40: 31 | M40: 653.3 | N40: 8.47 | O40: 0
A41: =CONCATENATE('Input - Customer Data'!A68,"-",'Input - Customer Data'!B68) -> 2011-January | B41: 14553973.74 | C41: 890927.25 | D41: 284591.4 | H41: 13378455.09 | J41: 822 | K41: 0 | L41: 31 | M41: 649.3 | N41: 9.09 | O41: 0
A42: =CONCATENATE('Input - Customer Data'!A69,"-",'Input - Customer Data'!B69) -> 2011-February | B42: 12993844.84 | C42: 814548 | D42: 256467.3 | H42: 11922829.54 | J42: 689.3 | K42: 0 | L42: 28 | M42: 651.2 | N42: 10.19 | O42: 0
A43: =CONCATENATE('Input - Customer Data'!A70,"-",'Input - Customer Data'!B70) -> 2011-March | B43: 13683974.06 | C43: 876211.5 | D43: 291548.7 | H43: 12516213.86 | J43: 622.3 | K43: 0 | L43: 31 | M43: 657.1 | N43: 11.51 | O43: 1
A44: =CONCATENATE('Input - Customer Data'!A71,"-",'Input - Customer Data'!B71) -> 2011-April | B44: 11913552.88 | C44: 815261.25 | D44: 285969 | H44: 10812322.63 | J44: 349.6 | K44: 0 | L44: 30 | M44: 666.4 | N44: 13.28 | O44: 1
A45: =CONCATENATE('Input - Customer Data'!A72,"-",'Input - Customer Data'!B72) -> 2011-May | B45: 11611512.92 | C45: 886779.75 | D45: 310073.1 | H45: 10414660.07 | J45: 156.7 | K45: 13.2 | L45: 31 | M45: 671.5 | N45: 14.52 | O45: 1
A46: =CONCATENATE('Input - Customer Data'!A73,"-",'Input - Customer Data'!B73) -> 2011-June | B46: 12209704.78 | C46: 901943.25 | D46: 317302.5 | H46: 10990459.03 | J46: 48.5 | K46: 21.6 | L46: 30 | M46: 681.8 | N46: 15.35 | O46: 0
A47: =CONCATENATE('Input - Customer Data'!A74,"-",'Input - Customer Data'!B74) -> 2011-July | B47: 13541155.95 | C47: 836556.75 | D47: 347668.5 | H47: 12356930.7 | J47: 0.8 | K47: 129.7 | L47: 31 | M47: 691.5 | N47: 15.15 | O47: 0
A48: =CONCATENATE('Input - Customer Data'!A75,"-",'Input - Customer Data'!B75) -> 2011-August | B48: 12787062.35 | C48: 939744 | D48: 326499.9 | H48: 11520818.45 | J48: 6.9 | K48: 60.1 | L48: 31 | M48: 694.9 | N48: 14.03 | O48: 0
A49: =CONCATENATE('Input - Customer Data'!A76,"-",'Input - Customer Data'!B76) -> 2011-September | B49: 12157224.2 | C49: 867267 | D49: 294017.4 | H49: 10995939.8 | J49: 98.4 | K49: 19.7 | L49: 30 | M49: 688.6 | N49: 12.29 | O49: 1
A50: =CONCATENATE('Input - Customer Data'!A77,"-",'Input - Customer Data'!B77) -> 2011-October | B50: 12479238.46 | C50: 840586.8 | D50: 291995.7 | H50: 11346655.96 | J50: 279.9 | K50: 0 | L50: 31 | M50: 682.2 | N50: 10.51 | O50: 1
A51: =CONCATENATE('Input - Customer Data'!A78,"-",'Input - Customer Data'!B78) -> 2011-November | B51: 12750868.54 | C51: 891857.4 | D51: 273960 | H51: 11585051.14 | J51: 382.4 | K51: 0 | L51: 30 | M51: 677 | N51: 9.28 | O51: 1
A52: =CONCATENATE('Input - Customer Data'!A79,"-",'Input - Customer Data'!B79) -> 2011-December | B52: 13532542.88 | C52: 816194.55 | D52: 277776.6 | H52: 12438571.73 | J52: 574.8 | K52: 0 | L52: 31 | M52: 676.6 | N52: 8.47 | O52: 0
A53: =CONCATENATE('Input - Customer Data'!A80,"-",'Input - Customer Data'!B80) -> 2012-January | B53: 14585568.36 | C53: 935142.45 | D53: 272840.7 | H53: 13377585.21 | J53: 657.3 | K53: 0 | L53: 31 | M53: 670.9 | N53: 9.09 | O53: 0
A54: =CONCATENATE('Input - Customer Data'!A81,"-",'Input - Customer Data'!B81) -> 2012-February | B54: 13424711.96 | C54: 869366.55 | D54: 257403.3 | H54: 12297942.11 | J54: 573 | K54: 0 | L54: 29 | M54: 668.7 | N54: 10.19 | O54: 0
A55: =CONCATENATE('Input - Customer Data'!A82,"-",'Input - Customer Data'!B82) -> 2012-March | B55: 13395036.79 | C55: 922200.45 | D55: 283807.2 | H55: 12189029.14 | J55: 370.1 | K55: 0 | L55: 31 | M55: 666 | N55: 11.51 | O55: 1
A56: =CONCATENATE('Input - Customer Data'!A83,"-",'Input - Customer Data'!B83) -> 2012-April | B56: 12290763.73 | C56: 853750.35 | D56: 272601.6 | H56: 11164411.78 | J56: 365.3 | K56: 0 | L56: 30 | M56: 667.4 | N56: 13.28 | O56: 1
A57: =CONCATENATE('Input - Customer Data'!A84,"-",'Input - Customer Data'!B84) -> 2012-May | B57: 12220935.4 | C57: 907708.05 | D57: 297869.7 | H57: 11015357.65 | J57: 105.8 | K57: 18.2 | L57: 31 | M57: 672.1 | N57: 14.52 | O57: 1
A58: =CONCATENATE('Input - Customer Data'!A85,"-",'Input - Customer Data'!B85) -> 2012-June | B58: 12944227.87 | C58: 901851.45 | D58: 300585.6 | H58: 11741790.82 | J58: 42.1 | K58: 61.2 | L58: 30 | M58: 678.4 | N58: 15.35 | O58: 0
A59: =CONCATENATE('Input - Customer Data'!A86,"-",'Input - Customer Data'!B86) -> 2012-July | B59: 14085492.17 | C59: 874125.9 | D59: 321338.4 | H59: 12890027.87 | J59: 0 | K59: 128.2 | L59: 31 | M59: 682 | N59: 15.15 | O59: 0
A60: =CONCATENATE('Input - Customer Data'!A87,"-",'Input - Customer Data'!B87) -> 2012-August | B60: 12866836.83 | C60: 937434 | D60: 152537.4 | H60: 11776865.43 | J60: 19.4 | K60: 59.1 | L60: 31 | M60: 678.5 | N60: 14.03 | O60: 0
A61: =CONCATENATE('Input - Customer Data'!A88,"-",'Input - Customer Data'!B88) -> 2012-September | B61: 11419289.09 | C61: 862795.65 | H61: 10556493.44 | J61: 125.4 | K61: 16.4 | L61: 30 | M61: 671.9 | N61: 12.29 | O61: 1
A62: =CONCATENATE('Input - Customer Data'!A89,"-",'Input - Customer Data'!B89) -> 2012-October | B62: 12504352.98 | C62: 887428.2 | H62: 11616924.78 | J62: 279.2 | K62: 0 | L62: 31 | M62: 672.8 | N62: 10.51 | O62: 1
A63: =CONCATENATE('Input - Customer Data'!A90,"-",'Input - Customer Data'!B90) -> 2012-November | B63: 13335727.79 | C63: 895243.95 | H63: 12440483.84 | J63: 483.6 | K63: 0 | L63: 30 | M63: 676.8 | N63: 9.28 | O63: 1
A64: =CONCATENATE('Input - Customer Data'!A91,"-",'Input - Customer Data'!B91) -> 2012-December | B64: 13427701.48 | C64: 777790.95 | H64: 12649910.53 | J64: 565.5 | K64: 0 | L64: 31 | M64: 682.7 | N64: 8.47 | O64: 0
A65: =CONCATENATE('Input - Customer Data'!A92,"-",'Input - Customer Data'!B92) -> 2013-January | B65: 14721308.31 | C65: 920048.1 | H65: 13801260.21 | J65: 681.3 | K65: 0 | L65: 31 | M65: 681.6 | N65: 9.09 | O65: 0
A66: =CONCATENATE('Input - Customer Data'!A93,"-",'Input - Customer Data'!B93) -> 2013-February | B66: 13334088.14 | C66: 804206.25 | H66: 12529881.89 | J66: 697.9 | K66: 0 | L66: 28 | M66: 682.6 | N66: 10.19 | O66: 0
A67: =CONCATENATE('Input - Customer Data'!A94,"-",'Input - Customer Data'!B94) -> 2013-March | B67: 13602922.4 | C67: 893818.8 | H67: 12709103.6 | J67: 612 | K67: 0 | L67: 31 | M67: 683.6 | N67: 11.51 | O67: 1
A68: =CONCATENATE('Input - Customer Data'!A95,"-",'Input - Customer Data'!B95) -> 2013-April | B68: 12506882.4 | C68: 895464.3 | H68: 11611418.1 | J68: 384.7 | K68: 0 | L68: 30 | M68: 685.4 | N68: 13.28 | O68: 1
A69: =CONCATENATE('Input - Customer Data'!A96,"-",'Input - Customer Data'!B96) -> 2013-May | B69: 12028746.65 | C69: 881176.8 | H69: 11147569.85 | J69: 152.1 | K69: 19.6 | L69: 31 | M69: 690.3 | N69: 14.52 | O69: 1
A70: =CONCATENATE('Input - Customer Data'!A97,"-",'Input - Customer Data'!B97) -> 2013-June | B70: 12310607.65 | C70: 793200 | H70: =B70-SUM(C70:G70) -> 11517407.65 | J70: 52.6 | K70: 31.3 | L70: 30 | M70: 696.7 | N70: 15.35 | O70: 0
A71: =CONCATENATE('Input - Customer Data'!A98,"-",'Input - Customer Data'!B98) -> 2013-July | B71: 13491261.03 | C71: 661510.65 | H71: 12829750.38 | J71: 15.1 | K71: 86.5 | L71: 31 | M71: 702.8 | N71: 15.15 | O71: 0
A72: =CONCATENATE('Input - Customer Data'!A99,"-",'Input - Customer Data'!B99) -> 2013-August | B72: 12274415.57 | C72: 534529.2 | H72: 11739886.37 | J72: 32.7 | K72: 42.1 | L72: 31 | M72: 701.4 | N72: 14.03 | O72: 0
A73: =CONCATENATE('Input - Customer Data'!A100,"-",'Input - Customer Data'!B100) -> 2013-September | B73: 11911110.81 | C73: 442564.35 | H73: 11468546.46 | J73: 128.1 | K73: 20.5 | L73: 30 | M73: 698.4 | N73: 12.29 | O73: 1
A74: =CONCATENATE('Input - Customer Data'!A101,"-",'Input - Customer Data'!B101) -> 2013-October | B74: 12332005.88 | C74: 434736.75 | H74: 11897269.13 | J74: 262.1 | K74: 0 | L74: 31 | M74: 698.4 | N74: 10.51 | O74: 1
A75: =CONCATENATE('Input - Customer Data'!A102,"-",'Input - Customer Data'!B102) -> 2013-November | B75: 12760586.1 | C75: 432851.85 | H75: 12327734.25 | J75: 517.7 | K75: 0 | L75: 30 | M75: 700 | N75: 9.28 | O75: 1
A76: =CONCATENATE('Input - Customer Data'!A103,"-",'Input - Customer Data'!B103) -> 2013-December | B76: 13521418.9 | C76: 434689.2 | H76: 13086729.7 | J76: 727.3 | K76: 0 | L76: 31 | M76: 695.4 | N76: 8.47 | O76: 0
A77: =CONCATENATE('Input - Customer Data'!A104,"-",'Input - Customer Data'!B104) -> 2014-January | B77: 14721918.54 | C77: 395081.1 | H77: 14326837.44 | J77: 865.9 | K77: 0 | L77: 31 | M77: 689.4 | N77: 9.09 | O77: 0
A78: =CONCATENATE('Input - Customer Data'!A105,"-",'Input - Customer Data'!B105) -> 2014-February | B78: 12985802.1 | C78: 330761.1 | H78: 12655041 | J78: 831.2 | K78: 0 | L78: 28 | M78: 682.3 | N78: 10.19 | O78: 0
A79: =CONCATENATE('Input - Customer Data'!A106,"-",'Input - Customer Data'!B106) -> 2014-March | B79: 13614018.57 | C79: 325721.25 | H79: 13288297.32 | J79: 757 | K79: 0 | L79: 31 | M79: 680.2 | N79: 11.51 | O79: 1
A80: =CONCATENATE('Input - Customer Data'!A107,"-",'Input - Customer Data'!B107) -> 2014-April | B80: 11649899.11 | C80: 289708.5 | H80: 11360190.61 | J80: 389.9 | K80: 0 | L80: 30 | M80: 679.4 | N80: 13.28 | O80: 1
A81: =CONCATENATE('Input - Customer Data'!A108,"-",'Input - Customer Data'!B108) -> 2014-May | B81: 11257042.02 | C81: 293286.45 | H81: 10963755.57 | J81: 168.9 | K81: 9 | L81: 31 | M81: 690 | N81: 14.52 | O81: 1
A82: =CONCATENATE('Input - Customer Data'!A109,"-",'Input - Customer Data'!B109) -> 2014-June | B82: 11926426.47 | C82: 278266.5 | H82: 11648159.97 | J82: 37.3 | K82: 44.3 | L82: 30 | M82: 704.4 | N82: 15.35 | O82: 0
A83: =CONCATENATE('Input - Customer Data'!A110,"-",'Input - Customer Data'!B110) -> 2014-July | B83: 12057150.84 | C83: 290515.05 | H83: 11766635.79 | J83: 36.8 | K83: 38.8 | L83: 31 | M83: 715.1 | N83: 15.15 | O83: 0
A84: =CONCATENATE('Input - Customer Data'!A111,"-",'Input - Customer Data'!B111) -> 2014-August | B84: 11607472.4 | C84: 298547.85 | H84: 11308924.55 | J84: 31.1 | K84: 28.5 | L84: 31 | M84: 718.7 | N84: 14.03 | O84: 0
A85: =CONCATENATE('Input - Customer Data'!A112,"-",'Input - Customer Data'!B112) -> 2014-September | B85: 11603450.51 | C85: 191478.3 | H85: 11411972.21 | J85: 117.7 | K85: 11.4 | L85: 30 | M85: 719.3 | N85: 12.29 | O85: 1
A86: =CONCATENATE('Input - Customer Data'!A113,"-",'Input - Customer Data'!B113) -> 2014-October | B86: 11860236.59 | C86: 135452.55 | H86: 11724784.04 | J86: 257.1 | K86: 0 | L86: 31 | M86: 723.5 | N86: 10.51 | O86: 1
A87: =CONCATENATE('Input - Customer Data'!A114,"-",'Input - Customer Data'!B114) -> 2014-November | B87: 12586538.52 | C87: 135431.55 | H87: 12451106.97 | J87: 529.9 | K87: 0 | L87: 30 | M87: 721 | N87: 9.28 | O87: 1
A88: =CONCATENATE('Input - Customer Data'!A115,"-",'Input - Customer Data'!B115) -> 2014-December | B88: 12848023.51 | C88: 135343.95 | H88: 12712679.56 | J88: 597.6 | K88: 0 | L88: 31 | M88: 714.3 | N88: 8.47 | O88: 0
A89: =CONCATENATE('Input - Customer Data'!A116,"-",'Input - Customer Data'!B116) -> 2015-January | B89: 13987821.58 | C89: 139759.5 | H89: 13848062.08 | J89: 800.8 | K89: 0 | L89: 31 | M89: 705.7 | N89: 9.09 | O89: 0
A90: =CONCATENATE('Input - Customer Data'!A117,"-",'Input - Customer Data'!B117) -> 2015-February | B90: 13128222.03 | C90: 132542.55 | H90: 12995679.48 | J90: 917.5 | K90: 0 | L90: 28 | M90: 700.1 | N90: 10.19 | O90: 0
A91: =CONCATENATE('Input - Customer Data'!A118,"-",'Input - Customer Data'!B118) -> 2015-March | B91: 13204404.55 | C91: 130716.6 | H91: 13073687.95 | J91: 538 | K91: 0 | L91: 31 | M91: 698.3 | N91: 11.51 | O91: 1
A92: =CONCATENATE('Input - Customer Data'!A119,"-",'Input - Customer Data'!B119) -> 2015-April | B92: 11410544.12 | C92: 112637.1 | H92: 11297907.02 | J92: 359 | K92: 0 | L92: 30 | M92: 697.6 | N92: 13.28 | O92: 1
A93: =CONCATENATE('Input - Customer Data'!A120,"-",'Input - Customer Data'!B120) -> 2015-May | B93: 10958503.81 | C93: 101161.5 | H93: 10857342.31 | J93: 116.2 | K93: 29.8 | L93: 31 | M93: 704.9 | N93: 14.52 | O93: 1
A94: =CONCATENATE('Input - Customer Data'!A121,"-",'Input - Customer Data'!B121) -> 2015-June | B94: 11142211.15 | C94: 102907.8 | H94: 11039303.35 | J94: 54.7 | K94: 15 | L94: 30 | M94: 715.1 | N94: 15.35 | O94: 0
A95: =CONCATENATE('Input - Customer Data'!A122,"-",'Input - Customer Data'!B122) -> 2015-July | B95: 12015770 | C95: 101661 | H95: 11914109 | J95: 19.3 | K95: 57.7 | L95: 31 | M95: 716.6 | N95: 15.15 | O95: 0
A96: =CONCATENATE('Input - Customer Data'!A123,"-",'Input - Customer Data'!B123) -> 2015-August | B96: 11373907.26 | C96: 92323.65 | H96: 11281583.61 | J96: 29.5 | K96: 47.9 | L96: 31 | M96: 713.1 | N96: 14.03 | O96: 0
A97: =CONCATENATE('Input - Customer Data'!A124,"-",'Input - Customer Data'!B124) -> 2015-September | B97: 11797715.43 | C97: 103640.25 | H97: 11694075.18 | J97: 58.2 | K97: 45.3 | L97: 30 | M97: 710.2 | N97: 12.29 | O97: 1
A98: =CONCATENATE('Input - Customer Data'!A125,"-",'Input - Customer Data'!B125) -> 2015-October | B98: 11391036.42 | C98: 105957 | H98: 11285079.42 | J98: 290.1 | K98: 0 | L98: 31 | M98: 716.9 | N98: 10.51 | O98: 1
A99: =CONCATENATE('Input - Customer Data'!A126,"-",'Input - Customer Data'!B126) -> 2015-November | B99: 11637091.83 | C99: 97376.25 | H99: 11539715.58 | J99: 391.1 | K99: 0 | L99: 30 | M99: 721 | N99: 9.28 | O99: 1
A100: =CONCATENATE('Input - Customer Data'!A127,"-",'Input - Customer Data'!B127) -> 2015-December | B100: 12174696.16 | C100: 100471.35 | H100: 12074224.81 | J100: 453 | K100: 0 | L100: 31 | M100: 718.7 | N100: 8.47 | O100: 0
A101: =CONCATENATE('Input - Customer Data'!A128,"-",'Input - Customer Data'!B128) -> 2016-January | B101: 13174500.39 | C101: 114011.85 | H101: 13060488.54 | J101: 717.8 | K101: 0 | L101: 31 | M101: 715.8 | N101: 9.09 | O101: 0
A102: =CONCATENATE('Input - Customer Data'!A129,"-",'Input - Customer Data'!B129) -> 2016-February | B102: 12284958.66 | C102: 105050.55 | H102: 12179908.11 | J102: 627.4 | K102: 0 | L102: 29 | M102: 710.9 | N102: 10.19 | O102: 0
A103: =CONCATENATE('Input - Customer Data'!A130,"-",'Input - Customer Data'!B130) -> 2016-March | B103: 12300188.12 | C103: 99085.95 | H103: 12201102.17 | J103: 479.4 | K103: 0 | L103: 31 | M103: 709.4 | N103: 11.51 | O103: 1
A104: =CONCATENATE('Input - Customer Data'!A131,"-",'Input - Customer Data'!B131) -> 2016-April | B104: 11470601 | C104: 93345.45 | H104: 11377255.55 | J104: 431.8 | K104: 0 | L104: 30 | M104: 707.4 | N104: 13.28 | O104: 1
A105: =CONCATENATE('Input - Customer Data'!A132,"-",'Input - Customer Data'!B132) -> 2016-May | B105: 11103630.91 | C105: 86769.45 | H105: 11016861.46 | J105: 174.6 | K105: 18.4 | L105: 31 | M105: 712.4 | N105: 14.52 | O105: 1
A106: =CONCATENATE('Input - Customer Data'!A133,"-",'Input - Customer Data'!B133) -> 2016-June | B106: 11688885.21 | C106: 90018.75 | H106: 11598866.46 | J106: 43.9 | K106: 24.1 | L106: 30 | M106: 714.6 | N106: 15.35 | O106: 0
A107: =CONCATENATE('Input - Customer Data'!A134,"-",'Input - Customer Data'!B134) -> 2016-July | B107: 12484078.88 | C107: 94849.65 | H107: 12389229.23 | J107: 19.3 | K107: 101.2 | L107: 31 | M107: 712.3 | N107: 15.15 | O107: 0
A108: =CONCATENATE('Input - Customer Data'!A135,"-",'Input - Customer Data'!B135) -> 2016-August | B108: 13068282.76 | C108: 102159.45 | H108: 12966123.31 | J108: 2.1 | K108: 100.7 | L108: 31 | M108: 707.1 | N108: 14.03 | O108: 0
A109: =CONCATENATE('Input - Customer Data'!A136,"-",'Input - Customer Data'!B136) -> 2016-September | B109: 11716427.66 | C109: 91362.75 | H109: 11625064.91 | J109: 68.8 | K109: 16.1 | L109: 30 | M109: 702.4 | N109: 12.29 | O109: 1
A110: =CONCATENATE('Input - Customer Data'!A137,"-",'Input - Customer Data'!B137) -> 2016-October | B110: 11516576.61 | C110: 93852.45 | H110: 11422724.16 | J110: 209.4 | K110: 1.9 | L110: 31 | M110: 702.3 | N110: 10.51 | O110: 1
A111: =CONCATENATE('Input - Customer Data'!A138,"-",'Input - Customer Data'!B138) -> 2016-November | B111: 11833877.72 | C111: 99523.2 | H111: 11734354.52 | J111: 319.7 | K111: 0 | L111: 30 | M111: 680.0777778 | N111: 9.28 | O111: 1
A112: =CONCATENATE('Input - Customer Data'!A139,"-",'Input - Customer Data'!B139) -> 2016-December | B112: 12494090.52 | C112: 106667.7 | H112: =B112-SUM(C112:G112) -> 12387422.82 | J112: 639.8157895 | K112: 0 | L112: 31 | M112: 678.4666667 | N112: 8.47 | O112: 0
A113: =CONCATENATE('Input - Customer Data'!A140,"-",'Input - Customer Data'!B140) -> 2017-January | H113: =B113+SUM(C113:G113) -> 0
A114: =CONCATENATE('Input - Customer Data'!A141,"-",'Input - Customer Data'!B141) -> 2017-February | H114: 0
A115: =CONCATENATE('Input - Customer Data'!A142,"-",'Input - Customer Data'!B142) -> 2017-March | H115: 0
A116: =CONCATENATE('Input - Customer Data'!A143,"-",'Input - Customer Data'!B143) -> 2017-April | H116: 0
A117: =CONCATENATE('Input - Customer Data'!A144,"-",'Input - Customer Data'!B144) -> 2017-May | H117: 0
A118: =CONCATENATE('Input - Customer Data'!A145,"-",'Input - Customer Data'!B145) -> 2017-June | H118: 0
A119: =CONCATENATE('Input - Customer Data'!A146,"-",'Input - Customer Data'!B146) -> 2017-July | H119: 0
A120: =CONCATENATE('Input - Customer Data'!A147,"-",'Input - Customer Data'!B147) -> 2017-August | H120: 0
A121: =CONCATENATE('Input - Customer Data'!A148,"-",'Input - Customer Data'!B148) -> 2017-September | H121: 0
A122: =CONCATENATE('Input - Customer Data'!A149,"-",'Input - Customer Data'!B149) -> 2017-October | H122: 0
A123: =CONCATENATE('Input - Customer Data'!A150,"-",'Input - Customer Data'!B150) -> 2017-November | H123: 0
A124: =CONCATENATE('Input - Customer Data'!A151,"-",'Input - Customer Data'!B151) -> 2017-December | H124: 0
A127: Origine of variables
A128: HDD: Stats Canada
A129: CDD :Stats Canada
A130: Winter:
A131: Employment:
A132: Cust count:
A133: AVG Temp: Stats Canada

Sheet Input
C1: Feature Selection | E1: Minimum R-Squared | F1: 0 | R1: 1 | AU1: Add More Variable Columns | AV1: 10
E2: Variance Inflation Factor | F2: 5
A3: Include | B3: ON | C3: ON | D3: ON | E3: ON | F3: ON | G3: OFF | H3: ON | I3: ON | J3: ON | K3: ON | L3: ON | M3: ON | N3: ON | O3: ON | P3: ON | Q3: ON | R3: ON | S3: ON | T3: ON | U3: ON | V3: ON | W3: ON | X3: ON | Y3: ON | Z3: ON | AA3: ON | AB3: ON | AC3: ON | AD3: ON | AE3: ON | AF3: ON | AG3: ON | AH3: ON | AI3: ON | AJ3: ON | AK3: ON | AL3: ON | AM3: ON | AN3: ON | AO3: ON | AP3: ON | AQ3: ON | AR3: ON | AS3: ON | AT3: ON | AU3: ON | AV3: ON | AW3: ON | AX3: ON | AY3: ON
A4: WS | B4: HDD | C4: CDD | D4: Number of Days in Month | E4: Employment Stats | F4: Daylight hours | G4: Spring Flag
A5: 13858702 | B5: 676.7999878 | C5: 0 | D5: 31 | E5: 656.2999878 | F5: 9.090000153 | G5: 0
A6: 12869483 | B6: 651.2000122 | C6: 0 | D6: 29 | E6: 651.2000122 | F6: 10.18999958 | G6: 0
A7: 13152556 | B7: 686.0999756 | C7: 0 | D7: 31 | E7: 642.2999878 | F7: 11.51000023 | G7: 1
A8: 11561734 | B8: 297.8999939 | C8: 0 | D8: 30 | E8: 642.2999878 | F8: 13.27999973 | G8: 1
A9: 11069726 | B9: 243.1000061 | C9: 0.6999999881 | D9: 31 | E9: 642.5 | F9: 14.52000046 | G9: 1
A10: 11839202 | B10: 40.59999847 | C10: 53 | D10: 30 | E10: 648.2000122 | F10: 15.35000038 | G10: 0
A11: 12438276 | B11: 7.599999905 | C11: 75.80000305 | D11: 31 | E11: 653.5 | F11: 15.14999962 | G11: 0
A12: 11492121 | B12: 36.20000076 | C12: 29.5 | D12: 31 | E12: 656.2000122 | F12: 14.02999973 | G12: 0
A13: 11764633 | B13: 93.19999695 | C13: 12 | D13: 30 | E13: 658.7999878 | F13: 12.28999996 | G13: 1
A14: 11947093 | B14: 325.7000122 | C14: 0 | D14: 31 | E14: 661.5 | F14: 10.51000023 | G14: 1
A15: 12427893 | B15: 499.7000122 | C15: 0 | D15: 30 | E15: 664.7000122 | F15: 9.279999733 | G15: 1
A16: 13223170 | B16: 694 | C16: 0 | D16: 31 | E16: 662.0999756 | F16: 8.470000267 | G16: 0
A17: 13805270 | B17: 891.7999878 | C17: 0 | D17: 31 | E17: 651.4000244 | F17: 9.090000153 | G17: 0
A18: 12102540 | B18: 649.5999756 | C18: 0 | D18: 28 | E18: 639.4000244 | F18: 10.18999958 | G18: 0
A19: 12624249 | B19: 562.5999756 | C19: 0 | D19: 31 | E19: 627.5999756 | F19: 11.51000023 | G19: 1
A20: 11247397 | B20: 341.5 | C20: 3.200000048 | D20: 30 | E20: 623.9000244 | F20: 13.27999973 | G20: 1
A21: 10393439 | B21: 192.8000031 | C21: 2.299999952 | D21: 31 | E21: 622.7000122 | F21: 14.52000046 | G21: 1
A22: 10939061 | B22: 75.69999695 | C22: 26.20000076 | D22: 30 | E22: 632.0999756 | F22: 15.35000038 | G22: 0
A23: 10702529 | B23: 37.59999847 | C23: 14.5 | D23: 31 | E23: 637.9000244 | F23: 15.14999962 | G23: 0
A24: 11096330 | B24: 18.20000076 | C24: 57.29999924 | D24: 31 | E24: 643 | F24: 14.02999973 | G24: 0
A25: 10929407 | B25: 88.80000305 | C25: 5.5 | D25: 30 | E25: 643.2999878 | F25: 12.28999996 | G25: 1
A26: 11305136 | B26: 329.1000061 | C26: 0 | D26: 31 | E26: 644.9000244 | F26: 10.51000023 | G26: 1
A27: 11503015 | B27: 396.5 | C27: 0 | D27: 30 | E27: 642.2000122 | F27: 9.279999733 | G27: 1
A28: 13245874 | B28: 669.5 | C28: 0 | D28: 31 | E28: 639.0999756 | F28: 8.470000267 | G28: 0
A29: 13204084 | B29: 721.0999756 | C29: 0 | D29: 31 | E29: 633.5999756 | F29: 9.090000153 | G29: 0
A30: 11741623 | B30: 644.7000122 | C30: 0 | D30: 28 | E30: 630.5 | F30: 10.18999958 | G30: 0
A31: 12214133 | B31: 470.8999939 | C31: 0 | D31: 31 | E31: 627.5 | F31: 11.51000023 | G31: 1
A32: 10528793 | B32: 260.6000061 | C32: 0 | D32: 30 | E32: 631.5999756 | F32: 13.27999973 | G32: 1
A33: 10748956 | B33: 144.6999969 | C33: 21 | D33: 31 | E33: 641.5 | F33: 14.52000046 | G33: 1
A34: 11289127 | B34: 37.70000076 | C34: 32.59999847 | D34: 30 | E34: 657.2000122 | F34: 15.35000038 | G34: 0
A35: 12370469 | B35: 6.699999809 | C35: 106.5999985 | D35: 31 | E35: 669.7999878 | F35: 15.14999962 | G35: 0
A36: 11833527 | B36: 14.19999981 | C36: 85.30000305 | D36: 31 | E36: 672 | F36: 14.02999973 | G36: 0
A37: 11142350 | B37: 122.6999969 | C37: 23 | D37: 30 | E37: 665.0999756 | F37: 12.28999996 | G37: 1
A38: 11366088 | B38: 284.6000061 | C38: 0 | D38: 31 | E38: 657.2000122 | F38: 10.51000023 | G38: 1
A39: 12065540 | B39: 424.1000061 | C39: 0 | D39: 30 | E39: 655.2000122 | F39: 9.279999733 | G39: 1
A40: 12635837 | B40: 719.4000244 | C40: 0 | D40: 31 | E40: 653.2999878 | F40: 8.470000267 | G40: 0
A41: 13378455 | B41: 822 | C41: 0 | D41: 31 | E41: 649.2999878 | F41: 9.090000153 | G41: 0
A42: 11922830 | B42: 689.2999878 | C42: 0 | D42: 28 | E42: 651.2000122 | F42: 10.18999958 | G42: 0
A43: 12516214 | B43: 622.2999878 | C43: 0 | D43: 31 | E43: 657.0999756 | F43: 11.51000023 | G43: 1
A44: 10812323 | B44: 349.6000061 | C44: 0 | D44: 30 | E44: 666.4000244 | F44: 13.27999973 | G44: 1
A45: 10414660 | B45: 156.6999969 | C45: 13.19999981 | D45: 31 | E45: 671.5 | F45: 14.52000046 | G45: 1
A46: 10990459 | B46: 48.5 | C46: 21.60000038 | D46: 30 | E46: 681.7999878 | F46: 15.35000038 | G46: 0
A47: 12356931 | B47: 0.8000000119 | C47: 129.6999969 | D47: 31 | E47: 691.5 | F47: 15.14999962 | G47: 0
A48: 11520818 | B48: 6.900000095 | C48: 60.09999847 | D48: 31 | E48: 694.9000244 | F48: 14.02999973 | G48: 0
A49: 10995940 | B49: 98.40000153 | C49: 19.70000076 | D49: 30 | E49: 688.5999756 | F49: 12.28999996 | G49: 1
A50: 11346656 | B50: 279.8999939 | C50: 0 | D50: 31 | E50: 682.2000122 | F50: 10.51000023 | G50: 1
A51: 11585051 | B51: 382.3999939 | C51: 0 | D51: 30 | E51: 677 | F51: 9.279999733 | G51: 1
A52: 12438572 | B52: 574.7999878 | C52: 0 | D52: 31 | E52: 676.5999756 | F52: 8.470000267 | G52: 0
A53: 13377585 | B53: 657.2999878 | C53: 0 | D53: 31 | E53: 670.9000244 | F53: 9.090000153 | G53: 0
A54: 12297942 | B54: 573 | C54: 0 | D54: 29 | E54: 668.7000122 | F54: 10.18999958 | G54: 0
A55: 12189029 | B55: 370.1000061 | C55: 0 | D55: 31 | E55: 666 | F55: 11.51000023 | G55: 1
A56: 11164412 | B56: 365.2999878 | C56: 0 | D56: 30 | E56: 667.4000244 | F56: 13.27999973 | G56: 1
A57: 11015358 | B57: 105.8000031 | C57: 18.20000076 | D57: 31 | E57: 672.0999756 | F57: 14.52000046 | G57: 1
A58: 11741791 | B58: 42.09999847 | C58: 61.20000076 | D58: 30 | E58: 678.4000244 | F58: 15.35000038 | G58: 0
A59: 12890028 | B59: 0 | C59: 128.1999969 | D59: 31 | E59: 682 | F59: 15.14999962 | G59: 0
A60: 11776865 | B60: 19.39999962 | C60: 59.09999847 | D60: 31 | E60: 678.5 | F60: 14.02999973 | G60: 0
A61: 10556493 | B61: 125.4000015 | C61: 16.39999962 | D61: 30 | E61: 671.9000244 | F61: 12.28999996 | G61: 1
A62: 11616925 | B62: 279.2000122 | C62: 0 | D62: 31 | E62: 672.7999878 | F62: 10.51000023 | G62: 1
A63: 12440484 | B63: 483.6000061 | C63: 0 | D63: 30 | E63: 676.7999878 | F63: 9.279999733 | G63: 1
A64: 12649911 | B64: 565.5 | C64: 0 | D64: 31 | E64: 682.7000122 | F64: 8.470000267 | G64: 0
A65: 13801260 | B65: 681.2999878 | C65: 0 | D65: 31 | E65: 681.5999756 | F65: 9.090000153 | G65: 0
A66: 12529882 | B66: 697.9000244 | C66: 0 | D66: 28 | E66: 682.5999756 | F66: 10.18999958 | G66: 0
A67: 12709104 | B67: 612 | C67: 0 | D67: 31 | E67: 683.5999756 | F67: 11.51000023 | G67: 1
A68: 11611418 | B68: 384.7000122 | C68: 0 | D68: 30 | E68: 685.4000244 | F68: 13.27999973 | G68: 1
A69: 11147570 | B69: 152.1000061 | C69: 19.60000038 | D69: 31 | E69: 690.2999878 | F69: 14.52000046 | G69: 1
A70: 11517408 | B70: 52.59999847 | C70: 31.29999924 | D70: 30 | E70: 696.7000122 | F70: 15.35000038 | G70: 0
A71: 12829750 | B71: 15.10000038 | C71: 86.5 | D71: 31 | E71: 702.7999878 | F71: 15.14999962 | G71: 0
A72: 11739886 | B72: 32.70000076 | C72: 42.09999847 | D72: 31 | E72: 701.4000244 | F72: 14.02999973 | G72: 0
A73: 11468546 | B73: 128.1000061 | C73: 20.5 | D73: 30 | E73: 698.4000244 | F73: 12.28999996 | G73: 1
A74: 11897269 | B74: 262.1000061 | C74: 0 | D74: 31 | E74: 698.4000244 | F74: 10.51000023 | G74: 1
A75: 12327734 | B75: 517.7000122 | C75: 0 | D75: 30 | E75: 700 | F75: 9.279999733 | G75: 1
A76: 13086730 | B76: 727.2999878 | C76: 0 | D76: 31 | E76: 695.4000244 | F76: 8.470000267 | G76: 0
A77: 14326837 | B77: 865.9000244 | C77: 0 | D77: 31 | E77: 689.4000244 | F77: 9.090000153 | G77: 0
A78: 12655041 | B78: 831.2000122 | C78: 0 | D78: 28 | E78: 682.2999878 | F78: 10.18999958 | G78: 0
A79: 13288297 | B79: 757 | C79: 0 | D79: 31 | E79: 680.2000122 | F79: 11.51000023 | G79: 1
A80: 11360191 | B80: 389.8999939 | C80: 0 | D80: 30 | E80: 679.4000244 | F80: 13.27999973 | G80: 1
A81: 10963756 | B81: 168.8999939 | C81: 9 | D81: 31 | E81: 690 | F81: 14.52000046 | G81: 1
A82: 11648160 | B82: 37.29999924 | C82: 44.29999924 | D82: 30 | E82: 704.4000244 | F82: 15.35000038 | G82: 0
A83: 11766636 | B83: 36.79999924 | C83: 38.79999924 | D83: 31 | E83: 715.0999756 | F83: 15.14999962 | G83: 0
A84: 11308925 | B84: 31.10000038 | C84: 28.5 | D84: 31 | E84: 718.7000122 | F84: 14.02999973 | G84: 0
A85: 11411972 | B85: 117.6999969 | C85: 11.39999962 | D85: 30 | E85: 719.2999878 | F85: 12.28999996 | G85: 1
A86: 11724784 | B86: 257.1000061 | C86: 0 | D86: 31 | E86: 723.5 | F86: 10.51000023 | G86: 1
A87: 12451107 | B87: 529.9000244 | C87: 0 | D87: 30 | E87: 721 | F87: 9.279999733 | G87: 1
A88: 12712680 | B88: 597.5999756 | C88: 0 | D88: 31 | E88: 714.2999878 | F88: 8.470000267 | G88: 0
A89: 13848062 | B89: 800.7999878 | C89: 0 | D89: 31 | E89: 705.7000122 | F89: 9.090000153 | G89: 0
A90: 12995679 | B90: 917.5 | C90: 0 | D90: 28 | E90: 700.0999756 | F90: 10.18999958 | G90: 0
A91: 13073688 | B91: 538 | C91: 0 | D91: 31 | E91: 698.2999878 | F91: 11.51000023 | G91: 1
A92: 11297907 | B92: 359 | C92: 0 | D92: 30 | E92: 697.5999756 | F92: 13.27999973 | G92: 1
A93: 10857342 | B93: 116.1999969 | C93: 29.79999924 | D93: 31 | E93: 704.9000244 | F93: 14.52000046 | G93: 1
A94: 11039303 | B94: 54.70000076 | C94: 15 | D94: 30 | E94: 715.0999756 | F94: 15.35000038 | G94: 0
A95: 11914109 | B95: 19.29999924 | C95: 57.70000076 | D95: 31 | E95: 716.5999756 | F95: 15.14999962 | G95: 0
A96: 11281584 | B96: 29.5 | C96: 47.90000153 | D96: 31 | E96: 713.0999756 | F96: 14.02999973 | G96: 0
A97: 11694075 | B97: 58.20000076 | C97: 45.29999924 | D97: 30 | E97: 710.2000122 | F97: 12.28999996 | G97: 1
A98: 11285079 | B98: 290.1000061 | C98: 0 | D98: 31 | E98: 716.9000244 | F98: 10.51000023 | G98: 1
A99: 11539716 | B99: 391.1000061 | C99: 0 | D99: 30 | E99: 721 | F99: 9.279999733 | G99: 1
A100: 12074225 | B100: 453 | C100: 0 | D100: 31 | E100: 718.7000122 | F100: 8.470000267 | G100: 0
A101: 13060489 | B101: 717.7999878 | C101: 0 | D101: 31 | E101: 715.7999878 | F101: 9.090000153 | G101: 0
A102: 12179908 | B102: 627.4000244 | C102: 0 | D102: 29 | E102: 710.9000244 | F102: 10.18999958 | G102: 0
A103: 12201102 | B103: 479.3999939 | C103: 0 | D103: 31 | E103: 709.4000244 | F103: 11.51000023 | G103: 1
A104: 11377256 | B104: 431.7999878 | C104: 0 | D104: 30 | E104: 707.4000244 | F104: 13.27999973 | G104: 1
A105: 11016861 | B105: 174.6000061 | C105: 18.39999962 | D105: 31 | E105: 712.4000244 | F105: 14.52000046 | G105: 1
A106: 11598866 | B106: 43.90000153 | C106: 24.10000038 | D106: 30 | E106: 714.5999756 | F106: 15.35000038 | G106: 0
A107: 12389229 | B107: 19.29999924 | C107: 101.1999969 | D107: 31 | E107: 712.2999878 | F107: 15.14999962 | G107: 0
A108: 12966123 | B108: 2.099999905 | C108: 100.6999969 | D108: 31 | E108: 707.0999756 | F108: 14.02999973 | G108: 0
A109: 11625065 | B109: 68.80000305 | C109: 16.10000038 | D109: 30 | E109: 702.4000244 | F109: 12.28999996 | G109: 1
A110: 11422724 | B110: 209.3999939 | C110: 1.899999976 | D110: 31 | E110: 702.2999878 | F110: 10.51000023 | G110: 1
A111: 11734355 | B111: 319.7000122 | C111: 0 | D111: 30 | E111: 680.0777588 | F111: 9.279999733 | G111: 1
A112: 12387423 | B112: 639.8157959 | C112: 0 | D112: 31 | E112: 678.4666748 | F112: 8.470000267 | G112: 0

Sheet Output
BP2: =IF(A12<>"",TEXT(B12,"0.00")& "*" & A12 & " + ","") & IF(A13<>"",TEXT(B13,"0.00")& "*" & A13 & " + ","") & IF(A14<>"",TEXT(B14,"0.00")& "*" & A14 & " + ","") & IF(A15<>"",TEXT(B15,"0.00")& "*" & A15 & " + ","") & IF(A16<>"",TEXT(B16,"0.00")& "*" & A16 & " + ","") & IF(A17<>"",TEXT(B17,"0.00")& "*" & A17 & " + ","") & IF(A18<>"",TEXT(B18,"0.00")& "*" & A18 & " + ","") & IF(A19<>"",TEXT(B19,"0.00")& "*" & A19 & " + ","") & IF(A20<>"",TEXT(B20,"0.00")& "*" & A20 & " + ","") & IF(A21<>"",TEXT(B21,"0.00")& "*" & A21 & " + ","") -> 3343.49*HDD + 20476.91*CDD + 210828.67*Number of Days in Month + 2735.91*Employment Stats + -64307.11*Daylight hours +
A3: Equation Parameters | C3: =TEXT(B5,"00.00%") & " of the change in " & TEXT(Input!$A$4,"###") & " can be explained by the change in the " & COUNT(B12:B977) & " independent variables" -> 80.92% of the change in WS can be explained by the change in the 5 independent variables | G3: 95% Confidence/Autocorrelation | L3: ="Actual versus Predicted " & TEXT(Input!A4,"###") -> Actual versus Predicted WS | AE3: Leave Blank | AG3: 1.60382998 | BP3: =IF(A22<>"",TEXT(B22,"0.00")& "*" & A22 & " + ","") & IF(A23<>"",TEXT(B23,"0.00")& "*" & A23 & " + ","") & IF(A24<>"",TEXT(B24,"0.00")& "*" & A24 & " + ","") & IF(A25<>"",TEXT(B25,"0.00")& "*" & A25 & " + ","") & IF(A26<>"",TEXT(B26,"0.00")& "*" & A26 & " + ","") & IF(A45<>"",TEXT(B45,"0.00")& "*" & A45 & " + ","") & IF(A46<>"",TEXT(B46,"0.00")& "*" & A46 & " + ","") & IF(A48<>"",TEXT(B48,"0.00")& "*" & A48 & " + ","") & IF(A49<>"",TEXT(B49,"0.00")& "*" & A49 & " + ","") & IF(#REF!<>"",TEXT(#REF!,"0.00")& "*" &#REF! & " + ","") -> 
A4: R Squared | B4: 0.818122983 | G4: 1.744893909 | H4: Durbin-Watson Statistic | AE4: Linear | AG4: 1.761680007
A5: Adjusted R Squared | B5: 0.8092073798 | G5: =TEXT(AG3,"0.00")&" - " &TEXT(AG4,"0.00") -> 1.60 - 1.76 | H5: No autocorrelation detected | AE5: Exponential | AG5: 1.662709951
A6: Standard Error | B6: 375568.5312 | C6: to +/- on result of Regression Equation | G6: 2.299000025 | H6: Critical F-Statistic - 95% Confidence | AA6: No. Forecast Observations: | AE6: 2nd Ord Poly | AG6: 1.701110005
A7: F - Statistic | B7: 91.76368713 | C7: =IF(B7>M7,"Therefore analysis IS Significant","Therefore analysis IS NOT Significant") -> Therefore analysis IS Significant | G7: 0.8962000012 | H7: Confidence to which analysis holds | AA7: 24 | AE7: 3rd Ord Poly
A9: Multiple Regression Equation | F9: Independent Analysis | I9: Auto Correlation | J9: Multicollinearity | N9: Variable Trend Analysis For Forecasting | Z9: Step 2:
B10: Coefficients | C10: Standard Error | D10: t Stat | E10: p Value | F10: R Squared | G10: Coefficient | H10: Intercept | I10: ="Dl=" & TEXT(AG5,"0.00") & " Du=" &TEXT(AG6,"0.00") -> Dl=1.66 Du=1.70 | J10: Adjusted R-Squared against other Indep | K10: Variables With RSQ at > 90% | L10: Linear | O10: Exponential | R10: 2nd Order Polynominal | V10: 3rd Order Polynomial | AA10: Forecast Method
A11: Intercept | B11: 2971216.152 | C11: 1831401.709 | D11: 1.6223727 | E11: 0.1078106 | I11: DW-Stat | L11: Coef | M11: Int | N11: RSQ | O11: Coef | P11: Int | Q11: RSQ | R11: Coef1 | S11: Coef2 | T11: Int | U11: RSQ | V11: Coef1 | W11: Coef2 | X11: Coef3 | Y11: Int | Z11: RSQ
A12: HDD | B12: 3343.48944 | C12: 252.4221937 | D12: 13.2456239 | E12: 0 | F12: 0.4666286 | G12: 2159.456403 | H12: 11229064 | I12: 0.3420343 | J12: 0.7094728 | L12: -0.43472 | M12: 363.20975 | N12: 0.00251 | O12: 0 | P12: 0 | Q12: 0 | R12: -0.37559 | S12: -0.00053 | T12: 362.08647 | U12: 0.00251 | V12: -10.18695 | W12: 0.21753 | X12: -0.00131 | Y12: 458.8322 | Z12: 0.01576 | AA12: Linear
A13: CDD | B13: 20476.91498 | C13: 1704.735363 | D13: 12.0117852 | E13: 0 | F13: 0.0019221 | G13: -1272.869762 | H13: 11983291 | I13: 0.8719189 | J13: 0.462731 | L13: 0.04674 | M13: 14.68353 | N13: 0.00244 | O13: 0 | P13: 0 | Q13: 0 | R13: 0.20049 | S13: -0.00139 | T13: 11.76328 | U13: 0.00411 | V13: 1.08092 | W13: -0.02095 | X13: 0.00012 | Y13: 3.08168 | Z13: 0.01311 | AA13: Linear
A14: Number of Days in Month | B14: 210828.6653 | C14: 47295.90828 | D14: 4.4576513 | E14: 2.13e-05 | F14: 0.0115254 | G14: 115227.0631 | H14: 8453274 | I14: 2.9882877 | J14: 0.0460363 | L14: 0.00069 | M14: 30.40638 | N14: 0.00072 | O14: 1.00002 | P14: 30.394 | Q14: 0.00075 | R14: -0.00157 | S14: 2e-05 | T14: 30.44927 | U14: 0.00121 | V14: 0.00571 | W14: -0.00014 | X14: 0 | Y14: 30.37743 | Z14: 0.00205 | AA14: Linear
A15: Employment Stats | B15: 2735.91483 | C15: 1360.372082 | D15: 2.0111519 | E15: 0.0469477 | F15: 0.0023591 | G15: 1508.514728 | H15: 10939092 | I15: 0.2082379 | J15: 0.0344918 | L15: 0.77256 | M15: 634.7472 | N15: 0.76396 | O15: 1.00114 | P15: 635.44515 | Q15: 0.76121 | R15: 0.90853 | S15: -0.00122 | T15: 632.1646 | U15: 0.76545 | V15: -1.41707 | W15: 0.05046 | X15: -0.00031 | Y15: 655.09637 | Z15: 0.83729 | AA15: Linear
A16: Daylight hours | B16: -64307.11384 | C16: 28278.55305 | D16: -2.2740596 | E16: 0.0250568 | F16: 0.322966 | G16: -205233.7284 | H16: 14418459 | I16: 0.2757522 | J16: 0.6979001 | L16: -0.00123 | M16: 12.04062 | N16: 0.00026 | O16: 0.99988 | P16: 11.8108 | Q16: 0.00033 | R16: 0.00226 | S16: -3e-05 | T16: 11.9743 | U16: 0.00039 | V16: -0.01586 | W16: 0.00037 | X16: 0 | Y16: 12.153 | Z16: 0.00098 | AA16: Linear

Sheet Forecast
B1: Forecast Output
B2: Coefficients: | C2: 2971216.152 | D2: 3343.48944 | E2: 20476.91498 | F2: 210828.6653 | G2: 2735.91483 | H2: -64307.11384
B3: ="Actual " & Input!A4 -> Actual WS | C3: ="Predicted " &Input!A4 -> Predicted WS | D3: HDD | E3: CDD | F3: Number of Days in Month | G3: Employment Stats | H3: Daylight hours
B4: 13858702 | C4: =SUMPRODUCT(D2:H2,D4:H4)+C2 -> 12980807.58 | D4: 676.7999878 | E4: 0 | F4: 31 | G4: 656.2999878 | H4: 9.090000153
B5: 12869483 | C5: =SUMPRODUCT(D2:H2,D5:H5)+C2 -> 12388866.12 | D5: 651.2000122 | E5: 0 | F5: 29 | G5: 651.2000122 | H5: 10.18999958
B6: 13152556 | C6: =SUMPRODUCT(D2:H2,D6:H6)+C2 -> 12817975.97 | D6: 686.0999756 | E6: 0 | F6: 31 | G6: 642.2999878 | H6: 11.51000023
B7: 11561734 | C7: =SUMPRODUCT(D2:H2,D7:H7)+C2 -> 11195381.2 | D7: 297.8999939 | E7: 0 | F7: 30 | G7: 642.2999878 | H7: 13.27999973
B8: 11069726 | C8: =SUMPRODUCT(D2:H2,D8:H8)+C2 -> 11158126.88 | D8: 243.1000061 | E8: 0.6999999881 | F8: 31 | G8: 642.5 | H8: 14.52000046
B9: 11839202 | C9: =SUMPRODUCT(D2:H2,D9:H9)+C2 -> 11303404.08 | D9: 40.59999847 | E9: 53 | F9: 30 | G9: 648.2000122 | H9: 15.35000038
B10: 12438276 | C10: =SUMPRODUCT(D2:H2,D10:H10)+C2 -> 11898133.11 | D10: 7.599999905 | E10: 75.80000305 | F10: 31 | G10: 653.5 | H10: 15.14999962
B11: 11492121 | C11: =SUMPRODUCT(D2:H2,D11:H11)+C2 -> 11125086.64 | D11: 36.20000076 | E11: 29.5 | F11: 31 | G11: 656.2000122 | H11: 14.02999973
B12: 11764633 | C12: =SUMPRODUCT(D2:H2,D12:H12)+C2 -> 10865498.53 | D12: 93.19999695 | E12: 12 | F12: 30 | G12: 658.7999878 | H12: 12.28999996
B13: 11947093 | C13: =SUMPRODUCT(D2:H2,D13:H13)+C2 -> 11729819.21 | D13: 325.7000122 | E13: 0 | F13: 31 | G13: 661.5 | H13: 10.51000023
B14: 12427893 | C14: =SUMPRODUCT(D2:H2,D14:H14)+C2 -> 12188610.45 | D14: 499.7000122 | E14: 0 | F14: 30 | G14: 664.7000122 | H14: 9.279999733
B15: 13223170 | C15: =SUMPRODUCT(D2:H2,D15:H15)+C2 -> 13094054.32 | D15: 694 | E15: 0 | F15: 31 | G15: 662.0999756 | H15: 8.470000267
B16: 13805270 | C16: =SUMPRODUCT(D2:H2,D16:H16)+C2 -> 13686251.93 | D16: 891.7999878 | E16: 0 | F16: 31 | G16: 651.4000244 | H16: 9.090000153
B17: 12102540 | C17: =SUMPRODUCT(D2:H2,D17:H17)+C2 -> 12140403.99 | D17: 649.5999756 | E17: 0 | F17: 28 | G17: 639.4000244 | H17: 10.18999958
B18: 12624249 | C18: =SUMPRODUCT(D2:H2,D18:H18)+C2 -> 12364837.04 | D18: 562.5999756 | E18: 0 | F18: 31 | G18: 627.5999756 | H18: 11.51000023
B19: 11247397 | C19: =SUMPRODUCT(D2:H2,D19:H19)+C2 -> 11356342.76 | D19: 341.5 | E19: 3.200000048 | F19: 30 | G19: 623.9000244 | H19: 13.27999973
B20: 10393439 | C20: =SUMPRODUCT(D2:H2,D20:H20)+C2 -> 10968541.33 | D20: 192.8000031 | E20: 2.299999952 | F20: 31 | G20: 622.7000122 | H20: 14.52000046
B21: 10939061 | C21: =SUMPRODUCT(D2:H2,D21:H21)+C2 -> 10827930.92 | D21: 75.69999695 | E21: 26.20000076 | F21: 30 | G21: 632.0999756 | H21: 15.35000038
B22: 10702529 | C22: =SUMPRODUCT(D2:H2,D22:H22)+C2 -> 10700522.63 | D22: 37.59999847 | E22: 14.5 | F22: 31 | G22: 637.9000244 | H22: 15.14999962
B23: 11096330 | C23: =SUMPRODUCT(D2:H2,D23:H23)+C2 -> 11598047.95 | D23: 18.20000076 | E23: 57.29999924 | F23: 31 | G23: 643 | H23: 14.02999973
B24: 10929407 | C24: =SUMPRODUCT(D2:H2,D24:H24)+C2 -> 10675280.57 | D24: 88.80000305 | E24: 5.5 | F24: 30 | G24: 643.2999878 | H24: 12.28999996
B25: 11305136 | C25: =SUMPRODUCT(D2:H2,D25:H25)+C2 -> 11695770.93 | D25: 329.1000061 | E25: 0 | F25: 31 | G25: 644.9000244 | H25: 10.51000023
B26: 11503015 | C26: =SUMPRODUCT(D2:H2,D26:H26)+C2 -> 11782004.21 | D26: 396.5 | E26: 0 | F26: 30 | G26: 642.2000122 | H26: 9.279999733
B27: 13245874 | C27: =SUMPRODUCT(D2:H2,D27:H27)+C2 -> 12949212.79 | D27: 669.5 | E27: 0 | F27: 31 | G27: 639.0999756 | H27: 8.470000267
B28: 13204084 | C28: =SUMPRODUCT(D2:H2,D28:H28)+C2 -> 13066818.82 | D28: 721.0999756 | E28: 0 | F28: 31 | G28: 633.5999756 | H28: 9.090000153
B29: 11741623 | C29: =SUMPRODUCT(D2:H2,D29:H29)+C2 -> 12099671.3 | D29: 644.7000122 | E29: 0 | F29: 28 | G29: 630.5 | H29: 10.18999958
B30: 12214133 | C30: =SUMPRODUCT(D2:H2,D30:H30)+C2 -> 12057965.59 | D30: 470.8999939 | E30: 0 | F30: 31 | G30: 627.5 | H30: 11.51000023
B31: 10528793 | C31: =SUMPRODUCT(D2:H2,D31:H31)+C2 -> 11041394.76 | D31: 260.6000061 | E31: 0 | F31: 30 | G31: 631.5999756 | H31: 13.27999973
B32: 10748956 | C32: =SUMPRODUCT(D2:H2,D32:H32)+C2 -> 11242072.94 | D32: 144.6999969 | E32: 21 | F32: 31 | G32: 641.5 | H32: 14.52000046
B33: 11289127 | C33: =SUMPRODUCT(D2:H2,D33:H33)+C2 -> 10900602.1 | D33: 37.70000076 | E33: 32.59999847 | F33: 30 | G33: 657.2000122 | H33: 15.35000038
B34: 12370469 | C34: =SUMPRODUCT(D2:H2,D34:H34)+C2 -> 12570408.23 | D34: 6.699999809 | E34: 106.5999985 | F34: 31 | G34: 669.7999878 | H34: 15.14999962
B35: 11833527 | C35: =SUMPRODUCT(D2:H2,D35:H35)+C2 -> 12237369.21 | D35: 14.19999981 | E35: 85.30000305 | F35: 31 | G35: 672 | H35: 14.02999973
B36: 11142350 | C36: =SUMPRODUCT(D2:H2,D36:H36)+C2 -> 11206613.76 | D36: 122.6999969 | E36: 23 | F36: 30 | G36: 665.0999756 | H36: 12.28999996
B37: 11366088 | C37: =SUMPRODUCT(D2:H2,D37:H37)+C2 -> 11580637.37 | D37: 284.6000061 | E37: 0 | F37: 31 | G37: 657.2000122 | H37: 10.51000023
B38: 12065540 | C38: =SUMPRODUCT(D2:H2,D38:H38)+C2 -> 11909851.43 | D38: 424.1000061 | E38: 0 | F38: 30 | G38: 655.2000122 | H38: 9.279999733
B39: 12635837 | C39: =SUMPRODUCT(D2:H2,D39:H39)+C2 -> 13154903.01 | D39: 719.4000244 | E39: 0 | F39: 31 | G39: 653.2999878 | H39: 8.470000267
B40: 13378455 | C40: =SUMPRODUCT(D2:H2,D40:H40)+C2 -> 13447130.89 | D40: 822 | E40: 0 | F40: 31 | G40: 649.2999878 | H40: 9.090000153
B41: 11922830 | C41: =SUMPRODUCT(D2:H2,D41:H41)+C2 -> 12305424.32 | D41: 689.2999878 | E41: 0 | F41: 28 | G41: 651.2000122 | H41: 10.18999958
B42: 12516214 | C42: =SUMPRODUCT(D2:H2,D42:H42)+C2 -> 12645152.89 | D42: 622.2999878 | E42: 0 | F42: 31 | G42: 657.0999756 | H42: 11.51000023
B43: 10812323 | C43: =SUMPRODUCT(D2:H2,D43:H43)+C2 -> 11434175.29 | D43: 349.6000061 | E43: 0 | F43: 30 | G43: 666.4000244 | H43: 13.27999973
B44: 10414660 | C44: =SUMPRODUCT(D2:H2,D44:H44)+C2 -> 11204552.32 | D44: 156.6999969 | E44: 13.19999981 | F44: 31 | G44: 671.5 | H44: 14.52000046
B45: 10990459 | C45: =SUMPRODUCT(D2:H2,D45:H45)+C2 -> 10778769.2 | D45: 48.5 | E45: 21.60000038 | F45: 30 | G45: 681.7999878 | H45: 15.35000038
B46: 12356931 | C46: =SUMPRODUCT(D2:H2,D46:H46)+C2 -> 13083067.73 | D46: 0.8000000119 | E46: 129.6999969 | F46: 31 | G46: 691.5 | H46: 15.14999962
B47: 11520818 | C47: =SUMPRODUCT(D2:H2,D47:H47)+C2 -> 11759595.91 | D47: 6.900000095 | E47: 60.09999847 | F47: 31 | G47: 694.9000244 | H47: 14.02999973
B48: 10995940 | C48: =SUMPRODUCT(D2:H2,D48:H48)+C2 -> 11122087.18 | D48: 98.40000153 | E48: 19.70000076 | F48: 30 | G48: 688.5999756 | H48: 12.28999996
B49: 11346656 | C49: =SUMPRODUCT(D2:H2,D49:H49)+C2 -> 11633320.8 | D49: 279.8999939 | E49: 0 | F49: 31 | G49: 682.2000122 | H49: 10.51000023
B50: 11585051 | C50: =SUMPRODUCT(D2:H2,D50:H50)+C2 -> 11830070.79 | D50: 382.3999939 | E50: 0 | F50: 30 | G50: 677 | H50: 9.279999733
B51: 12438572 | C51: =SUMPRODUCT(D2:H2,D51:H51)+C2 -> 12735181.1 | D51: 574.7999878 | E51: 0 | F51: 31 | G51: 676.5999756 | H51: 8.470000267
B52: 13377585 | C52: =SUMPRODUCT(D2:H2,D52:H52)+C2 -> 12955554 | D52: 657.2999878 | E52: 0 | F52: 31 | G52: 670.9000244 | H52: 9.090000153
B53: 12297942 | C53: =SUMPRODUCT(D2:H2,D53:H53)+C2 -> 12175283.71 | D53: 573 | E53: 0 | F53: 29 | G53: 668.7000122 | H53: 10.18999958
B54: 12189029 | C54: =SUMPRODUCT(D2:H2,D54:H54)+C2 -> 11826274.62 | D54: 370.1000061 | E54: 0 | F54: 31 | G54: 666 | H54: 11.51000023
B55: 11164412 | C55: =SUMPRODUCT(D2:H2,D55:H55)+C2 -> 11489403.93 | D55: 365.2999878 | E55: 0 | F55: 30 | G55: 667.4000244 | H55: 13.27999973
B56: 11015358 | C56: =SUMPRODUCT(D2:H2,D56:H56)+C2 -> 11138394.81 | D56: 105.8000031 | E56: 18.20000076 | F56: 31 | G56: 672.0999756 | H56: 14.52000046
B57: 11741791 | C57: =SUMPRODUCT(D2:H2,D57:H57)+C2 -> 11558954.69 | D57: 42.09999847 | E57: 61.20000076 | F57: 30 | G57: 678.4000244 | H57: 15.35000038
B58: 12890028 | C58: =SUMPRODUCT(D2:H2,D58:H58)+C2 -> 13023686.38 | D58: 0 | E58: 128.1999969 | F58: 31 | G58: 682 | H58: 15.14999962
B59: 11776865 | C59: =SUMPRODUCT(D2:H2,D59:H59)+C2 -> 11736043.54 | D59: 19.39999962 | E59: 59.09999847 | F59: 31 | G59: 678.5 | H59: 14.02999973
B60: 10556493 | C60: =SUMPRODUCT(D2:H2,D60:H60)+C2 -> 11099097.9 | D60: 125.4000015 | E60: 16.39999962 | F60: 30 | G60: 671.9000244 | H60: 12.28999996
B61: 11616925 | C61: =SUMPRODUCT(D2:H2,D61:H61)+C2 -> 11605262.75 | D61: 279.2000122 | E61: 0 | F61: 31 | G61: 672.7999878 | H61: 10.51000023
B62: 12440484 | C62: =SUMPRODUCT(D2:H2,D62:H62)+C2 -> 12167884.75 | D62: 483.6000061 | E62: 0 | F62: 30 | G62: 676.7999878 | H62: 9.279999733
B63: 12649911 | C63: =SUMPRODUCT(D2:H2,D63:H63)+C2 -> 12720775.87 | D63: 565.5 | E63: 0 | F63: 31 | G63: 682.7000122 | H63: 8.470000267
B64: 13801260 | C64: =SUMPRODUCT(D2:H2,D64:H64)+C2 -> 13065071.9 | D64: 681.2999878 | E64: 0 | F64: 31 | G64: 681.5999756 | H64: 9.090000153
B65: 12529882 | C65: =SUMPRODUCT(D2:H2,D65:H65)+C2 -> 12420086.08 | D65: 697.9000244 | E65: 0 | F65: 28 | G65: 682.5999756 | H65: 10.18999958
B66: 12709104 | C66: =SUMPRODUCT(D2:H2,D66:H66)+C2 -> 12683216.73 | D66: 612 | E66: 0 | F66: 31 | G66: 683.5999756 | H66: 11.51000023
B67: 11611418 | C67: =SUMPRODUCT(D2:H2,D67:H67)+C2 -> 11603514.18 | D67: 384.7000122 | E67: 0 | F67: 30 | G67: 685.4000244 | H67: 13.27999973
B68: 11147570 | C68: =SUMPRODUCT(D2:H2,D68:H68)+C2 -> 11371659.73 | D68: 152.1000061 | E68: 19.60000038 | F68: 31 | G68: 690.2999878 | H68: 14.52000046
B69: 11517408 | C69: =SUMPRODUCT(D2:H2,D69:H69)+C2 -> 11031868.75 | D69: 52.59999847 | E69: 31.29999924 | F69: 30 | G69: 696.7000122 | H69: 15.35000038
B70: 12829750 | C70: =SUMPRODUCT(D2:H2,D70:H70)+C2 -> 12277192.77 | D70: 15.10000038 | E70: 86.5 | F70: 31 | G70: 702.7999878 | H70: 15.14999962
B71: 11739886 | C71: =SUMPRODUCT(D2:H2,D71:H71)+C2 -> 11495056.91 | D71: 32.70000076 | E71: 42.09999847 | F71: 31 | G71: 701.4000244 | H71: 14.02999973
B72: 11468546 | C72: =SUMPRODUCT(D2:H2,D72:H72)+C2 -> 11264582.44 | D72: 128.1000061 | E72: 20.5 | F72: 30 | G72: 698.4000244 | H72: 12.28999996
B73: 11897269 | C73: =SUMPRODUCT(D2:H2,D73:H73)+C2 -> 11618128.58 | D73: 262.1000061 | E73: 0 | F73: 31 | G73: 698.4000244 | H73: 10.51000023
B74: 12327734 | C74: =SUMPRODUCT(D2:H2,D74:H74)+C2 -> 12345371.02 | D74: 517.7000122 | E74: 0 | F74: 30 | G74: 700 | H74: 9.279999733
B75: 13086730 | C75: =SUMPRODUCT(D2:H2,D75:H75)+C2 -> 13296498.57 | D75: 727.2999878 | E75: 0 | F75: 31 | G75: 695.4000244 | H75: 8.470000267
B76: 14326837 | C76: =SUMPRODUCT(D2:H2,D76:H76)+C2 -> 13703620.44 | D76: 865.9000244 | E76: 0 | F76: 31 | G76: 689.4000244 | H76: 9.090000153
B77: 12655041 | C77: =SUMPRODUCT(D2:H2,D77:H77)+C2 -> 12864952.44 | D77: 831.2000122 | E77: 0 | F77: 28 | G77: 682.2999878 | H77: 10.18999958
B78: 13288297 | C78: =SUMPRODUCT(D2:H2,D78:H78)+C2 -> 13158720.69 | D78: 757 | E78: 0 | F78: 31 | G78: 680.2000122 | H78: 11.51000023
B79: 11360191 | C79: =SUMPRODUCT(D2:H2,D79:H79)+C2 -> 11604484.77 | D79: 389.8999939 | E79: 0 | F79: 30 | G79: 679.4000244 | H79: 13.27999973
B80: 10963756 | C80: =SUMPRODUCT(D2:H2,D80:H80)+C2 -> 11209954.27 | D80: 168.8999939 | E80: 9 | F80: 31 | G80: 690 | H80: 14.52000046
B81: 11648160 | C81: =SUMPRODUCT(D2:H2,D81:H81)+C2 -> 11267979.83 | D81: 37.29999924 | E81: 44.29999924 | F81: 30 | G81: 704.4000244 | H81: 15.35000038
B82: 11766636 | C82: =SUMPRODUCT(D2:H2,D82:H82)+C2 -> 11406649.35 | D82: 36.79999924 | E82: 38.79999924 | F82: 31 | G82: 715.0999756 | H82: 15.14999962
B83: 11308925 | C83: =SUMPRODUCT(D2:H2,D83:H83)+C2 -> 11258552.61 | D83: 31.10000038 | E83: 28.5 | F83: 31 | G83: 718.7000122 | H83: 14.02999973
B84: 11411972 | C84: =SUMPRODUCT(D2:H2,D84:H84)+C2 -> 11100650.71 | D84: 117.6999969 | E84: 11.39999962 | F84: 30 | G84: 719.2999878 | H84: 12.28999996
B85: 11724784 | C85: =SUMPRODUCT(D2:H2,D85:H85)+C2 -> 11670082.53 | D85: 257.1000061 | E85: 0 | F85: 31 | G85: 723.5 | H85: 10.51000023
B86: 12451107 | C86: =SUMPRODUCT(D2:H2,D86:H86)+C2 -> 12443615.84 | D86: 529.9000244 | E86: 0 | F86: 30 | G86: 721 | H86: 9.279999733
B87: 12712680 | C87: =SUMPRODUCT(D2:H2,D87:H87)+C2 -> 12914556.64 | D87: 597.5999756 | E87: 0 | F87: 31 | G87: 714.2999878 | H87: 8.470000267
B88: 13848062 | C88: =SUMPRODUCT(D2:H2,D88:H88)+C2 -> 13530554.53 | D88: 800.7999878 | E88: 0 | F88: 31 | G88: 705.7000122 | H88: 9.090000153
B89: 12995679 | C89: =SUMPRODUCT(D2:H2,D89:H89)+C2 -> 13202194.78 | D89: 917.5 | E89: 0 | F89: 28 | G89: 700.0999756 | H89: 10.18999958
B90: 13073688 | C90: =SUMPRODUCT(D2:H2,D90:H90)+C2 -> 12476016.49 | D90: 538 | E90: 0 | F90: 31 | G90: 698.2999878 | H90: 11.51000023
B91: 11297907 | C91: =SUMPRODUCT(D2:H2,D91:H91)+C2 -> 11550964.48 | D91: 359 | E91: 0 | F91: 30 | G91: 697.5999756 | H91: 13.27999973
B92: 10857342 | C92: =SUMPRODUCT(D2:H2,D92:H92)+C2 -> 11500437.4 | D92: 116.1999969 | E92: 29.79999924 | F92: 31 | G92: 704.9000244 | H92: 14.52000046
B93: 11039303 | C93: =SUMPRODUCT(D2:H2,D93:H93)+C2 -> 10755457.12 | D93: 54.70000076 | E93: 15 | F93: 30 | G93: 715.0999756 | H93: 15.35000038
B94: 11914109 | C94: =SUMPRODUCT(D2:H2,D94:H94)+C2 -> 11739255.88 | D94: 19.29999924 | E94: 57.70000076 | F94: 31 | G94: 716.5999756 | H94: 15.14999962
B95: 11281584 | C95: =SUMPRODUCT(D2:H2,D95:H95)+C2 -> 11635133.98 | D95: 29.5 | E95: 47.90000153 | F95: 31 | G95: 713.0999756 | H95: 14.02999973
B96: 11694075 | C96: =SUMPRODUCT(D2:H2,D96:H96)+C2 -> 11570983.75 | D96: 58.20000076 | E96: 45.29999924 | F96: 30 | G96: 710.2000122 | H96: 12.28999996
B97: 11285079 | C97: =SUMPRODUCT(D2:H2,D97:H97)+C2 -> 11762360.71 | D97: 290.1000061 | E97: 0 | F97: 31 | G97: 716.9000244 | H97: 10.51000023
B98: 11539716 | C98: =SUMPRODUCT(D2:H2,D98:H98)+C2 -> 11979539.44 | D98: 391.1000061 | E98: 0 | F98: 30 | G98: 721 | H98: 9.279999733
B99: 12074225 | C99: =SUMPRODUCT(D2:H2,D99:H99)+C2 -> 12443126.24 | D99: 453 | E99: 0 | F99: 31 | G99: 718.7000122 | H99: 8.470000267
B100: 13060489 | C100: =SUMPRODUCT(D2:H2,D100:H100)+C2 -> 13280677.58 | D100: 717.7999878 | E100: 0 | F100: 31 | G100: 715.7999878 | H100: 9.090000153
B101: 12179908 | C101: =SUMPRODUCT(D2:H2,D101:H101)+C2 -> 12472625.26 | D101: 627.4000244 | E101: 0 | F101: 29 | G101: 710.9000244 | H101: 10.18999958
B102: 12201102 | C102: =SUMPRODUCT(D2:H2,D102:H102)+C2 -> 12310456.75 | D102: 479.3999939 | E102: 0 | F102: 31 | G102: 709.4000244 | H102: 11.51000023
B103: 11377256 | C103: =SUMPRODUCT(D2:H2,D103:H103)+C2 -> 11821182.57 | D103: 431.7999878 | E103: 0 | F103: 30 | G103: 707.4000244 | H103: 13.27999973
B104: 11016861 | C104: =SUMPRODUCT(D2:H2,D104:H104)+C2 -> 11482779.75 | D104: 174.6000061 | E104: 18.39999962 | F104: 31 | G104: 712.4000244 | H104: 14.52000046
B105: 11598866 | C105: =SUMPRODUCT(D2:H2,D105:H105)+C2 -> 10904319.41 | D105: 43.90000153 | E105: 24.10000038 | F105: 30 | G105: 714.5999756 | H105: 15.35000038
B106: 12389229 | C106: =SUMPRODUCT(D2:H2,D106:H106)+C2 -> 12618237.2 | D106: 19.29999924 | E106: 101.1999969 | F106: 31 | G106: 712.2999878 | H106: 15.14999962
B107: 12966123 | C107: =SUMPRODUCT(D2:H2,D107:H107)+C2 -> 12608287.9 | D107: 2.099999905 | E107: 100.6999969 | F107: 31 | G107: 707.0999756 | H107: 14.02999973
B108: 11625065 | C108: =SUMPRODUCT(D2:H2,D108:H108)+C2 -> 10987158.75 | D108: 68.80000305 | E108: 16.10000038 | F108: 30 | G108: 702.4000244 | H108: 12.28999996
B109: 11422724 | C109: =SUMPRODUCT(D2:H2,D109:H109)+C2 -> 11491502.75 | D109: 209.3999939 | E109: 1.899999976 | F109: 31 | G109: 702.2999878 | H109: 10.51000023
B110: 11734355 | C110: =SUMPRODUCT(D2:H2,D110:H110)+C2 -> 11628854.55 | D110: 319.7000122 | E110: 0 | F110: 30 | G110: 680.0777588 | H110: 9.279999733
B111: 12387423 | C111: =SUMPRODUCT(D2:H2,D111:H111)+C2 -> 12957667.9 | D111: 639.8157959 | E111: 0 | F111: 31 | G111: 678.4666748 | H111: 8.470000267
C112: =SUMPRODUCT(D2:H2,D112:H112)+C2 -> 13428476.27 | D112: =AVERAGE(D4,D16,D28,D40,D52,D64,D76,D88,D100) -> 759.4222141 | E112: =AVERAGE(E4,E16,E28,E40,E52,E64,E76,E88,E100) -> 0 | F112: =AVERAGE(F4,F16,F28,F40,F52,F64,F76,F88,F100) -> 31 | G112: 718.9562324 | H112: =AVERAGE(H4,H16,H28,H40,H52,H64,H76,H88,H100) -> 9.090000153
C113: =SUMPRODUCT(D2:H2,D113:H113)+C2 -> 12592203.56 | D113: =AVERAGE(D5,D17,D29,D41,D53,D65,D77,D89,D101) -> 697.9777832 | E113: 0 | F113: 28.33333333 | G113: 719.7287924 | H113: 10.18999958
C114: =SUMPRODUCT(D2:H2,D114:H114)+C2 -> 12632009.81 | D114: 566.4888814 | E114: 0 | F114: 31 | G114: 720.5013524 | H114: 11.51000023
C115: =SUMPRODUCT(D2:H2,D115:H115)+C2 -> 11604180.04 | D115: 353.3666653 | E115: 0.3555555609 | F115: 30 | G115: 721.2739124 | H115: 13.27999973
C116: =SUMPRODUCT(D2:H2,D116:H116)+C2 -> 11389899.88 | D116: 161.6555566 | E116: 14.68888886 | F116: 31 | G116: 722.0464724 | H116: 14.52000046
C117: =SUMPRODUCT(D2:H2,D117:H117)+C2 -> 11151152.65 | D117: 48.12222163 | E117: 34.36666658 | F117: 30 | G117: 722.8190324 | H117: 15.35000038
C118: =SUMPRODUCT(D2:H2,D118:H118)+C2 -> 12246917.85 | D118: 15.9111107 | E118: 82.11111026 | F118: 31 | G118: 723.5915924 | H118: 15.14999962
C119: =SUMPRODUCT(D2:H2,D119:H119)+C2 -> 11818666.95 | D119: 21.14444468 | E119: 56.7222218 | F119: 31 | G119: 724.3641524 | H119: 14.02999973
C120: =SUMPRODUCT(D2:H2,D120:H120)+C2 -> 11211044.51 | D120: 100.1444452 | E120: 18.87777774 | F120: 30 | G120: 725.1367124 | H120: 12.28999996
C121: =SUMPRODUCT(D2:H2,D121:H121)+C2 -> 11756522.71 | D121: 279.6888936 | E121: 0.2111111085 | F121: 31 | G121: 725.9092724 | H121: 10.51000023
C122: =SUMPRODUCT(D2:H2,D122:H122)+C2 -> 12152897.16 | D122: 438.3000081 | E122: 0 | F122: 30 | G122: 726.6818324 | H122: 9.279999733
C123: =SUMPRODUCT(D2:H2,D123:H123)+C2 -> 13048070.36 | D123: 626.7684191 | E123: 0 | F123: 31 | G123: 727.4543924 | H123: 8.470000267
C124: =SUMPRODUCT(D2:H2,D124:H124)+C2 -> 13484534.23 | D124: =AVERAGE(D16,D28,D40,D52,D64,D76,D88,D100,D112) -> 768.6024614 | E124: 0 | F124: 31 | G124: 728.2269524 | H124: 9.090000153
C125: =SUMPRODUCT(D2:H2,D125:H125)+C2 -> 12619328.41 | D125: =AVERAGE(D17,D29,D41,D53,D65,D77,D89,D101,D113) -> 703.1753133 | E125: 0 | F125: 28.25925926 | G125: 728.9995124 | H125: 10.18999958
C126: =SUMPRODUCT(D2:H2,D126:H126)+C2 -> 12612938.33 | D126: =AVERAGE(D18,D30,D42,D54,D66,D78,D90,D102,D114) -> 553.1987599 | E126: 0 | F126: 31 | G126: 729.7720724 | H126: 11.51000023
C127: =SUMPRODUCT(D2:H2,D127:H127)+C2 -> 11650958.71 | D127: =AVERAGE(D19,D31,D43,D55,D67,D79,D91,D103,D115) -> 359.5296288 | E127: 0.3950617343 | F127: 30 | G127: 730.5446324 | H127: 13.27999973
C128: =SUMPRODUCT(D2:H2,D128:H128)+C2 -> 11416834.96 | D128: =AVERAGE(D20,D32,D44,D56,D68,D80,D92,D104,D116) -> 152.6061733 | E128: 16.24320985 | F128: 31 | G128: 731.3171924 | H128: 14.52000046
C129: =SUMPRODUCT(D2:H2,D129:H129)+C2 -> 11136916.25 | D129: =AVERAGE(D21,D33,D45,D57,D69,D81,D93,D105,D117) -> 48.9580242 | E129: 32.2962962 | F129: 30 | G129: 732.0897524 | H129: 15.35000038
C130: =SUMPRODUCT(D2:H2,D130:H130)+C2 -> 12289728.43 | D130: =AVERAGE(D22,D34,D46,D58,D70,D82,D94,D106,D118) -> 16.83456745 | E130: 82.8123444 | F130: 31 | G130: 732.8623124 | H130: 15.14999962
C131: =SUMPRODUCT(D2:H2,D131:H131)+C2 -> 11900374.08 | D131: =AVERAGE(D23,D35,D47,D59,D71,D83,D95,D107,D119) -> 19.47160511 | E131: 59.74691311 | F131: 31 | G131: 733.6348724 | H131: 14.02999973
C132: =SUMPRODUCT(D2:H2,D132:H132)+C2 -> 11254636.68 | D132: =AVERAGE(D24,D36,D48,D60,D72,D84,D96,D108,D120) -> 100.9160506 | E132: 19.64197526 | F132: 30 | G132: 734.4074324 | H132: 12.28999996
C133: =SUMPRODUCT(D2:H2,D133:H133)+C2 -> 11765273.85 | D133: =AVERAGE(D25,D37,D49,D61,D73,D85,D97,D109,D121) -> 274.5765471 | E133: 0.2345678983 | F133: 31 | G133: 735.1799924 | H133: 10.51000023
C134: =SUMPRODUCT(D2:H2,D134:H134)+C2 -> 12155451.03 | D134: =AVERAGE(D26,D38,D50,D62,D74,D86,D98,D110,D122) -> 431.4777855 | E134: 0 | F134: 30 | G134: 735.9525524 | H134: 9.279999733
C135: =SUMPRODUCT(D2:H2,D135:H135)+C2 -> 13048457.8 | D135: =AVERAGE(D27,D39,D51,D63,D75,D87,D99,D111,D123) -> 619.2982434 | E135: 0 | F135: 31 | G135: 736.7251124 | H135: 8.470000267

Sheet DW (hidden)
A1: LOWER | B1: 2 | C1: 3 | D1: 4 | E1: 5 | F1: 6 | G1: 7 | H1: 8 | I1: 9 | J1: 10 | K1: 11 | L1: 12 | M1: 13 | N1: 14 | O1: 15 | P1: 16 | Q1: 17 | R1: 18 | S1: 19 | T1: 20 | U1: 21 | W1: UPPER | X1: 2 | Y1: 3 | Z1: 4 | AA1: 5 | AB1: 6 | AC1: 7 | AD1: 8 | AE1: 9 | AF1: 10 | AG1: 11 | AH1: 12 | AI1: 13 | AJ1: 14 | AK1: 15 | AL1: 16 | AM1: 17 | AN1: 18 | AO1: 19 | AP1: 20 | AQ1: 21
A2: 5 | B2: 0.61018 | C2: 0.46723 | D2: 0.36744 | E2: 0.29571 | F2: 0.24269 | G2: 0.20253 | H2: 0.17144 | I2: 0.14693 | J2: 0.12726 | K2: 0.11127 | L2: 0.09809 | M2: 0.08711 | N2: 0.07786 | O2: 0.07001 | P2: 0.06327 | Q2: 0.05747 | R2: 0.05242 | S2: 0.04801 | T2: 0.04413 | U2: 0.0407 | W2: 5 | X2: 1.31988 | Y2: 1.69926 | Z2: 2.12816 | AA2: 2.5881 | AB2: 2.29593 | AC2: 2.57158 | AD2: 2.84769 | AE2: 3.11121 | AF2: 3.36038 | AG2: 2.97399 | AH2: 3.1593 | AI2: 3.33481 | AJ2: 3.49566 | AK2: 3.64241 | AL2: 3.327 | AM2: 3.45402 | AN2: 3.57167 | AO2: 3.67769 | AP2: 3.77297 | AQ2: 3.52786
A3: 10 | B3: 0.87913 | C3: 0.69715 | D3: 0.52534 | E3: 0.37602 | F3: 0.24269 | G3: 0.20253 | H3: 0.17144 | I3: 0.14693 | J3: 0.12726 | K3: 0.11127 | L3: 0.09809 | M3: 0.08711 | N3: 0.07786 | O3: 0.07001 | P3: 0.06327 | Q3: 0.05747 | R3: 0.05242 | S3: 0.04801 | T3: 0.04413 | U3: 0.0407 | W3: 10 | X3: 1.31971 | Y3: 1.55066 | Z3: 1.77882 | AA3: 2.02955 | AB3: 2.29593 | AC3: 2.57158 | AD3: 2.84769 | AE3: 3.11121 | AF3: 3.36038 | AG3: 2.97399 | AH3: 3.1593 | AI3: 3.33481 | AJ3: 3.49566 | AK3: 3.64241 | AL3: 3.327 | AM3: 3.45402 | AN3: 3.57167 | AO3: 3.67769 | AP3: 3.77297 | AQ3: 3.52786
A4: 15 | B4: 1.07697 | C4: 0.94554 | D4: 0.81396 | E4: 0.68519 | F4: 0.56197 | G4: 0.44707 | H4: 0.3429 | I4: 0.2509 | J4: 0.17531 | K4: 0.11127 | L4: 0.09809 | M4: 0.08711 | N4: 0.07786 | O4: 0.07001 | P4: 0.06327 | Q4: 0.05747 | R4: 0.05242 | S4: 0.04801 | T4: 0.04413 | U4: 0.0407 | W4: 15 | X4: 1.36054 | Y4: 1.53525 | Z4: 1.68509 | AA4: 1.84815 | AB4: 2.02262 | AC4: 2.20614 | AD4: 2.39602 | AE4: 2.58939 | AF4: 2.78312 | AG4: 2.97399 | AH4: 3.1593 | AI4: 3.33481 | AJ4: 3.49566 | AK4: 3.64241 | AL4: 3.327 | AM4: 3.45402 | AN4: 3.57167 | AO4: 3.67769 | AP4: 3.77297 | AQ4: 3.52786
A5: 20 | B5: 1.20149 | C5: 1.1004 | D5: 0.99755 | E5: 0.89425 | F5: 0.79179 | G5: 0.69146 | H5: 0.59454 | I5: 0.5022 | J5: 0.41559 | K5: 0.33571 | L5: 0.26349 | M5: 0.19978 | N5: 0.14472 | O5: 0.10024 | P5: 0.06327 | Q5: 0.05747 | R5: 0.05242 | S5: 0.04801 | T5: 0.04413 | U5: 0.0407 | W5: 20 | X5: 1.41073 | Y5: 1.53668 | Z5: 1.65649 | AA5: 1.77526 | AB5: 1.90184 | AC5: 2.03522 | AD5: 2.17427 | AE5: 2.31774 | AF5: 2.46431 | AG5: 2.6126 | AH5: 2.76111 | AI5: 2.90835 | AJ5: 3.05282 | AK5: 3.19285 | AL5: 3.327 | AM5: 3.45402 | AN5: 3.57167 | AO5: 3.67769 | AP5: 3.77297 | AQ5: 3.52786
A6: 25 | B6: 1.28791 | C6: 1.20625 | D6: 1.12276 | E6: 1.03811 | F6: 0.95297 | G6: 0.86803 | H6: 0.784 | I6: 0.70154 | J6: 0.62133 | K6: 0.54401 | L6: 0.47019 | M6: 0.40046 | N6: 0.33536 | O6: 0.27536 | P6: 0.2209 | Q6: 0.17231 | R6: 0.12995 | S6: 0.09371 | T6: 0.06465 | U6: 0.0407 | W6: 25 | X6: 1.45371 | Y6: 1.54954 | Z6: 1.64987 | AA6: 1.7426 | AB6: 1.84088 | AC6: 1.9442 | AD6: 2.05196 | AE6: 2.16358 | AF6: 2.27837 | AG6: 2.39562 | AH6: 2.51459 | AI6: 2.63447 | AJ6: 2.75449 | AK6: 2.87381 | AL6: 2.9916 | AM6: 3.107 | AN6: 3.21917 | AO6: 3.32728 | AP6: 3.43042 | AQ6: 3.52786
A7: 30 | B7: 1.35204 | C7: 1.28373 | D7: 1.2138 | E7: 1.14262 | F7: 1.0706 | G7: 0.99815 | H7: 0.92564 | I7: 0.85351 | J7: 0.78217 | K7: 0.71202 | L7: 0.64345 | M7: 0.57685 | N7: 0.51259 | O7: 0.45105 | P7: 0.39255 | Q7: 0.3374 | R7: 0.2859 | S7: 0.2383 | T7: 0.19485 | U7: 0.15572 | W7: 30 | X7: 1.48936 | Y7: 1.56661 | Z7: 1.64981 | AA7: 1.7277 | AB7: 1.80758 | AC7: 1.89129 | AD7: 1.97849 | AE7: 2.06882 | AF7: 2.1619 | AG7: 2.25735 | AH7: 2.35473 | AI7: 2.45359 | AJ7: 2.55348 | AK7: 2.65392 | AL7: 2.75442 | AM7: 2.85449 | AN7: 2.95361 | AO7: 3.05127 | AP7: 3.14697 | AQ7: 3.2402
A8: 35 | B8: 1.40194 | C8: 1.34332 | D8: 1.2833 | E8: 1.22214 | F8: 1.16007 | G8: 1.09735 | H8: 1.03424 | I8: 0.97099 | J8: 0.90788 | K8: 0.84516 | L8: 0.78311 | M8: 0.72197 | N8: 0.662 | O8: 0.60346 | P8: 0.54659 | Q8: 0.49162 | R8: 0.43878 | S8: 0.38829 | T8: 0.34034 | U8: 0.29513 | W8: 35 | X8: 1.51914 | Y8: 1.58382 | Z8: 1.65282 | AA8: 1.72152 | AB8: 1.78863 | AC8: 1.8587 | AD8: 1.93153 | AE8: 2.00692 | AF8: 2.0846 | AG8: 2.16437 | AH8: 2.24594 | AI8: 2.32904 | AJ8: 2.4134 | AK8: 2.49872 | AL8: 2.58469 | AM8: 2.671 | AN8: 2.75733 | AO8: 2.84336 | AP8: 2.92876 | AQ8: 3.0132
A9: 40 | B9: 1.44214 | C9: 1.39083 | D9: 1.33835 | E9: 1.28484 | F9: 1.23047 | G9: 1.17541 | H9: 1.11983 | I9: 1.06391 | J9: 1.00782 | K9: 0.95174 | L9: 0.89585 | M9: 0.84035 | N9: 0.78539 | O9: 0.73115 | P9: 0.67782 | Q9: 0.62556 | R9: 0.57454 | S9: 0.52492 | T9: 0.47687 | U9: 0.43054 | W9: 40 | X9: 1.54436 | Y9: 1.59999 | Z9: 1.65889 | AA9: 1.71996 | AB9: 1.77772 | AC9: 1.83784 | AD9: 1.90017 | AE9: 1.9646 | AF9: 2.03095 | AG9: 2.09907 | AH9: 2.16881 | AI9: 2.23997 | AJ9: 2.31237 | AK9: 2.38581 | AL9: 2.46011 | AM9: 2.53505 | AN9: 2.61043 | AO9: 2.68601 | AP9: 2.76161 | AQ9: 2.83698
A10: 45 | B10: 1.47538 | C10: 1.4298 | D10: 1.3832 | E10: 1.33571 | F10: 1.28744 | G10: 1.23849 | H10: 1.18899 | I10: 1.13907 | J10: 1.08886 | K10: 1.03846 | L10: 0.98802 | M10: 0.93765 | N10: 0.8875 | O10: 0.83769 | P10: 0.78833 | Q10: 0.73955 | R10: 0.69149 | S10: 0.64427 | T10: 0.59801 | U10: 0.55282 | W10: 45 | X10: 1.56602 | Y10: 1.61482 | Z10: 1.66618 | AA10: 1.71999 | AB10: 1.77159 | AC10: 1.82415 | AD10: 1.87852 | AE10: 1.93463 | AF10: 1.99236 | AG10: 2.0516 | AH10: 2.11224 | AI10: 2.17415 | AJ10: 2.23723 | AK10: 2.30131 | AL10: 2.36628 | AM10: 2.43199 | AN10: 2.49829 | AO10: 2.56505 | AP10: 2.63211 | AQ10: 2.6993
A11: 50 | B11: 1.50345 | C11: 1.46246 | D11: 1.42059 | E11: 1.37793 | F11: 1.33457 | G11: 1.29059 | H11: 1.24607 | I11: 1.2011 | J11: 1.15579 | K11: 1.11021 | L11: 1.06445 | M11: 1.01862 | N11: 0.9728 | O11: 0.92709 | P11: 0.88159 | Q11: 0.83638 | R11: 0.79156 | S11: 0.74723 | T11: 0.70348 | U11: 0.6604 | W11: 50 | X11: 1.58486 | Y11: 1.62833 | Z11: 1.67385 | AA11: 1.72135 | AB11: 1.76844 | AC11: 1.81508 | AD11: 1.86324 | AE11: 1.91283 | AF11: 1.96381 | AG11: 2.01609 | AH11: 2.06959 | AI11: 2.1242 | AJ11: 2.17987 | AK11: 2.23647 | AL11: 2.29392 | AM11: 2.35213 | AN11: 2.41097 | AO11: 2.47036 | AP11: 2.53019 | AQ11: 2.59033
A12: 55 | B12: 1.52755 | C12: 1.49031 | D12: 1.45232 | E12: 1.41362 | F12: 1.37431 | G12: 1.33442 | H12: 1.29403 | I12: 1.25319 | J12: 1.21199 | K12: 1.17049 | L12: 1.12875 | M12: 1.08685 | N12: 1.04485 | O12: 1.00284 | P12: 0.96087 | Q12: 0.91902 | R12: 0.87736 | S12: 0.83597 | T12: 0.79492 | U12: 0.75427 | W12: 55 | X12: 1.60144 | Y12: 1.64062 | Z12: 1.68149 | AA12: 1.72399 | AB12: 1.7672 | AC12: 1.80908 | AD12: 1.85226 | AE12: 1.89665 | AF12: 1.94223 | AG12: 1.98893 | AH12: 2.03668 | AI12: 2.08543 | AJ12: 2.1351 | AK12: 2.18564 | AL12: 2.23698 | AM12: 2.28902 | AN12: 2.34171 | AO12: 2.39495 | AP12: 2.44869 | AQ12: 2.50283
A13: 60 | B13: 1.54853 | C13: 1.51442 | D13: 1.47965 | E13: 1.44427 | F13: 1.40832 | G13: 1.37186 | H13: 1.33493 | I13: 1.29758 | J13: 1.25987 | K13: 1.22183 | L13: 1.18354 | M13: 1.14505 | N13: 1.1064 | O13: 1.06764 | P13: 1.02885 | Q13: 0.99007 | R13: 0.95135 | S13: 0.91276 | T13: 0.87435 | U13: 0.83616 | W13: 60 | X13: 1.61617 | Y13: 1.65184 | Z13: 1.68891 | AA13: 1.72735 | AB13: 1.76708 | AC13: 1.8052 | AD13: 1.84429 | AE13: 1.88444 | AF13: 1.92561 | AG13: 1.96775 | AH13: 2.01081 | AI13: 2.05475 | AJ13: 2.09952 | AK13: 2.14507 | AL13: 2.19134 | AM13: 2.23829 | AN13: 2.28584 | AO13: 2.33395 | AP13: 2.38255 | AQ13: 2.43159
A14: 65 | B14: 1.56699 | C14: 1.53553 | D14: 1.50349 | E14: 1.47092 | F14: 1.43782 | G14: 1.40426 | H14: 1.37027 | I14: 1.33589 | J14: 1.30115 | K14: 1.26611 | L14: 1.2308 | M14: 1.19525 | N14: 1.15952 | O14: 1.12364 | P14: 1.08767 | Q14: 1.05165 | R14: 1.0156 | S14: 0.9796 | T14: 0.94367 | U14: 0.90785 | W14: 65 | X14: 1.62936 | Y14: 1.6621 | Z14: 1.69602 | AA14: 1.7311 | AB14: 1.76731 | AC14: 1.80279 | AD14: 1.83849 | AE14: 1.87512 | AF14: 1.91262 | AG14: 1.95098 | AH14: 1.99014 | AI14: 2.03009 | AJ14: 2.07078 | AK14: 2.11216 | AL14: 2.15421 | AM14: 2.19688 | AN14: 2.24012 | AO14: 2.28388 | AP14: 2.32813 | AQ14: 2.37281
A15: 70 | B15: 1.58341 | C15: 1.55422 | D15: 1.52452 | E15: 1.49434 | F15: 1.46369 | G15: 1.43262 | H15: 1.40115 | I15: 1.36932 | J15: 1.33716 | K15: 1.30469 | L15: 1.27196 | M15: 1.23899 | N15: 1.20582 | O15: 1.17249 | P15: 1.13902 | Q15: 1.10544 | R15: 1.07182 | S15: 1.03816 | T15: 1.00451 | U15: 0.97091 | W15: 70 | X15: 1.64127 | Y15: 1.67152 | Z15: 1.70278 | AA15: 1.73505 | AB15: 1.76827 | AC15: 1.80144 | AD15: 1.83429 | AE15: 1.86793 | AF15: 1.90235 | AG15: 1.93752 | AH15: 1.97341 | AI15: 2.01 | AJ15: 2.04724 | AK15: 2.08511 | AL15: 2.12359 | AM15: 2.16263 | AN15: 2.2022 | AO15: 2.24227 | AP15: 2.2828 | AQ15: 2.32375
A16: 75 | B16: 1.59813 | C16: 1.57091 | D16: 1.54323 | E16: 1.51511 | F16: 1.48659 | G16: 1.45767 | H16: 1.4284 | I16: 1.39877 | J16: 1.36884 | K16: 1.33863 | L16: 1.30815 | M16: 1.27744 | N16: 1.24652 | O16: 1.21542 | P16: 1.18418 | Q16: 1.15281 | R16: 1.12135 | S16: 1.08982 | T16: 1.05825 | U16: 1.02668 | W16: 75 | X16: 1.65209 | Y16: 1.6802 | Z16: 1.7092 | AA16: 1.73904 | AB16: 1.76975 | AC16: 1.80086 | AD16: 1.83126 | AE16: 1.86237 | AF16: 1.89416 | AG16: 1.92661 | AH16: 1.9597 | AI16: 1.99342 | AJ16: 2.02773 | AK16: 2.06261 | AL16: 2.09804 | AM16: 2.13398 | AN16: 2.17041 | AO16: 2.2073 | AP16: 2.24464 | AQ16: 2.28237
A17: 80 | B17: 1.61143 | C17: 1.58592 | D17: 1.56001 | E17: 1.5337 | F17: 1.50703 | G17: 1.47999 | H17: 1.45262 | I17: 1.42495 | J17: 1.39698 | K17: 1.36873 | L17: 1.34024 | M17: 1.31151 | N17: 1.28259 | O17: 1.25348 | P17: 1.22422 | Q17: 1.19481 | R17: 1.16529 | S17: 1.13568 | T17: 1.106 | U17: 1.07628 | W17: 80 | X17: 1.66197 | Y17: 1.68823 | Z17: 1.71526 | AA17: 1.74304 | AB17: 1.77156 | AC17: 1.80079 | AD17: 1.82912 | AE17: 1.85804 | AF17: 1.88756 | AG17: 1.91768 | AH17: 1.94837 | AI17: 1.97962 | AJ17: 2.0114 | AK17: 2.0437 | AL17: 2.07649 | AM17: 2.10976 | AN17: 2.14348 | AO17: 2.17762 | AP17: 2.21218 | AQ17: 2.24712
A18: 85 | B18: 1.6235 | C18: 1.59952 | D18: 1.57516 | E18: 1.55045 | F18: 1.5254 | G18: 1.50003 | H18: 1.47434 | I18: 1.44837 | J18: 1.42212 | K18: 1.39562 | L18: 1.36889 | M18: 1.34194 | N18: 1.31477 | O18: 1.28744 | P18: 1.25993 | Q18: 1.23229 | R18: 1.20451 | S18: 1.17664 | T18: 1.14868 | U18: 1.12064 | W18: 85 | X18: 1.67105 | Y18: 1.69568 | Z18: 1.721 | AA18: 1.74697 | AB18: 1.77361 | AC18: 1.80089 | AD18: 1.82768 | AE18: 1.85469 | AF18: 1.88223 | AG18: 1.91032 | AH18: 1.93892 | AI18: 1.96802 | AJ18: 1.9976 | AK18: 2.02766 | AL18: 2.05816 | AM18: 2.0891 | AN18: 2.12046 | AO18: 2.15221 | AP18: 2.18434 | AQ18: 2.21683
A19: 90 | B19: 1.63454 | C19: 1.6119 | D19: 1.58893 | E19: 1.56564 | F19: 1.54202 | G19: 1.51812 | H19: 1.49393 | I19: 1.46947 | J19: 1.44476 | K19: 1.41982 | L19: 1.39464 | M19: 1.36926 | N19: 1.34368 | O19: 1.31792 | P19: 1.292 | Q19: 1.26594 | R19: 1.23974 | S19: 1.21344 | T19: 1.18703 | U19: 1.16053 | W19: 90 | X19: 1.67942 | Y19: 1.70262 | Z19: 1.72642 | AA19: 1.75082 | AB19: 1.7758 | AC19: 1.80135 | AD19: 1.82675 | AE19: 1.85209 | AF19: 1.87791 | AG19: 1.90421 | AH19: 1.93097 | AI19: 1.9582 | AJ19: 1.98586 | AK19: 2.01394 | AL19: 2.04244 | AM19: 2.07134 | AN19: 2.10062 | AO19: 2.13027 | AP19: 2.16027 | AQ19: 2.19061
A20: 95 | B20: 1.64469 | C20: 1.62325 | D20: 1.60152 | E20: 1.57948 | F20: 1.55715 | G20: 1.53456 | H20: 1.51171 | I20: 1.48861 | J20: 1.46527 | K20: 1.44171 | L20: 1.41793 | M20: 1.39395 | N20: 1.3698 | O20: 1.34546 | P20: 1.32096 | Q20: 1.29632 | R20: 1.27155 | S20: 1.24666 | T20: 1.22166 | U20: 1.19657 | W20: 95 | X20: 1.68717 | Y20: 1.7091 | Z20: 1.73156 | AA20: 1.75455 | AB20: 1.77807 | AC20: 1.8021 | AD20: 1.82625 | AE20: 1.8501 | AF20: 1.87439 | AG20: 1.89911 | AH20: 1.92426 | AI20: 1.94982 | AJ20: 1.97578 | AK20: 2.00213 | AL20: 2.02886 | AM20: 2.05596 | AN20: 2.08341 | AO20: 2.1112 | AP20: 2.13931 | AQ20: 2.16774
A21: 100 | B21: 1.65404 | C21: 1.63369 | D21: 1.61306 | E21: 1.59216 | F21: 1.571 | G21: 1.54958 | H21: 1.52793 | I21: 1.50604 | J21: 1.48394 | K21: 1.46162 | L21: 1.4391 | M21: 1.41639 | N21: 1.3935 | O21: 1.37045 | P21: 1.34724 | Q21: 1.3239 | R21: 1.30041 | S21: 1.2768 | T21: 1.2531 | U21: 1.22928 | W21: 100 | X21: 1.69439 | Y21: 1.71517 | Z21: 1.73643 | AA21: 1.75818 | AB21: 1.78039 | AC21: 1.80306 | AD21: 1.82607 | AE21: 1.84859 | AF21: 1.87152 | AG21: 1.89484 | AH21: 1.91855 | AI21: 1.94263 | AJ21: 1.96709 | AK21: 1.9919 | AL21: 2.01706 | AM21: 2.04255 | AN21: 2.06836 | AO21: 2.0945 | AP21: 2.12095 | AQ21: 2.14768
A22: 105 | B22: 1.66271 | C22: 1.64334 | D22: 1.62371 | E22: 1.60383 | F22: 1.58372 | G22: 1.56336 | H22: 1.54279 | I22: 1.522 | J22: 1.50101 | K22: 1.47981 | L22: 1.45843 | M22: 1.43687 | N22: 1.41514 | O22: 1.39325 | P22: 1.3712 | Q22: 1.34903 | R22: 1.32672 | S22: 1.30428 | T22: 1.28174 | U22: 1.2591 | W22: 105 | X22: 1.70111 | Y22: 1.72087 | Z22: 1.74106 | AA22: 1.76168 | AB22: 1.78273 | AC22: 1.80419 | AD22: 1.82606 | AE22: 1.84749 | AF22: 1.86919 | AG22: 1.89126 | AH22: 1.91368 | AI22: 1.93644 | AJ22: 1.95954 | AK22: 1.98298 | AL22: 2.00672 | AM22: 2.03079 | AN22: 2.05515 | AO22: 2.07981 | AP22: 2.10475 | AQ22: 2.12997
A23: 110 | B23: 1.67076 | C23: 1.65228 | D23: 1.63357 | E23: 1.61462 | F23: 1.59545 | G23: 1.57606 | H23: 1.55647 | I23: 1.53667 | J23: 1.51668 | K23: 1.49651 | L23: 1.47617 | M23: 1.45564 | N23: 1.43496 | O23: 1.41412 | P23: 1.39315 | Q23: 1.37203 | R23: 1.35079 | S23: 1.32943 | T23: 1.30796 | U23: 1.28639 | W23: 110 | X23: 1.70741 | Y23: 1.72623 | Z23: 1.74545 | AA23: 1.76506 | AB23: 1.78506 | AC23: 1.80543 | AD23: 1.82618 | AE23: 1.84669 | AF23: 1.8673 | AG23: 1.88824 | AH23: 1.9095 | AI23: 1.93108 | AJ23: 1.95297 | AK23: 1.97516 | AL23: 1.99765 | AM23: 2.02042 | AN23: 2.04348 | AO23: 2.06681 | AP23: 2.0904 | AQ23: 2.11426
A24: 115 | B24: 1.67828 | C24: 1.66061 | D24: 1.64272 | E24: 1.62462 | F24: 1.60632 | G24: 1.58781 | H24: 1.56911 | I24: 1.55022 | J24: 1.53115 | K24: 1.5119 | L24: 1.4925 | M24: 1.47293 | N24: 1.4532 | O24: 1.43333 | P24: 1.41332 | Q24: 1.39318 | R24: 1.37291 | S24: 1.35254 | T24: 1.33205 | U24: 1.31146 | W24: 115 | X24: 1.71333 | Y24: 1.73129 | Z24: 1.74963 | AA24: 1.76832 | AB24: 1.78737 | AC24: 1.80676 | AD24: 1.8265 | AE24: 1.84616 | AF24: 1.86577 | AG24: 1.88569 | AH24: 1.90591 | AI24: 1.92641 | AJ24: 1.94721 | AK24: 1.96828 | AL24: 1.98963 | AM24: 2.01124 | AN24: 2.03312 | AO24: 2.05525 | AP24: 2.07763 | AQ24: 2.10024
A25: 120 | B25: 1.68531 | C25: 1.66839 | D25: 1.65126 | E25: 1.63394 | F25: 1.61642 | G25: 1.59872 | H25: 1.58083 | I25: 1.56276 | J25: 1.54454 | K25: 1.52615 | L25: 1.50759 | M25: 1.48889 | N25: 1.47004 | O25: 1.45106 | P25: 1.43193 | Q25: 1.41269 | R25: 1.39332 | S25: 1.37385 | T25: 1.35425 | U25: 1.33457 | W25: 120 | X25: 1.71889 | Y25: 1.73608 | Z25: 1.75361 | AA25: 1.77146 | AB25: 1.78964 | AC25: 1.80815 | AD25: 1.82696 | AE25: 1.84584 | AF25: 1.86455 | AG25: 1.88354 | AH25: 1.90281 | AI25: 1.92234 | AJ25: 1.94215 | AK25: 1.96221 | AL25: 1.98252 | AM25: 2.00308 | AN25: 2.02388 | AO25: 2.04493 | AP25: 2.0662 | AQ25: 2.0877
A26: 125 | B26: 1.69191 | C26: 1.67567 | D26: 1.65924 | E26: 1.64263 | F26: 1.62584 | G26: 1.60887 | H26: 1.59173 | I26: 1.57443 | J26: 1.55697 | K26: 1.53936 | L26: 1.5216 | M26: 1.50369 | N26: 1.48565 | O26: 1.46747 | P26: 1.44916 | Q26: 1.43074 | R26: 1.4122 | S26: 1.39355 | T26: 1.3748 | U26: 1.35595 | W26: 125 | X26: 1.72413 | Y26: 1.74061 | Z26: 1.7574 | AA26: 1.7745 | AB26: 1.79189 | AC26: 1.80958 | AD26: 1.82755 | AE26: 1.84571 | AF26: 1.86359 | AG26: 1.88173 | AH26: 1.90013 | AI26: 1.91878 | AJ26: 1.93768 | AK26: 1.95682 | AL26: 1.97619 | AM26: 1.99579 | AN26: 2.01562 | AO26: 2.03568 | AP26: 2.05594 | AQ26: 2.07642
A27: 130 | B27: 1.69811 | C27: 1.6825 | D27: 1.66672 | E27: 1.65076 | F27: 1.63464 | G27: 1.61836 | H27: 1.60191 | I27: 1.58531 | J27: 1.56856 | K27: 1.55166 | L27: 1.53462 | M27: 1.51745 | N27: 1.50015 | O27: 1.48272 | P27: 1.46516 | Q27: 1.4475 | R27: 1.42972 | S27: 1.41184 | T27: 1.39386 | U27: 1.37577 | W27: 130 | X27: 1.72909 | Y27: 1.74492 | Z27: 1.76103 | AA27: 1.77743 | AB27: 1.79409 | AC27: 1.81103 | AD27: 1.82823 | AE27: 1.84569 | AF27: 1.86285 | AG27: 1.88021 | AH27: 1.89782 | AI27: 1.91565 | AJ27: 1.93372 | AK27: 1.95201 | AL27: 1.97053 | AM27: 1.98925 | AN27: 2.0082 | AO27: 2.02734 | AP27: 2.04669 | AQ27: 2.06623
A28: 135 | B28: 1.70397 | C28: 1.68894 | D28: 1.67375 | E28: 1.6584 | F28: 1.6429 | G28: 1.62723 | H28: 1.61142 | I28: 1.59547 | J28: 1.57937 | K28: 1.56315 | L28: 1.54677 | M28: 1.53028 | N28: 1.51367 | O28: 1.49692 | P28: 1.48007 | Q28: 1.4631 | R28: 1.44604 | S28: 1.42885 | T28: 1.41158 | U28: 1.39422 | W28: 135 | X28: 1.73379 | Y28: 1.74902 | Z28: 1.7645 | AA28: 1.78024 | AB28: 1.79624 | AC28: 1.8125 | AD28: 1.82899 | AE28: 1.84573 | AF28: 1.86228 | AG28: 1.87893 | AH28: 1.89581 | AI28: 1.91291 | AJ28: 1.93022 | AK28: 1.94773 | AL28: 1.96545 | AM28: 1.98337 | AN28: 2.0015 | AO28: 2.01981 | AP28: 2.03832 | AQ28: 2.05701
A29: 140 | B29: 1.7095 | C29: 1.69501 | D29: 1.68038 | E29: 1.66559 | F29: 1.65066 | G29: 1.63557 | H29: 1.62036 | I29: 1.605 | J29: 1.58951 | K29: 1.57389 | L29: 1.55815 | M29: 1.54228 | N29: 1.52629 | O29: 1.5102 | P29: 1.49399 | Q29: 1.47767 | R29: 1.46125 | S29: 1.44473 | T29: 1.42813 | U29: 1.41143 | W29: 140 | X29: 1.73824 | Y29: 1.75291 | Z29: 1.76782 | AA29: 1.78297 | AB29: 1.79836 | AC29: 1.81397 | AD29: 1.82981 | AE29: 1.84589 | AF29: 1.86188 | AG29: 1.87787 | AH29: 1.89408 | AI29: 1.91048 | AJ29: 1.92709 | AK29: 1.94389 | AL29: 1.96089 | AM29: 1.97808 | AN29: 1.99544 | AO29: 2.01299 | AP29: 2.03073 | AQ29: 2.04864
A30: 145 | B30: 1.71473 | C30: 1.70075 | D30: 1.68663 | E30: 1.67236 | F30: 1.65796 | G30: 1.64343 | H30: 1.62875 | I30: 1.61395 | J30: 1.59902 | K30: 1.58398 | L30: 1.56881 | M30: 1.55352 | N30: 1.53813 | O30: 1.52263 | P30: 1.50702 | Q30: 1.49131 | R30: 1.4755 | S30: 1.45959 | T30: 1.44359 | U30: 1.42751 | W30: 145 | X30: 1.74247 | Y30: 1.75663 | Z30: 1.771 | AA30: 1.78559 | AB30: 1.8004 | AC30: 1.81544 | AD30: 1.83069 | AE30: 1.84615 | AF30: 1.8616 | AG30: 1.87699 | AH30: 1.89257 | AI30: 1.90834 | AJ30: 1.9243 | AK30: 1.94044 | AL30: 1.95677 | AM30: 1.97327 | AN30: 1.98995 | AO30: 2.0068 | AP30: 2.02382 | AQ30: 2.041
A31: 150 | B31: 1.7197 | C31: 1.70619 | D31: 1.69255 | E31: 1.67877 | F31: 1.66486 | G31: 1.65082 | H31: 1.63666 | I31: 1.62238 | J31: 1.60799 | K31: 1.59346 | L31: 1.57883 | M31: 1.56409 | N31: 1.54925 | O31: 1.5343 | P31: 1.51925 | Q31: 1.5041 | R31: 1.48885 | S31: 1.47352 | T31: 1.45809 | U31: 1.44259 | W31: 150 | X31: 1.74652 | Y31: 1.76018 | Z31: 1.77406 | AA31: 1.78814 | AB31: 1.80242 | AC31: 1.8169 | AD31: 1.83159 | AE31: 1.84648 | AF31: 1.86144 | AG31: 1.87627 | AH31: 1.89127 | AI31: 1.90645 | AJ31: 1.92182 | AK31: 1.93735 | AL31: 1.95305 | AM31: 1.96892 | AN31: 1.98496 | AO31: 2.00116 | AP31: 2.01751 | AQ31: 2.03402
A32: 155 | B32: 1.72442 | C32: 1.71135 | D32: 1.69815 | E32: 1.68483 | F32: 1.67139 | G32: 1.65782 | H32: 1.64413 | I32: 1.63034 | J32: 1.61643 | K32: 1.60241 | L32: 1.58827 | M32: 1.57404 | N32: 1.55971 | O32: 1.54527 | P32: 1.53074 | Q32: 1.51612 | R32: 1.50139 | S32: 1.48659 | T32: 1.47171 | U32: 1.45674 | W32: 155 | X32: 1.75036 | Y32: 1.76358 | Z32: 1.77698 | AA32: 1.79058 | AB32: 1.80437 | AC32: 1.81836 | AD32: 1.83253 | AE32: 1.84688 | AF32: 1.86138 | AG32: 1.87568 | AH32: 1.89015 | AI32: 1.90478 | AJ32: 1.91959 | AK32: 1.93455 | AL32: 1.94968 | AM32: 1.96497 | AN32: 1.9804 | AO32: 1.996 | AP32: 2.01174 | AQ32: 2.02763
A33: 160 | B33: 1.7289 | C33: 1.71625 | D33: 1.70348 | E33: 1.69058 | F33: 1.67756 | G33: 1.66444 | H33: 1.65121 | I33: 1.63786 | J33: 1.62441 | K33: 1.61084 | L33: 1.59718 | M33: 1.58343 | N33: 1.56957 | O33: 1.55562 | P33: 1.54158 | Q33: 1.52744 | R33: 1.51322 | S33: 1.49892 | T33: 1.48452 | U33: 1.47006 | W33: 160 | X33: 1.75405 | Y33: 1.76683 | Z33: 1.7798 | AA33: 1.79296 | AB33: 1.80629 | AC33: 1.8198 | AD33: 1.83348 | AE33: 1.84734 | AF33: 1.86138 | AG33: 1.8752 | AH33: 1.88918 | AI33: 1.90331 | AJ33: 1.91759 | AK33: 1.93204 | AL33: 1.94662 | AM33: 1.96136 | AN33: 1.97624 | AO33: 1.99127 | AP33: 2.00644 | AQ33: 2.02175
A34: 165 | B34: 1.73319 | C34: 1.72092 | D34: 1.70854 | E34: 1.69604 | F34: 1.68344 | G34: 1.67073 | H34: 1.65791 | I34: 1.64498 | J34: 1.63195 | K34: 1.61883 | L34: 1.60561 | M34: 1.5923 | N34: 1.57889 | O34: 1.56539 | P34: 1.5518 | Q34: 1.53813 | R34: 1.52437 | S34: 1.51053 | T34: 1.49661 | U34: 1.48262 | W34: 165 | X34: 1.75756 | Y34: 1.76995 | Z34: 1.78251 | AA34: 1.79525 | AB34: 1.80815 | AC34: 1.82122 | AD34: 1.83445 | AE34: 1.84785 | AF34: 1.86141 | AG34: 1.87484 | AH34: 1.88835 | AI34: 1.902 | AJ34: 1.91581 | AK34: 1.92975 | AL34: 1.94383 | AM34: 1.95806 | AN34: 1.97244 | AO34: 1.98694 | AP34: 2.00158 | AQ34: 2.01635
A35: 170 | B35: 1.73728 | C35: 1.72537 | D35: 1.71336 | E35: 1.70124 | F35: 1.68902 | G35: 1.67669 | H35: 1.66427 | I35: 1.65174 | J35: 1.63912 | K35: 1.62641 | L35: 1.61359 | M35: 1.60069 | N35: 1.5877 | O35: 1.57464 | P35: 1.56147 | Q35: 1.54823 | R35: 1.53491 | S35: 1.52151 | T35: 1.50803 | U35: 1.49449 | W35: 170 | X35: 1.76093 | Y35: 1.77295 | Z35: 1.78512 | AA35: 1.79747 | AB35: 1.80997 | AC35: 1.82262 | AD35: 1.83543 | AE35: 1.84839 | AF35: 1.86151 | AG35: 1.87456 | AH35: 1.88764 | AI35: 1.90085 | AJ35: 1.91419 | AK35: 1.92768 | AL35: 1.9413 | AM35: 1.95506 | AN35: 1.96894 | AO35: 1.98296 | AP35: 1.9971 | AQ35: 2.01136
A36: 175 | B36: 1.74119 | C36: 1.72963 | D36: 1.71796 | E36: 1.7062 | F36: 1.69433 | G36: 1.68237 | H36: 1.67031 | I36: 1.65817 | J36: 1.64593 | K36: 1.63359 | L36: 1.62117 | M36: 1.60867 | N36: 1.59607 | O36: 1.58339 | P36: 1.57064 | Q36: 1.5578 | R36: 1.54489 | S36: 1.5319 | T36: 1.51885 | U36: 1.50572 | W36: 175 | X36: 1.76416 | Y36: 1.77583 | Z36: 1.78765 | AA36: 1.79961 | AB36: 1.81174 | AC36: 1.824 | AD36: 1.83641 | AE36: 1.84898 | AF36: 1.86168 | AG36: 1.87437 | AH36: 1.88703 | AI36: 1.89982 | AJ36: 1.91275 | AK36: 1.9258 | AL36: 1.93899 | AM36: 1.95229 | AN36: 1.96573 | AO36: 1.97928 | AP36: 1.99296 | AQ36: 2.00675
A37: 180 | B37: 1.74493 | C37: 1.73369 | D37: 1.72236 | E37: 1.71092 | F37: 1.6994 | G37: 1.68779 | H37: 1.67608 | I37: 1.66428 | J37: 1.65239 | K37: 1.64043 | L37: 1.62837 | M37: 1.61623 | N37: 1.60401 | O37: 1.59171 | P37: 1.57934 | Q37: 1.56688 | R37: 1.55436 | S37: 1.54176 | T37: 1.5291 | U37: 1.51636 | W37: 180 | X37: 1.76726 | Y37: 1.7786 | Z37: 1.79007 | AA37: 1.8017 | AB37: 1.81346 | AC37: 1.82536 | AD37: 1.8374 | AE37: 1.84959 | AF37: 1.8619 | AG37: 1.87425 | AH37: 1.88652 | AI37: 1.89892 | AJ37: 1.91145 | AK37: 1.9241 | AL37: 1.93687 | AM37: 1.94976 | AN37: 1.96276 | AO37: 1.97588 | AP37: 1.98912 | AQ37: 2.00248
A38: 185 | B38: 1.74851 | C38: 1.73759 | D38: 1.72656 | E38: 1.71545 | F38: 1.70424 | G38: 1.69295 | H38: 1.68157 | I38: 1.6701 | J38: 1.65856 | K38: 1.64693 | L38: 1.63522 | M38: 1.62343 | N38: 1.61156 | O38: 1.59962 | P38: 1.5876 | Q38: 1.57551 | R38: 1.56335 | S38: 1.55112 | T38: 1.53882 | U38: 1.52646 | W38: 185 | X38: 1.77024 | Y38: 1.78127 | Z38: 1.79242 | AA38: 1.80371 | AB38: 1.81514 | AC38: 1.8267 | AD38: 1.83838 | AE38: 1.85021 | AF38: 1.86215 | AG38: 1.87419 | AH38: 1.8861 | AI38: 1.89813 | AJ38: 1.91028 | AK38: 1.92255 | AL38: 1.93493 | AM38: 1.94743 | AN38: 1.96003 | AO38: 1.97275 | AP38: 1.98558 | AQ38: 1.99852
A39: 190 | B39: 1.75196 | C39: 1.74132 | D39: 1.73059 | E39: 1.71977 | F39: 1.70887 | G39: 1.69789 | H39: 1.68682 | I39: 1.67567 | J39: 1.66444 | K39: 1.65313 | L39: 1.64175 | M39: 1.63028 | N39: 1.61875 | O39: 1.60714 | P39: 1.59547 | Q39: 1.58372 | R39: 1.5719 | S39: 1.56001 | T39: 1.54807 | U39: 1.53605 | W39: 190 | X39: 1.77311 | Y39: 1.78383 | Z39: 1.79468 | AA39: 1.80567 | AB39: 1.81678 | AC39: 1.82801 | AD39: 1.83937 | AE39: 1.85086 | AF39: 1.86246 | AG39: 1.87417 | AH39: 1.88575 | AI39: 1.89743 | AJ39: 1.90923 | AK39: 1.92114 | AL39: 1.93315 | AM39: 1.94529 | AN39: 1.95752 | AO39: 1.96985 | AP39: 1.9823 | AQ39: 1.99484
A40: 195 | B40: 1.75526 | C40: 1.7449 | D40: 1.73445 | E40: 1.72392 | F40: 1.7133 | G40: 1.70261 | H40: 1.69183 | I40: 1.68099 | J40: 1.67005 | K40: 1.65905 | L40: 1.64798 | M40: 1.63683 | N40: 1.62561 | O40: 1.61432 | P40: 1.60296 | Q40: 1.59154 | R40: 1.58005 | S40: 1.56849 | T40: 1.55687 | U40: 1.5452 | W40: 195 | X40: 1.77586 | Y40: 1.78632 | Z40: 1.79688 | AA40: 1.80757 | AB40: 1.81838 | AC40: 1.8293 | AD40: 1.84035 | AE40: 1.85151 | AF40: 1.86279 | AG40: 1.87418 | AH40: 1.88547 | AI40: 1.89683 | AJ40: 1.90828 | AK40: 1.91985 | AL40: 1.93152 | AM40: 1.9433 | AN40: 1.95518 | AO40: 1.96716 | AP40: 1.97923 | AQ40: 1.99141
A41: 200 | B41: 1.75844 | C41: 1.74833 | D41: 1.73815 | E41: 1.72789 | F41: 1.71755 | G41: 1.70713 | H41: 1.69663 | I41: 1.68607 | J41: 1.67543 | K41: 1.66471 | L41: 1.65394 | M41: 1.64308 | N41: 1.63216 | O41: 1.62117 | P41: 1.61011 | Q41: 1.599 | R41: 1.58781 | S41: 1.57657 | T41: 1.56527 | U41: 1.5539 | W41: 200 | X41: 1.77852 | Y41: 1.78871 | Z41: 1.79901 | AA41: 1.80942 | AB41: 1.81994 | AC41: 1.83057 | AD41: 1.84133 | AE41: 1.85219 | AF41: 1.86316 | AG41: 1.87423 | AH41: 1.88541 | AI41: 1.89671 | AJ41: 1.9081 | AK41: 1.91961 | AL41: 1.93122 | AM41: 1.94292 | AN41: 1.95473 | AO41: 1.96665 | AP41: 1.97865 | AQ41: 1.99075
A42: 210 | B42: 1.76445 | C42: 1.75483 | D42: 1.74513 | E42: 1.73537 | F42: 1.72554 | G42: 1.71563 | H42: 1.70566 | I42: 1.69561 | J42: 1.6855 | K42: 1.67532 | L42: 1.66508 | M42: 1.65478 | N42: 1.64441 | O42: 1.63398 | P42: 1.62348 | Q42: 1.61293 | R42: 1.60232 | S42: 1.59165 | T42: 1.58094 | U42: 1.57015 | W42: 210 | X42: 1.78358 | Y42: 1.79326 | Z42: 1.80305 | AA42: 1.81295 | AB42: 1.82294 | AC42: 1.83305 | AD42: 1.84325 | AE42: 1.85355 | AF42: 1.86394 | AG42: 1.87445 | AH42: 1.88505 | AI42: 1.89574 | AJ42: 1.90653 | AK42: 1.91742 | AL42: 1.92839 | AM42: 1.93947 | AN42: 1.95063 | AO42: 1.96188 | AP42: 1.97323 | AQ42: 1.98467
A43: 220 | B43: 1.77003 | C43: 1.76086 | D43: 1.75161 | E43: 1.74229 | F43: 1.73292 | G43: 1.72348 | H43: 1.71398 | I43: 1.70441 | J43: 1.69477 | K43: 1.68509 | L43: 1.67533 | M43: 1.66552 | N43: 1.65566 | O43: 1.64573 | P43: 1.63575 | Q43: 1.62571 | R43: 1.61562 | S43: 1.60547 | T43: 1.59527 | U43: 1.58503 | W43: 220 | X43: 1.78829 | Y43: 1.79753 | Z43: 1.80686 | AA43: 1.81628 | AB43: 1.82581 | AC43: 1.83543 | AD43: 1.84513 | AE43: 1.85492 | AF43: 1.86482 | AG43: 1.87479 | AH43: 1.88486 | AI43: 1.89502 | AJ43: 1.90526 | AK43: 1.91559 | AL43: 1.92601 | AM43: 1.93651 | AN43: 1.9471 | AO43: 1.95776 | AP43: 1.96852 | AQ43: 1.97935
A44: 230 | B44: 1.77525 | C44: 1.76647 | D44: 1.75763 | E44: 1.74873 | F44: 1.73977 | G44: 1.73075 | H44: 1.72168 | I44: 1.71254 | J44: 1.70335 | K44: 1.6941 | L44: 1.68479 | M44: 1.67544 | N44: 1.66602 | O44: 1.65655 | P44: 1.64703 | Q44: 1.63746 | R44: 1.62784 | S44: 1.61816 | T44: 1.60844 | U44: 1.59868 | W44: 230 | X44: 1.7927 | Y44: 1.80154 | Z44: 1.81045 | AA44: 1.81945 | AB44: 1.82854 | AC44: 1.83771 | AD44: 1.84697 | AE44: 1.85632 | AF44: 1.86574 | AG44: 1.87524 | AH44: 1.88483 | AI44: 1.8945 | AJ44: 1.90424 | AK44: 1.91407 | AL44: 1.92398 | AM44: 1.93397 | AN44: 1.94403 | AO44: 1.95417 | AP44: 1.96439 | AQ44: 1.97467
A45: 240 | B45: 1.78012 | C45: 1.77171 | D45: 1.76325 | E45: 1.75473 | F45: 1.74616 | G45: 1.73752 | H45: 1.72883 | I45: 1.72009 | J45: 1.71129 | K45: 1.70245 | L45: 1.69356 | M45: 1.6846 | N45: 1.67561 | O45: 1.66656 | P45: 1.65746 | Q45: 1.64832 | R45: 1.63913 | S45: 1.62988 | T45: 1.6206 | U45: 1.61128 | W45: 240 | X45: 1.79685 | Y45: 1.8053 | Z45: 1.81384 | AA45: 1.82246 | AB45: 1.83115 | AC45: 1.83992 | AD45: 1.84876 | AE45: 1.85769 | AF45: 1.86669 | AG45: 1.87576 | AH45: 1.88492 | AI45: 1.89415 | AJ45: 1.90345 | AK45: 1.91282 | AL45: 1.92226 | AM45: 1.93178 | AN45: 1.94137 | AO45: 1.95102 | AP45: 1.96075 | AQ45: 1.97055
A46: 250 | B46: 1.78469 | C46: 1.77662 | D46: 1.76851 | E46: 1.76033 | F46: 1.75211 | G46: 1.74383 | H46: 1.7355 | I46: 1.72713 | J46: 1.7187 | K46: 1.71022 | L46: 1.7017 | M46: 1.69312 | N46: 1.68451 | O46: 1.67584 | P46: 1.66714 | Q46: 1.65838 | R46: 1.64959 | S46: 1.64074 | T46: 1.63186 | U46: 1.62293 | W46: 250 | X46: 1.80075 | Y46: 1.80887 | Z46: 1.81706 | AA46: 1.82531 | AB46: 1.83364 | AC46: 1.84204 | AD46: 1.85051 | AE46: 1.85906 | AF46: 1.86768 | AG46: 1.87636 | AH46: 1.88511 | AI46: 1.89393 | AJ46: 1.90282 | AK46: 1.91178 | AL46: 1.9208 | AM46: 1.92989 | AN46: 1.93904 | AO46: 1.94827 | AP46: 1.95755 | AQ46: 1.9669
A47: 260 | B47: 1.789 | C47: 1.78125 | D47: 1.77344 | E47: 1.76558 | F47: 1.75768 | G47: 1.74973 | H47: 1.74173 | I47: 1.73369 | J47: 1.72561 | K47: 1.71747 | L47: 1.70928 | M47: 1.70107 | N47: 1.6928 | O47: 1.68449 | P47: 1.67613 | Q47: 1.66774 | R47: 1.6593 | S47: 1.65082 | T47: 1.64231 | U47: 1.63375 | W47: 260 | X47: 1.80444 | Y47: 1.81223 | Z47: 1.8201 | AA47: 1.82803 | AB47: 1.83603 | AC47: 1.84409 | AD47: 1.85222 | AE47: 1.86041 | AF47: 1.86867 | AG47: 1.87699 | AH47: 1.88538 | AI47: 1.89383 | AJ47: 1.90234 | AK47: 1.91092 | AL47: 1.91956 | AM47: 1.92826 | AN47: 1.93702 | AO47: 1.94583 | AP47: 1.95471 | AQ47: 1.96366
A48: 270 | B48: 1.79306 | C48: 1.7856 | D48: 1.77808 | E48: 1.77052 | F48: 1.76292 | G48: 1.75528 | H48: 1.74758 | I48: 1.73984 | J48: 1.73207 | K48: 1.72425 | L48: 1.71638 | M48: 1.70849 | N48: 1.70054 | O48: 1.69256 | P48: 1.68453 | Q48: 1.67647 | R48: 1.66836 | S48: 1.66022 | T48: 1.65204 | U48: 1.64382 | W48: 270 | X48: 1.80792 | Y48: 1.81543 | Z48: 1.823 | AA48: 1.83062 | AB48: 1.83831 | AC48: 1.84606 | AD48: 1.85387 | AE48: 1.86174 | AF48: 1.86967 | AG48: 1.87767 | AH48: 1.88572 | AI48: 1.89382 | AJ48: 1.902 | AK48: 1.91023 | AL48: 1.91851 | AM48: 1.92684 | AN48: 1.93524 | AO48: 1.94369 | AP48: 1.9522 | AQ48: 1.96077
A49: 280 | B49: 1.7969 | C49: 1.7897 | D49: 1.78245 | E49: 1.77517 | F49: 1.76784 | G49: 1.76048 | H49: 1.75307 | I49: 1.74563 | J49: 1.73814 | K49: 1.73061 | L49: 1.72304 | M49: 1.71543 | N49: 1.70778 | O49: 1.70011 | P49: 1.69238 | Q49: 1.68463 | R49: 1.67682 | S49: 1.669 | T49: 1.66113 | U49: 1.65323 | W49: 280 | X49: 1.81123 | Y49: 1.81846 | Z49: 1.82575 | AA49: 1.83309 | AB49: 1.84051 | AC49: 1.84797 | AD49: 1.85549 | AE49: 1.86305 | AF49: 1.87068 | AG49: 1.87837 | AH49: 1.88611 | AI49: 1.8939 | AJ49: 1.90175 | AK49: 1.90965 | AL49: 1.91761 | AM49: 1.92562 | AN49: 1.93368 | AO49: 1.9418 | AP49: 1.94996 | AQ49: 1.95819
A50: 290 | B50: 1.80053 | C50: 1.79358 | D50: 1.7866 | E50: 1.77956 | F50: 1.7725 | G50: 1.76539 | H50: 1.75825 | I50: 1.75106 | J50: 1.74384 | K50: 1.73659 | L50: 1.72929 | M50: 1.72196 | N50: 1.71459 | O50: 1.70718 | P50: 1.69975 | Q50: 1.69227 | R50: 1.68477 | S50: 1.67722 | T50: 1.66964 | U50: 1.66204 | W50: 290 | X50: 1.81436 | Y50: 1.82134 | Z50: 1.82838 | AA50: 1.83546 | AB50: 1.84261 | AC50: 1.8498 | AD50: 1.85704 | AE50: 1.86434 | AF50: 1.87169 | AG50: 1.87909 | AH50: 1.88655 | AI50: 1.89405 | AJ50: 1.90161 | AK50: 1.90921 | AL50: 1.91686 | AM50: 1.92456 | AN50: 1.93232 | AO50: 1.94012 | AP50: 1.94798 | AQ50: 1.95587
A51: 300 | B51: 1.80398 | C51: 1.79726 | D51: 1.79051 | E51: 1.78371 | F51: 1.77689 | G51: 1.77003 | H51: 1.76313 | I51: 1.75619 | J51: 1.74921 | K51: 1.74222 | L51: 1.73518 | M51: 1.7281 | N51: 1.72099 | O51: 1.71385 | P51: 1.70667 | Q51: 1.69946 | R51: 1.69221 | S51: 1.68494 | T51: 1.67764 | U51: 1.6703 | W51: 300 | X51: 1.81735 | Y51: 1.8241 | Z51: 1.83088 | AA51: 1.83773 | AB51: 1.84463 | AC51: 1.85157 | AD51: 1.85856 | AE51: 1.8656 | AF51: 1.87269 | AG51: 1.87983 | AH51: 1.88702 | AI51: 1.89425 | AJ51: 1.90152 | AK51: 1.90885 | AL51: 1.91623 | AM51: 1.92365 | AN51: 1.93111 | AO51: 1.93863 | AP51: 1.94619 | AQ51: 1.95379
A52: 310 | B52: 1.80725 | C52: 1.80076 | D52: 1.79422 | E52: 1.78766 | F52: 1.78105 | G52: 1.77441 | H52: 1.76774 | I52: 1.76104 | J52: 1.7543 | K52: 1.74753 | L52: 1.74072 | M52: 1.73389 | N52: 1.72703 | O52: 1.72012 | P52: 1.71319 | Q52: 1.70622 | R52: 1.69923 | S52: 1.69221 | T52: 1.68516 | U52: 1.67807 | W52: 310 | X52: 1.82019 | Y52: 1.82672 | Z52: 1.83329 | AA52: 1.83991 | AB52: 1.84657 | AC52: 1.85328 | AD52: 1.86003 | AE52: 1.86683 | AF52: 1.87368 | AG52: 1.88058 | AH52: 1.88751 | AI52: 1.89449 | AJ52: 1.90152 | AK52: 1.90859 | AL52: 1.91571 | AM52: 1.92286 | AN52: 1.93006 | AO52: 1.93731 | AP52: 1.94459 | AQ52: 1.95192
A53: 320 | B53: 1.81037 | C53: 1.80408 | D53: 1.79775 | E53: 1.79139 | F53: 1.785 | G53: 1.77857 | H53: 1.77211 | I53: 1.76563 | J53: 1.75911 | K53: 1.75256 | L53: 1.74598 | M53: 1.73937 | N53: 1.73272 | O53: 1.72605 | P53: 1.71935 | Q53: 1.71262 | R53: 1.70585 | S53: 1.69906 | T53: 1.69225 | U53: 1.6854 | W53: 320 | X53: 1.82291 | Y53: 1.82922 | Z53: 1.83559 | AA53: 1.84199 | AB53: 1.84844 | AC53: 1.85494 | AD53: 1.86147 | AE53: 1.86804 | AF53: 1.87466 | AG53: 1.88133 | AH53: 1.88804 | AI53: 1.89478 | AJ53: 1.90156 | AK53: 1.9084 | AL53: 1.91527 | AM53: 1.92218 | AN53: 1.92913 | AO53: 1.93613 | AP53: 1.94316 | AQ53: 1.95024
A54: 330 | B54: 1.81335 | C54: 1.80724 | D54: 1.80111 | E54: 1.79495 | F54: 1.78876 | G54: 1.78252 | H54: 1.77627 | I54: 1.76999 | J54: 1.76367 | K54: 1.75733 | L54: 1.75095 | M54: 1.74455 | N54: 1.73812 | O54: 1.73165 | P54: 1.72517 | Q54: 1.71865 | R54: 1.7121 | S54: 1.70554 | T54: 1.69893 | U54: 1.69231 | W54: 330 | X54: 1.8255 | Y54: 1.83162 | Z54: 1.83779 | AA54: 1.844 | AB54: 1.85024 | AC54: 1.85653 | AD54: 1.86286 | AE54: 1.86923 | AF54: 1.87563 | AG54: 1.88209 | AH54: 1.88857 | AI54: 1.8951 | AJ54: 1.90167 | AK54: 1.90827 | AL54: 1.91492 | AM54: 1.92159 | AN54: 1.92832 | AO54: 1.93507 | AP54: 1.94187 | AQ54: 1.9487
A55: 340 | B55: 1.81618 | C55: 1.81026 | D55: 1.80432 | E55: 1.79834 | F55: 1.79233 | G55: 1.78629 | H55: 1.78022 | I55: 1.77413 | J55: 1.768 | K55: 1.76185 | L55: 1.75567 | M55: 1.74947 | N55: 1.74323 | O55: 1.73697 | P55: 1.73068 | Q55: 1.72437 | R55: 1.71803 | S55: 1.71166 | T55: 1.70527 | U55: 1.69885 | W55: 340 | X55: 1.82799 | Y55: 1.83392 | Z55: 1.8399 | AA55: 1.84592 | AB55: 1.85198 | AC55: 1.85808 | AD55: 1.8642 | AE55: 1.87038 | AF55: 1.87659 | AG55: 1.88284 | AH55: 1.88913 | AI55: 1.89545 | AJ55: 1.9018 | AK55: 1.90819 | AL55: 1.91463 | AM55: 1.92109 | AN55: 1.9276 | AO55: 1.93414 | AP55: 1.94072 | AQ55: 1.94732
A56: 350 | B56: 1.8189 | C56: 1.81315 | D56: 1.80737 | E56: 1.80157 | F56: 1.79573 | G56: 1.78987 | H56: 1.78398 | I56: 1.77806 | J56: 1.77211 | K56: 1.76615 | L56: 1.76015 | M56: 1.75414 | N56: 1.74808 | O56: 1.74201 | P56: 1.73592 | Q56: 1.72979 | R56: 1.72364 | S56: 1.71747 | T56: 1.71127 | U56: 1.70505 | W56: 350 | X56: 1.83036 | Y56: 1.83613 | Z56: 1.84193 | AA56: 1.84778 | AB56: 1.85366 | AC56: 1.85957 | AD56: 1.86553 | AE56: 1.87151 | AF56: 1.87753 | AG56: 1.88359 | AH56: 1.88969 | AI56: 1.89581 | AJ56: 1.90198 | AK56: 1.90818 | AL56: 1.91441 | AM56: 1.92068 | AN56: 1.92698 | AO56: 1.93331 | AP56: 1.93967 | AQ56: 1.94608
A57: 360 | B57: 1.8215 | C57: 1.81591 | D57: 1.81029 | E57: 1.80465 | F57: 1.79898 | G57: 1.79328 | H57: 1.78756 | I57: 1.78182 | J57: 1.77604 | K57: 1.77025 | L57: 1.76442 | M57: 1.75858 | N57: 1.7527 | O57: 1.74681 | P57: 1.74089 | Q57: 1.73494 | R57: 1.72898 | S57: 1.72299 | T57: 1.71697 | U57: 1.71094 | W57: 360 | X57: 1.83264 | Y57: 1.83825 | Z57: 1.84389 | AA57: 1.84957 | AB57: 1.85527 | AC57: 1.86102 | AD57: 1.86681 | AE57: 1.87261 | AF57: 1.87846 | AG57: 1.88434 | AH57: 1.89026 | AI57: 1.8962 | AJ57: 1.90218 | AK57: 1.90819 | AL57: 1.91424 | AM57: 1.92032 | AN57: 1.92643 | AO57: 1.93257 | AP57: 1.93874 | AQ57: 1.94494
A58: 370 | B58: 1.82399 | C58: 1.81855 | D58: 1.81309 | E58: 1.8076 | F58: 1.80209 | G58: 1.79655 | H58: 1.79098 | I58: 1.7854 | J58: 1.77978 | K58: 1.77415 | L58: 1.76849 | M58: 1.76281 | N58: 1.75711 | O58: 1.75137 | P58: 1.74562 | Q58: 1.73985 | R58: 1.73406 | S58: 1.72824 | T58: 1.7224 | U58: 1.71653 | W58: 370 | X58: 1.83483 | Y58: 1.84029 | Z58: 1.84577 | AA58: 1.85129 | AB58: 1.85685 | AC58: 1.86242 | AD58: 1.86805 | AE58: 1.87369 | AF58: 1.87938 | AG58: 1.88509 | AH58: 1.89083 | AI58: 1.8966 | AJ58: 1.90241 | AK58: 1.90825 | AL58: 1.91412 | AM58: 1.92002 | AN58: 1.92595 | AO58: 1.93191 | AP58: 1.93789 | AQ58: 1.94392
A59: 380 | B59: 1.82639 | C59: 1.82109 | D59: 1.81577 | E59: 1.81043 | F59: 1.80506 | G59: 1.79967 | H59: 1.79426 | I59: 1.78883 | J59: 1.78336 | K59: 1.77788 | L59: 1.77238 | M59: 1.76685 | N59: 1.7613 | O59: 1.75573 | P59: 1.75014 | Q59: 1.74452 | R59: 1.73889 | S59: 1.73323 | T59: 1.72755 | U59: 1.72186 | W59: 380 | X59: 1.83694 | Y59: 1.84225 | Z59: 1.84758 | AA59: 1.85296 | AB59: 1.85836 | AC59: 1.86379 | AD59: 1.86925 | AE59: 1.87475 | AF59: 1.88027 | AG59: 1.88582 | AH59: 1.89141 | AI59: 1.89702 | AJ59: 1.90266 | AK59: 1.90834 | AL59: 1.91404 | AM59: 1.91977 | AN59: 1.92553 | AO59: 1.93132 | AP59: 1.93714 | AQ59: 1.94298
A60: 390 | B60: 1.82868 | C60: 1.82352 | D60: 1.81834 | E60: 1.81314 | F60: 1.80791 | G60: 1.80266 | H60: 1.79739 | I60: 1.7921 | J60: 1.78678 | K60: 1.78145 | L60: 1.77609 | M60: 1.77071 | N60: 1.76532 | O60: 1.75989 | P60: 1.75445 | Q60: 1.74898 | R60: 1.74351 | S60: 1.738 | T60: 1.73248 | U60: 1.72693 | W60: 390 | X60: 1.83896 | Y60: 1.84413 | Z60: 1.84933 | AA60: 1.85457 | AB60: 1.85982 | AC60: 1.86512 | AD60: 1.87043 | AE60: 1.87578 | AF60: 1.88115 | AG60: 1.88656 | AH60: 1.892 | AI60: 1.89746 | AJ60: 1.90294 | AK60: 1.90846 | AL60: 1.91401 | AM60: 1.91957 | AN60: 1.92517 | AO60: 1.9308 | AP60: 1.93646 | AQ60: 1.94213
A61: 400 | B61: 1.83089 | C61: 1.82586 | D61: 1.82081 | E61: 1.81574 | F61: 1.81064 | G61: 1.80553 | H61: 1.80039 | I61: 1.79524 | J61: 1.79006 | K61: 1.78486 | L61: 1.77964 | M61: 1.7744 | N61: 1.76915 | O61: 1.76387 | P61: 1.75856 | Q61: 1.75324 | R61: 1.74791 | S61: 1.74255 | T61: 1.73717 | U61: 1.73177 | W61: 400 | X61: 1.84091 | Y61: 1.84596 | Z61: 1.85103 | AA61: 1.85612 | AB61: 1.86124 | AC61: 1.8664 | AD61: 1.87158 | AE61: 1.87678 | AF61: 1.88202 | AG61: 1.88728 | AH61: 1.89258 | AI61: 1.89789 | AJ61: 1.90323 | AK61: 1.9086 | AL61: 1.914 | AM61: 1.91942 | AN61: 1.92486 | AO61: 1.93034 | AP61: 1.93584 | AQ61: 1.94136
A62: 410 | B62: 1.83301 | C62: 1.82811 | D62: 1.82318 | E62: 1.81824 | F62: 1.81327 | G62: 1.80828 | H62: 1.80327 | I62: 1.79825 | J62: 1.7932 | K62: 1.78814 | L62: 1.78305 | M62: 1.77794 | N62: 1.77281 | O62: 1.76767 | P62: 1.7625 | Q62: 1.75732 | R62: 1.75212 | S62: 1.7469 | T62: 1.74166 | U62: 1.7364 | W62: 410 | X62: 1.84279 | Y62: 1.84771 | Z62: 1.85265 | AA62: 1.85763 | AB62: 1.86263 | AC62: 1.86765 | AD62: 1.87269 | AE62: 1.87777 | AF62: 1.88287 | AG62: 1.888 | AH62: 1.89315 | AI62: 1.89833 | AJ62: 1.90354 | AK62: 1.90877 | AL62: 1.91401 | AM62: 1.9193 | AN62: 1.9246 | AO62: 1.92993 | AP62: 1.93528 | AQ62: 1.94066
A63: 420 | B63: 1.83507 | C63: 1.83028 | D63: 1.82546 | E63: 1.82064 | F63: 1.81579 | G63: 1.81093 | H63: 1.80604 | I63: 1.80114 | J63: 1.79621 | K63: 1.79127 | L63: 1.78631 | M63: 1.78133 | N63: 1.77633 | O63: 1.77132 | P63: 1.76628 | Q63: 1.76122 | R63: 1.75615 | S63: 1.75107 | T63: 1.74596 | U63: 1.74083 | W63: 420 | X63: 1.84461 | Y63: 1.84941 | Z63: 1.85423 | AA63: 1.85908 | AB63: 1.86396 | AC63: 1.86886 | AD63: 1.87379 | AE63: 1.87874 | AF63: 1.88371 | AG63: 1.88871 | AH63: 1.89373 | AI63: 1.89878 | AJ63: 1.90385 | AK63: 1.90895 | AL63: 1.91407 | AM63: 1.91922 | AN63: 1.92438 | AO63: 1.92957 | AP63: 1.93478 | AQ63: 1.94003
A64: 430 | B64: 1.83704 | C64: 1.83236 | D64: 1.82767 | E64: 1.82296 | F64: 1.81823 | G64: 1.81348 | H64: 1.80871 | I64: 1.80392 | J64: 1.79911 | K64: 1.79429 | L64: 1.78944 | M64: 1.78458 | N64: 1.77971 | O64: 1.77481 | P64: 1.7699 | Q64: 1.76497 | R64: 1.76002 | S64: 1.75506 | T64: 1.75007 | U64: 1.74508 | W64: 430 | X64: 1.84636 | Y64: 1.85105 | Z64: 1.85576 | AA64: 1.8605 | AB64: 1.86525 | AC64: 1.87004 | AD64: 1.87484 | AE64: 1.87967 | AF64: 1.88453 | AG64: 1.88941 | AH64: 1.89431 | AI64: 1.89923 | AJ64: 1.90417 | AK64: 1.90915 | AL64: 1.91414 | AM64: 1.91915 | AN64: 1.9242 | AO64: 1.92925 | AP64: 1.93433 | AQ64: 1.93944
A65: 440 | B65: 1.83895 | C65: 1.83438 | D65: 1.82979 | E65: 1.82518 | F65: 1.82056 | G65: 1.81592 | H65: 1.81126 | I65: 1.80659 | J65: 1.80189 | K65: 1.79718 | L65: 1.79245 | M65: 1.7877 | N65: 1.78295 | O65: 1.77817 | P65: 1.77337 | Q65: 1.76856 | R65: 1.76373 | S65: 1.75888 | T65: 1.75403 | U65: 1.74914 | W65: 440 | X65: 1.84805 | Y65: 1.85264 | Z65: 1.85724 | AA65: 1.86187 | AB65: 1.86651 | AC65: 1.87119 | AD65: 1.87588 | AE65: 1.8806 | AF65: 1.88533 | AG65: 1.8901 | AH65: 1.89488 | AI65: 1.89968 | AJ65: 1.90451 | AK65: 1.90937 | AL65: 1.91424 | AM65: 1.91913 | AN65: 1.92404 | AO65: 1.92898 | AP65: 1.93393 | AQ65: 1.93891
A66: 450 | B66: 1.84079 | C66: 1.83632 | D66: 1.83184 | E66: 1.82734 | F66: 1.82282 | G66: 1.81828 | H66: 1.81373 | I66: 1.80916 | J66: 1.80457 | K66: 1.79997 | L66: 1.79535 | M66: 1.79071 | N66: 1.78607 | O66: 1.78139 | P66: 1.77671 | Q66: 1.77201 | R66: 1.7673 | S66: 1.76256 | T66: 1.75781 | U66: 1.75305 | W66: 450 | X66: 1.8497 | Y66: 1.85418 | Z66: 1.85867 | AA66: 1.8632 | AB66: 1.86774 | AC66: 1.8723 | AD66: 1.87688 | AE66: 1.8815 | AF66: 1.88612 | AG66: 1.89077 | AH66: 1.89545 | AI66: 1.90014 | AJ66: 1.90485 | AK66: 1.90959 | AL66: 1.91434 | AM66: 1.91912 | AN66: 1.92392 | AO66: 1.92874 | AP66: 1.93358 | AQ66: 1.93844
A67: 460 | B67: 1.84257 | C67: 1.8382 | D67: 1.83381 | E67: 1.82941 | F67: 1.82499 | G67: 1.82056 | H67: 1.81611 | I67: 1.81163 | J67: 1.80716 | K67: 1.80265 | L67: 1.79813 | M67: 1.79361 | N67: 1.78906 | O67: 1.7845 | P67: 1.77992 | Q67: 1.77532 | R67: 1.77072 | S67: 1.7661 | T67: 1.76145 | U67: 1.7568 | W67: 460 | X67: 1.85128 | Y67: 1.85567 | Z67: 1.86007 | AA67: 1.86449 | AB67: 1.86893 | AC67: 1.87339 | AD67: 1.87787 | AE67: 1.88238 | AF67: 1.8869 | AG67: 1.89144 | AH67: 1.89601 | AI67: 1.9006 | AJ67: 1.9052 | AK67: 1.90983 | AL67: 1.91447 | AM67: 1.91914 | AN67: 1.92382 | AO67: 1.92853 | AP67: 1.93325 | AQ67: 1.938
A68: 470 | B68: 1.84429 | C68: 1.84002 | D68: 1.83572 | E68: 1.83142 | F68: 1.82709 | G68: 1.82275 | H68: 1.8184 | I68: 1.81403 | J68: 1.80964 | K68: 1.80524 | L68: 1.80083 | M68: 1.7964 | N68: 1.79195 | O68: 1.78749 | P68: 1.78301 | Q68: 1.77852 | R68: 1.77401 | S68: 1.76949 | T68: 1.76496 | U68: 1.76041 | W68: 470 | X68: 1.85282 | Y68: 1.85711 | Z68: 1.86141 | AA68: 1.86574 | AB68: 1.87009 | AC68: 1.87445 | AD68: 1.87883 | AE68: 1.88324 | AF68: 1.88767 | AG68: 1.89211 | AH68: 1.89657 | AI68: 1.90105 | AJ68: 1.90556 | AK68: 1.91008 | AL68: 1.91461 | AM68: 1.91918 | AN68: 1.92376 | AO68: 1.92835 | AP68: 1.93296 | AQ68: 1.9376
A69: 480 | B69: 1.84596 | C69: 1.84177 | D69: 1.83757 | E69: 1.83336 | F69: 1.82912 | G69: 1.82488 | H69: 1.82061 | I69: 1.81634 | J69: 1.81205 | K69: 1.80774 | L69: 1.80341 | M69: 1.79908 | N69: 1.79473 | O69: 1.79036 | P69: 1.78599 | Q69: 1.78159 | R69: 1.77719 | S69: 1.77276 | T69: 1.76833 | U69: 1.76388 | W69: 480 | X69: 1.85431 | Y69: 1.85851 | Z69: 1.86272 | AA69: 1.86695 | AB69: 1.87121 | AC69: 1.87548 | AD69: 1.87977 | AE69: 1.88408 | AF69: 1.88841 | AG69: 1.89276 | AH69: 1.89712 | AI69: 1.90151 | AJ69: 1.90591 | AK69: 1.91034 | AL69: 1.91477 | AM69: 1.91923 | AN69: 1.92371 | AO69: 1.9282 | AP69: 1.93271 | AQ69: 1.93725
A70: 490 | B70: 1.84758 | C70: 1.84348 | D70: 1.83937 | E70: 1.83523 | F70: 1.83109 | G70: 1.82693 | H70: 1.82275 | I70: 1.81857 | J70: 1.81437 | K70: 1.81015 | L70: 1.80592 | M70: 1.80167 | N70: 1.79741 | O70: 1.79314 | P70: 1.78885 | Q70: 1.78456 | R70: 1.78024 | S70: 1.77592 | T70: 1.77157 | U70: 1.76722 | W70: 490 | X70: 1.85576 | Y70: 1.85987 | Z70: 1.86399 | AA70: 1.86814 | AB70: 1.87231 | AC70: 1.87649 | AD70: 1.88069 | AE70: 1.88491 | AF70: 1.88915 | AG70: 1.8934 | AH70: 1.89767 | AI70: 1.90197 | AJ70: 1.90628 | AK70: 1.91059 | AL70: 1.91494 | AM70: 1.9193 | AN70: 1.92368 | AO70: 1.92807 | AP70: 1.93249 | AQ70: 1.93692
A71: 500 | B71: 1.84914 | C71: 1.84513 | D71: 1.8411 | E71: 1.83705 | F71: 1.83298 | G71: 1.82892 | H71: 1.82482 | I71: 1.82072 | J71: 1.81661 | K71: 1.81247 | L71: 1.80834 | M71: 1.80417 | N71: 1.80001 | O71: 1.79582 | P71: 1.79163 | Q71: 1.78742 | R71: 1.78319 | S71: 1.77896 | T71: 1.77471 | U71: 1.77044 | W71: 500 | X71: 1.85716 | Y71: 1.86119 | Z71: 1.86523 | AA71: 1.86929 | AB71: 1.87337 | AC71: 1.87747 | AD71: 1.88158 | AE71: 1.88572 | AF71: 1.88986 | AG71: 1.89403 | AH71: 1.89821 | AI71: 1.90242 | AJ71: 1.90663 | AK71: 1.91087 | AL71: 1.91512 | AM71: 1.91938 | AN71: 1.92368 | AO71: 1.92798 | AP71: 1.93229 | AQ71: 1.93663
A72: 550 | B72: 1.85632 | C72: 1.85267 | D72: 1.84901 | E72: 1.84533 | F72: 1.84165 | G72: 1.83794 | H72: 1.83423 | I72: 1.83051 | J72: 1.82678 | K72: 1.82303 | L72: 1.81928 | M72: 1.81551 | N72: 1.81173 | O72: 1.80794 | P72: 1.80414 | Q72: 1.80033 | R72: 1.79651 | S72: 1.79268 | T72: 1.78883 | U72: 1.78497 | W72: 550 | X72: 1.86361 | Y72: 1.86727 | Z72: 1.87094 | AA72: 1.87462 | AB72: 1.87833 | AC72: 1.88204 | AD72: 1.88578 | AE72: 1.88952 | AF72: 1.89327 | AG72: 1.89705 | AH72: 1.90084 | AI72: 1.90464 | AJ72: 1.90845 | AK72: 1.91228 | AL72: 1.91613 | AM72: 1.91998 | AN72: 1.92386 | AO72: 1.92774 | AP72: 1.93164 | AQ72: 1.93555
A73: 600 | B73: 1.86257 | C73: 1.85922 | D73: 1.85587 | E73: 1.8525 | F73: 1.84913 | G73: 1.84574 | H73: 1.84235 | I73: 1.83894 | J73: 1.83552 | K73: 1.8321 | L73: 1.82866 | M73: 1.82522 | N73: 1.82177 | O73: 1.8183 | P73: 1.81483 | Q73: 1.81134 | R73: 1.80785 | S73: 1.80435 | T73: 1.80085 | U73: 1.79733 | W73: 600 | X73: 1.86925 | Y73: 1.87259 | Z73: 1.87596 | AA73: 1.87934 | AB73: 1.88273 | AC73: 1.88612 | AD73: 1.88954 | AE73: 1.89296 | AF73: 1.8964 | AG73: 1.89984 | AH73: 1.90331 | AI73: 1.90677 | AJ73: 1.91026 | AK73: 1.91375 | AL73: 1.91727 | AM73: 1.92078 | AN73: 1.92431 | AO73: 1.92786 | AP73: 1.93141 | AQ73: 1.93497
A74: 650 | B74: 1.86807 | C74: 1.86498 | D74: 1.86189 | E74: 1.85878 | F74: 1.85567 | G74: 1.85254 | H74: 1.84942 | I74: 1.84627 | J74: 1.84313 | K74: 1.83997 | L74: 1.83681 | M74: 1.83364 | N74: 1.83045 | O74: 1.82727 | P74: 1.82408 | Q74: 1.82087 | R74: 1.81766 | S74: 1.81444 | T74: 1.8112 | U74: 1.80797 | W74: 650 | X74: 1.87423 | Y74: 1.87733 | Z74: 1.88043 | AA74: 1.88354 | AB74: 1.88667 | AC74: 1.8898 | AD74: 1.89295 | AE74: 1.8961 | AF74: 1.89926 | AG74: 1.90244 | AH74: 1.90562 | AI74: 1.90882 | AJ74: 1.91202 | AK74: 1.91523 | AL74: 1.91846 | AM74: 1.92169 | AN74: 1.92494 | AO74: 1.92819 | AP74: 1.93145 | AQ74: 1.93473
A75: 700 | B75: 1.87297 | C75: 1.8701 | D75: 1.86722 | E75: 1.86435 | F75: 1.86145 | G75: 1.85856 | H75: 1.85566 | I75: 1.85274 | J75: 1.84982 | K75: 1.8469 | L75: 1.84397 | M75: 1.84102 | N75: 1.83808 | O75: 1.83513 | P75: 1.83217 | Q75: 1.8292 | R75: 1.82622 | S75: 1.82324 | T75: 1.82025 | U75: 1.81726 | W75: 700 | X75: 1.87869 | Y75: 1.88156 | Z75: 1.88443 | AA75: 1.88732 | AB75: 1.89022 | AC75: 1.89313 | AD75: 1.89604 | AE75: 1.89897 | AF75: 1.9019 | AG75: 1.90484 | AH75: 1.90779 | AI75: 1.91074 | AJ75: 1.91371 | AK75: 1.91669 | AL75: 1.91967 | AM75: 1.92267 | AN75: 1.92567 | AO75: 1.92868 | AP75: 1.93169 | AQ75: 1.93473
A76: 750 | B76: 1.87736 | C76: 1.87468 | D76: 1.872 | E76: 1.86931 | F76: 1.86662 | G76: 1.86391 | H76: 1.86121 | I76: 1.8585 | J76: 1.85578 | K76: 1.85305 | L76: 1.85031 | M76: 1.84758 | N76: 1.84483 | O76: 1.84208 | P76: 1.83933 | Q76: 1.83656 | R76: 1.83378 | S76: 1.83102 | T76: 1.82823 | U76: 1.82545 | W76: 750 | X76: 1.8827 | Y76: 1.88537 | Z76: 1.88806 | AA76: 1.89076 | AB76: 1.89346 | AC76: 1.89616 | AD76: 1.89888 | AE76: 1.90161 | AF76: 1.90434 | AG76: 1.90708 | AH76: 1.90982 | AI76: 1.91258 | AJ76: 1.91534 | AK76: 1.91811 | AL76: 1.92088 | AM76: 1.92367 | AN76: 1.92647 | AO76: 1.92927 | AP76: 1.93207 | AQ76: 1.93489
A77: 800 | B77: 1.88132 | C77: 1.87882 | D77: 1.8763 | E77: 1.87379 | F77: 1.87126 | G77: 1.86873 | H77: 1.86619 | I77: 1.86365 | J77: 1.8611 | K77: 1.85855 | L77: 1.85599 | M77: 1.85343 | N77: 1.85086 | O77: 1.84829 | P77: 1.84571 | Q77: 1.84312 | R77: 1.84053 | S77: 1.83794 | T77: 1.83533 | U77: 1.83273 | W77: 800 | X77: 1.88633 | Y77: 1.88884 | Z77: 1.89135 | AA77: 1.89388 | AB77: 1.89641 | AC77: 1.89894 | AD77: 1.90149 | AE77: 1.90404 | AF77: 1.9066 | AG77: 1.90916 | AH77: 1.91174 | AI77: 1.91431 | AJ77: 1.9169 | AK77: 1.91948 | AL77: 1.92208 | AM77: 1.92468 | AN77: 1.9273 | AO77: 1.92991 | AP77: 1.93253 | AQ77: 1.93516
A78: 850 | B78: 1.88494 | C78: 1.88258 | D78: 1.88021 | E78: 1.87784 | F78: 1.87546 | G78: 1.87308 | H78: 1.8707 | I78: 1.86831 | J78: 1.86591 | K78: 1.86351 | L78: 1.86111 | M78: 1.8587 | N78: 1.85629 | O78: 1.85387 | P78: 1.85144 | Q78: 1.84901 | R78: 1.84657 | S78: 1.84414 | T78: 1.8417 | U78: 1.83925 | W78: 850 | X78: 1.88964 | Y78: 1.89201 | Z78: 1.89437 | AA78: 1.89675 | AB78: 1.89912 | AC78: 1.90151 | AD78: 1.90391 | AE78: 1.9063 | AF78: 1.90871 | AG78: 1.91112 | AH78: 1.91353 | AI78: 1.91595 | AJ78: 1.91838 | AK78: 1.92081 | AL78: 1.92325 | AM78: 1.9257 | AN78: 1.92814 | AO78: 1.9306 | AP78: 1.93306 | AQ78: 1.93553
A79: 900 | B79: 1.88823 | C79: 1.88601 | D79: 1.88377 | E79: 1.88153 | F79: 1.87929 | G79: 1.87705 | H79: 1.8748 | I79: 1.87254 | J79: 1.87028 | K79: 1.86802 | L79: 1.86575 | M79: 1.86347 | N79: 1.8612 | O79: 1.85892 | P79: 1.85663 | Q79: 1.85434 | R79: 1.85204 | S79: 1.84974 | T79: 1.84744 | U79: 1.84513 | W79: 900 | X79: 1.89268 | Y79: 1.89491 | Z79: 1.89714 | AA79: 1.89939 | AB79: 1.90163 | AC79: 1.90389 | AD79: 1.90614 | AE79: 1.9084 | AF79: 1.91067 | AG79: 1.91294 | AH79: 1.91522 | AI79: 1.9175 | AJ79: 1.91979 | AK79: 1.92209 | AL79: 1.92438 | AM79: 1.92668 | AN79: 1.929 | AO79: 1.93131 | AP79: 1.93363 | AQ79: 1.93596
A80: 950 | B80: 1.89127 | C80: 1.88915 | D80: 1.88704 | E80: 1.88492 | F80: 1.88279 | G80: 1.88067 | H80: 1.87854 | I80: 1.8764 | J80: 1.87426 | K80: 1.87212 | L80: 1.86998 | M80: 1.86782 | N80: 1.86567 | O80: 1.86351 | P80: 1.86135 | Q80: 1.85919 | R80: 1.85701 | S80: 1.85483 | T80: 1.85266 | U80: 1.85048 | W80: 950 | X80: 1.89548 | Y80: 1.8976 | Z80: 1.89971 | AA80: 1.90184 | AB80: 1.90396 | AC80: 1.90609 | AD80: 1.90823 | AE80: 1.91036 | AF80: 1.91251 | AG80: 1.91466 | AH80: 1.91682 | AI80: 1.91897 | AJ80: 1.92115 | AK80: 1.92331 | AL80: 1.92548 | AM80: 1.92766 | AN80: 1.92984 | AO80: 1.93203 | AP80: 1.93423 | AQ80: 1.93642
A81: 1000 | B81: 1.89407 | C81: 1.89206 | D81: 1.89005 | E81: 1.88804 | F81: 1.88602 | G81: 1.884 | H81: 1.88198 | I81: 1.87995 | J81: 1.87792 | K81: 1.87589 | L81: 1.87386 | M81: 1.87181 | N81: 1.86976 | O81: 1.86772 | P81: 1.86567 | Q81: 1.86361 | R81: 1.86155 | S81: 1.85949 | T81: 1.85742 | U81: 1.85535 | W81: 1000 | X81: 1.89807 | Y81: 1.90008 | Z81: 1.90209 | AA81: 1.9041 | AB81: 1.90612 | AC81: 1.90815 | AD81: 1.91018 | AE81: 1.91221 | AF81: 1.91424 | AG81: 1.91628 | AH81: 1.91832 | AI81: 1.92037 | AJ81: 1.92243 | AK81: 1.92448 | AL81: 1.92655 | AM81: 1.92861 | AN81: 1.93069 | AO81: 1.93276 | AP81: 1.93483 | AQ81: 1.93692
A82: 1050 | B82: 1.89666 | C82: 1.89475 | D82: 1.89284 | E82: 1.89093 | F82: 1.889 | G82: 1.88708 | H82: 1.88516 | I82: 1.88322 | J82: 1.8813 | K82: 1.87936 | L82: 1.87741 | M82: 1.87548 | N82: 1.87353 | O82: 1.87158 | P82: 1.86963 | Q82: 1.86768 | R82: 1.86571 | S82: 1.86376 | T82: 1.86179 | U82: 1.85982 | W82: 1050 | X82: 1.90048 | Y82: 1.90238 | Z82: 1.9043 | AA82: 1.90621 | AB82: 1.90814 | AC82: 1.91007 | AD82: 1.912 | AE82: 1.91393 | AF82: 1.91587 | AG82: 1.91781 | AH82: 1.91975 | AI82: 1.9217 | AJ82: 1.92366 | AK82: 1.92562 | AL82: 1.92758 | AM82: 1.92954 | AN82: 1.93151 | AO82: 1.93348 | AP82: 1.93546 | AQ82: 1.93743
A83: 1100 | B83: 1.89907 | C83: 1.89725 | D83: 1.89543 | E83: 1.8936 | F83: 1.89177 | G83: 1.88993 | H83: 1.88809 | I83: 1.88625 | J83: 1.88441 | K83: 1.88256 | L83: 1.88071 | M83: 1.87886 | N83: 1.877 | O83: 1.87514 | P83: 1.87328 | Q83: 1.87143 | R83: 1.86956 | S83: 1.86769 | T83: 1.86581 | U83: 1.86394 | W83: 1100 | X83: 1.90271 | Y83: 1.90454 | Z83: 1.90636 | AA83: 1.9082 | AB83: 1.91003 | AC83: 1.91187 | AD83: 1.91371 | AE83: 1.91555 | AF83: 1.91741 | AG83: 1.91926 | AH83: 1.92111 | AI83: 1.92297 | AJ83: 1.92483 | AK83: 1.92669 | AL83: 1.92856 | AM83: 1.93043 | AN83: 1.93232 | AO83: 1.9342 | AP83: 1.93608 | AQ83: 1.93796
A84: 1150 | B84: 1.90133 | C84: 1.89959 | D84: 1.89784 | E84: 1.89609 | F84: 1.89435 | G84: 1.89259 | H84: 1.89083 | I84: 1.88907 | J84: 1.88731 | K84: 1.88554 | L84: 1.88378 | M84: 1.882 | N84: 1.88023 | O84: 1.87846 | P84: 1.87667 | Q84: 1.87489 | R84: 1.87311 | S84: 1.87132 | T84: 1.86953 | U84: 1.86774 | W84: 1150 | X84: 1.90481 | Y84: 1.90655 | Z84: 1.90831 | AA84: 1.91005 | AB84: 1.9118 | AC84: 1.91356 | AD84: 1.91533 | AE84: 1.91709 | AF84: 1.91885 | AG84: 1.92062 | AH84: 1.92239 | AI84: 1.92417 | AJ84: 1.92595 | AK84: 1.92773 | AL84: 1.92952 | AM84: 1.93131 | AN84: 1.9331 | AO84: 1.93489 | AP84: 1.9367 | AQ84: 1.9385
A85: 1200 | B85: 1.90344 | C85: 1.90177 | D85: 1.90009 | E85: 1.89842 | F85: 1.89674 | G85: 1.89507 | H85: 1.89338 | I85: 1.8917 | J85: 1.89001 | K85: 1.88832 | L85: 1.88662 | M85: 1.88492 | N85: 1.88323 | O85: 1.88152 | P85: 1.87983 | Q85: 1.87811 | R85: 1.87641 | S85: 1.87471 | T85: 1.87299 | U85: 1.87128 | W85: 1200 | X85: 1.90678 | Y85: 1.90844 | Z85: 1.91012 | AA85: 1.9118 | AB85: 1.91348 | AC85: 1.91516 | AD85: 1.91684 | AE85: 1.91854 | AF85: 1.92023 | AG85: 1.92192 | AH85: 1.92362 | AI85: 1.92532 | AJ85: 1.92702 | AK85: 1.92873 | AL85: 1.93044 | AM85: 1.93215 | AN85: 1.93387 | AO85: 1.93559 | AP85: 1.9373 | AQ85: 1.93902
A86: 1250 | B86: 1.90542 | C86: 1.90382 | D86: 1.90221 | E86: 1.90061 | F86: 1.89899 | G86: 1.89739 | H86: 1.89577 | I86: 1.89415 | J86: 1.89253 | K86: 1.89091 | L86: 1.88928 | M86: 1.88766 | N86: 1.88602 | O86: 1.8844 | P86: 1.88276 | Q86: 1.88113 | R86: 1.87948 | S86: 1.87785 | T86: 1.87621 | U86: 1.87456 | W86: 1250 | X86: 1.90862 | Y86: 1.91023 | Z86: 1.91183 | AA86: 1.91344 | AB86: 1.91506 | AC86: 1.91667 | AD86: 1.91828 | AE86: 1.91991 | AF86: 1.92153 | AG86: 1.92316 | AH86: 1.92478 | AI86: 1.92642 | AJ86: 1.92805 | AK86: 1.92969 | AL86: 1.93132 | AM86: 1.93297 | AN86: 1.93462 | AO86: 1.93626 | AP86: 1.93791 | AQ86: 1.93957
A87: 1300 | B87: 1.90729 | C87: 1.90574 | D87: 1.9042 | E87: 1.90266 | F87: 1.90111 | G87: 1.89955 | H87: 1.898 | I87: 1.89645 | J87: 1.89489 | K87: 1.89333 | L87: 1.89177 | M87: 1.89021 | N87: 1.88864 | O87: 1.88708 | P87: 1.88551 | Q87: 1.88394 | R87: 1.88236 | S87: 1.88079 | T87: 1.87921 | U87: 1.87763 | W87: 1300 | X87: 1.91036 | Y87: 1.91191 | Z87: 1.91345 | AA87: 1.915 | AB87: 1.91655 | AC87: 1.9181 | AD87: 1.91966 | AE87: 1.92121 | AF87: 1.92277 | AG87: 1.92433 | AH87: 1.9259 | AI87: 1.92747 | AJ87: 1.92903 | AK87: 1.93061 | AL87: 1.93218 | AM87: 1.93376 | AN87: 1.93534 | AO87: 1.93692 | AP87: 1.93851 | AQ87: 1.94009
A88: 1350 | B88: 1.90905 | C88: 1.90756 | D88: 1.90607 | E88: 1.90459 | F88: 1.90309 | G88: 1.9016 | H88: 1.90011 | I88: 1.89861 | J88: 1.89711 | K88: 1.89561 | L88: 1.89411 | M88: 1.8926 | N88: 1.8911 | O88: 1.88959 | P88: 1.88808 | Q88: 1.88657 | R88: 1.88505 | S88: 1.88354 | T88: 1.88201 | U88: 1.88049 | W88: 1350 | X88: 1.91201 | Y88: 1.91349 | Z88: 1.91498 | AA88: 1.91648 | AB88: 1.91796 | AC88: 1.91946 | AD88: 1.92095 | AE88: 1.92246 | AF88: 1.92395 | AG88: 1.92546 | AH88: 1.92696 | AI88: 1.92847 | AJ88: 1.92998 | AK88: 1.9315 | AL88: 1.93301 | AM88: 1.93453 | AN88: 1.93605 | AO88: 1.93757 | AP88: 1.93909 | AQ88: 1.94062
A89: 1400 | B89: 1.9107 | C89: 1.90927 | D89: 1.90784 | E89: 1.90641 | F89: 1.90497 | G89: 1.90353 | H89: 1.90209 | I89: 1.90065 | J89: 1.8992 | K89: 1.89776 | L89: 1.89631 | M89: 1.89486 | N89: 1.89341 | O89: 1.89195 | P89: 1.8905 | Q89: 1.88904 | R89: 1.88758 | S89: 1.88612 | T89: 1.88466 | U89: 1.88319 | W89: 1400 | X89: 1.91357 | Y89: 1.915 | Z89: 1.91643 | AA89: 1.91787 | AB89: 1.9193 | AC89: 1.92074 | AD89: 1.92219 | AE89: 1.92364 | AF89: 1.92509 | AG89: 1.92653 | AH89: 1.92799 | AI89: 1.92944 | AJ89: 1.93089 | AK89: 1.93235 | AL89: 1.93381 | AM89: 1.93527 | AN89: 1.93674 | AO89: 1.9382 | AP89: 1.93967 | AQ89: 1.94114
A90: 1450 | B90: 1.91229 | C90: 1.9109 | D90: 1.90952 | E90: 1.90813 | F90: 1.90675 | G90: 1.90535 | H90: 1.90396 | I90: 1.90257 | J90: 1.90118 | K90: 1.89979 | L90: 1.89838 | M90: 1.89699 | N90: 1.89559 | O90: 1.89419 | P90: 1.89277 | Q90: 1.89137 | R90: 1.88996 | S90: 1.88856 | T90: 1.88715 | U90: 1.88573 | W90: 1450 | X90: 1.91505 | Y90: 1.91643 | Z90: 1.91781 | AA90: 1.9192 | AB90: 1.92059 | AC90: 1.92197 | AD90: 1.92337 | AE90: 1.92476 | AF90: 1.92616 | AG90: 1.92755 | AH90: 1.92895 | AI90: 1.93035 | AJ90: 1.93177 | AK90: 1.93317 | AL90: 1.93458 | AM90: 1.93599 | AN90: 1.9374 | AO90: 1.93882 | AP90: 1.94023 | AQ90: 1.94165
A91: 1500 | B91: 1.91378 | C91: 1.91244 | D91: 1.9111 | E91: 1.90976 | F91: 1.90842 | G91: 1.90708 | H91: 1.90574 | I91: 1.9044 | J91: 1.90305 | K91: 1.9017 | L91: 1.90035 | M91: 1.89899 | N91: 1.89764 | O91: 1.89629 | P91: 1.89493 | Q91: 1.89357 | R91: 1.89221 | S91: 1.89085 | T91: 1.88948 | U91: 1.88812 | W91: 1500 | X91: 1.91645 | Y91: 1.91779 | Z91: 1.91912 | AA91: 1.92046 | AB91: 1.92181 | AC91: 1.92314 | AD91: 1.92449 | AE91: 1.92584 | AF91: 1.92718 | AG91: 1.92854 | AH91: 1.9299 | AI91: 1.93124 | AJ91: 1.9326 | AK91: 1.93397 | AL91: 1.93532 | AM91: 1.93669 | AN91: 1.93805 | AO91: 1.93941 | AP91: 1.94079 | AQ91: 1.94215
A92: 1550 | B92: 1.9152 | C92: 1.91391 | D92: 1.91261 | E92: 1.91132 | F92: 1.91002 | G92: 1.90872 | H92: 1.90742 | I92: 1.90612 | J92: 1.90482 | K92: 1.90352 | L92: 1.90221 | M92: 1.9009 | N92: 1.89959 | O92: 1.89828 | P92: 1.89696 | Q92: 1.89565 | R92: 1.89433 | S92: 1.89302 | T92: 1.8917 | U92: 1.89038 | W92: 1550 | X92: 1.91778 | Y92: 1.91908 | Z92: 1.92037 | AA92: 1.92167 | AB92: 1.92297 | AC92: 1.92426 | AD92: 1.92556 | AE92: 1.92687 | AF92: 1.92818 | AG92: 1.92948 | AH92: 1.93079 | AI92: 1.9321 | AJ92: 1.93341 | AK92: 1.93473 | AL92: 1.93604 | AM92: 1.93736 | AN92: 1.93868 | AO92: 1.94 | AP92: 1.94132 | AQ92: 1.94265
A93: 1600 | B93: 1.91655 | C93: 1.91531 | D93: 1.91405 | E93: 1.91279 | F93: 1.91154 | G93: 1.91028 | H93: 1.90902 | I93: 1.90776 | J93: 1.9065 | K93: 1.90523 | L93: 1.90397 | M93: 1.9027 | N93: 1.90143 | O93: 1.90016 | P93: 1.89889 | Q93: 1.89762 | R93: 1.89634 | S93: 1.89507 | T93: 1.8938 | U93: 1.89252 | W93: 1600 | X93: 1.91905 | Y93: 1.92031 | Z93: 1.92156 | AA93: 1.92282 | AB93: 1.92407 | AC93: 1.92534 | AD93: 1.92659 | AE93: 1.92786 | AF93: 1.92912 | AG93: 1.93038 | AH93: 1.93165 | AI93: 1.93293 | AJ93: 1.93419 | AK93: 1.93547 | AL93: 1.93674 | AM93: 1.93801 | AN93: 1.93929 | AO93: 1.94057 | AP93: 1.94185 | AQ93: 1.94314
A94: 1650 | B94: 1.91785 | C94: 1.91663 | D94: 1.91542 | E94: 1.9142 | F94: 1.91298 | G94: 1.91176 | H94: 1.91054 | I94: 1.90932 | J94: 1.9081 | K94: 1.90687 | L94: 1.90565 | M94: 1.90442 | N94: 1.90319 | O94: 1.90196 | P94: 1.90073 | Q94: 1.89949 | R94: 1.89826 | S94: 1.89702 | T94: 1.89578 | U94: 1.89455 | W94: 1650 | X94: 1.92028 | Y94: 1.92149 | Z94: 1.9227 | AA94: 1.92392 | AB94: 1.92514 | AC94: 1.92636 | AD94: 1.92758 | AE94: 1.92881 | AF94: 1.93003 | AG94: 1.93126 | AH94: 1.93249 | AI94: 1.93371 | AJ94: 1.93495 | AK94: 1.93618 | AL94: 1.93741 | AM94: 1.93865 | AN94: 1.93989 | AO94: 1.94113 | AP94: 1.94237 | AQ94: 1.94361
A95: 1700 | B95: 1.91908 | C95: 1.9179 | D95: 1.91672 | E95: 1.91554 | F95: 1.91436 | G95: 1.91318 | H95: 1.91199 | I95: 1.91081 | J95: 1.90962 | K95: 1.90843 | L95: 1.90724 | M95: 1.90605 | N95: 1.90486 | O95: 1.90366 | P95: 1.90247 | Q95: 1.90127 | R95: 1.90007 | S95: 1.89887 | T95: 1.89767 | U95: 1.89647 | W95: 1700 | X95: 1.92143 | Y95: 1.92261 | Z95: 1.9238 | AA95: 1.92498 | AB95: 1.92616 | AC95: 1.92734 | AD95: 1.92853 | AE95: 1.92971 | AF95: 1.9309 | AG95: 1.9321 | AH95: 1.93329 | AI95: 1.93448 | AJ95: 1.93567 | AK95: 1.93687 | AL95: 1.93807 | AM95: 1.93926 | AN95: 1.94047 | AO95: 1.94167 | AP95: 1.94287 | AQ95: 1.94407
A96: 1750 | B96: 1.92026 | C96: 1.91912 | D96: 1.91797 | E96: 1.91682 | F96: 1.91568 | G96: 1.91452 | H96: 1.91337 | I96: 1.91222 | J96: 1.91107 | K96: 1.90991 | L96: 1.90876 | M96: 1.90761 | N96: 1.90644 | O96: 1.90528 | P96: 1.90413 | Q96: 1.90297 | R96: 1.9018 | S96: 1.90064 | T96: 1.89947 | U96: 1.89831 | W96: 1750 | X96: 1.92255 | Y96: 1.92369 | Z96: 1.92483 | AA96: 1.92598 | AB96: 1.92714 | AC96: 1.92829 | AD96: 1.92944 | AE96: 1.93059 | AF96: 1.93174 | AG96: 1.9329 | AH96: 1.93406 | AI96: 1.93522 | AJ96: 1.93637 | AK96: 1.93753 | AL96: 1.9387 | AM96: 1.93987 | AN96: 1.94103 | AO96: 1.9422 | AP96: 1.94336 | AQ96: 1.94453
A97: 1800 | B97: 1.92139 | C97: 1.92028 | D97: 1.91916 | E97: 1.91805 | F97: 1.91693 | G97: 1.91582 | H97: 1.9147 | I97: 1.91358 | J97: 1.91245 | K97: 1.91133 | L97: 1.91021 | M97: 1.90909 | N97: 1.90796 | O97: 1.90683 | P97: 1.9057 | Q97: 1.90458 | R97: 1.90345 | S97: 1.90232 | T97: 1.90118 | U97: 1.90005 | W97: 1800 | X97: 1.92361 | Y97: 1.92473 | Z97: 1.92584 | AA97: 1.92695 | AB97: 1.92807 | AC97: 1.92919 | AD97: 1.93031 | AE97: 1.93144 | AF97: 1.93255 | AG97: 1.93367 | AH97: 1.9348 | AI97: 1.93593 | AJ97: 1.93706 | AK97: 1.93818 | AL97: 1.93931 | AM97: 1.94044 | AN97: 1.94158 | AO97: 1.94271 | AP97: 1.94384 | AQ97: 1.94498
A98: 1850 | B98: 1.92247 | C98: 1.92139 | D98: 1.92031 | E98: 1.91922 | F98: 1.91814 | G98: 1.91705 | H98: 1.91596 | I98: 1.91487 | J98: 1.91378 | K98: 1.91269 | L98: 1.9116 | M98: 1.91051 | N98: 1.90941 | O98: 1.90831 | P98: 1.90722 | Q98: 1.90612 | R98: 1.90502 | S98: 1.90392 | T98: 1.90282 | U98: 1.90171 | W98: 1850 | X98: 1.92463 | Y98: 1.92572 | Z98: 1.92681 | AA98: 1.92789 | AB98: 1.92897 | AC98: 1.93006 | AD98: 1.93115 | AE98: 1.93225 | AF98: 1.93334 | AG98: 1.93443 | AH98: 1.93552 | AI98: 1.93661 | AJ98: 1.93772 | AK98: 1.93881 | AL98: 1.93991 | AM98: 1.94101 | AN98: 1.94211 | AO98: 1.94321 | AP98: 1.94432 | AQ98: 1.94542
A99: 1900 | B99: 1.92352 | C99: 1.92246 | D99: 1.92141 | E99: 1.92035 | F99: 1.91929 | G99: 1.91823 | H99: 1.91717 | I99: 1.91611 | J99: 1.91505 | K99: 1.91399 | L99: 1.91292 | M99: 1.91186 | N99: 1.91079 | O99: 1.90973 | P99: 1.90866 | Q99: 1.9076 | R99: 1.90652 | S99: 1.90546 | T99: 1.90438 | U99: 1.90331 | W99: 1900 | X99: 1.92562 | Y99: 1.92668 | Z99: 1.92773 | AA99: 1.92878 | AB99: 1.92985 | AC99: 1.9309 | AD99: 1.93196 | AE99: 1.93303 | AF99: 1.93409 | AG99: 1.93515 | AH99: 1.93622 | AI99: 1.93728 | AJ99: 1.93835 | AK99: 1.93942 | AL99: 1.94048 | AM99: 1.94156 | AN99: 1.94263 | AO99: 1.9437 | AP99: 1.94478 | AQ99: 1.94585
A100: 1950 | B100: 1.92451 | C100: 1.92349 | D100: 1.92246 | E100: 1.92142 | F100: 1.9204 | G100: 1.91937 | H100: 1.91833 | I100: 1.9173 | J100: 1.91627 | K100: 1.91523 | L100: 1.91419 | M100: 1.91316 | N100: 1.91212 | O100: 1.91108 | P100: 1.91005 | Q100: 1.909 | R100: 1.90796 | S100: 1.90692 | T100: 1.90588 | U100: 1.90483 | W100: 1950 | X100: 1.92656 | Y100: 1.92759 | Z100: 1.92862 | AA100: 1.92965 | AB100: 1.93068 | AC100: 1.93171 | AD100: 1.93274 | AE100: 1.93377 | AF100: 1.93482 | AG100: 1.93585 | AH100: 1.93688 | AI100: 1.93793 | AJ100: 1.93896 | AK100: 1.94 | AL100: 1.94105 | AM100: 1.94209 | AN100: 1.94313 | AO100: 1.94418 | AP100: 1.94522 | AQ100: 1.94627
A101: 2000 | B101: 1.92548 | C101: 1.92447 | D101: 1.92347 | E101: 1.92246 | F101: 1.92146 | G101: 1.92046 | H101: 1.91945 | I101: 1.91844 | J101: 1.91744 | K101: 1.91643 | L101: 1.91542 | M101: 1.91441 | N101: 1.9134 | O101: 1.91239 | P101: 1.91137 | Q101: 1.91036 | R101: 1.90934 | S101: 1.90833 | T101: 1.90731 | U101: 1.90629 | W101: 2000 | X101: 1.92747 | Y101: 1.92847 | Z101: 1.92947 | AA101: 1.93049 | AB101: 1.93149 | AC101: 1.93249 | AD101: 1.9335 | AE101: 1.93451 | AF101: 1.93552 | AG101: 1.93652 | AH101: 1.93753 | AI101: 1.93854 | AJ101: 1.93957 | AK101: 1.94058 | AL101: 1.94159 | AM101: 1.94261 | AN101: 1.94363 | AO101: 1.94464 | AP101: 1.94566 | AQ101: 1.94668

Sheet Bridge&Test Year Class Forecast
A1: Weather Sensitive | K1: Non-Weather Sensitive
A3: ='Input - Customer Data'!A13 -> Residential | K3: ='Input - Customer Data'!A15 -> General Service > 50 to 2999 kW
A4: Year | B4: Residential Actual kWh | C4: Total Actual Wholesale | D4: Ratio% | E4: Predicted Wholesale | F4: Residential Weather Normal | G4: Per customer | K4: Year | L4: kWh | M4: kW | N4: KW/kWh Ratio
A5: ='Input - Customer Data'!E6 -> 2008 | B5: =SUM('Input - Customer Data'!G32:G43) -> 44267125.53 | C5: =SUM('Input - Adjustments & Variables'!H5:H16) -> 147644590.2 | D5: =B5/C5 -> 0.2998221979 | E5: =SUM(Forecast!C4:C15) -> 142745764.1 | F5: =E5*D5 -> 42798348.72 | G5: =F5/'Input - Customer Data'!F6 -> 7729.519365 | K5: ='Input - Customer Data'!E6 -> 2008 | L5: ='Bridge&Test Year Class Forecast'!B59 -> 66898820.39 | M5: =SUM('Input - Customer Data'!L32:L43) -> 169386.36 | N5: =M5/L5 -> 0.002531978277
A6: ='Input - Customer Data'!E7 -> 2009 | B6: =SUM('Input - Customer Data'!G44:G55) -> 43775753.41 | C6: =SUM('Input - Adjustments & Variables'!H17:H28) -> 139894245.9 | D6: 0.3129203287 | E6: =SUM(Forecast!C16:C27) -> 140745147 | F6: =E6*D6 -> 44042017.68 | G6: =F6/'Input - Customer Data'!F7 -> 7887.180816 | K6: ='Input - Customer Data'!E7 -> 2009 | L6: ='Bridge&Test Year Class Forecast'!B60 -> 62407115.03 | M6: =SUM('Input - Customer Data'!L44:L55) -> 169024.13 | N6: =M6/L6 -> 0.002708411211
A7: ='Input - Customer Data'!E8 -> 2010 | B7: =SUM('Input - Customer Data'!G56:G67) -> 45093297.22 | C7: =SUM('Input - Adjustments & Variables'!H29:H40) -> 141140527.7 | D7: 0.3194921966 | E7: =SUM(Forecast!C28:C39) -> 143068308.6 | F7: =E7*D7 -> 45709208.16 | G7: =F7/'Input - Customer Data'!F8 -> 8094.423262 | K7: ='Input - Customer Data'!E8 -> 2010 | L7: ='Bridge&Test Year Class Forecast'!B61 -> 64376683.75 | M7: =SUM('Input - Customer Data'!L56:L67) -> 170203.1 | N7: =M7/L7 -> 0.002643862499
A8: ='Input - Customer Data'!E9 -> 2011 | B8: =SUM('Input - Customer Data'!G68:G79) -> 44251862.37 | C8: =SUM('Input - Adjustments & Variables'!H41:H52) -> 140278908 | D8: 0.3154562792 | E8: =SUM(Forecast!C40:C51) -> 143978528.4 | F8: 45418930.86 | G8: =F8/'Input - Customer Data'!F9 -> 7955.671897 | K8: ='Input - Customer Data'!E9 -> 2011 | L8: ='Bridge&Test Year Class Forecast'!B62 -> 61442756.45 | M8: =SUM('Input - Customer Data'!L68:L79) -> 160989.06 | N8: 0.002620147098
A9: ='Input - Customer Data'!E10 -> 2012 | B9: =SUM('Input - Customer Data'!G80:G91) -> 45223786 | C9: =SUM('Input - Adjustments & Variables'!H53:H64) -> 143716822.6 | D9: 0.3146728767 | E9: =SUM(Forecast!C52:C63) -> 143496616.9 | F9: 45154493.25 | G9: =F9/'Input - Customer Data'!F10 -> 7778.55181 | K9: ='Input - Customer Data'!E10 -> 2012 | L9: ='Bridge&Test Year Class Forecast'!B63 -> 63286610 | M9: =SUM('Input - Customer Data'!L80:L91) -> 164083.8 | N9: 0.002592709579
A10: ='Input - Customer Data'!E11 -> 2013 | B10: =SUM('Input - Customer Data'!G92:G103) -> 46477809 | C10: =SUM('Input - Adjustments & Variables'!H65:H76) -> 146666557.6 | D10: 0.3168943879 | E10: =SUM(Forecast!C64:C75) -> 144472247.7 | F10: 45782444.5 | G10: =F10/'Input - Customer Data'!F11 -> 7744.640869 | K10: ='Input - Customer Data'!E11 -> 2013 | L10: ='Bridge&Test Year Class Forecast'!B64 -> 60663507 | M10: =SUM('Input - Customer Data'!L92:L103) -> 165373.3 | N10: 0.002726075497
A11: ='Input - Customer Data'!E12 -> 2014 | B11: =SUM('Input - Customer Data'!G104:G115) -> 46177614 | C11: =SUM('Input - Adjustments & Variables'!H77:H88) -> 145618385 | D11: 0.3171139001 | E11: =SUM(Forecast!C76:C87) -> 144603820.1 | F11: 45855881.36 | G11: =F11/'Input - Customer Data'!F12 -> 7711.406939 | K11: ='Input - Customer Data'!E12 -> 2014 | L11: ='Bridge&Test Year Class Forecast'!B65 -> 55013692 | M11: =SUM('Input - Customer Data'!L104:L115) -> 154259.7 | N11: 0.002804023769
A12: ='Input - Customer Data'!E13 -> 2015 | B12: =SUM('Input - Customer Data'!G116:G127) -> 45098159 | C12: =SUM('Input - Adjustments & Variables'!H89:H100) -> 142900769.8 | D12: 0.3155907352 | E12: =SUM(Forecast!C88:C99) -> 144146024.8 | F12: 45491149.95 | G12: =F12/'Input - Customer Data'!F13 -> 7631.462834 | K12: ='Input - Customer Data'!E13 -> 2015 | L12: ='Bridge&Test Year Class Forecast'!B66 -> 52447595 | M12: =SUM('Input - Customer Data'!L116:L127) -> 148977.3 | N12: 0.002840498215
A13: ='Input - Customer Data'!E14 -> 2016 | B13: =SUM('Input - Customer Data'!G128:G139) -> 44914361 | C13: =SUM('Input - Adjustments & Variables'!H101:H112) -> 143959401.2 | D13: 0.3119932468 | E13: =SUM(Forecast!C100:C111) -> 144563750.4 | F13: 45102913.85 | G13: =F13/'Input - Customer Data'!F14 -> 7531.587852 | K13: ='Input - Customer Data'!E14 -> 2016 | L13: ='Bridge&Test Year Class Forecast'!B67 -> 50553990 | M13: =SUM('Input - Customer Data'!L128:L139) -> 145124.2 | N13: =M13/L13 -> 0.002870677468
A14: ='Input - Customer Data'!E19 -> 2017 | B14: =SUM('Input - Customer Data'!G140:G151) -> 0 | C14: =SUM('Input - Adjustments & Variables'!H113:H124) -> 0 | D14: =AVERAGE(D5:D13) -> 0.3137729055 | E14: =SUM(Forecast!C112:C123) -> 145032041.8 | F14: =E14*D14 -> 45507125.13 | G14: =F14/'Input - Customer Data'!F24 -> 7524.989617 | K14: ='Input - Customer Data'!E19 -> 2017 | L14: ='Bridge&Test Year Class Forecast'!F68 -> 60321817.19 | M14: =L14*N18 -> 163126.1697 | N14: =M14/L14 -> 0.002704264846
A15: ='Input - Customer Data'!E20 -> 2018 | C15: Avg | D15: =AVERAGE(D5:D14) -> 0.3137729055 | E15: =SUM(Forecast!C124:C135) -> 145335432.8 | F15: =E15*D15 -> 45602321.01 | G15: =F15/'Input - Customer Data'!F25 -> 7467.203909 | K15: ='Input - Customer Data'!E20 -> 2018 | L15: ='Bridge&Test Year Class Forecast'!F69 -> 60448003.77 | M15: =L15*$N$18 -> 163467.4116 | N15: =M15/L15 -> 0.002704264846
A16: ='Input - Customer Data'!E20 -> 2018 | D16: =D15 -> 0.3137729055 | E16: =SUM(Forecast!C136:C147) -> 0 | F16: 0 | G16: =F16/'Input - Customer Data'!F15 ->  | K16: ='Input - Customer Data'!E20 -> 2018 | L16: ='Bridge&Test Year Class Forecast'!F70 -> 0 | M16: =L16*$N$18 -> 0
K18: Avg | N18: =AVERAGE(N5:N13) -> 0.002704264846
A21: Load corrected based on utility input
K22: ='Input - Customer Data'!A16 -> General Service > 3000 to 4999 kW
A23: Residential | C23: Per Customer Weather Normalized (based on 2012 cust count) | K23: Year | L23: kWh | M23: kW | N23: KW/kWh Ratio
A24: Year | B24: New Customer | D24: Added Load | G24: Total | K24: 2008 | L24: ='Bridge&Test Year Class Forecast'!B87 -> 21799117.2 | M24: =SUM('Input - Customer Data'!O32:O43) -> 46155.2 | N24: =M24/L24 -> 0.00211729675
K25: 2009 | L25: ='Bridge&Test Year Class Forecast'!B88 -> 18664981.2 | M25: =SUM('Input - Customer Data'!O44:O55) -> 42412.8 | N25: =M25/L25 -> 0.00227231946
K26: 2010 | L26: ='Bridge&Test Year Class Forecast'!B89 -> 17729306.4 | M26: =SUM('Input - Customer Data'!O56:O67) -> 44377.7 | N26: 0.002503070284
K27: 2011 | L27: ='Bridge&Test Year Class Forecast'!B90 -> 18104643.6 | M27: =SUM('Input - Customer Data'!O68:O79) -> 44396.5 | N27: 0.002452216182
K28: 2012 | L28: ='Bridge&Test Year Class Forecast'!B91 -> 19950324 | M28: =SUM('Input - Customer Data'!O80:O91) -> 45269.7 | N28: =M28/L28 -> 0.002269121043
K29: 2013 | L29: ='Bridge&Test Year Class Forecast'!B92 -> 18608986 | M29: =SUM('Input - Customer Data'!O92:O103) -> 42815.4 | N29: 0.002300791671
A30: ='Input - Customer Data'!A14 -> General Service < 50 kW | K30: 2014 | L30: ='Bridge&Test Year Class Forecast'!B93 -> 18461823 | M30: =SUM('Input - Customer Data'!O104:O115) -> 43263.5 | N30: 0.002343403466
A31: Year | B31: Actual kWh | C31: Total Wholesale | D31: Ratio% | E31: Predicted Wholesale | F31: Weather Normal | G31: Per customer | K31: 2015 | L31: ='Bridge&Test Year Class Forecast'!B94 -> 17295612 | M31: =SUM('Input - Customer Data'!O116:O127) -> 41432.5 | N31: 0.002395549808
A32: =A5 -> 2008 | B32: =SUM('Input - Customer Data'!I32:I43) -> 19599082.04 | C32: =C5 -> 147644590.2 | D32: =B32/C32 -> 0.1327450062 | E32: =E5 -> 142745764.1 | F32: =E32*D32 -> 18948787.34 | G32: =F32/'Input - Customer Data'!H6 -> 27927.46844 | K32: 2016 | L32: ='Bridge&Test Year Class Forecast'!B95 -> 18344949 | M32: =SUM('Input - Customer Data'!O128:O139) -> 43591 | N32: =M32/L32 -> 0.002376185401
A33: 2009 | B33: =SUM('Input - Customer Data'!I44:I55) -> 20149611.83 | C33: 139894245.9 | D33: =B33/C33 -> 0.1440346006 | E33: =E6 -> 140745147 | F33: =E33*D33 -> 20272171.04 | G33: =F33/'Input - Customer Data'!H7 -> 29231.68138 | K33: 2017 | L33: ='Bridge&Test Year Class Forecast'!F96 -> 18961919.5 | M33: =L33*N37 -> 44307.58844 | N33: =M33/L33 -> 0.002336661563
A34: 2010 | B34: =SUM('Input - Customer Data'!I56:I67) -> 20409368.48 | C34: 141140527.7 | D34: =B34/C34 -> 0.1446031754 | E34: 143068308.6 | F34: =E34*D34 -> 20688131.71 | G34: =F34/'Input - Customer Data'!H8 -> 29407.43669 | K34: ='Input - Customer Data'!E20 -> 2018 | L34: ='Bridge&Test Year Class Forecast'!F97 -> 19001585.74 | M34: =L34*N37 -> 44400.27502 | N34: 0.002336661563
A35: 2011 | B35: =SUM('Input - Customer Data'!I68:I79) -> 20583076.52 | C35: 140278908 | D35: 0.1467296603 | E35: 143978528.4 | F35: 21125920.57 | G35: =F35/'Input - Customer Data'!H9 -> 29817.81308 | K35: ='Input - Customer Data'!E20 | L35: ='Bridge&Test Year Class Forecast'!F70 -> 0 | M35: =L16*$N$18 -> 0 | N35: =M16/L16 -> 
A36: 2012 | B36: =SUM('Input - Customer Data'!I80:I91) -> 20304130 | C36: 143716822.6 | D36: 0.1412787288 | E36: 143496616.9 | F36: 20273019.63 | G36: =F36/'Input - Customer Data'!H10 -> 28654.4447
A37: 2013 | B37: =SUM('Input - Customer Data'!I92:I103) -> 20342402 | C37: 146666557.6 | D37: 0.1386982986 | E37: 144472247.7 | F37: 20038054.95 | G37: =F37/'Input - Customer Data'!H11 -> 28182.91835 | K37: Avg | N37: =AVERAGE(N24:N32) -> 0.002336661563
A38: 2014 | B38: =SUM('Input - Customer Data'!I104:I115) -> 20579869 | C38: 145618385 | D38: 0.1413274086 | E38: 144603820.1 | F38: 20436483.17 | G38: =F38/'Input - Customer Data'!H12 -> 28582.49394
A39: 2015 | B39: =SUM('Input - Customer Data'!I116:I127) -> 21387560 | C39: 142900769.8 | D39: 0.1496672133 | E39: 144146024.8 | F39: 21573933.85 | G39: =F39/'Input - Customer Data'!H13 -> 29553.33404
A40: 2016 | B40: =SUM('Input - Customer Data'!I128:I139) -> 23270825 | C40: 143959401.2 | D40: 0.1616485259 | E40: 144563750.4 | F40: =E40*D40 -> 23368517.15 | G40: =F40/'Input - Customer Data'!H14 -> 31515.19507
A41: 2017 | B41: =SUM('Input - Customer Data'!I140:I151) -> 0 | C41: 0 | D41: =AVERAGE(D32:D40) -> 0.1445258464 | E41: 145032041.8 | F41: 20960878.59 | G41: =F41/'Input - Customer Data'!H19 -> 27956.20164
A42: 2018 | C42: Avg | D42: =AVERAGE(D32:D41) -> 0.1445258464 | E42: 145335432.8 | F42: 21004726.44 | G42: =F42/'Input - Customer Data'!H20 -> 27705.47169
A43: 2018 | D43: =D42 -> 0.1445258464 | E43: 0 | F43: 0 | G43: =F43/'Input - Customer Data'!H15 ->  | K43: ='Input - Customer Data'!A17 -> USL
K44: Year | L44: kWh | M44: kW | N44: Connection | O44: kWh per connection | P44: KW per connection | Q44: KW/kWh Ratio
K46: ='Bridge&Test Year Class Forecast'!K5 -> 2008 | L46: =SUM('Input - Customer Data'!Q32:Q43) -> 401394.35 | N46: ='Input - Customer Data'!N6 -> 2 | O46: =L46/N46 -> 200697.175 | P46: =M46/N46 -> 0 | Q46: =M46/L46 -> 0
K47: ='Bridge&Test Year Class Forecast'!K6 -> 2009 | L47: =SUM('Input - Customer Data'!Q44:Q55) -> 400443.16 | N47: ='Input - Customer Data'!N7 -> 2 | O47: =L47/N47 -> 200221.58 | P47: =M47/N47 -> 0 | Q47: =M47/L47 -> 0
A48: Load corrected based on utility input | K48: ='Bridge&Test Year Class Forecast'!K7 -> 2010 | L48: =SUM('Input - Customer Data'!Q56:Q67) -> 453001.43 | N48: ='Input - Customer Data'!N8 -> 4 | O48: 113250.3575 | P48: 0 | Q48: 0
K49: ='Bridge&Test Year Class Forecast'!K8 -> 2011 | L49: =SUM('Input - Customer Data'!Q68:Q79) -> 494005.7 | N49: ='Input - Customer Data'!N9 -> 6 | O49: 82334.28333 | P49: 0 | Q49: 0
A50: GS<50 | K50: ='Bridge&Test Year Class Forecast'!K9 -> 2012 | L50: =SUM('Input - Customer Data'!Q80:Q91) -> 515381 | N50: ='Input - Customer Data'!N10 -> 9.5 | O50: 54250.63158 | P50: 0 | Q50: 0
A51: Year | B51: New Customer | C51: Per Customer Weather Normalized | D51: Added Load | G51: Total | K51: ='Bridge&Test Year Class Forecast'!K10 -> 2013 | L51: =SUM('Input - Customer Data'!Q92:Q103) -> 548400 | N51: ='Input - Customer Data'!N11 -> 13 | O51: 42184.61538 | P51: 0 | Q51: 0
K52: ='Bridge&Test Year Class Forecast'!K11 -> 2014 | L52: =SUM('Input - Customer Data'!Q104:Q115) -> 563396 | N52: ='Input - Customer Data'!N12 -> 13 | O52: 43338.15385 | P52: 0 | Q52: 0
K53: ='Bridge&Test Year Class Forecast'!K12 -> 2015 | L53: =SUM('Input - Customer Data'!Q116:Q127) -> 563839 | N53: ='Input - Customer Data'!N13 -> 13 | O53: 43372.23077 | P53: 0 | Q53: 0
K54: ='Bridge&Test Year Class Forecast'!K13 -> 2016 | L54: =SUM('Input - Customer Data'!Q128:Q139) -> 562067 | N54: ='Input - Customer Data'!N14 -> 13 | O54: =L54/N54 -> 43235.92308 | P54: =M54/N54 -> 0 | Q54: 0
K55: ='Bridge&Test Year Class Forecast'!K14 -> 2017 | L55: =O58*N55 -> 559425.5 | N55: ='Input - Customer Data'!N24 -> 13 | O55: =L55/N55 -> 43032.73077 | P55: =M55/N55 -> 0 | Q55: 0
K56: ='Bridge&Test Year Class Forecast'!K15 -> 2018 | L56: =O58*N56 -> 559425.5 | N56: ='Input - Customer Data'!N25 -> 13 | O56: 43032.73077 | P56: =M56/N56 -> 0 | Q56: 0
A57: ='Input - Customer Data'!A15 -> General Service > 50 to 2999 kW | K57: ='Bridge&Test Year Class Forecast'!K16 -> 2018 | L57: =N57*O59 -> 0 | M57: =ROUND(N57*P59,0) -> 0 | N57: ='Input - Customer Data'!N25 -> 13 | O57: =L57/N57 -> 0 | P57: =M57/N57 -> 0
A58: Year | B58: Actual kWh | C58: Total Wholesale | D58: Ratio% | E58: Predicted Wholesale | F58: Weather Normal | G58: Per customer | O58: =AVERAGE(O51:O54) -> 43032.73077 | P58: =AVERAGE(P46:P54) -> 0 | Q58: =AVERAGE(Q46:Q54) -> 0
A59: =A5 -> 2008 | B59: =SUM('Input - Customer Data'!K32:K43) -> 66898820.39 | C59: =C32 -> 147644590.2 | D59: =B59/C59 -> 0.4531071563 | E59: 142745764.1 | F59: =E59*D59 -> 64679127.23 | G59: =F59/'Input - Customer Data'!J6 -> 1134721.53
A60: 2009 | B60: =SUM('Input - Customer Data'!K44:K55) -> 62407115.03 | C60: 139894245.9 | D60: =B60/C60 -> 0.4461020869 | E60: 140745147 | F60: 62786703.81 | G60: =F60/'Input - Customer Data'!J7 -> 1037796.757
A61: 2010 | B61: =SUM('Input - Customer Data'!K56:K67) -> 64376683.75 | C61: 141140527.7 | D61: 0.4561176354 | E61: 143068308.6 | F61: 65255978.59 | G61: =F61/'Input - Customer Data'!J8 -> 1052515.784
A62: 2011 | B62: =SUM('Input - Customer Data'!K68:K79) -> 61442756.45 | C62: 140278908 | D62: 0.4380042397 | E62: 143978528.4 | F62: 63063205.88 | G62: =F62/'Input - Customer Data'!J9 -> 1042367.039
A63: 2012 | B63: =SUM('Input - Customer Data'!K80:K91) -> 63286610 | C63: 143716822.6 | D63: 0.4403563122 | E63: 143496616.9 | F63: 63189641.05 | G63: =F63/'Input - Customer Data'!J10 -> 1062010.774
A64: 2013 | B64: =SUM('Input - Customer Data'!K92:K103) -> 60663507 | C64: 146666557.6 | D64: 0.4136151281 | E64: 144472247.7 | F64: 59755907.22 | G64: =F64/'Input - Customer Data'!J11 -> 1048349.249 | K64: ='Input - Customer Data'!A18 -> Sentinel
A65: 2014 | B65: =SUM('Input - Customer Data'!K104:K115) -> 55013692 | C65: 145618385 | D65: 0.3777935869 | E65: 144603820.1 | F65: 54630395.88 | G65: =F65/'Input - Customer Data'!J12 -> 966909.6616 | K65: Year | L65: kWh | M65: kW | N65: Connection | O65: kWh per connection | P65: KW per connection | Q65: KW/kWh Ratio
A66: 2015 | B66: =SUM('Input - Customer Data'!K116:K127) -> 52447595 | C66: 142900769.8 | D66: 0.367021081 | E66: 144146024.8 | F66: 52904629.85 | G66: =F66/'Input - Customer Data'!J13 -> 1017396.728 | K66: ='Bridge&Test Year Class Forecast'!K5 -> 2008 | L66: =SUM('Input - Customer Data'!S32:S43) -> 45820.81 | M66: =SUM('Input - Customer Data'!T32:T43) -> 127.29 | N66: ='Input - Customer Data'!P6 -> 31 | O66: =L66/N66 -> 1478.090645 | P66: =M66/N66 -> 4.106129032 | Q66: =M66/L66 -> 0.002777995413
A67: 2016 | B67: =SUM('Input - Customer Data'!K128:K139) -> 50553990 | C67: 143959401.2 | D67: 0.351168382 | E67: 144563750.4 | F67: 50766218.31 | G67: =F67/'Input - Customer Data'!J14 -> 1068762.491 | K67: ='Bridge&Test Year Class Forecast'!K6 -> 2009 | L67: =SUM('Input - Customer Data'!S44:S55) -> 46167.35 | M67: =SUM('Input - Customer Data'!T44:T55) -> 128.23 | N67: ='Input - Customer Data'!P7 -> 31 | O67: =L67/N67 -> 1489.269355 | P67: =M67/N67 -> 4.136451613 | Q67: 0.002777504015
A68: 2017 | B68: =SUM('Input - Customer Data'!K140:K151) -> 0 | C68: 0 | D68: =AVERAGE(D59:D67) -> 0.4159206231 | E68: 145032041.8 | F68: 60321817.19 | G68: =F68/'Input - Customer Data'!J19 -> 1299207.33 | K68: ='Bridge&Test Year Class Forecast'!K7 -> 2010 | L68: =SUM('Input - Customer Data'!S56:S67) -> 43013.75 | M68: =SUM('Input - Customer Data'!T56:T67) -> 119.48 | N68: ='Input - Customer Data'!P8 -> 31 | O68: 1387.540323 | P68: 3.854193548 | Q68: 0.002777716428
A69: 2018 | C69: Avg | D69: =AVERAGE(D59:D68) -> 0.4159206231 | E69: =E42 -> 145335432.8 | F69: 60448003.77 | G69: =F69/'Input - Customer Data'!J20 -> 1331936.944 | K69: ='Bridge&Test Year Class Forecast'!K8 -> 2011 | L69: =SUM('Input - Customer Data'!S68:S79) -> 41278.66 | M69: =SUM('Input - Customer Data'!T68:T79) -> 114.69 | N69: ='Input - Customer Data'!P9 -> 31 | O69: 1331.569677 | P69: 3.699677419 | Q69: 0.002778433215
A70: 2018 | D70: =D69 -> 0.4159206231 | E70: =E43 -> 0 | F70: 0 | G70: =F70/'Input - Customer Data'!J15 ->  | K70: ='Bridge&Test Year Class Forecast'!K9 -> 2012 | L70: =SUM('Input - Customer Data'!S80:S91) -> 41226 | M70: =SUM('Input - Customer Data'!T80:T91) -> 114.54 | N70: ='Input - Customer Data'!P10 -> 29 | O70: 1421.586207 | P70: 3.949655172 | Q70: 0.002778343764
K71: ='Bridge&Test Year Class Forecast'!K10 -> 2013 | L71: =SUM('Input - Customer Data'!S92:S103) -> 40676 | M71: =SUM('Input - Customer Data'!T92:T103) -> 112.99 | N71: ='Input - Customer Data'!P11 -> 31 | O71: 1312.129032 | P71: 3.64483871 | Q71: 0.002777805094
K72: ='Bridge&Test Year Class Forecast'!K11 -> 2014 | L72: =SUM('Input - Customer Data'!S104:S115) -> 39277 | M72: =SUM('Input - Customer Data'!T104:T115) -> 109.08 | N72: ='Input - Customer Data'!P12 -> 31 | O72: 1267 | P72: 3.518709677 | Q72: 0.002777197851
K73: ='Bridge&Test Year Class Forecast'!K12 -> 2015 | L73: =SUM('Input - Customer Data'!S116:S127) -> 39278 | M73: =SUM('Input - Customer Data'!T116:T127) -> 109.08 | N73: ='Input - Customer Data'!P13 -> 31 | O73: 1267.032258 | P73: 3.518709677 | Q73: 0.002777127145
K74: ='Bridge&Test Year Class Forecast'!K13 -> 2016 | L74: =SUM('Input - Customer Data'!S128:S139) -> 39314 | M74: =SUM('Input - Customer Data'!T128:T139) -> 109.19 | N74: ='Input - Customer Data'!P14 -> 29 | O74: =L74/N74 -> 1355.655172 | P74: =M74/N74 -> 3.765172414 | Q74: 0.002777382103
A75: Load corrected based on utility input | K75: ='Bridge&Test Year Class Forecast'!K14 -> 2017 | L75: =N75*O79 -> 39335.85435 | M75: =N75*P79 -> 109.2644934 | N75: ='Input - Customer Data'!P24 -> 28.75924866 | O75: =L75/N75 -> 1367.76363 | P75: 3.799281918 | Q75: 0.002777732815
K76: ='Bridge&Test Year Class Forecast'!K15 -> 2018 | L76: =N76*O79 -> 39009.29712 | M76: =N76*P79 -> 108.3574047 | N76: ='Input - Customer Data'!P25 -> 28.52049599 | O76: 1367.76363 | P76: 3.799281918 | Q76: 0.002777732815
A77: GS>50 | K77: ='Bridge&Test Year Class Forecast'!K16 -> 2018 | L77: =N77*O79 -> 39009.29712 | M77: =N77*P79 -> 108.3574047 | N77: ='Input - Customer Data'!P25 -> 28.52049599 | O77: 1367.76363 | P77: 3.799281918 | Q77: 0.002777732815
A78: Year | B78: New Customer | C78: Per Customer Weather Normalized | D78: Added Load | G78: Total
K79: Avg | O79: =AVERAGE(O66:O74) -> 1367.76363 | P79: =AVERAGE(P66:P74) -> 3.799281918 | Q79: =AVERAGE(Q66:Q74) -> 0.002777722781
K84: ='Input - Customer Data'!A19 -> Street Lighting
A85: ='Input - Customer Data'!A16 -> General Service > 3000 to 4999 kW | K85: Year | L85: kWh | M85: kW | N85: Connection | O85: kWh per connection | P85: KW per connection | Q85: KW/kWh Ratio
A86: Year | B86: Actual kWh | C86: Total Wholesale | D86: Ratio% | E86: Predicted Wholesale | F86: Weather Normal | G86: Per customer | K86: 2008 | L86: =SUM('Input - Customer Data'!V32:V43) -> 1140337.06 | M86: =SUM('Input - Customer Data'!W32:W43) -> 3144.2 | N86: ='Input - Customer Data'!R6 -> 1658 | O86: =L86/N86 -> 687.7786852 | P86: =M86/N86 -> 1.896381182 | Q86: =M86/L86 -> 0.002757254947
A87: =A33 -> 2009 | B87: =SUM('Input - Customer Data'!N32:N43) -> 21799117.2 | C87: =C32 -> 147644590.2 | D87: =B87/C87 -> 0.1476458919 | E87: =E32 -> 142745764.1 | F87: =E87*D87 -> 21075825.65 | G87: =F87/'Input - Customer Data'!L6 -> 21075825.65 | K87: 2009 | L87: =SUM('Input - Customer Data'!V44:V55) -> 1139918.23 | M87: =SUM('Input - Customer Data'!W44:W55) -> 3235.1 | N87: ='Input - Customer Data'!R7 -> 1658 | O87: =L87/N87 -> 687.5260736 | P87: =M87/N87 -> 1.951206273 | Q87: =M87/L87 -> 0.002838010583
A88: 2010 | B88: =SUM('Input - Customer Data'!N44:N55) -> 18664981.2 | C88: 139894245.9 | D88: =B88/C88 -> 0.1334220795 | E88: 140745147 | F88: =E88*D88 -> 18778510.2 | G88: =F88/'Input - Customer Data'!L7 -> 18778510.2 | K88: 2010 | L88: =SUM('Input - Customer Data'!V56:V67) -> 1139669.76 | M88: =SUM('Input - Customer Data'!W56:W67) -> 3382.4 | N88: ='Input - Customer Data'!R8 -> 1680 | O88: 678.3748571 | P88: 2.013333333 | Q88: 0.002967877291
A89: 2011 | B89: =SUM('Input - Customer Data'!N56:N67) -> 17729306.4 | C89: 141140527.7 | D89: 0.1256145679 | E89: 143068308.6 | F89: 17971463.76 | G89: =F89/'Input - Customer Data'!L8 -> 17971463.76 | K89: 2011 | L89: =SUM('Input - Customer Data'!V68:V79) -> 1127165.69 | M89: =SUM('Input - Customer Data'!W68:W79) -> 3215.5 | N89: ='Input - Customer Data'!R9 -> 1687 | O89: 668.1480083 | P89: 1.906046236 | Q89: 0.002852730551
A90: 2012 | B90: =SUM('Input - Customer Data'!N68:N79) -> 18104643.6 | C90: 140278908 | D90: 0.129061766 | E90: 143978528.4 | F90: 18582123.14 | G90: =F90/'Input - Customer Data'!L9 -> 18582123.14 | K90: 2012 | L90: =SUM('Input - Customer Data'!V80:V91) -> 1063521 | M90: =SUM('Input - Customer Data'!W80:W91) -> 3124.4 | N90: ='Input - Customer Data'!R10 -> 1688 | O90: 630.0479858 | P90: 1.850947867 | Q90: 0.002937788723
A91: 2013 | B91: =SUM('Input - Customer Data'!N80:N91) -> 19950324 | C91: 143716822.6 | D91: 0.1388169015 | E91: 143496616.9 | F91: 19919755.73 | G91: =F91/'Input - Customer Data'!L10 -> 19919755.73 | K91: 2013 | L91: =SUM('Input - Customer Data'!V92:V103) -> 1151811 | M91: =SUM('Input - Customer Data'!W92:W103) -> 3174 | N91: ='Input - Customer Data'!R11 -> 1696 | O91: 679.1338443 | P91: 1.871462264 | Q91: 0.002755660434
A92: 2014 | B92: =SUM('Input - Customer Data'!N92:N103) -> 18608986 | C92: 146666557.6 | D92: 0.1268795444 | E92: 144472247.7 | F92: 18330572.96 | G92: =F92/'Input - Customer Data'!L11 -> 18330572.96 | K92: 2014 | L92: =SUM('Input - Customer Data'!V104:V115) -> 1141797 | M92: =SUM('Input - Customer Data'!W104:W115) -> 3151.2 | N92: ='Input - Customer Data'!R12 -> 1705 | O92: 669.6756598 | P92: 1.848211144 | Q92: 0.002759860115
A93: 2015 | B93: =SUM('Input - Customer Data'!N104:N115) -> 18461823 | C93: 145618385 | D93: 0.126782226 | E93: 144603820.1 | F93: 18333194.2 | G93: =F93/'Input - Customer Data'!L12 -> 18333194.2 | K93: 2015 | L93: =SUM('Input - Customer Data'!V116:V127) -> 976129 | M93: =SUM('Input - Customer Data'!W116:W127) -> 2727.2 | N93: ='Input - Customer Data'!R13 -> 1706.5 | O93: 572.0064459 | P93: 1.598124817 | Q93: =M93/L93 -> 0.00279389302
A94: 2016 | B94: =SUM('Input - Customer Data'!N116:N127) -> 17295612 | C94: 142900769.8 | D94: 0.1210323221 | E94: 144146024.8 | F94: 17446328.11 | G94: =F94/'Input - Customer Data'!L13 -> 17446328.11 | K94: 2016 | L94: =SUM('Input - Customer Data'!V128:V139) -> 566049 | M94: =SUM('Input - Customer Data'!W128:W139) -> 1555.2 | N94: ='Input - Customer Data'!R14 -> 1704.5 | O94: =L94/N94 -> 332.0909358 | P94: 0.9124083309 | Q94: =M94/L94 -> 0.002747465325
A95: 2017 | B95: =SUM('Input - Customer Data'!N128:N139) -> 18344949 | C95: 143959401.2 | D95: 0.1274314066 | E95: 144563750.4 | F95: 18421962.06 | G95: =F95/'Input - Customer Data'!L14 -> 18421962.06 | K95: 2017 | L95: =N95*O99 -> 568009.4843 | M95: =N95*P99 -> 1560.586363 | N95: ='Input - Customer Data'!R24 -> 1710.403456 | O95: =L95/N95 -> 332.0909358 | P95: =M95/N95 -> 0.9124083309 | Q95: =M95/L95 -> 0.002747465325
A96: 2018 | B96: =SUM('Input - Customer Data'!N140:N151) -> 0 | C96: 0 | D96: =AVERAGE(D87:D95) -> 0.1307429673 | E96: 145032041.8 | F96: =E96*D96 -> 18961919.5 | G96: =F96/'Input - Customer Data'!L19 -> 18961919.5 | K96: 2018 | L96: =N96*O99 -> 569976.7587 | M96: =N96*P99 -> 1565.991381 | N96: ='Input - Customer Data'!R25 -> 1716.327359 | O96: =L96/N96 -> 332.0909358 | P96: =M96/N96 -> 0.9124083309 | Q96: =M96/L96 -> 0.002747465325
A97: 2018 | C97: Avg | D97: =AVERAGE(D87:D96) -> 0.1307429673 | E97: 145335432.8 | F97: 19001585.74 | G97: =F97/'Input - Customer Data'!L20 -> 19001585.74 | K97: ='Bridge&Test Year Class Forecast'!K36 -> 0 | N97: ='Input - Customer Data'!P25 -> 28.52049599 | O97: =L77/N77 -> 1367.76363 | P97: =M77/N77 -> 3.799281918 | Q97: =M77/L77 -> 0.002777732815
A98: 0 | D98: =D97 -> 0.1307429673 | E98: =E71 -> 0 | F98: =E98*D98 -> 0 | G98: =F98/'Input - Customer Data'!J43 -> 0
K99: Avg | O99: =AVERAGE(O94) -> 332.0909358 | P99: =AVERAGE(P94) -> 0.9124083309 | Q99: =AVERAGE(Q94) -> 0.002747465325
A103: Load corrected based on utility input
A105: GS>3000
A106: Year | B106: New Customer | C106: Per Customer Weather Normalized | D106: Added Load | G106: Total
A108: =A54 -> 0 | B108: ='Input - Customer Data'!J53-'Input - Customer Data'!J48+B107 -> 10 | C108: =G98 -> 0 | D108: =B108*C108 -> 0 | G108: =F98+D108 -> 0

Sheet Chpt2 Appendix 2-IB
T1: File Number: | U1: 0
T2: Exhibit:
T3: Tab:
T4: Schedule:
T5: Page:
T7: Date:
B9: Appendix 2-IB
B10: Customer, Connections, Load Forecast and Revenues Data and Analysis
B12: This sheet requires no inputs, but serves as a summary of the hiostorical and forecasted data to be provided with respect to:
B14: 1) | C14: Customers and connections
B15: 2) | C15: Consumption (kWh)
B16: 3) | C16: Demand (kW or kCA) for applicable demand-billed customer classes
B17: 4) | C17: Revenues
B19: The spreadsheet summarizes the data provided and the analyses (variance or year-over-year) that are required. Data are required to be provided on a customer class level. Consumption (kWh) must also be provided on a total distribution system level.
B21: Appendix 2-IB (formerly 2-IA) is the appendix spreadsheet that the distributor populates, and the spreadsheet is laid out for inputting the necessary data. The spreadsheet also calculates necessary statistics such as average consumption per customer/connection per year, and variances and % annual changes, as necessary.
B23: The distributor is required to provide suitable documentation in Exhibit 3 of its Application, in accordance with section 2.3.2 of Chaoter 2 of the Filing Requirements. This would include explanations for material variations or of trends in the data.
B25: The distributor is also required to input its test year customer/connection and load forecast in Sheet 10 - Load Forecast of the Revenue Requirement Work Form. This sheet should also be updated to reflect changes in the load forecast made through the stages of processing of the rates application.
B27: The applicant must demonstrate the historical accuracy of its load forecast approach for at least the past 5 years. Such analysis will cover both customer/connections and consumption (kWh) and demand (kW or kVA) by providing the following, as shown in the following table:
B29: This sheet is to be filled in accordance with the instructions documented in section 2.3.2 of Chapter 2 of the Filing Requirements for Distribution Rate Applications, in terms of one set of tables per customer class.
B31: Color coding for Cells: | F31: Data input | K31: Drop-down List
F33: No data entry required | K33: Blank or calculated value
B35: Distribution System (Total)
D37: Calendar Year | K37: Consumption (kWh) (3)
D38: (for 2017 Cost of Service | L38: Actual (Weather actual) | M38: Weather-normalized | O38: Weather-normalized
C39: Historical | D39: =D40-1 -> 2011 | K39: Actual | L39: ='Wholesale Analysis'!B10 -> 156500644.4 | M39: ='Bridge&Test Year Class Forecast'!E9 -> 143496616.9 | N39: =IF(D39=2013,"Board-approved","") -> 
C40: Historical | D40: 2012 | K40: Actual | L40: ='Wholesale Analysis'!B11 -> 154795353.8 | M40: ='Bridge&Test Year Class Forecast'!E10 -> 144472247.7 | N40: =IF(D40=2013,"Board-approved","") -> 
C41: Historical | D41: 2013 | K41: Actual | L41: ='Wholesale Analysis'!B12 -> 148717979.2 | M41: ='Bridge&Test Year Class Forecast'!E11 -> 144603820.1 | N41: Board-approved
C42: Historical | D42: 2014 | K42: Actual | L42: ='Wholesale Analysis'!B13 -> 144221924.3 | M42: ='Bridge&Test Year Class Forecast'!E12 -> 144146024.8
C43: Historical | D43: 2015 | K43: Actual | L43: ='Wholesale Analysis'!B14 -> 145136098.4 | M43: ='Bridge&Test Year Class Forecast'!E13 -> 144563750.4
C44: Bridge Year | D44: 2016 | K44: Forecast | M44: ='Bridge&Test Year Class Forecast'!E14 -> 145032041.8
C45: Test Year | D45: 2017 | K45: Forecast | M45: ='Bridge&Test Year Class Forecast'!E15 -> 145335432.8
O46: =SUM(O39:O44) -> 0
C47: Variance Analysis | K47: Year | L47: Year-over-year | O47: Versus Board-approved
D48: =D39 -> 2011 | K48: =D48 -> 2011
D49: 2012 | K49: =D49 -> 2012 | L49: =IF(L39=0,"",L40/L39-1) -> -0.01089638075 | M49: 0.006798980583
D50: 2013 | K50: 2013 | L50: -0.0392607046 | M50: 0.0009107109241
D51: 2014 | K51: 2014 | L51: -0.0302320867 | M51: -0.003165858914
D52: 2015 | K52: 2015 | L52: 0.006338662476 | M52: 0.002897933252
D53: 2016 | K53: 2016 | L53: =IF(K44="Forecast","",IF(L43=0,"",L44/L43-1)) ->  | M53: =IF(M43=0,"",M44/M43-1) -> 0.003239341677
D54: 2017 | K54: 2017 | L54: =IF(K45="Forecast","",IF(L44=0,"",L45/L44-1)) ->  | M54: =IF(M44=0,"",M45/M44-1) -> 0.002091889534 | O54: =IF(O46=0,"",M45/O46-1) -> 
D55: Geometric Mean | K55: Geometric Mean | M55: =IF(M39=0,"",(M45/M39)^(1/(K54-K48-1)-1)) -> 0.9898653527
B57: Customer Class Analysis (one for each Customer Class, excluding MicroFIT and Standby)
B59: 1 | C59: Customer Class: | D59: Residential | H59: Is the customer class billed on consumption (kWh) or demand (kW or kVA)? | N59: kWh
D61: Calendar Year | F61: Customers | K61: Consumption (kWh) (3) | Q61: =CONCATENATE("Consumption (kWh) per ",LEFT(F61,LEN(F61)-1)) -> Consumption (kWh) per Customer
D62: (for 2017 Cost of Service | L62: Actual (Weather actual) | M62: Weather-normalized | O62: Weather-normalized | R62: =L62 -> Actual (Weather actual) | S62: =M62 -> Weather-normalized | U62: =O62 -> Weather-normalized
C63: Historical | D63: =D64-1 -> 2011 | F63: =K39 -> Actual | G63: ='Input - Customer Data'!F10 -> 5805 | H63: =IF(D63=2013,"Board-approved","") ->  | K63: =F63 -> Actual | L63: ='Bridge&Test Year Class Forecast'!B9 -> 45223786 | M63: ='Bridge&Test Year Class Forecast'!F9 -> 45154493.25 | N63: =H63 ->  | Q63: =K63 -> Actual | R63: =IF(G63=0,"",L63/G63) -> 7790.488544 | S63: =IF(G63=0,"",M63/G63) -> 7778.55181 | T63: =N63 ->  | U63: =IF(T63="","",IF(I63=0,"",O63/I63)) -> 
C64: Historical | D64: 2012 | F64: =K40 -> Actual | G64: ='Input - Customer Data'!F11 -> 5911.5 | K64: =F64 -> Actual | L64: ='Bridge&Test Year Class Forecast'!B10 -> 46477809 | M64: ='Bridge&Test Year Class Forecast'!F10 -> 45782444.5 | N64: =H64 ->  | Q64: =K64 -> Actual | R64: =IF(G64=0,"",L64/G64) -> 7862.269982 | S64: =IF(G64=0,"",M64/G64) -> 7744.640869 | T64: =N64 ->  | U64: =IF(T64="","",IF(I64=0,"",O64/I64)) -> 
C65: Historical | D65: 2013 | F65: Actual | G65: ='Input - Customer Data'!F12 -> 5946.5 | H65: Board-approved | K65: Actual | L65: ='Bridge&Test Year Class Forecast'!B11 -> 46177614 | M65: ='Bridge&Test Year Class Forecast'!F11 -> 45855881.36 | N65: Board-approved | Q65: Actual | R65: 7765.511477 | S65: 7711.406939 | T65: Board-approved
C66: Historical | D66: 2014 | F66: Actual | G66: ='Input - Customer Data'!F13 -> 5961 | K66: Actual | L66: ='Bridge&Test Year Class Forecast'!B12 -> 45098159 | M66: ='Bridge&Test Year Class Forecast'!F12 -> 45491149.95 | Q66: Actual | R66: 7565.535816 | S66: 7631.462834
C67: Historical | D67: 2015 | F67: Actual | G67: ='Input - Customer Data'!F14 -> 5988.5 | K67: Actual | L67: ='Bridge&Test Year Class Forecast'!B13 -> 44914361 | M67: ='Bridge&Test Year Class Forecast'!F13 -> 45102913.85 | Q67: Actual | R67: 7500.102029 | S67: 7531.587852
C68: Bridge Year | D68: 2016 | F68: Forecast | G68: ='Input - Customer Data'!F19 -> 6047.466833 | K68: Forecast | M68: ='Bridge&Test Year Class Forecast'!F14 -> 45507125.13 | Q68: Forecast | R68: 0 | S68: 7524.989617
C69: Test Year | D69: 2017 | F69: Forecast | G69: ='Input - Customer Data'!F20 -> 6107.014294 | K69: Forecast | M69: ='Bridge&Test Year Class Forecast'!F15 -> 45602321.01 | Q69: Forecast | R69: 0 | S69: 7467.203909
I70: =SUM(I63:I68) -> 0 | O70: =SUM(O63:O68) -> 0 | U70: =SUM(U63:U68) -> 0
C71: Variance Analysis | D71: Year | G71: Year-over-year | I71: Test Year Versus Board-approved | K71: Year | L71: Year-over-year | O71: =I71 -> Test Year Versus Board-approved | Q71: Year | R71: Year-over-year | U71: =O71 -> Test Year Versus Board-approved
D72: =D63 -> 2011 | K72: =D72 -> 2011 | Q72: =K72 -> 2011
D73: 2012 | G73: =IF(G63=0,"",G64/G63-1) -> 0.01834625323 | K73: =D73 -> 2012 | L73: =IF(L63=0,"",L64/L63-1) -> 0.02772927945 | M73: 0.01390672774 | Q73: =K73 -> 2012 | R73: =IF(R63="","",IF(R63=0,"",R64/R63-1)) -> 0.009213984139 | S73: =IF(S63="","",IF(S63=0,"",S64/S63-1)) -> -0.00435954419
D74: 2013 | G74: 0.005920663114 | K74: 2013 | L74: -0.0064588888 | M74: 0.001604039839 | Q74: 2013 | R74: =IF(R64="","",IF(R64=0,"",R65/R64-1)) -> -0.01230668816 | S74: -0.004291216429
D75: 2014 | G75: 0.002438409148 | K75: 2014 | L75: -0.02337615365 | M75: -0.007953863299 | Q75: 2014 | R75: -0.02575176945 | S75: -0.01036699348
D76: 2015 | G76: 0.004613319913 | K76: 2015 | L76: -0.004075510045 | M76: -0.008534321532 | Q76: 2015 | R76: -0.008648929678 | S76: -0.0130872657
D77: 2016 | G77: 0.009846678329 | K77: 2016 | L77: =IF(K68="Forecast","",IF(L67=0,"",L68/L67-1)) ->  | M77: =IF(M67=0,"",M68/M67-1) -> 0.008961977038 | Q77: 2016 | R77: =IF(Q68="Forecast","",IF(R67=0,"",R68/R67-1)) ->  | S77: -0.0008760748641
D78: 2017 | G78: 0.009846678329 | I78: =IF(I70=0,"",G69/I70-1) ->  | K78: 2017 | L78: =IF(K69="Forecast","",IF(L68=0,"",L69/L68-1)) ->  | M78: =IF(M68=0,"",M69/M68-1) -> 0.002091889534 | O78: =IF(O70=0,"",M69/O70-1) ->  | Q78: 2017 | R78: =IF(Q69="Forecast","",IF(R68=0,"",R69/R68-1)) ->  | S78: -0.007679174435 | U78: =IF(U70=0,"",S69/U70-1) -> 
D79: Geometric Mean | G79: =IF(G63=0,"",GEOMEAN(G73:G78)) -> 0.007008142077 | K79: Geometric Mean | M79: =IF(M63=0,"",(M69/M63)^(1/(K78-K72-1)-1)) -> 0.9921360271 | Q79: Geometric Mean | S79: =IF(S63="","",IF(S63=0,"",(S69/S63)^(1/(Q78-Q72-1)-1))) -> 1.033219491
D82: Calendar Year | F82: Revenues | K82: =IF(ISBLANK(N59),"",CONCATENATE("Demand (",N59,")")) -> Demand (kWh) | Q82: =CONCATENATE("Demand (",N59,") per ",LEFT(F61,LEN(F61)-1)) -> Demand (kWh) per Customer
D83: (for 2017 Cost of Service | L83: Actual (Weather actual) | M83: Weather-normalized | O83: =M83 -> Weather-normalized | R83: =L83 -> Actual (Weather actual) | S83: =M83 -> Weather-normalized | U83: =O83 -> Weather-normalized
C84: Historical | D84: =D85-1 -> 2011 | F84: =F63 -> Actual | H84: =IF(D84=2013,"Board-approved","") ->  | K84: =K63 -> Actual | N84: =N63 ->  | Q84: =K84 -> Actual | R84: =IF(G84=0,"",L84/G84) ->  | S84: =IF(G84=0,"",M84/G84) ->  | T84: =N84 ->  | U84: =IF(T84="","",IF(I84=0,"",O84/I84)) -> 
C85: Historical | D85: 2012 | F85: Actual | K85: Actual | Q85: =K85 -> Actual | R85: =IF(G85=0,"",L85/G85) ->  | S85: =IF(G85=0,"",M85/G85) ->  | T85: =N85 ->  | U85: =IF(T85="","",IF(I85=0,"",O85/I85)) -> 
C86: Historical | D86: 2013 | F86: Actual | H86: Board-approved | K86: Actual | N86: Board-approved | Q86: Actual | T86: Board-approved
C87: Historical | D87: 2014 | F87: Actual | K87: Actual | Q87: Actual
C88: Historical | D88: 2015 | F88: Actual | K88: Actual | Q88: Actual
C89: Bridge Year (Forecast) | D89: 2016 | F89: Forecast | K89: Forecast | Q89: Forecast
C90: Test Year (Forecast) | D90: 2017 | F90: Forecast | K90: Forecast | Q90: Forecast
I91: =SUM(I84:I89) -> 0 | O91: =SUM(O84:O89) -> 0 | U91: =SUM(U84:U89) -> 0
C92: Variance Analysis | D92: Year | G92: Year-over-year | I92: =I71 -> Test Year Versus Board-approved | K92: Year | L92: Year-over-year | O92: =I92 -> Test Year Versus Board-approved | Q92: Year | R92: Year-over-year | U92: =O92 -> Test Year Versus Board-approved
D93: =D84 -> 2011 | K93: =D93 -> 2011 | Q93: =K93 -> 2011
D94: 2012 | G94: =IF(G84=0,"",G85/G84-1) ->  | K94: =D94 -> 2012 | L94: =IF(L84=0,"",L85/L84-1) ->  | M94: =IF(M84=0,"",M85/M84-1) ->  | Q94: =K94 -> 2012 | R94: =IF(R84="","",IF(R84=0,"",R85/R84-1)) ->  | S94: =IF(S84="","",IF(S84=0,"",S85/S84-1)) -> 
D95: 2013 | K95: 2013 | L95: =IF(L85=0,"",L86/L85-1) ->  | Q95: 2013 | R95: =IF(R85="","",IF(R85=0,"",R86/R85-1)) -> 
D96: 2014 | K96: 2014 | Q96: 2014
D97: 2015 | K97: 2015 | Q97: 2015
D98: 2016 | K98: 2016 | L98: =IF(K89="Forecast","",IF(L88=0,"",L89/L88-1)) ->  | Q98: 2016 | R98: =IF(Q89="Forecast","",IF(R88=0,"",R89/R88-1)) -> 
D99: 2017 | I99: =IF(I91=0,"",G90/I91-1) ->  | K99: 2017 | L99: =IF(K90="Forecast","",IF(L89=0,"",L90/L89-1)) ->  | O99: =IF(O91=0,"",M90/O91-1) ->  | Q99: 2017 | R99: =IF(Q90="Forecast","",IF(R89=0,"",R90/R89-1)) ->  | U99: =IF(U91=0,"",S90/U91-1) -> 
D100: Geometric Mean | G100: =IF(G84=0,"",GEOMEAN(G94:G99)) ->  | K100: Geometric Mean | M100: =IF(M84=0,"",GEOMEAN(M94:M99)) ->  | Q100: Geometric Mean | S100: =IF(S84="","",IF(S84=0,"",(S90/S84)^(1/(Q99-Q93-1)-1))) -> 
B102: 2 | C102: Customer Class: | D102: GS < 50 kW | H102: Is the customer class billed on consumption (kWh) or demand (kW or kVA)? | N102: kWh
D104: Calendar Year | F104: Customers | K104: Consumption (kWh) (3) | Q104: =CONCATENATE("Consumption (kWh) per ",LEFT(F104,LEN(F104)-1)) -> Consumption (kWh) per Customer
D105: (for 2017 Cost of Service | L105: Actual (Weather actual) | M105: Weather-normalized | O105: Weather-normalized | R105: =L105 -> Actual (Weather actual) | S105: =M105 -> Weather-normalized | U105: =O105 -> Weather-normalized
C106: Historical | D106: =D107-1 -> 2011 | F106: =F63 -> Actual | G106: ='Input - Customer Data'!H10 -> 707.5 | H106: =IF(D106=2013,"Board-approved","") ->  | K106: =F106 -> Actual | L106: ='Bridge&Test Year Class Forecast'!B36 -> 20304130 | M106: ='Bridge&Test Year Class Forecast'!F36 -> 20273019.63 | N106: =H106 ->  | Q106: =K106 -> Actual | R106: =IF(G106=0,"",L106/G106) -> 28698.41696 | S106: =IF(G106=0,"",M106/G106) -> 28654.4447 | T106: =N106 ->  | U106: =IF(T106="","",IF(I106=0,"",O106/I106)) -> 
C107: Historical | D107: 2012 | F107: =F64 -> Actual | G107: ='Input - Customer Data'!H11 -> 711 | K107: =F107 -> Actual | L107: ='Bridge&Test Year Class Forecast'!B37 -> 20342402 | M107: ='Bridge&Test Year Class Forecast'!F37 -> 20038054.95 | N107: =H107 ->  | Q107: =K107 -> Actual | R107: =IF(G107=0,"",L107/G107) -> 28610.97328 | S107: =IF(G107=0,"",M107/G107) -> 28182.91835 | T107: =N107 ->  | U107: =IF(T107="","",IF(I107=0,"",O107/I107)) -> 
C108: Historical | D108: 2013 | F108: Actual | G108: ='Input - Customer Data'!H12 -> 715 | H108: Board-approved | K108: Actual | L108: ='Bridge&Test Year Class Forecast'!B38 -> 20579869 | M108: ='Bridge&Test Year Class Forecast'!F38 -> 20436483.17 | N108: Board-approved | Q108: Actual | R108: 28783.03357 | S108: 28582.49394 | T108: Board-approved
C109: Historical | D109: 2014 | F109: Actual | G109: ='Input - Customer Data'!H13 -> 730 | K109: Actual | L109: ='Bridge&Test Year Class Forecast'!B39 -> 21387560 | M109: ='Bridge&Test Year Class Forecast'!F39 -> 21573933.85 | Q109: Actual | R109: 29298.0274 | S109: 29553.33404
C110: Historical | D110: 2015 | F110: Actual | G110: ='Input - Customer Data'!H14 -> 741.5 | K110: Actual | L110: ='Bridge&Test Year Class Forecast'!B40 -> 23270825 | M110: ='Bridge&Test Year Class Forecast'!F40 -> 23368517.15 | Q110: Actual | R110: 31383.44572 | S110: 31515.19507
C111: Bridge Year | D111: 2016 | F111: Forecast | G111: ='Input - Customer Data'!H19 -> 749.7756263 | K111: Forecast | M111: ='Bridge&Test Year Class Forecast'!F41 -> 20960878.59 | Q111: Forecast | R111: 0 | S111: 27956.20164
C112: Test Year | D112: 2017 | F112: Forecast | G112: ='Input - Customer Data'!H20 -> 758.1436141 | K112: Forecast | M112: ='Bridge&Test Year Class Forecast'!F42 -> 21004726.44 | Q112: Forecast | R112: 0 | S112: 27705.47169
I113: =SUM(I106:I111) -> 0 | O113: =SUM(O106:O111) -> 0 | U113: =SUM(U106:U111) -> 0
C114: Variance Analysis | D114: Year | G114: Year-over-year | I114: Test Year Versus Board-approved | K114: Year | L114: Year-over-year | O114: =I114 -> Test Year Versus Board-approved | Q114: Year | R114: Year-over-year | U114: =O114 -> Test Year Versus Board-approved
D115: =D106 -> 2011 | K115: =D115 -> 2011 | Q115: =K115 -> 2011
D116: 2012 | G116: =IF(G106=0,"",G107/G106-1) -> 0.004946996466 | K116: =D116 -> 2012 | L116: =IF(L106=0,"",L107/L106-1) -> 0.00188493671 | M116: -0.01159001883 | Q116: =K116 -> 2012 | R116: =IF(R106="","",IF(R106=0,"",R107/R106-1)) -> -0.003046986326 | S116: =IF(S106="","",IF(S106=0,"",S107/S106-1)) -> -0.01645560946
D117: 2013 | G117: 0.005625879044 | K117: 2013 | L117: 0.01167349854 | M117: 0.01988357775 | Q117: 2013 | R117: =IF(R107="","",IF(R107=0,"",R108/R107-1)) -> 0.006013786658 | S117: 0.01417793536
D118: 2014 | G118: 0.02097902098 | K118: 2014 | L118: 0.0392466541 | M118: 0.05565784834 | Q118: 2014 | R118: 0.01789227079 | S118: 0.03396624872
D119: 2015 | G119: 0.01575342466 | K119: 2015 | L119: 0.08805422404 | M119: 0.08318294241 | Q119: 2015 | R119: 0.07117947883 | S119: 0.06638374641
D120: 2016 | G120: 0.01116065586 | K120: 2016 | L120: =IF(K111="Forecast","",IF(L110=0,"",L111/L110-1)) ->  | M120: =IF(M110=0,"",M111/M110-1) -> -0.1030291541 | Q120: 2016 | R120: =IF(Q111="Forecast","",IF(R110=0,"",R111/R110-1)) ->  | S120: -0.1129294433
D121: 2017 | G121: 0.01116065586 | I121: =IF(I113=0,"",G112/I113-1) ->  | K121: 2017 | L121: =IF(K112="Forecast","",IF(L111=0,"",L112/L111-1)) ->  | M121: =IF(M111=0,"",M112/M111-1) -> 0.002091889534 | O121: =IF(O113=0,"",M112/O113-1) ->  | Q121: 2017 | R121: =IF(Q112="Forecast","",IF(R111=0,"",R112/R111-1)) ->  | S121: -0.008968670086 | U121: =IF(U113=0,"",S112/U113-1) -> 
D122: Geometric Mean | G122: =IF(G106=0,"",GEOMEAN(G116:G121)) -> 0.0102292848 | K122: Geometric Mean | M122: =IF(M106=0,"",(M112/M106)^(1/(K121-K115-1)-1)) -> 0.9720332678 | Q122: Geometric Mean | S122: =IF(S106="","",IF(S106=0,"",(S112/S106)^(1/(Q121-Q115-1)-1))) -> 1.027309155
D125: Calendar Year | F125: Revenues | K125: =IF(ISBLANK(N102),"",CONCATENATE("Demand (",N102,")")) -> Demand (kWh) | Q125: =CONCATENATE("Demand (",N102,") per ",LEFT(F104,LEN(F104)-1)) -> Demand (kWh) per Customer
D126: (for 2017 Cost of Service | L126: Actual (Weather actual) | M126: Weather-normalized | O126: =M126 -> Weather-normalized | R126: =L126 -> Actual (Weather actual) | S126: =M126 -> Weather-normalized | U126: =O126 -> Weather-normalized
C127: Historical | D127: =D128-1 -> 2011 | F127: =F106 -> Actual | H127: =IF(D127=2013,"Board-approved","") ->  | K127: =K106 -> Actual | N127: =N106 ->  | Q127: =K127 -> Actual | R127: =IF(G127=0,"",L127/G127) ->  | S127: =IF(G127=0,"",M127/G127) ->  | T127: =N127 ->  | U127: =IF(T127="","",IF(I127=0,"",O127/I127)) -> 
C128: Historical | D128: 2012 | F128: Actual | K128: Actual | Q128: =K128 -> Actual | R128: =IF(G128=0,"",L128/G128) ->  | S128: =IF(G128=0,"",M128/G128) ->  | T128: =N128 ->  | U128: =IF(T128="","",IF(I128=0,"",O128/I128)) -> 
C129: Historical | D129: 2013 | F129: Actual | H129: Board-approved | K129: Actual | N129: Board-approved | Q129: Actual | T129: Board-approved
C130: Historical | D130: 2014 | F130: Actual | K130: Actual | Q130: Actual
C131: Historical | D131: 2015 | F131: Actual | K131: Actual | Q131: Actual
C132: Bridge Year (Forecast) | D132: 2016 | F132: Forecast | K132: Forecast | Q132: Forecast
C133: Test Year (Forecast) | D133: 2017 | F133: Forecast | K133: Forecast | Q133: Forecast
I134: =SUM(I127:I132) -> 0 | O134: =SUM(O127:O132) -> 0 | U134: =SUM(U127:U132) -> 0
C135: Variance Analysis | D135: Year | G135: Year-over-year | I135: =I114 -> Test Year Versus Board-approved | K135: Year | L135: Year-over-year | O135: =I135 -> Test Year Versus Board-approved | Q135: Year | R135: Year-over-year | U135: =O135 -> Test Year Versus Board-approved
D136: =D127 -> 2011 | K136: =D136 -> 2011 | Q136: =K136 -> 2011
D137: 2012 | G137: =IF(G127=0,"",G128/G127-1) ->  | K137: =D137 -> 2012 | L137: =IF(L127=0,"",L128/L127-1) ->  | M137: =IF(M127=0,"",M128/M127-1) ->  | Q137: =K137 -> 2012 | R137: =IF(R127="","",IF(R127=0,"",R128/R127-1)) ->  | S137: =IF(S127="","",IF(S127=0,"",S128/S127-1)) -> 
D138: 2013 | K138: 2013 | L138: =IF(L128=0,"",L129/L128-1) ->  | Q138: 2013 | R138: =IF(R128="","",IF(R128=0,"",R129/R128-1)) -> 
D139: 2014 | K139: 2014 | Q139: 2014
D140: 2015 | K140: 2015 | Q140: 2015
D141: 2016 | K141: 2016 | L141: =IF(K132="Forecast","",IF(L131=0,"",L132/L131-1)) ->  | Q141: 2016 | R141: =IF(Q132="Forecast","",IF(R131=0,"",R132/R131-1)) -> 
D142: 2017 | I142: =IF(I134=0,"",G133/I134-1) ->  | K142: 2017 | L142: =IF(K133="Forecast","",IF(L132=0,"",L133/L132-1)) ->  | O142: =IF(O134=0,"",M133/O134-1) ->  | Q142: 2017 | R142: =IF(Q133="Forecast","",IF(R132=0,"",R133/R132-1)) ->  | U142: =IF(U134=0,"",S133/U134-1) -> 
D143: Geometric Mean | G143: =IF(G127=0,"",GEOMEAN(G137:G142)) ->  | K143: Geometric Mean | M143: =IF(M127=0,"",GEOMEAN(M137:M142)) ->  | Q143: Geometric Mean | S143: =IF(S127="","",IF(S127=0,"",(S133/S127)^(1/(Q142-Q136-1)-1))) -> 
B145: 3 | C145: Customer Class: | D145: GS > 50-2999 kW | H145: Is the customer class billed on consumption (kWh) or demand (kW or kVA)? | N145: kW
D147: Calendar Year | F147: Customers | K147: Consumption (kWh) (3) | Q147: =CONCATENATE("Consumption (kWh) per ",LEFT(F147,LEN(F147)-1)) -> Consumption (kWh) per Customer
D148: (for 2017 Cost of Service | L148: Actual (Weather actual) | M148: Weather-normalized | O148: Weather-normalized | R148: =L148 -> Actual (Weather actual) | S148: =M148 -> Weather-normalized | U148: =O148 -> Weather-normalized
C149: Historical | D149: =D150-1 -> 2011 | F149: =F106 -> Actual | G149: ='Input - Customer Data'!J10 -> 59.5 | H149: =IF(D149=2013,"Board-approved","") ->  | K149: =F149 -> Actual | L149: ='Bridge&Test Year Class Forecast'!B63 -> 63286610 | M149: ='Bridge&Test Year Class Forecast'!F63 -> 63189641.05 | N149: =H149 ->  | Q149: =K149 -> Actual | R149: =IF(G149=0,"",L149/G149) -> 1063640.504 | S149: =IF(G149=0,"",M149/G149) -> 1062010.774 | T149: =N149 ->  | U149: =IF(T149="","",IF(I149=0,"",O149/I149)) -> 
C150: Historical | D150: 2012 | F150: =F107 -> Actual | G150: ='Input - Customer Data'!J11 -> 57 | K150: =F150 -> Actual | L150: ='Bridge&Test Year Class Forecast'!B64 -> 60663507 | M150: ='Bridge&Test Year Class Forecast'!F64 -> 59755907.22 | N150: =H150 ->  | Q150: =K150 -> Actual | R150: =IF(G150=0,"",L150/G150) -> 1064272.053 | S150: =IF(G150=0,"",M150/G150) -> 1048349.249 | T150: =N150 ->  | U150: =IF(T150="","",IF(I150=0,"",O150/I150)) -> 
C151: Historical | D151: 2013 | F151: Actual | G151: ='Input - Customer Data'!J12 -> 56.5 | H151: Board-approved | K151: Actual | L151: ='Bridge&Test Year Class Forecast'!B65 -> 55013692 | M151: ='Bridge&Test Year Class Forecast'!F65 -> 54630395.88 | N151: Board-approved | Q151: Actual | R151: 973693.6637 | S151: 966909.6616 | T151: Board-approved
C152: Historical | D152: 2014 | F152: Actual | G152: ='Input - Customer Data'!J13 -> 52 | K152: Actual | L152: ='Bridge&Test Year Class Forecast'!B66 -> 52447595 | M152: ='Bridge&Test Year Class Forecast'!F66 -> 52904629.85 | Q152: Actual | R152: 1008607.596 | S152: 1017396.728
C153: Historical | D153: 2015 | F153: Actual | G153: ='Input - Customer Data'!J14 -> 47.5 | K153: Actual | L153: ='Bridge&Test Year Class Forecast'!B67 -> 50553990 | M153: ='Bridge&Test Year Class Forecast'!F67 -> 50766218.31 | Q153: Actual | R153: 1064294.526 | S153: 1068762.491
C154: Bridge Year | D154: 2016 | F154: Forecast | G154: ='Input - Customer Data'!J19 -> 46.42970816 | K154: Forecast | M154: ='Bridge&Test Year Class Forecast'!F68 -> 60321817.19 | Q154: Forecast | R154: 0 | S154: 1299207.33
C155: Test Year | D155: 2017 | F155: Forecast | G155: ='Input - Customer Data'!J20 -> 45.38353263 | K155: Forecast | M155: ='Bridge&Test Year Class Forecast'!F69 -> 60448003.77 | Q155: Forecast | R155: 0 | S155: 1331936.944
I156: =SUM(I149:I154) -> 0 | O156: =SUM(O149:O154) -> 0 | U156: =SUM(U149:U154) -> 0
C157: Variance Analysis | D157: Year | G157: Year-over-year | I157: Test Year Versus Board-approved | K157: Year | L157: Year-over-year | O157: =I157 -> Test Year Versus Board-approved | Q157: Year | R157: Year-over-year | U157: =O157 -> Test Year Versus Board-approved
D158: =D149 -> 2011 | K158: =D158 -> 2011 | Q158: =K158 -> 2011
D159: 2012 | G159: =IF(G149=0,"",G150/G149-1) -> -0.04201680672 | K159: =D159 -> 2012 | L159: =IF(L149=0,"",L150/L149-1) -> -0.0414479935 | M159: -0.0543401383 | Q159: =K159 -> 2012 | R159: =IF(R149="","",IF(R149=0,"",R150/R149-1)) -> 0.0005937611697 | S159: =IF(S149="","",IF(S149=0,"",S150/S149-1)) -> -0.01286382857
D160: 2013 | G160: -0.008771929825 | K160: 2013 | L160: -0.09313366931 | M160: -0.08577413639 | Q160: 2013 | R160: =IF(R150="","",IF(R150=0,"",R151/R150-1)) -> -0.08510830355 | S160: -0.07768364203
D161: 2014 | G161: -0.0796460177 | K161: 2014 | L161: -0.04664469711 | M161: -0.03158985041 | Q161: 2014 | R161: 0.03585720411 | S161: 0.05221487408
D162: 2015 | G162: -0.08653846154 | K162: 2015 | L162: -0.03610470604 | M162: -0.04042012097 | Q162: 2015 | R162: 0.05521169023 | S162: 0.05048744652
D163: 2016 | G163: -0.02253245977 | K163: 2016 | L163: =IF(K154="Forecast","",IF(L153=0,"",L154/L153-1)) ->  | M163: =IF(M153=0,"",M154/M153-1) -> 0.1882275102 | Q163: 2016 | R163: =IF(Q154="Forecast","",IF(R153=0,"",R154/R153-1)) ->  | S163: 0.2156183825
D164: 2017 | G164: -0.02253245977 | I164: =IF(I156=0,"",G155/I156-1) ->  | K164: 2017 | L164: =IF(K155="Forecast","",IF(L154=0,"",L155/L154-1)) ->  | M164: =IF(M154=0,"",M155/M154-1) -> 0.002091889534 | O164: =IF(O156=0,"",M155/O156-1) ->  | Q164: 2017 | R164: =IF(Q155="Forecast","",IF(R154=0,"",R155/R154-1)) ->  | S164: 0.02519198673 | U164: =IF(U156=0,"",S155/U156-1) -> 
D165: Geometric Mean | G165: =IF(G149=0,"",GEOMEAN(G159:G164)) ->  | K165: Geometric Mean | M165: =IF(M149=0,"",(M155/M149)^(1/(K164-K158-1)-1)) -> 1.036122584 | Q165: Geometric Mean | S165: =IF(S149="","",IF(S149=0,"",(S155/S149)^(1/(Q164-Q158-1)-1))) -> 0.8342884015
D168: Calendar Year | F168: Revenues | K168: =IF(ISBLANK(N145),"",CONCATENATE("Demand (",N145,")")) -> Demand (kW) | Q168: =CONCATENATE("Demand (",N145,") per ",LEFT(F147,LEN(F147)-1)) -> Demand (kW) per Customer
D169: (for 2017 Cost of Service | L169: Actual (Weather actual) | M169: Weather-normalized | O169: =M169 -> Weather-normalized | R169: =L169 -> Actual (Weather actual) | S169: =M169 -> Weather-normalized | U169: =O169 -> Weather-normalized
C170: Historical | D170: =D171-1 -> 2011 | F170: =F149 -> Actual | H170: =IF(D170=2013,"Board-approved","") ->  | K170: =K149 -> Actual | L170: ='Bridge&Test Year Class Forecast'!M9 -> 164083.8 | M170: ='Bridge&Test Year Class Forecast'!M9 -> 164083.8 | N170: =N149 ->  | Q170: =K170 -> Actual | R170: =IF(G170=0,"",L170/G170) ->  | S170: =IF(G170=0,"",M170/G170) ->  | T170: =N170 ->  | U170: =IF(T170="","",IF(I170=0,"",O170/I170)) -> 
C171: Historical | D171: 2012 | F171: Actual | K171: Actual | L171: ='Bridge&Test Year Class Forecast'!M10 -> 165373.3 | M171: ='Bridge&Test Year Class Forecast'!M10 -> 165373.3 | Q171: =K171 -> Actual | R171: =IF(G171=0,"",L171/G171) ->  | S171: =IF(G171=0,"",M171/G171) ->  | T171: =N171 ->  | U171: =IF(T171="","",IF(I171=0,"",O171/I171)) -> 
C172: Historical | D172: 2013 | F172: Actual | H172: Board-approved | K172: Actual | L172: ='Bridge&Test Year Class Forecast'!M11 -> 154259.7 | M172: ='Bridge&Test Year Class Forecast'!M11 -> 154259.7 | N172: Board-approved | Q172: Actual | T172: Board-approved
C173: Historical | D173: 2014 | F173: Actual | K173: Actual | L173: ='Bridge&Test Year Class Forecast'!M12 -> 148977.3 | M173: ='Bridge&Test Year Class Forecast'!M12 -> 148977.3 | Q173: Actual
C174: Historical | D174: 2015 | F174: Actual | K174: Actual | L174: ='Bridge&Test Year Class Forecast'!M13 -> 145124.2 | M174: ='Bridge&Test Year Class Forecast'!M13 -> 145124.2 | Q174: Actual
C175: Bridge Year (Forecast) | D175: 2016 | F175: Forecast | K175: Forecast | M175: ='Bridge&Test Year Class Forecast'!M14 -> 163126.1697 | Q175: Forecast
C176: Test Year (Forecast) | D176: 2017 | F176: Forecast | K176: Forecast | M176: ='Bridge&Test Year Class Forecast'!M15 -> 163467.4116 | Q176: Forecast
I177: =SUM(I170:I175) -> 0 | O177: =SUM(O170:O175) -> 0 | U177: =SUM(U170:U175) -> 0
C178: Variance Analysis | D178: Year | G178: Year-over-year | I178: =I157 -> Test Year Versus Board-approved | K178: Year | L178: Year-over-year | O178: =I178 -> Test Year Versus Board-approved | Q178: Year | R178: Year-over-year | U178: =O178 -> Test Year Versus Board-approved
D179: =D170 -> 2011 | K179: =D179 -> 2011 | Q179: =K179 -> 2011
D180: 2012 | G180: =IF(G170=0,"",G171/G170-1) ->  | K180: =D180 -> 2012 | L180: =IF(L170=0,"",L171/L170-1) -> 0.007858789228 | M180: =IF(M170=0,"",M171/M170-1) -> 0.007858789228 | Q180: =K180 -> 2012 | R180: =IF(R170="","",IF(R170=0,"",R171/R170-1)) ->  | S180: =IF(S170="","",IF(S170=0,"",S171/S170-1)) -> 
D181: 2013 | K181: 2013 | L181: =IF(L171=0,"",L172/L171-1) -> -0.06720310957 | M181: -0.06720310957 | Q181: 2013 | R181: =IF(R171="","",IF(R171=0,"",R172/R171-1)) -> 
D182: 2014 | K182: 2014 | L182: -0.03424355162 | M182: -0.03424355162 | Q182: 2014
D183: 2015 | K183: 2015 | L183: -0.02586367185 | M183: -0.02586367185 | Q183: 2015
D184: 2016 | K184: 2016 | L184: =IF(K175="Forecast","",IF(L174=0,"",L175/L174-1)) ->  | M184: 0.1240452638 | Q184: 2016 | R184: =IF(Q175="Forecast","",IF(R174=0,"",R175/R174-1)) -> 
D185: 2017 | I185: =IF(I177=0,"",G176/I177-1) ->  | K185: 2017 | L185: =IF(K176="Forecast","",IF(L175=0,"",L176/L175-1)) ->  | M185: 0.002091889534 | O185: =IF(O177=0,"",M176/O177-1) ->  | Q185: 2017 | R185: =IF(Q176="Forecast","",IF(R175=0,"",R176/R175-1)) ->  | U185: =IF(U177=0,"",S176/U177-1) -> 
D186: Geometric Mean | G186: =IF(G170=0,"",GEOMEAN(G180:G185)) ->  | K186: Geometric Mean | M186: =IF(M170=0,"",GEOMEAN(M180:M185)) ->  | Q186: Geometric Mean | S186: =IF(S170="","",IF(S170=0,"",(S176/S170)^(1/(Q185-Q179-1)-1))) -> 
B188: 4 | C188: Customer Class: | D188: GS > 3000-5000 kW | H188: Is the customer class billed on consumption (kWh) or demand (kW or kVA)? | N188: kW
D190: Calendar Year | F190: Customers | K190: Consumption (kWh) (3) | Q190: =CONCATENATE("Consumption (kWh) per ",LEFT(F190,LEN(F190)-1)) -> Consumption (kWh) per Customer
D191: (for 2017 Cost of Service | L191: Actual (Weather actual) | M191: Weather-normalized | O191: Weather-normalized | R191: =L191 -> Actual (Weather actual) | S191: =M191 -> Weather-normalized | U191: =O191 -> Weather-normalized
C192: Historical | D192: =D193-1 -> 2011 | F192: =F149 -> Actual | G192: ='Input - Customer Data'!L10 -> 1 | H192: =IF(D192=2013,"Board-approved","") ->  | K192: =F192 -> Actual | L192: ='Bridge&Test Year Class Forecast'!B90 -> 18104643.6 | M192: ='Bridge&Test Year Class Forecast'!F90 -> 18582123.14 | N192: =H192 ->  | Q192: =K192 -> Actual | R192: =IF(G192=0,"",L192/G192) -> 18104643.6 | S192: =IF(G192=0,"",M192/G192) -> 18582123.14 | T192: =N192 ->  | U192: =IF(T192="","",IF(I192=0,"",O192/I192)) -> 
C193: Historical | D193: 2012 | F193: =F150 -> Actual | G193: ='Input - Customer Data'!L11 -> 1 | K193: =F193 -> Actual | L193: ='Bridge&Test Year Class Forecast'!B91 -> 19950324 | M193: ='Bridge&Test Year Class Forecast'!F91 -> 19919755.73 | N193: =H193 ->  | Q193: =K193 -> Actual | R193: =IF(G193=0,"",L193/G193) -> 19950324 | S193: =IF(G193=0,"",M193/G193) -> 19919755.73 | T193: =N193 ->  | U193: =IF(T193="","",IF(I193=0,"",O193/I193)) -> 
C194: Historical | D194: 2013 | F194: Actual | G194: ='Input - Customer Data'!L12 -> 1 | H194: Board-approved | K194: Actual | L194: ='Bridge&Test Year Class Forecast'!B92 -> 18608986 | M194: ='Bridge&Test Year Class Forecast'!F92 -> 18330572.96 | N194: Board-approved | Q194: Actual | R194: 18608986 | S194: 18330572.96 | T194: Board-approved
C195: Historical | D195: 2014 | F195: Actual | G195: ='Input - Customer Data'!L13 -> 1 | K195: Actual | L195: ='Bridge&Test Year Class Forecast'!B93 -> 18461823 | M195: ='Bridge&Test Year Class Forecast'!F93 -> 18333194.2 | Q195: Actual | R195: 18461823 | S195: 18333194.2
C196: Historical | D196: 2015 | F196: Actual | G196: ='Input - Customer Data'!L14 -> 1 | K196: Actual | L196: ='Bridge&Test Year Class Forecast'!B94 -> 17295612 | M196: ='Bridge&Test Year Class Forecast'!F94 -> 17446328.11 | Q196: Actual | R196: 17295612 | S196: 17446328.11
C197: Bridge Year | D197: 2016 | F197: Forecast | G197: ='Input - Customer Data'!L19 -> 1 | K197: Forecast | M197: ='Bridge&Test Year Class Forecast'!F95 -> 18421962.06 | Q197: Forecast | R197: 0 | S197: 18421962.06
C198: Test Year | D198: 2017 | F198: Forecast | G198: ='Input - Customer Data'!L20 -> 1 | K198: Forecast | M198: ='Bridge&Test Year Class Forecast'!F96 -> 18961919.5 | Q198: Forecast | R198: 0 | S198: 18961919.5
I199: =SUM(I192:I197) -> 0 | O199: =SUM(O192:O197) -> 0 | U199: =SUM(U192:U197) -> 0
C200: Variance Analysis | D200: Year | G200: Year-over-year | I200: Test Year Versus Board-approved | K200: Year | L200: Year-over-year | O200: =I200 -> Test Year Versus Board-approved | Q200: Year | R200: Year-over-year | U200: =O200 -> Test Year Versus Board-approved
D201: =D192 -> 2011 | K201: =D201 -> 2011 | Q201: =K201 -> 2011
D202: 2012 | G202: =IF(G192=0,"",G193/G192-1) -> 0 | K202: =D202 -> 2012 | L202: =IF(L192=0,"",L193/L192-1) -> 0.1019451385 | M202: 0.07198491685 | Q202: =K202 -> 2012 | R202: =IF(R192="","",IF(R192=0,"",R193/R192-1)) -> 0.1019451385 | S202: =IF(S192="","",IF(S192=0,"",S193/S192-1)) -> 0.07198491685
D203: 2013 | G203: 0 | K203: 2013 | L203: -0.06723389555 | M203: -0.07977923018 | Q203: 2013 | R203: =IF(R193="","",IF(R193=0,"",R194/R193-1)) -> -0.06723389555 | S203: -0.07977923018
D204: 2014 | G204: 0 | K204: 2014 | L204: -0.007908168666 | M204: 0.0001429985667 | Q204: 2014 | R204: -0.007908168666 | S204: 0.0001429985667
D205: 2015 | G205: 0 | K205: 2015 | L205: -0.06316878891 | M205: -0.04837488131 | Q205: 2015 | R205: -0.06316878891 | S205: -0.04837488131
D206: 2016 | G206: 0 | K206: 2016 | L206: =IF(K197="Forecast","",IF(L196=0,"",L197/L196-1)) ->  | M206: =IF(M196=0,"",M197/M196-1) -> 0.0559220225 | Q206: 2016 | R206: =IF(Q197="Forecast","",IF(R196=0,"",R197/R196-1)) ->  | S206: 0.0559220225
D207: 2017 | G207: 0 | I207: =IF(I199=0,"",G198/I199-1) ->  | K207: 2017 | L207: =IF(K198="Forecast","",IF(L197=0,"",L198/L197-1)) ->  | M207: =IF(M197=0,"",M198/M197-1) -> 0.02931052806 | O207: =IF(O199=0,"",M198/O199-1) ->  | Q207: 2017 | R207: =IF(Q198="Forecast","",IF(R197=0,"",R198/R197-1)) ->  | S207: 0.02931052806 | U207: =IF(U199=0,"",S198/U199-1) -> 
D208: Geometric Mean | G208: =IF(G192=0,"",GEOMEAN(G202:G207)) ->  | K208: Geometric Mean | M208: =IF(M192=0,"",(M198/M192)^(1/(K207-K201-1)-1)) -> 0.9839441054 | Q208: Geometric Mean | S208: =IF(S192="","",IF(S192=0,"",(S198/S192)^(1/(Q207-Q201-1)-1))) -> 0.9839441054
D211: Calendar Year | F211: Revenues | K211: =IF(ISBLANK(N188),"",CONCATENATE("Demand (",N188,")")) -> Demand (kW) | Q211: =CONCATENATE("Demand (",N188,") per ",LEFT(F190,LEN(F190)-1)) -> Demand (kW) per Customer
D212: (for 2017 Cost of Service | L212: Actual (Weather actual) | M212: Weather-normalized | O212: =M212 -> Weather-normalized | R212: =L212 -> Actual (Weather actual) | S212: =M212 -> Weather-normalized | U212: =O212 -> Weather-normalized
C213: Historical | D213: =D214-1 -> 2011 | F213: =F192 -> Actual | H213: =IF(D213=2013,"Board-approved","") ->  | K213: =K192 -> Actual | N213: =N192 ->  | Q213: =K213 -> Actual | R213: =IF(G213=0,"",L213/G213) ->  | S213: =IF(G213=0,"",M213/G213) ->  | T213: =N213 ->  | U213: =IF(T213="","",IF(I213=0,"",O213/I213)) -> 
C214: Historical | D214: 2012 | F214: Actual | K214: Actual | Q214: =K214 -> Actual | R214: =IF(G214=0,"",L214/G214) ->  | S214: =IF(G214=0,"",M214/G214) ->  | T214: =N214 ->  | U214: =IF(T214="","",IF(I214=0,"",O214/I214)) -> 
C215: Historical | D215: 2013 | F215: Actual | H215: Board-approved | K215: Actual | N215: Board-approved | Q215: Actual | T215: Board-approved
C216: Historical | D216: 2014 | F216: Actual | K216: Actual | Q216: Actual
C217: Historical | D217: 2015 | F217: Actual | K217: Actual | Q217: Actual
C218: Bridge Year (Forecast) | D218: 2016 | F218: Forecast | K218: Forecast | Q218: Forecast
C219: Test Year (Forecast) | D219: 2017 | F219: Forecast | K219: Forecast | Q219: Forecast
I220: =SUM(I213:I218) -> 0 | O220: =SUM(O213:O218) -> 0 | U220: =SUM(U213:U218) -> 0
C221: Variance Analysis | D221: Year | G221: Year-over-year | I221: =I200 -> Test Year Versus Board-approved | K221: Year | L221: Year-over-year | O221: =I221 -> Test Year Versus Board-approved | Q221: Year | R221: Year-over-year | U221: =O221 -> Test Year Versus Board-approved
D222: =D213 -> 2011 | K222: =D222 -> 2011 | Q222: =K222 -> 2011
D223: 2012 | G223: =IF(G213=0,"",G214/G213-1) ->  | K223: =D223 -> 2012 | L223: =IF(L213=0,"",L214/L213-1) ->  | M223: =IF(M213=0,"",M214/M213-1) ->  | Q223: =K223 -> 2012 | R223: =IF(R213="","",IF(R213=0,"",R214/R213-1)) ->  | S223: =IF(S213="","",IF(S213=0,"",S214/S213-1)) -> 
D224: 2013 | K224: 2013 | L224: =IF(L214=0,"",L215/L214-1) ->  | Q224: 2013 | R224: =IF(R214="","",IF(R214=0,"",R215/R214-1)) -> 
D225: 2014 | K225: 2014 | Q225: 2014
D226: 2015 | K226: 2015 | Q226: 2015
D227: 2016 | K227: 2016 | L227: =IF(K218="Forecast","",IF(L217=0,"",L218/L217-1)) ->  | Q227: 2016 | R227: =IF(Q218="Forecast","",IF(R217=0,"",R218/R217-1)) -> 
D228: 2017 | I228: =IF(I220=0,"",G219/I220-1) ->  | K228: 2017 | L228: =IF(K219="Forecast","",IF(L218=0,"",L219/L218-1)) ->  | O228: =IF(O220=0,"",M219/O220-1) ->  | Q228: 2017 | R228: =IF(Q219="Forecast","",IF(R218=0,"",R219/R218-1)) ->  | U228: =IF(U220=0,"",S219/U220-1) -> 
D229: Geometric Mean | G229: =IF(G213=0,"",GEOMEAN(G223:G228)) ->  | K229: Geometric Mean | M229: =IF(M213=0,"",GEOMEAN(M223:M228)) ->  | Q229: Geometric Mean | S229: =IF(S213="","",IF(S213=0,"",(S219/S213)^(1/(Q228-Q222-1)-1))) -> 
B231: 5 | C231: Customer Class: | D231: Unmetered Scattered Load | H231: Is the customer class billed on consumption (kWh) or demand (kW or kVA)? | N231: kW
D233: Calendar Year | F233: Customers | K233: Consumption (kWh) (3) | Q233: =CONCATENATE("Consumption (kWh) per ",LEFT(F233,LEN(F233)-1)) -> Consumption (kWh) per Customer
... 233 more rows

Sheet CDM Adjustment
A3: Load Forecast CDM Adjustment Work Form (2015)
A5: 2011-2014 CDM Program - 2014, last year of the current CDM plan | H5: 2015-2020 CDM Program - 2015, first year of the current CDM plan
A6: 4 Year (2011-2014) kWh Target: | H6: 6 Year (2015-2020) kWh Target:
A7: 9280000 | H7: 8730000
B8: 2011 | C8: 2012 | D8: 2013 | E8: 2014 | F8: Total | I8: 2015 | J8: 2016 | K8: 2017 | L8: 2018 | M8: 2019 | N8: 2020 | O8: Total
A9: 2011 CDM Programs | B9: =B15/$F$19 -> 0.09415158668 | C9: =C15/$F$19 -> 0.09415158668 | D9: =D15/$F$19 -> 0.09415158668 | E9: =E15/$F$19 -> 0.08720167847 | F9: =SUM(B9:E9) -> 0.3696564385 | H9: %
A10: 2012 CDM Programs | C10: =C16/$F$19 -> 0.08982428534 | D10: =D16/$F$19 -> 0.08982428534 | E10: =E16/$F$19 -> 0.08916863362 | F10: =SUM(B10:E10) -> 0.2688172043 | H10: 2015 CDM Programs | I10: =I18/$O$24 -> 0.1971026346 | J10: =J18/$O$24 -> 0.1926546392 | K10: 0.191332646 | L10: 0.191227606 | M10: 0.1824081329 | N10: =N18/$O$24 -> 0.1811028637 | O10: =SUM(I10:N10) -> 1.135828522
A11: 2013 CDM Programs | D11: =D17/$F$19 -> 0.07710464201 | E11: =E17/$F$19 -> 0.07710464201 | F11: =SUM(B11:E11) -> 0.154209284 | H11: 2016 CDM Programs | J11: 0.1800106529 | K11: 0.177879496 | L11: 0.177879496 | M11: 0.177879496 | N11: 0.1774311569 | O11: =SUM(I11:N11) -> 0.8910802978
A12: 2014 CDM Programs | E12: =E18/$F$19 -> 0.1641751901 | F12: =SUM(B12:E12) -> 0.1641751901 | H12: 2017 CDM Programs | K12: 0.1603664948 | L12: 0.1603664948 | M12: 0.1603664948 | N12: 0.1603664948 | O12: =SUM(I12:N12) -> 0.6414659794
A13: Total in Year | B13: =SUM(B9:B12) -> 0.09415158668 | C13: =SUM(C9:C12) -> 0.183975872 | D13: =SUM(D9:D12) -> 0.261080514 | E13: =SUM(E9:E12) -> 0.4176501442 | F13: =SUM(B13:E13) -> 0.956858117 | H13: 2018 CDM Programs | L13: 0.1603664948 | M13: 0.1603664948 | N13: 0.1603664948 | O13: =SUM(L13:N13) -> 0.4810994845
A14: kWh | H14: 2019 CDM Programs | M14: 0.1603664948 | N14: 0.1603664948 | O14: =SUM(M14:N14) -> 0.3207329897
A15: 2011 CDM Programs | B15: =0.718*1000000 -> 718000 | C15: =0.718*1000000 -> 718000 | D15: =0.718*1000000 -> 718000 | E15: =0.665*1000000 -> 665000 | F15: =SUM(B15:E15) -> 2819000 | H15: 2020 CDM Programs | N15: 0.1603664948 | O15: =SUM(I15:N15) -> 0.1603664948
A16: 2012 CDM Programs | B16: =0.009*1000000 -> 9000 | C16: =0.685*1000000 -> 685000 | D16: =0.685*1000000 -> 685000 | E16: =0.68*1000000 -> 680000 | F16: =SUM(B16:E16) -> 2059000 | H16: Total in Year | I16: =SUM(I10:I15) -> 0.1971026346 | J16: =SUM(J10:J15) -> 0.3726652921 | K16: =SUM(K10:K15) -> 0.5295786369 | L16: =SUM(L10:L13) -> 0.6898400916 | M16: =SUM(M10:M14) -> 0.8413871134 | N16: =SUM(N10:N15) -> 1 | O16: =SUM(I16:N16) -> 3.630573769
A17: 2013 CDM Programs | B17: 0 | C17: =0.08*1000000 -> 80000 | D17: =0.588*1000000 -> 588000 | E17: =0.588*1000000 -> 588000 | F17: =SUM(B17:E17) -> 1256000 | H17: kWh
A18: 2014 CDM Programs | B18: 0 | C18: =0.054*1000000 -> 54000 | D18: =0.186*1000000 -> 186000 | E18: =1.252*1000000 -> 1252000 | F18: =SUM(B18:E18) -> 1492000 | H18: =H10 -> 2015 CDM Programs | I18: 1720706 | J18: 1681875 | K18: 1670334 | L18: 1669417 | M18: 1592423 | N18: 1581028 | O18: =SUM(N18) -> 1581028
A19: Total in Year | B19: =SUM(B15:B18) -> 727000 | C19: =SUM(C15:C18) -> 1537000 | D19: =SUM(D15:D18) -> 2177000 | E19: =SUM(E15:E18) -> 3185000 | F19: =SUM(F15:F18) -> 7626000 | H19: 2016 CDM Programs | J19: 1571493 | K19: 1552888 | L19: 1552888 | M19: 1552888 | N19: 1548974 | O19: 1548974
H20: 2017 CDM Programs | K20: =L20 -> 1399999.5 | L20: =M20 -> 1399999.5 | M20: =N20 -> 1399999.5 | N20: =1/4*(H7-(O18+O19)) -> 1399999.5 | O20: 1399999.5
H21: 2018 CDM Programs | L21: =M21 -> 1399999.5 | M21: =N21 -> 1399999.5 | N21: =1/3*(H7-(O19+O20+O18)) -> 1399999.5 | O21: 1399999.5
H22: 2019 CDM Programs | M22: =L21 -> 1399999.5 | N22: =1/2*(H7-(O19+O20+O18+O21)) -> 1399999.5 | O22: 1399999.5
H23: 2020 CDM Programs | N23: =H7-(O19+O20+O18+O21+O22) -> 1399999.5 | O23: 1399999.5
H24: Total in Year | I24: =SUM(I18:I23) -> 1720706 | J24: =SUM(J18:J23) -> 3253368 | K24: =SUM(K18:K23) -> 4623221.5 | L24: =SUM(L18:L21) -> 6022304 | M24: =SUM(M18:M22) -> 7345309.5 | N24: =SUM(N18:N23) -> 8730000 | O24: =H7 -> 8730000
H27: Weight Factor for Inclusion in CDM Adjustment to 2014 Load Forecast
I28: 2011 | J28: 2012 | K28: 2013 | L28: 2014 | M28: 2015 | N28: 2016 | O28: 2017 | P28: 2018
H29: Weight Factor for each year's CDM program impact on 2014 load forecast | I29: 0 | J29: 0 | K29: 0 | L29: 0 | M29: 0.5 | N29: 0.5 | O29: 1 | P29: 0.5 | Q29: Distributor can select "0", "0.5", or "1" from drop-down list
H30: Default Value selection rationale.
H33: 2011-2014 and 2015-2020 LRAMVA and 2015 CDM adjustment to Load Forecast
I34: 2011 | J34: 2012 | K34: 2013 | L34: 2014 | M34: 2015 | N34: 2016 | O34: 2017 | P34: 2018 | Q34: Total for 2018
I35: kWh
H36: Amount used for CDM threshold for LRAMVA (2014) | I36: 0 | J36: 0 | Q36: =SUM(K36:P36) -> 0
H38: 2011 CDM adjustment (per Board Decision in 2011 Cost of Service Application) | I38: 0 | J38: =I38 -> 0 | K38: =I38 -> 0 | L38: =I38 -> 0 | N38: =SUM(I38:L39) -> 0
H40: Amount used for CDM threshold for LRAMVA | M40: =I18 -> 1720706 | N40: =J19 -> 1571493 | O40: =K20 -> 1399999.5 | P40: =L21 -> 1399999.5 | Q40: =SUM(M40:P40) -> 6092198
H42: Manual Adjustment for 2018 Load Forecast (billed basis) | I42: 0 | M42: =M40*M29 -> 860353 | N42: =N40*N29 -> 785746.5 | O42: =O40*O29 -> 1399999.5 | P42: =P40*P29 -> 699999.75 | Q42: =SUM(M42:P42) -> 3746098.75
I45: Adjusted load from 2015 Forecast

Sheet CDM Allocation
B3: Weather Adjusted Load Forecast Results | K3: Weather Adjusted Load Forecast Results
C4: Year | D4: ='Input - Customer Data'!$E$11 -> 2013 | E4: ='Input - Customer Data'!$E$12 -> 2014 | F4: ='Input - Customer Data'!$E$13 -> 2015 | G4: ='Input - Customer Data'!$E$14 -> 2016 | H4: ='Input - Customer Data'!$E$19 -> 2017 | I4: ='Input - Customer Data'!E20 -> 2018 | K4: Share | L4: Target | M4: Final Adjusted (kWh)
B5: ='Input - Customer Data'!A13 -> Residential | C5: Cust/Conn | D5: ='Input - Customer Data'!$F11 -> 5911.5 | E5: ='Input - Customer Data'!$F12 -> 5946.5 | F5: ='Input - Customer Data'!$F13 -> 5961 | G5: ='Input - Customer Data'!F14 -> 5988.5 | H5: ='Input - Customer Data'!$F19 -> 6047.466833 | I5: ='Input - Customer Data'!$F20 -> 6107.014294
C6: kWh | D6: ='Bridge&Test Year Class Forecast'!F10 -> 45782444.5 | E6: ='Bridge&Test Year Class Forecast'!F11 -> 45855881.36 | F6: ='Bridge&Test Year Class Forecast'!F12 -> 45491149.95 | G6: ='Bridge&Test Year Class Forecast'!F13 -> 45102913.85 | H6: ='Bridge&Test Year Class Forecast'!F14 -> 45507125.13 | I6: ='Bridge&Test Year Class Forecast'!F15 -> 45602321.01 | K6: =I6/$I$35 -> 0.3097456681 | L6: =K6*$L$36 -> 1160337.86 | M6: =I6-L6 -> 44441983.15
C7: kW
B9: ='Input - Customer Data'!A14 -> General Service < 50 kW | C9: Cust/Conn | D9: ='Input - Customer Data'!$H11 -> 711 | E9: ='Input - Customer Data'!$H12 -> 715 | F9: ='Input - Customer Data'!$H13 -> 730 | G9: ='Input - Customer Data'!$H14 -> 741.5 | H9: ='Input - Customer Data'!$H19 -> 749.7756263 | I9: ='Input - Customer Data'!$H20 -> 758.1436141
C10: kWh | D10: ='Bridge&Test Year Class Forecast'!F37 -> 20038054.95 | E10: ='Bridge&Test Year Class Forecast'!F38 -> 20436483.17 | F10: ='Bridge&Test Year Class Forecast'!F39 -> 21573933.85 | G10: ='Bridge&Test Year Class Forecast'!F40 -> 23368517.15 | H10: ='Bridge&Test Year Class Forecast'!F$41 -> 20960878.59 | I10: ='Bridge&Test Year Class Forecast'!F$42 -> 21004726.44 | K10: =I10/$I$35 -> 0.1426708746 | L10: =K10*$L$36 -> 534459.1851 | M10: =I10-L10 -> 20470267.25
C11: kW
B13: ='Input - Customer Data'!A15 -> General Service > 50 to 2999 kW | C13: Cust/Conn | D13: ='Input - Customer Data'!$J11 -> 57 | E13: ='Input - Customer Data'!$J12 -> 56.5 | F13: ='Input - Customer Data'!$J13 -> 52 | G13: ='Input - Customer Data'!$J14 -> 47.5 | H13: ='Input - Customer Data'!$J19 -> 46.42970816 | I13: ='Input - Customer Data'!$J20 -> 45.38353263
C14: kWh | D14: ='Bridge&Test Year Class Forecast'!$F64 -> 59755907.22 | E14: ='Bridge&Test Year Class Forecast'!$F65 -> 54630395.88 | F14: ='Bridge&Test Year Class Forecast'!$F66 -> 52904629.85 | G14: ='Bridge&Test Year Class Forecast'!$F67 -> 50766218.31 | H14: ='Bridge&Test Year Class Forecast'!$F68 -> 60321817.19 | I14: ='Bridge&Test Year Class Forecast'!F$69 -> 60448003.77 | K14: =I14/$I$35 -> 0.4105823321 | L14: =K14*$L$36 -> 1538081.961 | M14: =I14-L14 -> 58909921.8
C15: kW | D15: ='Bridge&Test Year Class Forecast'!$M10 -> 165373.3 | E15: ='Bridge&Test Year Class Forecast'!$M11 -> 154259.7 | F15: ='Bridge&Test Year Class Forecast'!$M12 -> 148977.3 | G15: ='Bridge&Test Year Class Forecast'!$M13 -> 145124.2 | H15: ='Bridge&Test Year Class Forecast'!$M14 -> 163126.1697 | I15: ='Bridge&Test Year Class Forecast'!$M15 -> 163467.4116 | M15: =(M14/I14)*I15 -> 159308.0306
B17: ='Input - Customer Data'!A16 -> General Service > 3000 to 4999 kW | C17: Cust/Conn | D17: ='Input - Customer Data'!$L19 -> 1 | E17: ='Input - Customer Data'!$L19 -> 1 | F17: ='Input - Customer Data'!$L19 -> 1 | G17: ='Input - Customer Data'!$L19 -> 1 | H17: ='Input - Customer Data'!$L19 -> 1 | I17: ='Input - Customer Data'!$L20 -> 1
C18: kWh | D18: ='Bridge&Test Year Class Forecast'!$F92 -> 18330572.96 | E18: ='Bridge&Test Year Class Forecast'!$F93 -> 18333194.2 | F18: ='Bridge&Test Year Class Forecast'!$F94 -> 17446328.11 | G18: ='Bridge&Test Year Class Forecast'!$F95 -> 18421962.06 | H18: ='Bridge&Test Year Class Forecast'!$F96 -> 18961919.5 | I18: ='Bridge&Test Year Class Forecast'!F$97 -> 19001585.74 | K18: =I18/$I$35 -> 0.1290648971 | L18: =K18*$L$36 -> 483489.8498 | M18: =I18-L18 -> 18518095.89
C19: kW | D19: ='Bridge&Test Year Class Forecast'!$M29 -> 42815.4 | E19: ='Bridge&Test Year Class Forecast'!$M30 -> 43263.5 | F19: ='Bridge&Test Year Class Forecast'!$M31 -> 41432.5 | G19: ='Bridge&Test Year Class Forecast'!$M32 -> 43591 | H19: ='Bridge&Test Year Class Forecast'!$M33 -> 44307.58844 | I19: ='Bridge&Test Year Class Forecast'!M$34 -> 44400.27502 | M19: =(M18/I18)*I19 -> 43270.52288
B21: ='Input - Customer Data'!A17 -> USL | C21: Cust/Conn | D21: ='Input - Customer Data'!$N11 -> 13 | E21: ='Input - Customer Data'!$N12 -> 13 | F21: ='Input - Customer Data'!$N13 -> 13 | G21: ='Input - Customer Data'!$N14 -> 13 | H21: ='Input - Customer Data'!$N24 -> 13 | I21: ='Input - Customer Data'!$N25 -> 13
C22: kWh | D22: ='Bridge&Test Year Class Forecast'!$L51 -> 548400 | E22: ='Bridge&Test Year Class Forecast'!$L52 -> 563396 | F22: ='Bridge&Test Year Class Forecast'!$L53 -> 563839 | G22: ='Bridge&Test Year Class Forecast'!$L54 -> 562067 | H22: ='Bridge&Test Year Class Forecast'!$L55 -> 559425.5 | I22: ='Bridge&Test Year Class Forecast'!$L56 -> 559425.5 | K22: =I22/$I$35 -> 0.003799798375 | L22: =K22*$L$36 -> 14234.41994 | M22: =I22-L22 -> 545191.0801
M23: =(M22/I22)*I23 -> 0
B25: ='Input - Customer Data'!A18 -> Sentinel | C25: Cust/Conn | D25: ='Input - Customer Data'!$P11 -> 31 | E25: ='Input - Customer Data'!$P12 -> 31 | F25: ='Input - Customer Data'!$P13 -> 31 | G25: ='Input - Customer Data'!$P14 -> 29 | H25: ='Input - Customer Data'!$P19 -> 28.75924866 | I25: ='Input - Customer Data'!$P20 -> 28.52049599
C26: kWh | D26: ='Bridge&Test Year Class Forecast'!$L71 -> 40676 | E26: ='Bridge&Test Year Class Forecast'!$L72 -> 39277 | F26: ='Bridge&Test Year Class Forecast'!$L73 -> 39278 | G26: ='Bridge&Test Year Class Forecast'!$L74 -> 39314 | H26: ='Bridge&Test Year Class Forecast'!$L75 -> 39335.85435 | I26: ='Bridge&Test Year Class Forecast'!$L76 -> 39009.29712 | K26: =I26/$I$35 -> 0.000264963724 | L26: =K26*$L$36 -> 992.5802754 | M26: =I26-L26 -> 38016.71685
C27: kW | D27: ='Bridge&Test Year Class Forecast'!$M71 -> 112.99 | E27: ='Bridge&Test Year Class Forecast'!$M72 -> 109.08 | F27: ='Bridge&Test Year Class Forecast'!$M73 -> 109.08 | G27: ='Bridge&Test Year Class Forecast'!$M74 -> 109.19 | H27: ='Bridge&Test Year Class Forecast'!$M75 -> 109.2644934 | I27: ='Bridge&Test Year Class Forecast'!$M76 -> 108.3574047 | M27: =(M26/I26)*I27 -> 105.6002819
B29: Street Ligthing | C29: Cust/Conn | D29: ='Input - Customer Data'!$R11 -> 1696 | E29: ='Input - Customer Data'!$R12 -> 1705 | F29: ='Input - Customer Data'!$R13 -> 1706.5 | G29: ='Input - Customer Data'!$R14 -> 1704.5 | H29: ='Input - Customer Data'!$R19 -> 1710.403456 | I29: ='Input - Customer Data'!$R20 -> 1716.327359
C30: kWh | D30: ='Bridge&Test Year Class Forecast'!$L91 -> 1151811 | E30: ='Bridge&Test Year Class Forecast'!$L92 -> 1141797 | F30: ='Bridge&Test Year Class Forecast'!$L93 -> 976129 | G30: ='Bridge&Test Year Class Forecast'!$L94 -> 566049 | H30: ='Bridge&Test Year Class Forecast'!$L95 -> 568009.4843 | I30: ='Bridge&Test Year Class Forecast'!$L96 -> 569976.7587 | K30: =I30/$I$35 -> 0.003871465926 | L30: =K30*$L$36 -> 14502.89367 | M30: =I30-L30 -> 555473.8651
C31: kW | D31: ='Bridge&Test Year Class Forecast'!$M91 -> 3174 | E31: ='Bridge&Test Year Class Forecast'!$M92 -> 3151.2 | F31: ='Bridge&Test Year Class Forecast'!$M93 -> 2727.2 | G31: ='Bridge&Test Year Class Forecast'!$M94 -> 1555.2 | H31: ='Bridge&Test Year Class Forecast'!$M95 -> 1560.586363 | I31: ='Bridge&Test Year Class Forecast'!$M96 -> 1565.991381 | M31: =(M30/I30)*I31 -> 1526.145183
B34: Total | C34: Cust/Conn | D34: =D5+D9+D13+D17+D21+D25+D29 -> 8420.5 | E34: =E5+E9+E13+E17+E21+E25+E29 -> 8468 | F34: 8494.5 | G34: 8525 | H34: 8596.834873 | I34: =I5+I9+I13+I17+I21+I25+I29 -> 8669.389296 | M34: =M5+M9+M13+M17+M21+M25+M29 -> 0
C35: kWh | D35: =D6+D10+D14+D18+D22+D26+D30 -> 145647866.6 | E35: 141000424.6 | F35: 138995287.8 | G35: 138827041.4 | H35: 146918511.2 | I35: =I6+I10+I14+I18+I22+I26+I30 -> 147225048.5 | M35: =M6+M10+M14+M18+M22+M26+M30 -> 143478949.8
C36: kW | D36: =D7+D11+D15+D19+D23+D27+D31 -> 211475.69 | E36: 200783.48 | F36: 193246.08 | G36: 190379.59 | H36: 209103.609 | I36: =I7+I11+I15+I19+I23+I27+I31 -> 209542.0354 | K36: =SUM(K5:K33) -> 1 | L36: ='CDM Adjustment'!Q42 -> 3746098.75 | M36: =M7+M11+M15+M19+M23+M27+M31 -> 204210.299

Sheet Final LF
B3: Weather Adjusted Load Forecast Results
C4: Year | D4: ='Input - Customer Data'!$E$11 -> 2013 | E4: ='Input - Customer Data'!$E$12 -> 2014 | F4: ='Input - Customer Data'!$E$13 -> 2015 | G4: ='Input - Customer Data'!$E$14 -> 2016 | H4: ='Input - Customer Data'!$E$19 -> 2017 | I4: ='Input - Customer Data'!$E$20 -> 2018 | J4: 2018 CDM Adjusted (kWh)
B5: ='Input - Customer Data'!A13 -> Residential | C5: Cust/Conn | D5: ='Input - Customer Data'!$F11 -> 5911.5 | E5: ='Input - Customer Data'!$F12 -> 5946.5 | F5: ='Input - Customer Data'!$F13 -> 5961 | G5: ='Input - Customer Data'!F14 -> 5988.5 | H5: ='Input - Customer Data'!$F24 -> 6047.466833 | I5: ='Input - Customer Data'!$F25 -> 6107.014294 | J5: ='Input - Customer Data'!$F25 -> 6107.014294
C6: kWh | D6: ='Bridge&Test Year Class Forecast'!F10 -> 45782444.5 | E6: ='Bridge&Test Year Class Forecast'!F11 -> 45855881.36 | F6: ='Bridge&Test Year Class Forecast'!F12 -> 45491149.95 | G6: ='Bridge&Test Year Class Forecast'!F13 -> 45102913.85 | H6: ='Bridge&Test Year Class Forecast'!F14 -> 45507125.13 | I6: ='Bridge&Test Year Class Forecast'!F15 -> 45602321.01 | J6: ='CDM Allocation'!M6 -> 44441983.15
C7: kW | J7: ='CDM Allocation'!M7 -> 0
J8: ='CDM Allocation'!M8 -> 0
B9: ='Input - Customer Data'!A14 -> General Service < 50 kW | C9: Cust/Conn | D9: ='Input - Customer Data'!$H11 -> 711 | E9: ='Input - Customer Data'!$H12 -> 715 | F9: ='Input - Customer Data'!$H13 -> 730 | G9: ='Input - Customer Data'!$H14 -> 741.5 | H9: ='Input - Customer Data'!$H24 -> 749.7756263 | I9: ='Input - Customer Data'!$H25 -> 758.1436141 | J9: ='Input - Customer Data'!$H25 -> 758.1436141
C10: kWh | D10: ='Bridge&Test Year Class Forecast'!F37 -> 20038054.95 | E10: ='Bridge&Test Year Class Forecast'!F38 -> 20436483.17 | F10: ='Bridge&Test Year Class Forecast'!F39 -> 21573933.85 | G10: ='Bridge&Test Year Class Forecast'!F40 -> 23368517.15 | H10: ='Bridge&Test Year Class Forecast'!F$41 -> 20960878.59 | I10: ='Bridge&Test Year Class Forecast'!F$42 -> 21004726.44 | J10: ='CDM Allocation'!M10 -> 20470267.25
C11: kW | J11: ='CDM Allocation'!M11 -> 0
J12: ='CDM Allocation'!M12 -> 0
B13: ='Input - Customer Data'!A15 -> General Service > 50 to 2999 kW | C13: Cust/Conn | D13: ='Input - Customer Data'!$J11 -> 57 | E13: ='Input - Customer Data'!$J12 -> 56.5 | F13: ='Input - Customer Data'!$J13 -> 52 | G13: ='Input - Customer Data'!$J14 -> 47.5 | H13: ='Input - Customer Data'!$J24 -> 46.42970816 | I13: ='Input - Customer Data'!$J25 -> 45.38353263 | J13: ='Input - Customer Data'!$J25 -> 45.38353263
C14: kWh | D14: ='Bridge&Test Year Class Forecast'!$F64 -> 59755907.22 | E14: ='Bridge&Test Year Class Forecast'!$F65 -> 54630395.88 | F14: ='Bridge&Test Year Class Forecast'!$F66 -> 52904629.85 | G14: ='Bridge&Test Year Class Forecast'!$F67 -> 50766218.31 | H14: ='Bridge&Test Year Class Forecast'!$F68 -> 60321817.19 | I14: ='Bridge&Test Year Class Forecast'!F$69 -> 60448003.77 | J14: ='CDM Allocation'!M14 -> 58909921.8
C15: kW | D15: ='Bridge&Test Year Class Forecast'!$M10 -> 165373.3 | E15: ='Bridge&Test Year Class Forecast'!$M11 -> 154259.7 | F15: ='Bridge&Test Year Class Forecast'!$M12 -> 148977.3 | G15: ='Bridge&Test Year Class Forecast'!$M13 -> 145124.2 | H15: ='Bridge&Test Year Class Forecast'!$M14 -> 163126.1697 | I15: ='Bridge&Test Year Class Forecast'!$M15 -> 163467.4116 | J15: ='CDM Allocation'!M15 -> 159308.0306
J16: ='CDM Allocation'!M16 -> 0
B17: ='Input - Customer Data'!A16 -> General Service > 3000 to 4999 kW | C17: Cust/Conn | D17: ='Input - Customer Data'!$L19 -> 1 | E17: ='Input - Customer Data'!$L19 -> 1 | F17: ='Input - Customer Data'!$L19 -> 1 | G17: ='Input - Customer Data'!$L19 -> 1 | H17: ='Input - Customer Data'!$L24 -> 1 | I17: ='Input - Customer Data'!$L25 -> 1 | J17: ='Input - Customer Data'!$L25 -> 1
C18: kWh | D18: ='Bridge&Test Year Class Forecast'!$F92 -> 18330572.96 | E18: ='Bridge&Test Year Class Forecast'!$F93 -> 18333194.2 | F18: ='Bridge&Test Year Class Forecast'!$F94 -> 17446328.11 | G18: ='Bridge&Test Year Class Forecast'!$F95 -> 18421962.06 | H18: ='Bridge&Test Year Class Forecast'!$F96 -> 18961919.5 | I18: ='Bridge&Test Year Class Forecast'!F$97 -> 19001585.74 | J18: ='CDM Allocation'!M18 -> 18518095.89
C19: kW | D19: ='Bridge&Test Year Class Forecast'!$M29 -> 42815.4 | E19: ='Bridge&Test Year Class Forecast'!$M30 -> 43263.5 | F19: ='Bridge&Test Year Class Forecast'!$M31 -> 41432.5 | G19: ='Bridge&Test Year Class Forecast'!$M32 -> 43591 | H19: ='Bridge&Test Year Class Forecast'!$M33 -> 44307.58844 | I19: ='Bridge&Test Year Class Forecast'!M$34 -> 44400.27502 | J19: ='CDM Allocation'!M19 -> 43270.52288
J20: ='CDM Allocation'!M20 -> 0
B21: ='Input - Customer Data'!A17 -> USL | C21: Cust/Conn | D21: ='Input - Customer Data'!$N11 -> 13 | E21: ='Input - Customer Data'!$N12 -> 13 | F21: ='Input - Customer Data'!$N13 -> 13 | G21: ='Input - Customer Data'!$N14 -> 13 | H21: ='Input - Customer Data'!$N24 -> 13 | I21: ='Input - Customer Data'!$N25 -> 13 | J21: ='Input - Customer Data'!$N25 -> 13
C22: kWh | D22: ='Bridge&Test Year Class Forecast'!$L51 -> 548400 | E22: ='Bridge&Test Year Class Forecast'!$L52 -> 563396 | F22: ='Bridge&Test Year Class Forecast'!$L53 -> 563839 | G22: ='Bridge&Test Year Class Forecast'!$L54 -> 562067 | H22: ='Bridge&Test Year Class Forecast'!$L55 -> 559425.5 | I22: ='Bridge&Test Year Class Forecast'!$L56 -> 559425.5 | J22: ='CDM Allocation'!M22 -> 545191.0801
J23: ='CDM Allocation'!M23 -> 0
J24: ='CDM Allocation'!M24 -> 0
B25: ='Input - Customer Data'!A18 -> Sentinel | C25: Cust/Conn | D25: ='Input - Customer Data'!$P11 -> 31 | E25: ='Input - Customer Data'!$P12 -> 31 | F25: ='Input - Customer Data'!$P13 -> 31 | G25: ='Input - Customer Data'!$P14 -> 29 | H25: ='Input - Customer Data'!$P24 -> 28.75924866 | I25: ='Input - Customer Data'!$P25 -> 28.52049599 | J25: ='Input - Customer Data'!$P25 -> 28.52049599
C26: kWh | D26: ='Bridge&Test Year Class Forecast'!$L71 -> 40676 | E26: ='Bridge&Test Year Class Forecast'!$L72 -> 39277 | F26: ='Bridge&Test Year Class Forecast'!$L73 -> 39278 | G26: ='Bridge&Test Year Class Forecast'!$L74 -> 39314 | H26: ='Bridge&Test Year Class Forecast'!$L75 -> 39335.85435 | I26: ='Bridge&Test Year Class Forecast'!$L76 -> 39009.29712 | J26: ='CDM Allocation'!M26 -> 38016.71685
C27: kW | D27: ='Bridge&Test Year Class Forecast'!$M71 -> 112.99 | E27: ='Bridge&Test Year Class Forecast'!$M72 -> 109.08 | F27: ='Bridge&Test Year Class Forecast'!$M73 -> 109.08 | G27: ='Bridge&Test Year Class Forecast'!$M74 -> 109.19 | H27: ='Bridge&Test Year Class Forecast'!$M75 -> 109.2644934 | I27: ='Bridge&Test Year Class Forecast'!$M76 -> 108.3574047 | J27: ='CDM Allocation'!M27 -> 105.6002819
J28: ='CDM Allocation'!M28 -> 0
B29: Street Light | C29: Cust/Conn | D29: ='Input - Customer Data'!$R11 -> 1696 | E29: ='Input - Customer Data'!$R12 -> 1705 | F29: ='Input - Customer Data'!$R13 -> 1706.5 | G29: ='Input - Customer Data'!$R14 -> 1704.5 | H29: ='Input - Customer Data'!$R24 -> 1710.403456 | I29: ='Input - Customer Data'!$R25 -> 1716.327359 | J29: ='Input - Customer Data'!$R25 -> 1716.327359
C30: kWh | D30: ='Bridge&Test Year Class Forecast'!$L91 -> 1151811 | E30: ='Bridge&Test Year Class Forecast'!$L92 -> 1141797 | F30: ='Bridge&Test Year Class Forecast'!$L93 -> 976129 | G30: ='Bridge&Test Year Class Forecast'!$L94 -> 566049 | H30: ='Bridge&Test Year Class Forecast'!$L95 -> 568009.4843 | I30: ='Bridge&Test Year Class Forecast'!$L96 -> 569976.7587 | J30: ='CDM Allocation'!M30 -> 555473.8651
C31: kW | D31: ='Bridge&Test Year Class Forecast'!$M91 -> 3174 | E31: ='Bridge&Test Year Class Forecast'!$M92 -> 3151.2 | F31: ='Bridge&Test Year Class Forecast'!$M93 -> 2727.2 | G31: ='Bridge&Test Year Class Forecast'!$M94 -> 1555.2 | H31: ='Bridge&Test Year Class Forecast'!$M95 -> 1560.586363 | I31: ='Bridge&Test Year Class Forecast'!$M96 -> 1565.991381 | J31: ='CDM Allocation'!M31 -> 1526.145183
B34: Total | C34: Cust/Conn | D34: =D5+D9+D13+D17+D21+D25+D29 -> 8420.5 | E34: 8468 | F34: 8494.5 | G34: 8525 | H34: =H5+H9+H13+H17+H21+H25+H29 -> 8596.834873 | I34: 8669.389296 | J34: 8669.389296
C35: kWh | D35: 145647866.6 | E35: 141000424.6 | F35: 138995287.8 | G35: 138827041.4 | H35: 146918511.2 | I35: 147225048.5 | J35: 143478949.8
C36: kW | D36: 211475.69 | E36: 200783.48 | F36: 193246.08 | G36: 190379.59 | H36: 209103.609 | I36: 209542.0354 | J36: 204210.299

Sheet Wholesale Analysis
A3: Actual Wholesale vs Post Adjustment Wholesale
A4: Year | B4: kWh Purchased | C4: year over year | D4: Adjusted | E4: year over year | F4: Purch. VS Adj.
A6: ='Input - Customer Data'!E6 -> 2008 | B6: =SUM('Input - Adjustments & Variables'!B5:B16) -> 161716845.1 | D6: =SUM('Input - Adjustments & Variables'!H5:H16) -> 147644590.2 | F6: =(D6-B6)/B6 -> -0.08701786718
A7: ='Input - Customer Data'!E7 -> 2009 | B7: =SUM('Input - Adjustments & Variables'!B17:B28) -> 154290358.9 | C7: =(B7-B6)/B6 -> -0.04592277468 | D7: =SUM('Input - Adjustments & Variables'!H17:H28) -> 139894245.9 | E7: =(D7-D6)/D6 -> -0.05249324937 | F7: -0.09330533096
A8: ='Input - Customer Data'!E8 -> 2010 | B8: =SUM('Input - Adjustments & Variables'!B29:B40) -> 155932074.4 | C8: =(B8-B7)/B7 -> 0.01064042842 | D8: =SUM('Input - Adjustments & Variables'!H29:H40) -> 141140527.7 | E8: =(D8-D7)/D7 -> 0.008908742544 | F8: -0.09485891057
A9: ='Input - Customer Data'!E9 -> 2011 | B9: =SUM('Input - Adjustments & Variables'!B41:B52) -> 154214655.6 | C9: -0.01101389055 | D9: =SUM('Input - Adjustments & Variables'!H41:H52) -> 140278908 | E9: -0.006104693769 | F9: -0.09036590943
A10: ='Input - Customer Data'!E10 -> 2012 | B10: =SUM('Input - Adjustments & Variables'!B53:B64) -> 156500644.4 | C10: 0.01482342156 | D10: =SUM('Input - Adjustments & Variables'!H53:H64) -> 143716822.6 | E10: 0.0245077086 | F10: -0.08168542625
A11: ='Input - Customer Data'!E11 -> 2013 | B11: =SUM('Input - Adjustments & Variables'!B65:B76) -> 154795353.8 | C11: -0.01089638075 | D11: =SUM('Input - Adjustments & Variables'!H65:H76) -> 146666557.6 | E11: 0.02052463265 | F11: -0.05251317981
A12: ='Input - Customer Data'!E12 -> 2014 | B12: =SUM('Input - Adjustments & Variables'!B77:B88) -> 148717979.2 | C12: -0.0392607046 | D12: =SUM('Input - Adjustments & Variables'!H77:H88) -> 145618385 | E12: -0.007146636406 | F12: -0.02084209433
A13: ='Input - Customer Data'!E13 -> 2015 | B13: =SUM('Input - Adjustments & Variables'!B89:B100) -> 144221924.3 | C13: -0.0302320867 | D13: =SUM('Input - Adjustments & Variables'!H89:H100) -> 142900769.8 | E13: -0.0186625833 | F13: -0.009160566648
A14: ='Input - Customer Data'!E14 -> 2016 | B14: =SUM('Input - Adjustments & Variables'!B101:B112) -> 145136098.4 | C14: 0.006338662476 | D14: =SUM('Input - Adjustments & Variables'!H101:H112) -> 143959401.2 | E14: 0.007408157784 | F14: -0.008107543283
A18: Actual Wholesale VS Weather Adjsuted Wholesale
A19: Year | B19: kWh Purchased | C19: year over year | D19: Predicted | E19: year over year | F19: Purch. VS Adj.
A21: ='Input - Customer Data'!E6 -> 2008 | B21: =B6 -> 161716845.1 | D21: ='Bridge&Test Year Class Forecast'!E5 -> 142745764.1 | F21: =(D21-B21)/B21 -> -0.117310482 | G21: =IF(ABS(B21-D21)=0,0,ABS(B21-D21)/B21) -> 0.117310482
A22: ='Input - Customer Data'!E7 -> 2009 | B22: 154290358.9 | C22: =(B22-B21)/B21 -> -0.04592277468 | D22: ='Bridge&Test Year Class Forecast'!E6 -> 140745147 | E22: =(D22-D21)/D21 -> -0.0140152463 | F22: -0.08779039695 | G22: 0.08779039695
A23: ='Input - Customer Data'!E8 -> 2010 | B23: 155932074.4 | C23: 0.01064042842 | D23: ='Bridge&Test Year Class Forecast'!E7 -> 143068308.6 | E23: 0.0165061572 | F23: -0.08249595792 | G23: 0.08249595792
A24: ='Input - Customer Data'!E9 -> 2011 | B24: 154214655.6 | C24: -0.01101389055 | D24: ='Bridge&Test Year Class Forecast'!E8 -> 143978528.4 | E24: 0.006362134799 | F24: -0.06637583921 | G24: 0.06637583921
A25: ='Input - Customer Data'!E10 -> 2012 | B25: 156500644.4 | C25: 0.01482342156 | D25: ='Bridge&Test Year Class Forecast'!E9 -> 143496616.9 | E25: -0.003347106484 | F25: -0.08309248531 | G25: 0.08309248531
A26: ='Input - Customer Data'!E11 -> 2013 | B26: 154795353.8 | C26: -0.01089638075 | D26: ='Bridge&Test Year Class Forecast'!E10 -> 144472247.7 | E26: 0.006798980583 | F26: -0.06668873401 | G26: 0.06668873401
A27: ='Input - Customer Data'!E12 -> 2014 | B27: 148717979.2 | C27: -0.0392607046 | D27: ='Bridge&Test Year Class Forecast'!E11 -> 144603820.1 | E27: 0.0009107109241 | F27: -0.02766416735 | G27: 0.02766416735
A28: ='Input - Customer Data'!E13 -> 2015 | B28: 144221924.3 | C28: -0.0302320867 | D28: ='Bridge&Test Year Class Forecast'!E12 -> 144146024.8 | E28: -0.003165858914 | F28: -0.0005262689212 | G28: 0.0005262689212
A29: ='Input - Customer Data'!E14 -> 2016 | B29: 145136098.4 | C29: 0.006338662476 | D29: ='Bridge&Test Year Class Forecast'!E13 -> 144563750.4 | E29: 0.002897933252 | F29: -0.003943526553 | G29: 0.003943526553
F30: Mean | G30: =AVERAGE(G21:G29) -> 0.05954309536
A31: Mean Average Percentage Error (Mape) : | F31: Median | G31: =MEDIAN(G21:G29) -> 0.06668873401
A32: in column A: Actual value
A33: in column B: Forecast value
A34: in column C: =IF(ABS(A2-B2)=0,0,ABS(A2-B2)/A2*100)
A35: calculate an average of column C ( =AVERAGE(C2:Cx) and you have the MAPE in percent.
A37: Period | B37: Actual | C37: Forecast | D37: Error | E37: Absolute Value of Error | F37: Square of Error | G37: Absolute Values of Errors Divided by Actual Values.
A38: t | B38: At | C38: Ft | D38: At -Ft | E38: | At -Ft| | F38: ( At -Ft)^2 | G38: | (At -Ft)/At|
A39: 1 | B39: =B21 -> 161716845.1 | C39: =D21 -> 142745764.1 | D39: =B39-C39 -> 18971081.05 | E39: =ABS(B39-C39) -> 18971081.05 | F39: =D39^2 -> 359901916197735 | G39: =ABS((B39-C39)/B39) -> 0.117310482
A40: 2 | B40: =B22 -> 154290358.9 | C40: =D22 -> 140745147 | D40: =B40-C40 -> 13545211.85 | E40: =ABS(B40-C40) -> 13545211.85 | F40: =D40^2 -> 1.834727641e+14 | G40: =ABS((B40-C40)/B40) -> 0.08779039695
A41: 3 | B41: 155932074.4 | C41: 143068308.6 | D41: 12863765.85 | E41: 12863765.85 | F41: 1.654764718e+14 | G41: 0.08249595792
A42: 4 | B42: 154214655.6 | C42: 143978528.4 | D42: 10236127.18 | E42: 10236127.18 | F42: 1.047782997e+14 | G42: 0.06637583921
A43: 5 | B43: 156500644.4 | C43: 143496616.9 | D43: 13004027.5 | E43: 13004027.5 | F43: 1.691047312e+14 | G43: 0.08309248531
A44: 6 | B44: 154795353.8 | C44: 144472247.7 | D44: 10323106.18 | E44: 10323106.18 | F44: 1.065665212e+14 | G44: 0.06668873401
A45: 7 | B45: 148717979.2 | C45: 144603820.1 | D45: 4114159.064 | E45: 4114159.064 | F45: 1.69263048e+13 | G45: 0.02766416735
A46: 8 | B46: 144221924.3 | C46: 144146024.8 | D46: 75899.51654 | E46: 75899.51654 | F46: 5760736611 | G46: 0.0005262689212
A47: 9 | B47: 145136098.4 | C47: 144563750.4 | D47: 572348.058 | E47: 572348.058 | F47: 3.275822995e+11 | G47: 0.003943526553
B49: Totals | D49: =SUM(D39:D48) -> 83705726.25 | E49: =SUM(E39:E48) -> 83705726.25 | F49: =SUM(F39:F48) -> 1.106560352e+15 | G49: =SUM(G39:G48) -> 0.5358878582

Sheet Analysis_Weather adj LF
B2: Weather Adjusted Load Forecast Results
B3: (without impacts of CDM)
B5: Residential
B6: Year | C6: Cust | D6: %chg | E6: kWh | F6: %chg
B7: ='Bridge&Test Year Class Forecast'!A5 -> 2008 | C7: ='Input - Customer Data'!F6 -> 5537 | E7: ='Bridge&Test Year Class Forecast'!B5 -> 44267125.53
B8: ='Bridge&Test Year Class Forecast'!A6 -> 2009 | C8: ='Input - Customer Data'!F7 -> 5584 | D8: =(C8-C7)/C7 -> 0.008488351093 | E8: ='Bridge&Test Year Class Forecast'!B6 -> 43775753.41 | F8: =(E8-E7)/E7 -> -0.01110015873
B9: ='Bridge&Test Year Class Forecast'!A7 -> 2010 | C9: ='Input - Customer Data'!F8 -> 5647 | D9: 0.01128223496 | E9: ='Bridge&Test Year Class Forecast'!B7 -> 45093297.22 | F9: 0.03009757017
B10: ='Bridge&Test Year Class Forecast'!A8 -> 2011 | C10: ='Input - Customer Data'!F9 -> 5709 | D10: 0.01097928103 | E10: ='Bridge&Test Year Class Forecast'!B8 -> 44251862.37 | F10: -0.01865986525
B11: ='Bridge&Test Year Class Forecast'!A9 -> 2012 | C11: ='Input - Customer Data'!F10 -> 5805 | D11: 0.01681555439 | E11: ='Bridge&Test Year Class Forecast'!B9 -> 45223786 | F11: 0.02196345143
B12: ='Bridge&Test Year Class Forecast'!A10 -> 2013 | C12: ='Input - Customer Data'!F11 -> 5911.5 | D12: 0.01834625323 | E12: ='Bridge&Test Year Class Forecast'!B10 -> 46477809 | F12: 0.02772927945
B13: ='Bridge&Test Year Class Forecast'!A11 -> 2014 | C13: ='Input - Customer Data'!F12 -> 5946.5 | D13: 0.005920663114 | E13: ='Bridge&Test Year Class Forecast'!B11 -> 46177614 | F13: -0.0064588888
B14: ='Bridge&Test Year Class Forecast'!A12 -> 2015 | C14: ='Input - Customer Data'!F13 -> 5961 | D14: 0.002438409148 | E14: ='Bridge&Test Year Class Forecast'!B12 -> 45098159 | F14: -0.02337615365
B15: ='Bridge&Test Year Class Forecast'!A13 -> 2016 | C15: ='Input - Customer Data'!F14 -> 5988.5 | D15: 0.004613319913 | E15: ='Bridge&Test Year Class Forecast'!B13 -> 44914361 | F15: -0.004075510045
B16: ='Bridge&Test Year Class Forecast'!A14 -> 2017 | C16: ='Final LF '!H5 -> 6047.466833 | D16: 0.009846678329 | E16: ='Bridge&Test Year Class Forecast'!F14 -> 45507125.13 | F16: 0.01319765251
B17: ='Bridge&Test Year Class Forecast'!A15 -> 2018 | C17: ='Final LF '!I5 -> 6107.014294 | D17: 0.009846678329 | E17: ='Bridge&Test Year Class Forecast'!F15 -> 45602321.01 | F17: 0.002091889534
B18: ='Bridge&Test Year Class Forecast'!A16 -> 2018 | C18: ='Input - Customer Data'!F25 -> 6107.014294 | D18: 0 | E18: ='Bridge&Test Year Class Forecast'!G26 -> 0 | F18: -1
B21: GS<50
B22: Year | C22: Cust | D22: %chg | E22: kWh | F22: %chg
B23: =B7 -> 2008 | C23: ='Input - Customer Data'!H6 -> 678.5 | E23: ='Bridge&Test Year Class Forecast'!B32 -> 19599082.04
B24: =B8 -> 2009 | C24: ='Input - Customer Data'!H7 -> 693.5 | D24: =(C24-C23)/C23 -> 0.02210759027 | E24: ='Bridge&Test Year Class Forecast'!B33 -> 20149611.83 | F24: =(E24-E23)/E23 -> 0.02808957016
B25: 2010 | C25: ='Input - Customer Data'!H8 -> 703.5 | D25: 0.01441961067 | E25: ='Bridge&Test Year Class Forecast'!B34 -> 20409368.48 | F25: 0.01289139722
B26: 2011 | C26: ='Input - Customer Data'!H9 -> 708.5 | D26: 0.00710732054 | E26: ='Bridge&Test Year Class Forecast'!B35 -> 20583076.52 | F26: 0.008511191327
B27: 2012 | C27: ='Input - Customer Data'!H10 -> 707.5 | D27: -0.001411432604 | E27: ='Bridge&Test Year Class Forecast'!B36 -> 20304130 | F27: -0.01355222674
B28: 2013 | C28: ='Input - Customer Data'!H11 -> 711 | D28: 0.004946996466 | E28: ='Bridge&Test Year Class Forecast'!B37 -> 20342402 | F28: 0.00188493671
B29: 2014 | C29: ='Input - Customer Data'!H12 -> 715 | D29: 0.005625879044 | E29: ='Bridge&Test Year Class Forecast'!B38 -> 20579869 | F29: 0.01167349854
B30: 2015 | C30: ='Input - Customer Data'!H13 -> 730 | D30: 0.02097902098 | E30: ='Bridge&Test Year Class Forecast'!B39 -> 21387560 | F30: 0.0392466541
B31: 2016 | C31: ='Input - Customer Data'!H14 -> 741.5 | D31: 0.01575342466 | E31: ='Bridge&Test Year Class Forecast'!B40 -> 23270825 | F31: 0.08805422404
B32: 2017 | C32: ='Final LF '!H9 -> 749.7756263 | D32: 0.01116065586 | E32: ='Bridge&Test Year Class Forecast'!F41 -> 20960878.59 | F32: -0.09926362332
B33: 2018 | C33: ='Final LF '!I9 -> 758.1436141 | D33: 0.01116065586 | E33: ='Bridge&Test Year Class Forecast'!F42 -> 21004726.44 | F33: 0.002091889534
B34: 2018 | C34: ='Input - Customer Data'!H25 -> 758.1436141 | D34: 0 | E34: ='Bridge&Test Year Class Forecast'!G53 -> 0 | F34: -1
B37: GS>50
B38: Year | C38: Cust | D38: %chg | E38: kWh | F38: %chg | G38: kW | H38: %chg
B39: =B23 -> 2008 | C39: ='Input - Customer Data'!J6 -> 57 | E39: ='Bridge&Test Year Class Forecast'!B59 -> 66898820.39 | G39: ='Bridge&Test Year Class Forecast'!M5 -> 169386.36
B40: =B24 -> 2009 | C40: ='Input - Customer Data'!J7 -> 60.5 | D40: =(C40-C39)/C39 -> 0.06140350877 | E40: ='Bridge&Test Year Class Forecast'!B60 -> 62407115.03 | F40: =(E40-E39)/E39 -> -0.06714177221 | G40: ='Bridge&Test Year Class Forecast'!M6 -> 169024.13 | H40: =(G40-G39)/G39 -> -0.002138483878
B41: 2010 | C41: ='Input - Customer Data'!J8 -> 62 | D41: 0.02479338843 | E41: ='Bridge&Test Year Class Forecast'!B61 -> 64376683.75 | F41: 0.03156000272 | G41: ='Bridge&Test Year Class Forecast'!M7 -> 170203.1 | H41: 0.006975157926
B42: 2011 | C42: ='Input - Customer Data'!J9 -> 60.5 | D42: -0.02419354839 | E42: ='Bridge&Test Year Class Forecast'!B62 -> 61442756.45 | F42: -0.0455743777 | G42: ='Bridge&Test Year Class Forecast'!M8 -> 160989.06 | H42: -0.05413555922
B43: 2012 | C43: ='Input - Customer Data'!J10 -> 59.5 | D43: -0.01652892562 | E43: ='Bridge&Test Year Class Forecast'!B63 -> 63286610 | F43: 0.03000929087 | G43: ='Bridge&Test Year Class Forecast'!M9 -> 164083.8 | H43: 0.01922329381
B44: 2013 | C44: ='Input - Customer Data'!J11 -> 57 | D44: -0.04201680672 | E44: ='Bridge&Test Year Class Forecast'!B64 -> 60663507 | F44: -0.0414479935 | G44: ='Bridge&Test Year Class Forecast'!M10 -> 165373.3 | H44: 0.007858789228
B45: 2014 | C45: ='Input - Customer Data'!J12 -> 56.5 | D45: -0.008771929825 | E45: ='Bridge&Test Year Class Forecast'!B65 -> 55013692 | F45: -0.09313366931 | G45: ='Bridge&Test Year Class Forecast'!M11 -> 154259.7 | H45: -0.06720310957
B46: 2015 | C46: ='Input - Customer Data'!J13 -> 52 | D46: -0.0796460177 | E46: ='Bridge&Test Year Class Forecast'!B66 -> 52447595 | F46: -0.04664469711 | G46: ='Bridge&Test Year Class Forecast'!M12 -> 148977.3 | H46: -0.03424355162
B47: 2016 | C47: ='Input - Customer Data'!J14 -> 47.5 | D47: -0.08653846154 | E47: ='Bridge&Test Year Class Forecast'!B67 -> 50553990 | F47: -0.03610470604 | G47: ='Bridge&Test Year Class Forecast'!M13 -> 145124.2 | H47: -0.02586367185
B48: 2017 | C48: ='Final LF '!H13 -> 46.42970816 | D48: -0.02253245977 | E48: ='Bridge&Test Year Class Forecast'!F68 -> 60321817.19 | F48: 0.1932157519 | G48: ='Bridge&Test Year Class Forecast'!M14 -> 163126.1697 | H48: 0.1240452638
B49: 2018 | C49: ='Final LF '!I13 -> 45.38353263 | D49: -0.02253245977 | E49: ='Bridge&Test Year Class Forecast'!F69 -> 60448003.77 | F49: 0.002091889534 | G49: ='Bridge&Test Year Class Forecast'!M15 -> 163467.4116 | H49: 0.002091889534
B50: 2018 | C50: ='Input - Customer Data'!J25 -> 45.38353263 | D50: 0 | E50: ='Bridge&Test Year Class Forecast'!F70 -> 0 | F50: -1 | G50: ='Bridge&Test Year Class Forecast'!M16 -> 0 | H50: -1
B53: Intermediate
B54: Year | C54: Cust | D54: %chg | E54: kWh | F54: %chg | G54: kW | H54: %chg
B55: =B39 -> 2008 | C55: ='Input - Customer Data'!L6 -> 1 | E55: =+'Bridge&Test Year Class Forecast'!B87 -> 21799117.2 | G55: ='Bridge&Test Year Class Forecast'!M24 -> 46155.2
B56: =B40 -> 2009 | C56: ='Input - Customer Data'!L7 -> 1 | D56: =(C56-C55)/C55 -> 0 | E56: =+'Bridge&Test Year Class Forecast'!B88 -> 18664981.2 | F56: =(E56-E55)/E55 -> -0.1437735286 | G56: ='Bridge&Test Year Class Forecast'!M25 -> 42412.8 | H56: =(G56-G55)/G55 -> -0.0810829549
B57: 2010 | C57: ='Input - Customer Data'!L8 -> 1 | D57: 0 | E57: =+'Bridge&Test Year Class Forecast'!B89 -> 17729306.4 | F57: -0.05012996209 | G57: ='Bridge&Test Year Class Forecast'!M26 -> 44377.7 | H57: 0.04632799532
B58: 2011 | C58: ='Input - Customer Data'!L9 -> 1 | D58: 0 | E58: =+'Bridge&Test Year Class Forecast'!B90 -> 18104643.6 | F58: 0.02117043902 | G58: ='Bridge&Test Year Class Forecast'!M27 -> 44396.5 | H58: 0.0004236361957
B59: 2012 | C59: ='Input - Customer Data'!L10 -> 1 | D59: 0 | E59: =+'Bridge&Test Year Class Forecast'!B91 -> 19950324 | F59: 0.1019451385 | G59: ='Bridge&Test Year Class Forecast'!M28 -> 45269.7 | H59: 0.01966821709
B60: 2013 | C60: ='Input - Customer Data'!L11 -> 1 | D60: 0 | E60: =+'Bridge&Test Year Class Forecast'!B92 -> 18608986 | F60: -0.06723389555 | G60: ='Bridge&Test Year Class Forecast'!M29 -> 42815.4 | H60: -0.05421507101
B61: 2014 | C61: ='Input - Customer Data'!L12 -> 1 | D61: 0 | E61: =+'Bridge&Test Year Class Forecast'!B93 -> 18461823 | F61: -0.007908168666 | G61: ='Bridge&Test Year Class Forecast'!M30 -> 43263.5 | H61: 0.01046586041
B62: 2015 | C62: ='Input - Customer Data'!L13 -> 1 | D62: 0 | E62: =+'Bridge&Test Year Class Forecast'!B94 -> 17295612 | F62: -0.06316878891 | G62: ='Bridge&Test Year Class Forecast'!M31 -> 41432.5 | H62: -0.04232204976
B63: 2016 | C63: ='Input - Customer Data'!L14 -> 1 | D63: 0 | E63: =+'Bridge&Test Year Class Forecast'!B95 -> 18344949 | F63: 0.06067070654 | G63: ='Bridge&Test Year Class Forecast'!M32 -> 43591 | H63: 0.05209678393
B64: 2017 | C64: ='Input - Customer Data'!L19 -> 1 | D64: 0 | E64: =+'Bridge&Test Year Class Forecast'!F96 -> 18961919.5 | F64: 0.03363162782 | G64: ='Bridge&Test Year Class Forecast'!M33 -> 44307.58844 | H64: 0.01643890811
B65: 2018 | C65: ='Input - Customer Data'!L20 -> 1 | D65: 0 | E65: =+'Bridge&Test Year Class Forecast'!F97 -> 19001585.74 | F65: 0.002091889534 | G65: ='Bridge&Test Year Class Forecast'!M34 -> 44400.27502 | H65: 0.002091889534
B66: 2018 | C66: ='Input - Customer Data'!L25 -> 1 | D66: 0 | E66: ='Bridge&Test Year Class Forecast'!#REF! ->  | G66: ='Bridge&Test Year Class Forecast'!#REF! ->  | H66: =(G66-G65)/G65 -> 
B71: USL
B72: Year | C72: Cust | D72: %chg | E72: kWh | F72: %chg | G72: kW | H72: %chg
B73: =B39 -> 2008 | C73: ='Input - Customer Data'!N6 -> 2 | E73: ='Bridge&Test Year Class Forecast'!L46 -> 401394.35 | G73: ='Bridge&Test Year Class Forecast'!M46 -> 0
B74: 2009 | C74: ='Input - Customer Data'!N7 -> 2 | D74: =(C74-C73)/C73 -> 0 | E74: ='Bridge&Test Year Class Forecast'!L47 -> 400443.16 | F74: =(E74-E73)/E73 -> -0.002369714472 | G74: ='Bridge&Test Year Class Forecast'!M47 -> 0 | H74: =(G74-G73)/G73 -> 
B75: 2010 | C75: ='Input - Customer Data'!N8 -> 4 | D75: 1 | E75: ='Bridge&Test Year Class Forecast'!L48 -> 453001.43 | F75: 0.1312502628 | G75: ='Bridge&Test Year Class Forecast'!M48 -> 0
B76: 2011 | C76: ='Input - Customer Data'!N9 -> 6 | D76: 0.5 | E76: ='Bridge&Test Year Class Forecast'!L49 -> 494005.7 | F76: 0.09051686658 | G76: ='Bridge&Test Year Class Forecast'!M49 -> 0
B77: 2012 | C77: ='Input - Customer Data'!N10 -> 9.5 | D77: 0.5833333333 | E77: ='Bridge&Test Year Class Forecast'!L50 -> 515381 | F77: 0.0432693388 | G77: ='Bridge&Test Year Class Forecast'!M50 -> 0
B78: 2013 | C78: ='Input - Customer Data'!N11 -> 13 | D78: 0.3684210526 | E78: ='Bridge&Test Year Class Forecast'!L51 -> 548400 | F78: 0.06406716584 | G78: ='Bridge&Test Year Class Forecast'!M51 -> 0
B79: 2014 | C79: ='Input - Customer Data'!N12 -> 13 | D79: 0 | E79: ='Bridge&Test Year Class Forecast'!L52 -> 563396 | F79: 0.02734500365 | G79: ='Bridge&Test Year Class Forecast'!M52 -> 0
B80: 2015 | C80: ='Input - Customer Data'!N13 -> 13 | D80: 0 | E80: ='Bridge&Test Year Class Forecast'!L53 -> 563839 | F80: 0.0007863030621 | G80: ='Bridge&Test Year Class Forecast'!M53 -> 0
B81: 2016 | C81: ='Input - Customer Data'!N14 -> 13 | D81: 0 | E81: ='Bridge&Test Year Class Forecast'!L54 -> 562067 | F81: -0.003142741102 | G81: ='Bridge&Test Year Class Forecast'!M54 -> 0
B82: 2017 | C82: ='Input - Customer Data'!N24 -> 13 | D82: 0 | E82: ='Bridge&Test Year Class Forecast'!L55 -> 559425.5 | F82: -0.004699617661 | G82: ='Bridge&Test Year Class Forecast'!M55 -> 0
B83: 2018 | C83: ='Input - Customer Data'!N25 -> 13 | D83: 0 | E83: ='Bridge&Test Year Class Forecast'!L56 -> 559425.5 | F83: 0 | G83: ='Bridge&Test Year Class Forecast'!M56 -> 0
B84: 2018 | C84: ='Input - Customer Data'!N25 -> 13 | D84: 0 | E84: ='Bridge&Test Year Class Forecast'!L57 -> 0 | F84: -1 | G84: ='Bridge&Test Year Class Forecast'!M57 -> 0
B87: Sentinel
B88: Year | C88: Cust | D88: %chg | E88: kWh | F88: %chg | G88: kW | H88: %chg
B89: =B55 -> 2008 | C89: ='Input - Customer Data'!P6 -> 31 | E89: ='Bridge&Test Year Class Forecast'!L66 -> 45820.81 | G89: ='Bridge&Test Year Class Forecast'!M66 -> 127.29
B90: 2009 | C90: ='Input - Customer Data'!P7 -> 31 | D90: =(C90-C89)/C89 -> 0 | E90: ='Bridge&Test Year Class Forecast'!L67 -> 46167.35 | F90: =(E90-E89)/E89 -> 0.007562939197 | G90: ='Bridge&Test Year Class Forecast'!M67 -> 128.23 | H90: =(G90-G89)/G89 -> 0.007384712075
B91: 2010 | C91: ='Input - Customer Data'!P8 -> 31 | D91: 0 | E91: ='Bridge&Test Year Class Forecast'!L68 -> 43013.75 | F91: -0.06830801421 | G91: ='Bridge&Test Year Class Forecast'!M68 -> 119.48 | H91: -0.06823676207
B92: 2011 | C92: ='Input - Customer Data'!P9 -> 31 | D92: 0 | E92: ='Bridge&Test Year Class Forecast'!L69 -> 41278.66 | F92: -0.04033803144 | G92: ='Bridge&Test Year Class Forecast'!M69 -> 114.69 | H92: -0.0400903917
B93: 2012 | C93: ='Input - Customer Data'!P10 -> 29 | D93: -0.06451612903 | E93: ='Bridge&Test Year Class Forecast'!L70 -> 41226 | F93: -0.001275719706 | G93: ='Bridge&Test Year Class Forecast'!M70 -> 114.54 | H93: -0.001307873398
B94: 2013 | C94: ='Input - Customer Data'!P11 -> 31 | D94: 0.06896551724 | E94: ='Bridge&Test Year Class Forecast'!L71 -> 40676 | F94: -0.01334109543 | G94: ='Bridge&Test Year Class Forecast'!M71 -> 112.99 | H94: -0.01353239043
B95: 2014 | C95: ='Input - Customer Data'!P12 -> 31 | D95: 0 | E95: ='Bridge&Test Year Class Forecast'!L72 -> 39277 | F95: -0.0343937457 | G95: ='Bridge&Test Year Class Forecast'!M72 -> 109.08 | H95: -0.03460483229
B96: 2015 | C96: ='Input - Customer Data'!P13 -> 31 | D96: 0 | E96: ='Bridge&Test Year Class Forecast'!L73 -> 39278 | F96: 2.546019299e-05 | G96: ='Bridge&Test Year Class Forecast'!M73 -> 109.08 | H96: -1.302791961e-16
B97: 2016 | C97: ='Input - Customer Data'!P14 -> 29 | D97: -0.06451612903 | E97: ='Bridge&Test Year Class Forecast'!L74 -> 39314 | F97: 0.0009165436122 | G97: ='Bridge&Test Year Class Forecast'!M74 -> 109.19 | H97: 0.001008434177
B98: 2017 | C98: ='Input - Customer Data'!P19 -> 28.75924866 | D98: 0 | E98: ='Bridge&Test Year Class Forecast'!L75 -> 39335.85435 | F98: 0.0005558922431 | G98: ='Bridge&Test Year Class Forecast'!M75 -> 109.2644934 | H98: 0.0006822367415
B99: 2018 | C99: ='Input - Customer Data'!P20 -> 28.52049599 | D99: 0 | E99: ='Bridge&Test Year Class Forecast'!L76 -> 39009.29712 | F99: -0.008301770205 | G99: ='Bridge&Test Year Class Forecast'!M76 -> 108.3574047 | H99: -0.008301770205
B100: 2018 | C100: ='Input - Customer Data'!P25 -> 28.52049599 | D100: 0 | E100: ='Bridge&Test Year Class Forecast'!L77 -> 39009.29712 | F100: 0 | G100: ='Bridge&Test Year Class Forecast'!M77 -> 108.3574047 | H100: 0
B103: Street Lights
B104: Year | C104: Cust | D104: %chg | E104: kWh | F104: %chg | G104: kW | H104: %chg
B105: =B55 -> 2008 | C105: ='Input - Customer Data'!R6 -> 1658 | E105: ='Bridge&Test Year Class Forecast'!L86 -> 1140337.06 | G105: ='Bridge&Test Year Class Forecast'!M86 -> 3144.2
B106: 2009 | C106: ='Input - Customer Data'!R7 -> 1658 | D106: =(C106-C105)/C89 -> 0 | E106: ='Bridge&Test Year Class Forecast'!L87 -> 1139918.23 | F106: =(E106-E105)/E105 -> -0.0003672861426 | G106: ='Bridge&Test Year Class Forecast'!M87 -> 3235.1 | H106: =(G106-G105)/G105 -> 0.02891037466
B107: 2010 | C107: ='Input - Customer Data'!R8 -> 1680 | D107: =(C107-C106)/C106 -> 0.01326899879 | E107: ='Bridge&Test Year Class Forecast'!L88 -> 1139669.76 | F107: =(E107-E106)/E106 -> -0.000217971775 | G107: ='Bridge&Test Year Class Forecast'!M88 -> 3382.4 | H107: =(G107-G106)/G106 -> 0.04553182282
B108: 2011 | C108: ='Input - Customer Data'!R9 -> 1687 | D108: =(C108-C107)/C107 -> 0.004166666667 | E108: ='Bridge&Test Year Class Forecast'!L89 -> 1127165.69 | F108: -0.01097166077 | G108: ='Bridge&Test Year Class Forecast'!M89 -> 3215.5 | H108: -0.04934366131
B109: 2012 | C109: ='Input - Customer Data'!R10 -> 1688 | D109: 0.0005927682276 | E109: ='Bridge&Test Year Class Forecast'!L90 -> 1063521 | F109: -0.05646436062 | G109: ='Bridge&Test Year Class Forecast'!M90 -> 3124.4 | H109: -0.0283315192
B110: 2013 | C110: ='Input - Customer Data'!R11 -> 1696 | D110: 0.004739336493 | E110: ='Bridge&Test Year Class Forecast'!L91 -> 1151811 | F110: 0.08301669643 | G110: ='Bridge&Test Year Class Forecast'!M91 -> 3174 | H110: 0.01587504801
B111: 2014 | C111: ='Input - Customer Data'!R12 -> 1705 | D111: 0.005306603774 | E111: ='Bridge&Test Year Class Forecast'!L92 -> 1141797 | F111: -0.008694134715 | G111: ='Bridge&Test Year Class Forecast'!M92 -> 3151.2 | H111: -0.007183364839
B112: 2015 | C112: ='Input - Customer Data'!R13 -> 1706.5 | D112: 0.0008797653959 | E112: ='Bridge&Test Year Class Forecast'!L93 -> 976129 | F112: -0.1450940929 | G112: ='Bridge&Test Year Class Forecast'!M93 -> 2727.2 | H112: -0.1345519167
B113: 2016 | C113: ='Input - Customer Data'!R14 -> 1704.5 | D113: -0.001171989452 | E113: ='Bridge&Test Year Class Forecast'!L94 -> 566049 | F113: -0.4201084078 | G113: ='Bridge&Test Year Class Forecast'!M94 -> 1555.2 | H113: -0.4297447932
B114: 2017 | C114: ='Input - Customer Data'!R24 -> 1710.403456 | D114: 0.003463453427 | E114: ='Bridge&Test Year Class Forecast'!L95 -> 568009.4843 | F114: 0.003463453427 | G114: ='Bridge&Test Year Class Forecast'!M95 -> 1560.586363 | H114: 0.003463453427
B115: 2018 | C115: ='Input - Customer Data'!R25 -> 1716.327359 | D115: 0.003463453427 | E115: ='Bridge&Test Year Class Forecast'!L96 -> 569976.7587 | F115: 0.003463453427 | G115: ='Bridge&Test Year Class Forecast'!M96 -> 1565.991381 | H115: 0.003463453427
B116: 2018 | C116: ='Input - Customer Data'!P25 -> 28.52049599 | D116: =(C100-C99)/C99 -> 0 | E116: ='Bridge&Test Year Class Forecast'!L77 -> 39009.29712 | F116: =(E100-E99)/E99 -> 0 | G116: ='Bridge&Test Year Class Forecast'!M77 -> 108.3574047 | H116: =(G100-G99)/G99 -> 0
B122: Average per customer
C123: Residential | D123: GS<50 | E123: GS>50 | G123: Intermediate | I123: USL | K123: Sentinel | M123: StreetLights
B124: Year | C124: kWh/cust | D124: kWh/cust | E124: kWh/cust | F124: kW/cust | G124: kWh/cust | H124: kW/cust | I124: kWh/conn | J124: kW/conn | K124: kWh/conn | L124: kW/conn | M124: kWh/conn | N124: kW/conn
B125: =B89 -> 2008 | C125: ='Bridge&Test Year Class Forecast'!G5 -> 7729.519365 | D125: ='Bridge&Test Year Class Forecast'!G32 -> 27927.46844 | E125: ='Bridge&Test Year Class Forecast'!G59 -> 1134721.53 | F125: ='Bridge&Test Year Class Forecast'!M5/'Input - Customer Data'!J6 -> 2971.690526 | G125: =+'Bridge&Test Year Class Forecast'!G87 -> 21075825.65 | H125: ='Bridge&Test Year Class Forecast'!M24/'Input - Customer Data'!L6 -> 46155.2 | I125: ='Bridge&Test Year Class Forecast'!O46 -> 200697.175 | J125: ='Bridge&Test Year Class Forecast'!P46 -> 0 | K125: ='Bridge&Test Year Class Forecast'!O66 -> 1478.090645 | L125: ='Bridge&Test Year Class Forecast'!P66 -> 4.106129032 | M125: ='Bridge&Test Year Class Forecast'!O86 -> 687.7786852 | N125: ='Bridge&Test Year Class Forecast'!P86 -> 1.896381182
B126: =B90 -> 2009 | C126: ='Bridge&Test Year Class Forecast'!G6 -> 7887.180816 | D126: ='Bridge&Test Year Class Forecast'!G33 -> 29231.68138 | E126: ='Bridge&Test Year Class Forecast'!G60 -> 1037796.757 | F126: ='Bridge&Test Year Class Forecast'!M6/'Input - Customer Data'!J7 -> 2793.787273 | G126: =+'Bridge&Test Year Class Forecast'!G88 -> 18778510.2 | H126: ='Bridge&Test Year Class Forecast'!M25/'Input - Customer Data'!L7 -> 42412.8 | I126: ='Bridge&Test Year Class Forecast'!O47 -> 200221.58 | J126: ='Bridge&Test Year Class Forecast'!P47 -> 0 | K126: ='Bridge&Test Year Class Forecast'!O67 -> 1489.269355 | L126: ='Bridge&Test Year Class Forecast'!P67 -> 4.136451613 | M126: ='Bridge&Test Year Class Forecast'!O87 -> 687.5260736 | N126: ='Bridge&Test Year Class Forecast'!P87 -> 1.951206273
B127: 2010 | C127: ='Bridge&Test Year Class Forecast'!G7 -> 8094.423262 | D127: ='Bridge&Test Year Class Forecast'!G34 -> 29407.43669 | E127: ='Bridge&Test Year Class Forecast'!G61 -> 1052515.784 | F127: ='Bridge&Test Year Class Forecast'!M7/'Input - Customer Data'!J8 -> 2745.21129 | G127: =+'Bridge&Test Year Class Forecast'!G89 -> 17971463.76 | H127: ='Bridge&Test Year Class Forecast'!M26/'Input - Customer Data'!L8 -> 44377.7 | I127: ='Bridge&Test Year Class Forecast'!O48 -> 113250.3575 | J127: ='Bridge&Test Year Class Forecast'!P48 -> 0 | K127: ='Bridge&Test Year Class Forecast'!O68 -> 1387.540323 | L127: ='Bridge&Test Year Class Forecast'!P68 -> 3.854193548 | M127: ='Bridge&Test Year Class Forecast'!O88 -> 678.3748571 | N127: ='Bridge&Test Year Class Forecast'!P88 -> 2.013333333
B128: 2011 | C128: ='Bridge&Test Year Class Forecast'!G8 -> 7955.671897 | D128: ='Bridge&Test Year Class Forecast'!G35 -> 29817.81308 | E128: ='Bridge&Test Year Class Forecast'!G62 -> 1042367.039 | F128: ='Bridge&Test Year Class Forecast'!M8/'Input - Customer Data'!J9 -> 2660.976198 | G128: =+'Bridge&Test Year Class Forecast'!G90 -> 18582123.14 | H128: ='Bridge&Test Year Class Forecast'!M27/'Input - Customer Data'!L9 -> 44396.5 | I128: ='Bridge&Test Year Class Forecast'!O49 -> 82334.28333 | J128: ='Bridge&Test Year Class Forecast'!P49 -> 0 | K128: ='Bridge&Test Year Class Forecast'!O69 -> 1331.569677 | L128: ='Bridge&Test Year Class Forecast'!P69 -> 3.699677419 | M128: ='Bridge&Test Year Class Forecast'!O89 -> 668.1480083 | N128: ='Bridge&Test Year Class Forecast'!P89 -> 1.906046236
B129: 2012 | C129: ='Bridge&Test Year Class Forecast'!G9 -> 7778.55181 | D129: ='Bridge&Test Year Class Forecast'!G36 -> 28654.4447 | E129: ='Bridge&Test Year Class Forecast'!G63 -> 1062010.774 | F129: ='Bridge&Test Year Class Forecast'!M9/'Input - Customer Data'!J10 -> 2757.710924 | G129: =+'Bridge&Test Year Class Forecast'!G91 -> 19919755.73 | H129: ='Bridge&Test Year Class Forecast'!M28/'Input - Customer Data'!L10 -> 45269.7 | I129: ='Bridge&Test Year Class Forecast'!O50 -> 54250.63158 | J129: ='Bridge&Test Year Class Forecast'!P50 -> 0 | K129: ='Bridge&Test Year Class Forecast'!O70 -> 1421.586207 | L129: ='Bridge&Test Year Class Forecast'!P70 -> 3.949655172 | M129: ='Bridge&Test Year Class Forecast'!O90 -> 630.0479858 | N129: ='Bridge&Test Year Class Forecast'!P90 -> 1.850947867
B130: 2013 | C130: ='Bridge&Test Year Class Forecast'!G10 -> 7744.640869 | D130: ='Bridge&Test Year Class Forecast'!G37 -> 28182.91835 | E130: ='Bridge&Test Year Class Forecast'!G64 -> 1048349.249 | F130: ='Bridge&Test Year Class Forecast'!M10/'Input - Customer Data'!J11 -> 2901.285965 | G130: =+'Bridge&Test Year Class Forecast'!G92 -> 18330572.96 | H130: ='Bridge&Test Year Class Forecast'!M29/'Input - Customer Data'!L11 -> 42815.4 | I130: ='Bridge&Test Year Class Forecast'!O51 -> 42184.61538 | J130: ='Bridge&Test Year Class Forecast'!P51 -> 0 | K130: ='Bridge&Test Year Class Forecast'!O71 -> 1312.129032 | L130: ='Bridge&Test Year Class Forecast'!P71 -> 3.64483871 | M130: ='Bridge&Test Year Class Forecast'!O91 -> 679.1338443 | N130: ='Bridge&Test Year Class Forecast'!P91 -> 1.871462264
B131: 2014 | C131: ='Bridge&Test Year Class Forecast'!G11 -> 7711.406939 | D131: ='Bridge&Test Year Class Forecast'!G38 -> 28582.49394 | E131: ='Bridge&Test Year Class Forecast'!G65 -> 966909.6616 | F131: ='Bridge&Test Year Class Forecast'!M11/'Input - Customer Data'!J12 -> 2730.260177 | G131: =+'Bridge&Test Year Class Forecast'!G93 -> 18333194.2 | H131: ='Bridge&Test Year Class Forecast'!M30/'Input - Customer Data'!L12 -> 43263.5 | I131: ='Bridge&Test Year Class Forecast'!O52 -> 43338.15385 | J131: ='Bridge&Test Year Class Forecast'!P52 -> 0 | K131: ='Bridge&Test Year Class Forecast'!O72 -> 1267 | L131: ='Bridge&Test Year Class Forecast'!P72 -> 3.518709677 | M131: ='Bridge&Test Year Class Forecast'!O92 -> 669.6756598 | N131: ='Bridge&Test Year Class Forecast'!P92 -> 1.848211144
B132: 2015 | C132: ='Bridge&Test Year Class Forecast'!G12 -> 7631.462834 | D132: ='Bridge&Test Year Class Forecast'!G39 -> 29553.33404 | E132: ='Bridge&Test Year Class Forecast'!G66 -> 1017396.728 | F132: ='Bridge&Test Year Class Forecast'!M12/'Input - Customer Data'!J13 -> 2864.948077 | G132: =+'Bridge&Test Year Class Forecast'!G94 -> 17446328.11 | H132: ='Bridge&Test Year Class Forecast'!M31/'Input - Customer Data'!L13 -> 41432.5 | I132: ='Bridge&Test Year Class Forecast'!O53 -> 43372.23077 | J132: ='Bridge&Test Year Class Forecast'!P53 -> 0 | K132: ='Bridge&Test Year Class Forecast'!O73 -> 1267.032258 | L132: ='Bridge&Test Year Class Forecast'!P73 -> 3.518709677 | M132: ='Bridge&Test Year Class Forecast'!O93 -> 572.0064459 | N132: ='Bridge&Test Year Class Forecast'!P93 -> 1.598124817
B133: 2016 | C133: ='Bridge&Test Year Class Forecast'!G13 -> 7531.587852 | D133: ='Bridge&Test Year Class Forecast'!G40 -> 31515.19507 | E133: ='Bridge&Test Year Class Forecast'!G67 -> 1068762.491 | F133: ='Bridge&Test Year Class Forecast'!M13/'Input - Customer Data'!J14 -> 3055.246316 | G133: =+'Bridge&Test Year Class Forecast'!G95 -> 18421962.06 | H133: ='Bridge&Test Year Class Forecast'!M32/'Input - Customer Data'!L14 -> 43591 | I133: ='Bridge&Test Year Class Forecast'!O54 -> 43235.92308 | J133: ='Bridge&Test Year Class Forecast'!P54 -> 0 | K133: ='Bridge&Test Year Class Forecast'!O74 -> 1355.655172 | L133: ='Bridge&Test Year Class Forecast'!P74 -> 3.765172414 | M133: ='Bridge&Test Year Class Forecast'!O94 -> 332.0909358 | N133: ='Bridge&Test Year Class Forecast'!P94 -> 0.9124083309
B134: 2017 | C134: ='Bridge&Test Year Class Forecast'!G14 -> 7524.989617 | D134: ='Bridge&Test Year Class Forecast'!G41 -> 27956.20164 | E134: ='Bridge&Test Year Class Forecast'!G68 -> 1299207.33 | F134: ='Bridge&Test Year Class Forecast'!M14/'Input - Customer Data'!J24 -> 3513.400711 | G134: =+'Bridge&Test Year Class Forecast'!G96 -> 18961919.5 | H134: ='Bridge&Test Year Class Forecast'!M33/'Input - Customer Data'!L24 -> 44307.58844 | I134: ='Bridge&Test Year Class Forecast'!O55 -> 43032.73077 | J134: ='Bridge&Test Year Class Forecast'!P55 -> 0 | K134: ='Bridge&Test Year Class Forecast'!O75 -> 1367.76363 | L134: ='Bridge&Test Year Class Forecast'!P75 -> 3.799281918 | M134: ='Bridge&Test Year Class Forecast'!O95 -> 332.0909358 | N134: ='Bridge&Test Year Class Forecast'!P95 -> 0.9124083309
B135: 2018 | C135: ='Bridge&Test Year Class Forecast'!G15 -> 7467.203909 | D135: ='Bridge&Test Year Class Forecast'!G42 -> 27705.47169 | E135: ='Bridge&Test Year Class Forecast'!G69 -> 1331936.944 | F135: ='Bridge&Test Year Class Forecast'!M15/'Input - Customer Data'!J25 -> 3601.910255 | G135: =+'Bridge&Test Year Class Forecast'!G97 -> 19001585.74 | H135: ='Bridge&Test Year Class Forecast'!M34/'Input - Customer Data'!L25 -> 44400.27502 | I135: ='Bridge&Test Year Class Forecast'!O56 -> 43032.73077 | J135: ='Bridge&Test Year Class Forecast'!P56 -> 0 | K135: ='Bridge&Test Year Class Forecast'!O76 -> 1367.76363 | L135: ='Bridge&Test Year Class Forecast'!P76 -> 3.799281918 | M135: ='Bridge&Test Year Class Forecast'!O96 -> 332.0909358 | N135: ='Bridge&Test Year Class Forecast'!P96 -> 0.9124083309
B136: =B101 -> 0 | C136: ='Bridge&Test Year Class Forecast'!G16 ->  | D136: ='Bridge&Test Year Class Forecast'!G43 ->  | E136: ='Bridge&Test Year Class Forecast'!G70 ->  | F136: ='Bridge&Test Year Class Forecast'!M16/'Input - Customer Data'!J20 -> 0 | G136: ='Bridge&Test Year Class Forecast'!#REF!/'Input - Customer Data'!L20 ->  | H136: ='Bridge&Test Year Class Forecast'!#REF!/'Input - Customer Data'!L20 ->  | I136: ='Bridge&Test Year Class Forecast'!O57 -> 0 | J136: ='Bridge&Test Year Class Forecast'!P57 -> 0 | K136: ='Bridge&Test Year Class Forecast'!O77 -> 1367.76363 | L136: ='Bridge&Test Year Class Forecast'!O77 -> 1367.76363 | M136: ='Bridge&Test Year Class Forecast'!Q77 -> 0.002777732815 | N136: ='Bridge&Test Year Class Forecast'!Q77 -> 0.002777732815

Sheet Analysis_Distr Revenues
B2: Weather Adjusted Load Forecast Results
C4: Year | D4: 2013 Board Approved | E4: 2013 | F4: 2014 | G4: Variance | H4: 2015 | I4: Variance | J4: 2016 | K4: Variance | L4: 2017 | M4: Variance | N4: 2018
B5: Residential | C5: Fixed
C6: Variable
C8: Cust/Conn | D8: 5858 | E8: 5911 | F8: 5947 | H8: 5961 | J8: 5986.5 | L8: 6047.466833 | N8: 0
C9: kWh | D9: 45809827 | E9: 46509674 | F9: 46179255 | H9: 45096927.6 | J9: 44896468 | L9: 45507125.13 | N9: 44716575.89
C10: Revenues | D10: =(D8*D5*12)+(D6*D9) -> 0 | E10: =(E8*E5*12)+(E6*E9) -> 0 | F10: 0 | H10: 0 | J10: 0 | L10: 0 | N10: =(N8*N5*12)+(N6*N9) -> 0
E11: =(E10-D10)/D10 ->  | F11: =(F10-E10)/E10 ->  | H11: =(H10-F10)/F10 ->  | J11: =(J10-H10)/H10 ->  | L11: =(L10-J10)/J10 ->  | N11: =(N10-L10)/L10 -> 
B13: General Service < 50 kW | C13: Fixed
C14: Variable
C16: Cust/Conn | D16: 738 | E16: 709.5 | F16: 715 | H16: 729 | J16: 742.5 | L16: 749.7756263 | N16: 0
C17: kWh | D17: 20408044 | E17: 20402986 | F17: 20579247 | H17: 21408682 | J17: 23270826 | L17: 20960878.59 | N17: 20596746.46
C18: Revenues | D18: =(D16*D13*12)+(D14*D17) -> 0 | E18: =(E16*E13*12)+(E14*E17) -> 0 | F18: 0 | H18: 0 | J18: 0 | L18: 0 | N18: =(N16*N13*12)+(N14*N17) -> 0
E19: =(E18-D18)/D18 ->  | F19: =(F18-E18)/E18 ->  | H19: =(H18-F18)/F18 ->  | J19: =(J18-H18)/H18 ->  | L19: =(L18-J18)/J18 ->  | N19: =(N18-L18)/L18 -> 
B21: General Service 50 to 2999 kW | C21: Fixed
C22: Variable
C24: Cust/Conn | D24: 62 | E24: 57 | F24: 56.5 | H24: 52 | J24: 47.5 | L24: 45.38353263 | N24: 0
C25: kWh | D25: 61309307 | E25: 60663508 | F25: 55013692 | H25: 52447595 | J25: 50553990 | L25: 60321817.19 | N25: 59273907.29
C26: kW | D26: 157640 | E26: 165373.32 | F26: 154259.8 | H26: 148977.2 | J26: 145124.2 | L26: 163126.1697 | N26: 160292.3438
C27: Revenues | D27: =(D24*D21*12)+(D22*D26) -> 0 | E27: =(E24*E21*12)+(E22*E26) -> 0 | F27: 0 | H27: 0 | J27: 0 | L27: 0 | N27: 0
E28: =(E27-D27)/D27 ->  | F28: =(F27-E27)/E27 ->  | H28: =(H27-F27)/F27 ->  | J28: =(J27-H27)/H27 ->  | L28: =(L27-J27)/J27 ->  | N28: =(N27-L27)/L27 -> 
B29: General Service 3000-4999 kW
C30: Fixed
C31: Variable
C33: Cust/Conn | D33: 1 | E33: 1 | F33: 1 | H33: 1 | J33: 1 | L33: 1 | N33: 0
C34: kWh | D34: 16959953 | E34: 18608986 | F34: 18461823 | H34: 17295612 | J34: 18344949 | L34: 18961919.5 | N34: 18632513.26
C35: kW | D35: 37416 | E35: 42815.4 | F35: 43263.5 | H35: 41432.5 | J35: 43591 | L35: 44307.58844 | N35: 43537.87754
C36: Revenues | D36: =(D33*D30*12)+(D31*D35) -> 0 | E36: =(E33*E30*12)+(E31*E35) -> 0 | F36: =(F33*F30*12)+(F31*F35) -> 0 | H36: =(H33*H30*12)+(H31*H35) -> 0 | J36: =(J33*J30*12)+(J31*J35) -> 0 | L36: =(L33*L30*12)+(L31*L35) -> 0 | N36: =(N33*N30*12)+(N31*N35) -> 0
B39: Unmetered Scattered Load | C39: Fixed
C40: Variable
C42: Cust/Conn | D42: 10 | E42: 13 | F42: 13 | H42: 13 | J42: 13 | L42: 13 | N42: 0
C43: kWh | D43: 604378 | E43: 548407 | F43: 563396 | H43: 563839 | J43: 562067 | L43: 559425.5 | N43: 548559.6406
